Workbook

Sheet 1930
S1: 1 | T1: 2 | U1: 3 | V1: 4 | W1: 5 | X1: 6 | Y1: 7
A2: 1. WM 1930 in Uruguay
A4: 13.-30. Juli 1930
A5: Teilnehmende Nationen: 13 --- Bewerbungen: 13
A7: Alle Spiele fanden in Montevideo statt.
F10: Gruppe 1
D12: 1930-07-13 | E12: Frankreich | F12: Mexiko | G12: 4 | H12: 1 | S12: Frankreich | T12: Mexiko | U12: 4 | V12: 1 | X12: =(IF(U12>V12,3,IF(U12=V12,1,2))) -> 3 | Y12: =(IF(V12>U12,3,IF(U12=V12,1,2))) -> 2 | AA12: Uruguay
G13: (3 | H13: 0) | S13: Argentinien | T13: Frankreich | U13: 1 | V13: 0 | X13: =(IF(U13>V13,3,IF(U13=V13,1,2))) -> 3 | Y13: =(IF(V13>U13,3,IF(U13=V13,1,2))) -> 2 | AA13: Argentinien
D14: 1930-07-15 | E14: Argentinien | F14: Frankreich | G14: 1 | H14: 0 | S14: Chile | T14: Mexiko | U14: 3 | V14: 0 | X14: 3 | Y14: 2 | AA14: USA
G15: (0 | H15: 0) | S15: Chile | T15: Frankreich | U15: 1 | V15: 0 | X15: 3 | Y15: 2 | AA15: Jugoslawien
D16: 1930-07-16 | E16: Chile | F16: Mexiko | G16: 3 | H16: 0 | S16: Argentinien | T16: Mexiko | U16: 6 | V16: 3 | X16: 3 | Y16: 2 | AA16: Chile
G17: (1 | H17: 0) | S17: Argentinien | T17: Chile | U17: 3 | V17: 1 | X17: 3 | Y17: 2 | AA17: Brasilien
D18: 1930-07-19 | E18: Chile | F18: Frankreich | G18: 1 | H18: 0 | AA18: Rumänien
G19: (0 | H19: 0) | AA19: Paraguay
D20: 1930-07-19 | E20: Argentinien | F20: Mexiko | G20: 6 | H20: 3 | AA20: Frankreich
G21: (3 | H21: 1) | AA21: Peru
D22: 1930-07-22 | E22: Argentinien | F22: Chile | G22: 3 | H22: 1 | AA22: Belgien
G23: (2 | H23: 1) | AA23: Bolivien
AA24: Mexiko
C25: Spiele | D25: gew | E25: unent | F25: verl | G25: Tore+ | H25: Tore- | I25: Punkte+ | J25: Punkte-
B26: Argentinien | C26: =COUNTIF($S$12:$T$17,"Argentinien") -> 3 | D26: =SUMPRODUCT(($S$12:$T$17=B26)*($X$12:$Y$17=3)) -> 3 | E26: =SUMPRODUCT(($S$12:$T$17=B26)*($X$12:$Y$17=1)) -> 0 | F26: =SUMPRODUCT(($S$12:$T$17=B26)*($X$12:$Y$17=2)) -> 0 | G26: =SUMPRODUCT(($S$12:$S$17=B26)*($U$12:$U$17))+SUMPRODUCT(($T$12:$T$17=B26)*($V$12:$V$17)) -> 10 | H26: =SUMPRODUCT(($S$12:$S$17=B26)*($V$12:$V$17))+SUMPRODUCT(($T$12:$T$17=B26)*($U$12:$U$17)) -> 4 | I26: =(D26*2)+E26 -> 6 | J26: =(F26*2)+E26 -> 0
B27: Chile | C27: =COUNTIF($S$12:$T$17,"Chile") -> 3 | D27: =SUMPRODUCT(($S$12:$T$17=B27)*($X$12:$Y$17=3)) -> 2 | E27: =SUMPRODUCT(($S$12:$T$17=B27)*($X$12:$Y$17=1)) -> 0 | F27: =SUMPRODUCT(($S$12:$T$17=B27)*($X$12:$Y$17=2)) -> 1 | G27: =SUMPRODUCT(($S$12:$S$17=B27)*($U$12:$U$17))+SUMPRODUCT(($T$12:$T$17=B27)*($V$12:$V$17)) -> 5 | H27: =SUMPRODUCT(($S$12:$S$17=B27)*($V$12:$V$17))+SUMPRODUCT(($T$12:$T$17=B27)*($U$12:$U$17)) -> 3 | I27: =(D27*2)+E27 -> 4 | J27: =(F27*2)+E27 -> 2
B28: Frankreich | C28: =COUNTIF($S$12:$T$17,"Frankreich") -> 3 | D28: =SUMPRODUCT(($S$12:$T$17=B28)*($X$12:$Y$17=3)) -> 1 | E28: =SUMPRODUCT(($S$12:$T$17=B28)*($X$12:$Y$17=1)) -> 0 | F28: =SUMPRODUCT(($S$12:$T$17=B28)*($X$12:$Y$17=2)) -> 2 | G28: =SUMPRODUCT(($S$12:$S$17=B28)*($U$12:$U$17))+SUMPRODUCT(($T$12:$T$17=B28)*($V$12:$V$17)) -> 4 | H28: =SUMPRODUCT(($S$12:$S$17=B28)*($V$12:$V$17))+SUMPRODUCT(($T$12:$T$17=B28)*($U$12:$U$17)) -> 3 | I28: =(D28*2)+E28 -> 2 | J28: =(F28*2)+E28 -> 4
B29: Mexiko | C29: =COUNTIF($S$12:$T$17,"Mexiko") -> 3 | D29: =SUMPRODUCT(($S$12:$T$17=B29)*($X$12:$Y$17=3)) -> 0 | E29: =SUMPRODUCT(($S$12:$T$17=B29)*($X$12:$Y$17=1)) -> 0 | F29: =SUMPRODUCT(($S$12:$T$17=B29)*($X$12:$Y$17=2)) -> 3 | G29: =SUMPRODUCT(($S$12:$S$17=B29)*($U$12:$U$17))+SUMPRODUCT(($T$12:$T$17=B29)*($V$12:$V$17)) -> 4 | H29: =SUMPRODUCT(($S$12:$S$17=B29)*($V$12:$V$17))+SUMPRODUCT(($T$12:$T$17=B29)*($U$12:$U$17)) -> 13 | I29: =(D29*2)+E29 -> 0 | J29: =(F29*2)+E29 -> 6
F32: Gruppe 2
D34: 1930-07-14 | E34: Jugoslawien | F34: Brasilien | G34: 2 | H34: 1 | S34: Jugoslawien | T34: Brasilien | U34: 2 | V34: 1 | X34: =(IF(U34>V34,3,IF(U34=V34,1,2))) -> 3 | Y34: =(IF(V34>U34,3,IF(U34=V34,1,2))) -> 2
G35: (2 | H35: 0) | S35: Jugoslawien | T35: Bolivien | U35: 4 | V35: 0 | X35: =(IF(U35>V35,3,IF(U35=V35,1,2))) -> 3 | Y35: 2
D36: 1930-07-17 | E36: Jugoslawien | F36: Bolivien | G36: 4 | H36: 0 | S36: Brasilien | T36: Bolivien | U36: 4 | V36: 0 | X36: 3 | Y36: 2
G37: (0 | H37: 0)
D38: 1930-07-20 | E38: Brasilien | F38: Bolivien | G38: 4 | H38: 0
G39: (1 | H39: 0)
C41: Spiele | D41: gew | E41: unent | F41: verl | G41: Tore+ | H41: Tore- | I41: Punkte+ | J41: Punkte-
B42: Jugoslawien | C42: =COUNTIF($S$34:$T$36,"Jugoslawien") -> 2 | D42: =SUMPRODUCT(($S$34:$T$36=B42)*($X$34:$Y$36=3)) -> 2 | E42: =SUMPRODUCT(($S$34:$T$36=B42)*($X$34:$Y$36=1)) -> 0 | F42: =SUMPRODUCT(($S$34:$T$36=B42)*($X$34:$Y$36=2)) -> 0 | G42: =SUMPRODUCT(($S$34:$S$36=B42)*($U$34:$U$36))+SUMPRODUCT(($T$34:$T$36=B42)*($V$34:$V$36)) -> 6 | H42: =SUMPRODUCT(($S$34:$S$36=B42)*($V$34:$V$36))+SUMPRODUCT(($T$34:$T$36=B42)*($U$34:$U$36)) -> 1 | I42: =(D42*2)+E42 -> 4 | J42: =(F42*2)+E42 -> 0
B43: Brasilien | C43: =COUNTIF($S$34:$T$36,"Brasilien") -> 2 | D43: =SUMPRODUCT(($S$34:$T$36=B43)*($X$34:$Y$36=3)) -> 1 | E43: =SUMPRODUCT(($S$34:$T$36=B43)*($X$34:$Y$36=1)) -> 0 | F43: =SUMPRODUCT(($S$34:$T$36=B43)*($X$34:$Y$36=2)) -> 1 | G43: =SUMPRODUCT(($S$34:$S$36=B43)*($U$34:$U$36))+SUMPRODUCT(($T$34:$T$36=B43)*($V$34:$V$36)) -> 5 | H43: =SUMPRODUCT(($S$34:$S$36=B43)*($V$34:$V$36))+SUMPRODUCT(($T$34:$T$36=B43)*($U$34:$U$36)) -> 2 | I43: =(D43*2)+E43 -> 2 | J43: =(F43*2)+E43 -> 2
B44: Bolivien | C44: =COUNTIF($S$34:$T$36,"Bolivien") -> 2 | D44: =SUMPRODUCT(($S$34:$T$36=B44)*($X$34:$Y$36=3)) -> 0 | E44: =SUMPRODUCT(($S$34:$T$36=B44)*($X$34:$Y$36=1)) -> 0 | F44: =SUMPRODUCT(($S$34:$T$36=B44)*($X$34:$Y$36=2)) -> 2 | G44: =SUMPRODUCT(($S$34:$S$36=B44)*($U$34:$U$36))+SUMPRODUCT(($T$34:$T$36=B44)*($V$34:$V$36)) -> 0 | H44: =SUMPRODUCT(($S$34:$S$36=B44)*($V$34:$V$36))+SUMPRODUCT(($T$34:$T$36=B44)*($U$34:$U$36)) -> 8 | I44: =(D44*2)+E44 -> 0 | J44: =(F44*2)+E44 -> 4
F47: Gruppe 3
D49: 1930-07-14 | E49: Rumänien | F49: Peru | G49: 3 | H49: 1 | S49: Rumänien | T49: Peru | U49: 3 | V49: 1 | X49: =(IF(U49>V49,3,IF(U49=V49,1,2))) -> 3 | Y49: =(IF(V49>U49,3,IF(U49=V49,1,2))) -> 2
G50: (1 | H50: 0) | S50: Uruguay | T50: Peru | U50: 1 | V50: 0 | X50: 3 | Y50: 2
D51: 1930-07-18 | E51: Uruguay | F51: Peru | G51: 1 | H51: 0 | S51: Uruguay | T51: Rumänien | U51: 4 | V51: 0 | X51: 3 | Y51: 2
G52: (0 | H52: 0)
D53: 1930-07-21 | E53: Uruguay | F53: Rumänien | G53: 4 | H53: 0
G54: (4 | H54: 0)
C56: Spiele | D56: gew | E56: unent | F56: verl | G56: Tore+ | H56: Tore- | I56: Punkte+ | J56: Punkte-
B57: Uruguay | C57: =COUNTIF($S$49:$T$51,"Uruguay") -> 2 | D57: =SUMPRODUCT(($S$49:$T$51=B57)*($X$49:$Y$51=3)) -> 2 | E57: =SUMPRODUCT(($S$49:$T$51=B57)*($X$49:$Y$51=1)) -> 0 | F57: =SUMPRODUCT(($S$49:$T$51=B57)*($X$49:$Y$51=2)) -> 0 | G57: =SUMPRODUCT(($S$49:$S$51=B57)*($U$49:$U$51))+SUMPRODUCT(($T$49:$T$51=B57)*($V$49:$V$51)) -> 5 | H57: =SUMPRODUCT(($S$49:$S$51=B57)*($V$49:$V$51))+SUMPRODUCT(($T$49:$T$51=B57)*($U$49:$U$51)) -> 0 | I57: =(D57*2)+E57 -> 4 | J57: =(F57*2)+E57 -> 0
B58: Rumänien | C58: =COUNTIF($S$49:$T$51,"Rumänien") -> 2 | D58: =SUMPRODUCT(($S$49:$T$51=B58)*($X$49:$Y$51=3)) -> 1 | E58: =SUMPRODUCT(($S$49:$T$51=B58)*($X$49:$Y$51=1)) -> 0 | F58: =SUMPRODUCT(($S$49:$T$51=B58)*($X$49:$Y$51=2)) -> 1 | G58: =SUMPRODUCT(($S$49:$S$51=B58)*($U$49:$U$51))+SUMPRODUCT(($T$49:$T$51=B58)*($V$49:$V$51)) -> 3 | H58: =SUMPRODUCT(($S$49:$S$51=B58)*($V$49:$V$51))+SUMPRODUCT(($T$49:$T$51=B58)*($U$49:$U$51)) -> 5 | I58: =(D58*2)+E58 -> 2 | J58: =(F58*2)+E58 -> 2
B59: Peru | C59: =COUNTIF($S$49:$T$51,"Peru") -> 2 | D59: =SUMPRODUCT(($S$49:$T$51=B59)*($X$49:$Y$51=3)) -> 0 | E59: =SUMPRODUCT(($S$49:$T$51=B59)*($X$49:$Y$51=1)) -> 0 | F59: =SUMPRODUCT(($S$49:$T$51=B59)*($X$49:$Y$51=2)) -> 2 | G59: =SUMPRODUCT(($S$49:$S$51=B59)*($U$49:$U$51))+SUMPRODUCT(($T$49:$T$51=B59)*($V$49:$V$51)) -> 1 | H59: =SUMPRODUCT(($S$49:$S$51=B59)*($V$49:$V$51))+SUMPRODUCT(($T$49:$T$51=B59)*($U$49:$U$51)) -> 4 | I59: =(D59*2)+E59 -> 0 | J59: =(F59*2)+E59 -> 4
F62: Gruppe 4
D64: 1930-07-13 | E64: USA | F64: Belgien | G64: 3 | H64: 0 | S64: USA | T64: Belgien | U64: 3 | V64: 0 | X64: =(IF(U64>V64,3,IF(U64=V64,1,2))) -> 3 | Y64: =(IF(V64>U64,3,IF(U64=V64,1,2))) -> 2
G65: (2 | H65: 0) | S65: USA | T65: Paraguay | U65: 3 | V65: 0 | X65: 3 | Y65: 2
D66: 1930-07-17 | E66: USA | F66: Paraguay | G66: 3 | H66: 0 | S66: Paraguay | T66: Belgien | U66: 1 | V66: 0 | X66: 3 | Y66: 2
G67: (2 | H67: 0)
D68: 1930-07-20 | E68: Paraguay | F68: Belgien | G68: 1 | H68: 0
G69: (1 | H69: 0)
C71: Spiele | D71: gew | E71: unent | F71: verl | G71: Tore+ | H71: Tore- | I71: Punkte+ | J71: Punkte-
B72: USA | C72: =COUNTIF($S$64:$T$66,"USA") -> 2 | D72: =SUMPRODUCT(($S$64:$T$66=B72)*($X$64:$Y$66=3)) -> 2 | E72: =SUMPRODUCT(($S$64:$T$66=B72)*($X$64:$Y$66=1)) -> 0 | F72: =SUMPRODUCT(($S$64:$T$66=B72)*($X$64:$Y$66=2)) -> 0 | G72: =SUMPRODUCT(($S$64:$S$66=B72)*($U$64:$U$66))+SUMPRODUCT(($T$64:$T$66=B72)*($V$64:$V$66)) -> 6 | H72: =SUMPRODUCT(($S$64:$S$66=B72)*($V$64:$V$66))+SUMPRODUCT(($T$64:$T$66=B72)*($U$64:$U$66)) -> 0 | I72: =(D72*2)+E72 -> 4 | J72: =(F72*2)+E72 -> 0
B73: Paraguay | C73: =COUNTIF($S$64:$T$66,"Paraguay") -> 2 | D73: =SUMPRODUCT(($S$64:$T$66=B73)*($X$64:$Y$66=3)) -> 1 | E73: =SUMPRODUCT(($S$64:$T$66=B73)*($X$64:$Y$66=1)) -> 0 | F73: =SUMPRODUCT(($S$64:$T$66=B73)*($X$64:$Y$66=2)) -> 1 | G73: =SUMPRODUCT(($S$64:$S$66=B73)*($U$64:$U$66))+SUMPRODUCT(($T$64:$T$66=B73)*($V$64:$V$66)) -> 1 | H73: =SUMPRODUCT(($S$64:$S$66=B73)*($V$64:$V$66))+SUMPRODUCT(($T$64:$T$66=B73)*($U$64:$U$66)) -> 3 | I73: =(D73*2)+E73 -> 2 | J73: =(F73*2)+E73 -> 2
B74: Belgien | C74: =COUNTIF($S$64:$T$66,"Belgien") -> 2 | D74: =SUMPRODUCT(($S$64:$T$66=B74)*($X$64:$Y$66=3)) -> 0 | E74: =SUMPRODUCT(($S$64:$T$66=B74)*($X$64:$Y$66=1)) -> 0 | F74: =SUMPRODUCT(($S$64:$T$66=B74)*($X$64:$Y$66=2)) -> 2 | G74: =SUMPRODUCT(($S$64:$S$66=B74)*($U$64:$U$66))+SUMPRODUCT(($T$64:$T$66=B74)*($V$64:$V$66)) -> 0 | H74: =SUMPRODUCT(($S$64:$S$66=B74)*($V$64:$V$66))+SUMPRODUCT(($T$64:$T$66=B74)*($U$64:$U$66)) -> 4 | I74: =(D74*2)+E74 -> 0 | J74: =(F74*2)+E74 -> 4
C77: Halbfinale:
D79: 1930-07-26 | E79: Argentinien | F79: USA | G79: 6 | H79: 1 | S79: Argentinien | T79: USA | U79: 6 | V79: 1 | X79: =(IF(U79>V79,3,IF(U79=V79,1,2))) -> 3 | Y79: =(IF(V79>U79,3,IF(U79=V79,1,2))) -> 2
G80: (1 | H80: 0) | S80: Uruguay | T80: Jugoslawien | U80: 6 | V80: 1 | X80: 3 | Y80: 2
D81: 1930-07-27 | E81: Uruguay | F81: Jugoslawien | G81: 6 | H81: 1
G82: (3 | H82: 1)
C85: Spiel um Platz 3 am 29. Juli 1930 in Montevideo
D87: Jugoslawien | E87: USA | F87: - | G87: -
F90: Jugoslawien verzichtet. USA kampflos Dritter.
C93: Endspiel am 30. Juli 1930 in Montevideo
D95: Uruguay | E95: Argentinien | F95: 4 | G95: 2 | S95: Uruguay | T95: Argentinien | U95: 4 | V95: 2 | X95: =(IF(U95>V95,3,IF(U95=V95,1,2))) -> 3 | Y95: =(IF(V95>U95,3,IF(U95=V95,1,2))) -> 2
F96: (1 | G96: 2)
A102: Auswertung | B102: Nation | C102: Spiele | D102: gew | E102: unent | F102: verl | G102: Tore+ | H102: Tore- | I102: Punkte+ | J102: Punkte-
B103: Uruguay | C103: =COUNTIF($S$12:$T$95,"Uruguay") -> 4 | D103: =SUMPRODUCT(($S$12:$T$95=B103)*($X$12:$Y$95=3)) -> 4 | E103: =SUMPRODUCT(($S$12:$T$95=B103)*($X$12:$Y$95=1)) -> 0 | F103: =SUMPRODUCT(($S$12:$T$95=B103)*($X$12:$Y$95=2)) -> 0 | G103: =SUMPRODUCT(($S$12:$S$95=B103)*($U$12:$U$95))+SUMPRODUCT(($T$12:$T$95=B103)*($V$12:$V$95)) -> 15 | H103: =SUMPRODUCT(($S$12:$S$95=B103)*($V$12:$V$95))+SUMPRODUCT(($T$12:$T$95=B103)*($U$12:$U$95)) -> 3 | I103: =(D103*2)+E103 -> 8 | J103: =(F103*2)+E103 -> 0
B104: Argentinien | C104: =COUNTIF($S$12:$T$95,"Argentinien") -> 5 | D104: 4 | E104: 0 | F104: 1 | G104: 18 | H104: 9 | I104: 8 | J104: 2
B105: USA | C105: =COUNTIF($S$12:$T$95,"USA") -> 3 | D105: 2 | E105: 0 | F105: 1 | G105: 7 | H105: 6 | I105: 4 | J105: 2
B106: Jugoslawien | C106: =COUNTIF($S$12:$T$95,"Jugoslawien") -> 3 | D106: 2 | E106: 0 | F106: 1 | G106: 7 | H106: 7 | I106: 4 | J106: 2
B107: Chile | C107: =COUNTIF($S$12:$T$95,"Chile") -> 3 | D107: 2 | E107: 0 | F107: 1 | G107: 5 | H107: 3 | I107: 4 | J107: 2
B108: Brasilien | C108: =COUNTIF($S$12:$T$95,"Brasilien") -> 2 | D108: 1 | E108: 0 | F108: 1 | G108: 5 | H108: 2 | I108: 2 | J108: 2
B109: Rumänien | C109: =COUNTIF($S$12:$T$95,"Rumänien") -> 2 | D109: 1 | E109: 0 | F109: 1 | G109: 3 | H109: 5 | I109: 2 | J109: 2
B110: Paraguay | C110: =COUNTIF($S$12:$T$95,"Paraguay") -> 2 | D110: 1 | E110: 0 | F110: 1 | G110: 1 | H110: 3 | I110: 2 | J110: 2
B111: Frankreich | C111: =COUNTIF($S$12:$T$95,"Frankreich") -> 3 | D111: 1 | E111: 0 | F111: 2 | G111: 4 | H111: 3 | I111: 2 | J111: 4
B112: Peru | C112: =COUNTIF($S$12:$T$95,"Peru") -> 2 | D112: 0 | E112: 0 | F112: 2 | G112: 1 | H112: 4 | I112: 0 | J112: 4
B113: Belgien | C113: =COUNTIF($S$12:$T$95,"Belgien") -> 2 | D113: 0 | E113: 0 | F113: 2 | G113: 0 | H113: 4 | I113: 0 | J113: 4
B114: Bolivien | C114: =COUNTIF($S$12:$T$95,"Bolivien") -> 2 | D114: 0 | E114: 0 | F114: 2 | G114: 0 | H114: 8 | I114: 0 | J114: 4
B115: Mexiko | C115: =COUNTIF($S$12:$T$95,"Mexiko") -> 3 | D115: 0 | E115: 0 | F115: 3 | G115: 4 | H115: 13 | I115: 0 | J115: 6

Sheet 1934
A2: 2. WM 1934 in Italien
A4: 27. Mai-10. Juni 1934
A5: Teilnehmende Nationen: 16 --- Bewerbungen: 32
A7: Das Tunier wurde im K.O.-System ausgespielt
F10: Achtelfinale:
C12: 1934-05-27 | D12: Italien | E12: USA | F12: 7 | G12: 1 | I12: Rom | S12: Italien | T12: USA | U12: 7 | V12: 1 | X12: =(IF(U12>V12,3,IF(U12=V12,1,2))) -> 3 | Y12: =(IF(V12>U12,3,IF(U12=V12,1,2))) -> 2 | AA12: Italien
F13: (3 | G13: 0) | S13: CSSR | T13: Rumänien | U13: 2 | V13: 1 | X13: =(IF(U13>V13,3,IF(U13=V13,1,2))) -> 3 | Y13: =(IF(V13>U13,3,IF(U13=V13,1,2))) -> 2 | AA13: Deutschland
C14: 1934-05-27 | D14: CSSR | E14: Rumänien | F14: 2 | G14: 1 | I14: Triest | S14: Deutschland | T14: Belgien | U14: 5 | V14: 2 | X14: 3 | Y14: 2 | AA14: CSSR
F15: (0 | G15: 1) | S15: Österreich | T15: Frankreich | U15: 3 | V15: 2 | X15: 3 | Y15: 2 | AA15: Österreich
C16: 1934-05-27 | D16: Deutschland | E16: Belgien | F16: 5 | G16: 2 | I16: Florenz | S16: Spanien | T16: Brasilien | U16: 3 | V16: 1 | X16: 3 | Y16: 2 | AA16: Spanien
F17: (1 | G17: 2) | S17: Schweiz | T17: Niederlande | U17: 3 | V17: 2 | X17: 3 | Y17: 2 | AA17: Ungarn
C18: 1934-05-27 | D18: Österreich | E18: Frankreich | F18: 3 | G18: 2 | H18: n.V. | I18: Turin | S18: Schweden | T18: Argentinien | U18: 3 | V18: 2 | X18: 3 | Y18: 2 | AA18: Schweiz
F19: 1 | G19: 1 | S19: Ungarn | T19: Ägypten | U19: 4 | V19: 2 | X19: 3 | Y19: 2 | AA19: Schweden
F20: (1 | G20: 1) | AA20: Frankreich
C21: 1934-05-27 | D21: Spanien | E21: Brasilien | F21: 3 | G21: 1 | I21: Genua | AA21: Niederlande
F22: (3 | G22: 0) | AA22: Argentinien
C23: 1934-05-27 | D23: Schweiz | E23: Niederlande | F23: 3 | G23: 2 | I23: Mailand | AA23: Ägypten
F24: (2 | G24: 1) | AA24: Belgien
C25: 1934-05-27 | D25: Schweden | E25: Argentinien | F25: 3 | G25: 2 | I25: Bologna | AA25: Rumänien
F26: (1 | G26: 1) | AA26: Brasilien
C27: 1934-05-27 | D27: Ungarn | E27: Ägypten | F27: 4 | G27: 2 | I27: Neapel | AA27: USA
F28: (2 | G28: 1)
F31: Viertelfinale:
C33: 1934-05-31 | D33: Österreich | E33: Ungarn | F33: 2 | G33: 1 | I33: Bologna | S33: Österreich | T33: Ungarn | U33: 2 | V33: 1 | X33: =(IF(U33>V33,3,IF(U33=V33,1,2))) -> 3 | Y33: =(IF(V33>U33,3,IF(U33=V33,1,2))) -> 2
F34: (1 | G34: 0) | S34: Italien | T34: Spanien | U34: 1 | V34: 1 | X34: =(IF(U34>V34,3,IF(U34=V34,1,2))) -> 1 | Y34: =(IF(V34>U34,3,IF(U34=V34,1,2))) -> 1
C35: 1934-05-31 | D35: Italien | E35: Spanien | F35: 1 | G35: 1 | H35: n.V. | I35: Florenz | S35: Deutschland | T35: Schweden | U35: 2 | V35: 1 | X35: =(IF(U35>V35,3,IF(U35=V35,1,2))) -> 3 | Y35: 2
F36: 1 | G36: 1 | S36: CSSR | T36: Schweiz | U36: 3 | V36: 2 | X36: 3 | Y36: 2
F37: (1 | G37: 1)
C38: 1934-05-31 | D38: Deutschland | E38: Schweden | F38: 2 | G38: 1 | I38: Mailand
F39: (0 | G39: 0)
C40: 1934-05-31 | D40: CSSR | E40: Schweiz | F40: 3 | G40: 2 | I40: Turin
F41: (1 | G41: 1)
F44: Wiederholungsspiel:
C46: 1934-06-01 | D46: Italien | E46: Spanien | F46: 1 | G46: 0 | I46: Florenz | S46: Italien | T46: Spanien | U46: 1 | V46: 0 | X46: =(IF(U46>V46,3,IF(U46=V46,1,2))) -> 3 | Y46: =(IF(V46>U46,3,IF(U46=V46,1,2))) -> 2
F47: (1 | G47: 0)
F50: Halbfinale:
C52: 1934-06-03 | D52: Österreich | E52: Italien | F52: 0 | G52: 1 | I52: Mailand | S52: Österreich | T52: Italien | U52: 0 | V52: 1 | X52: =(IF(U52>V52,3,IF(U52=V52,1,2))) -> 2 | Y52: =(IF(V52>U52,3,IF(U52=V52,1,2))) -> 3
F53: (0 | G53: 1) | S53: Deutschland | T53: CSSR | U53: 1 | V53: 3 | X53: 2 | Y53: 3
C54: 1934-06-03 | D54: Deutschland | E54: CSSR | F54: 1 | G54: 3 | I54: Rom
F55: (0 | G55: 1)
C58: Spiel um Platz 3 am 7. Juni 1934 in Neapel
D60: Österreich | E60: Deutschland | F60: 2 | G60: 3 | S60: Österreich | T60: Deutschland | U60: 2 | V60: 3 | X60: =(IF(U60>V60,3,IF(U60=V60,1,2))) -> 2 | Y60: =(IF(V60>U60,3,IF(U60=V60,1,2))) -> 3
F61: (1 | G61: 3)
C67: Endspiel am 10. Juni 1934 in Rom
D69: Italien | E69: CSSR | F69: 2 | G69: 1 | H69: n.V. | S69: Italien | T69: CSSR | U69: 2 | V69: 1 | X69: =(IF(U69>V69,3,IF(U69=V69,1,2))) -> 3 | Y69: =(IF(V69>U69,3,IF(U69=V69,1,2))) -> 2
F70: 1 | G70: 1
F71: (0 | G71: 0)
A77: Auswertung | B77: Nation | C77: Spiele | D77: gew | E77: unent | F77: verl | G77: Tore+ | H77: Tore- | I77: Punkte+ | J77: Punkte-
B78: Italien | C78: =COUNTIF($S$12:$T$69,"Italien") -> 5 | D78: =SUMPRODUCT(($S$12:$T$69=B78)*($X$12:$Y$69=3)) -> 4 | E78: =SUMPRODUCT(($S$12:$T$69=B78)*($X$12:$Y$69=1)) -> 1 | F78: =SUMPRODUCT(($S$12:$T$69=B78)*($X$12:$Y$69=2)) -> 0 | G78: =SUMPRODUCT(($S$12:$S$69=B78)*($U$12:$U$69))+SUMPRODUCT(($T$12:$T$69=B78)*($V$12:$V$69)) -> 12 | H78: =SUMPRODUCT(($S$12:$S$69=B78)*($V$12:$V$69))+SUMPRODUCT(($T$12:$T$69=B78)*($U$12:$U$69)) -> 3 | I78: =(D78*2)+E78 -> 9 | J78: =(F78*2)+E78 -> 1
B79: Deutschland | C79: =COUNTIF($S$12:$T$69,"Deutschland") -> 4 | D79: 3 | E79: 0 | F79: 1 | G79: 11 | H79: 8 | I79: 6 | J79: 2
B80: CSSR | C80: =COUNTIF($S$12:$T$69,"CSSR") -> 4 | D80: 3 | E80: 0 | F80: 1 | G80: 9 | H80: 6 | I80: 6 | J80: 2
B81: Österreich | C81: =COUNTIF($S$12:$T$69,"Österreich") -> 4 | D81: 2 | E81: 0 | F81: 2 | G81: 7 | H81: 7 | I81: 4 | J81: 4
B82: Spanien | C82: =COUNTIF($S$12:$T$69,"Spanien") -> 3 | D82: 1 | E82: 1 | F82: 1 | G82: 4 | H82: 3 | I82: 3 | J82: 3
B83: Ungarn | C83: =COUNTIF($S$12:$T$69,"Ungarn") -> 2 | D83: 1 | E83: 0 | F83: 1 | G83: 5 | H83: 4 | I83: 2 | J83: 2
B84: Schweiz | C84: =COUNTIF($S$12:$T$69,"Schweiz") -> 2 | D84: 1 | E84: 0 | F84: 1 | G84: 5 | H84: 5 | I84: 2 | J84: 2
B85: Schweden | C85: =COUNTIF($S$12:$T$69,"Schweden") -> 2 | D85: 1 | E85: 0 | F85: 1 | G85: 4 | H85: 4 | I85: 2 | J85: 2
B86: Frankreich | C86: =COUNTIF($S$12:$T$69,"Frankreich") -> 1 | D86: 0 | E86: 0 | F86: 1 | G86: 2 | H86: 3 | I86: 0 | J86: 2
B87: Niederlande | C87: =COUNTIF($S$12:$T$69,"Niederlande") -> 1 | D87: 0 | E87: 0 | F87: 1 | G87: 2 | H87: 3 | I87: 0 | J87: 2
B88: Argentinien | C88: =COUNTIF($S$12:$T$69,"Argentinien") -> 1 | D88: 0 | E88: 0 | F88: 1 | G88: 2 | H88: 3 | I88: 0 | J88: 2
B89: Ägypten | C89: =COUNTIF($S$12:$T$69,"Ägypten") -> 1 | D89: 0 | E89: 0 | F89: 1 | G89: 2 | H89: 4 | I89: 0 | J89: 2
B90: Belgien | C90: =COUNTIF($S$12:$T$69,"Belgien") -> 1 | D90: 0 | E90: 0 | F90: 1 | G90: 2 | H90: 5 | I90: 0 | J90: 2
B91: Rumänien | C91: =COUNTIF($S$12:$T$69,"Rumänien") -> 1 | D91: 0 | E91: 0 | F91: 1 | G91: 1 | H91: 2 | I91: 0 | J91: 2
B92: Brasilien | C92: =COUNTIF($S$12:$T$69,"Brasilien") -> 1 | D92: 0 | E92: 0 | F92: 1 | G92: 1 | H92: 3 | I92: 0 | J92: 2
B93: USA | C93: =COUNTIF($S$12:$T$69,"USA") -> 1 | D93: 0 | E93: 0 | F93: 1 | G93: 1 | H93: 7 | I93: 0 | J93: 2

Sheet 1938
A2: 3. WM 1938 in Frankreich
A4: 4.-19. Juni 1938
A5: Teilnehmende Nationen: 16 --- Bewerbungen: 36
A7: Das Tunier wurde im K.O.-System ausgespielt
F10: Achtelfinale:
C12: 1938-06-04 | D12: Schweiz | E12: Dtsch. Reich | F12: 1 | G12: 1 | H12: n.V. | I12: Paris | S12: Schweiz | T12: Dtsch. Reich | U12: 1 | V12: 1 | X12: =(IF(U12>V12,3,IF(U12=V12,1,2))) -> 1 | Y12: =(IF(V12>U12,3,IF(U12=V12,1,2))) -> 1 | AA12: Italien
F13: 1 | G13: 1 | S13: Ungarn | T13: Niederl.-Indien | U13: 6 | V13: 0 | X13: =(IF(U13>V13,3,IF(U13=V13,1,2))) -> 3 | Y13: =(IF(V13>U13,3,IF(U13=V13,1,2))) -> 2 | AA13: Brasilien
F14: (1 | G14: 1) | S14: Kuba | T14: Rumänien | U14: 3 | V14: 3 | X14: 1 | Y14: 1 | AA14: Ungarn
C15: 1938-06-05 | D15: Ungarn | E15: Niederl.-Indien | F15: 6 | G15: 0 | I15: Reims | S15: Frankreich | T15: Belgien | U15: 3 | V15: 1 | X15: 3 | Y15: 2 | AA15: CSSR
F16: (4 | G16: 0) | S16: Italien | T16: Norwegen | U16: 2 | V16: 1 | X16: 3 | Y16: 2 | AA16: Schweiz
C17: 1938-06-05 | D17: Kuba | E17: Rumänien | F17: 3 | G17: 3 | H17: n.V. | I17: Toulouse | S17: Brasilien | T17: Polen | U17: 6 | V17: 5 | X17: 3 | Y17: 2 | AA17: Kuba
F18: 2 | G18: 2 | S18: CSSR | T18: Niederlande | U18: 3 | V18: 0 | X18: 3 | Y18: 2 | AA18: Frankreich
F19: (1 | G19: 1) | AA19: Schweden
C20: 1938-06-05 | D20: Frankreich | E20: Belgien | F20: 3 | G20: 1 | I20: Colombes (bei Paris) | AA20: Rumänien
F21: (2 | G21: 1) | AA21: Dtsch. Reich
C22: 1938-06-05 | D22: Italien | E22: Norwegen | F22: 2 | G22: 1 | H22: n.V. | I22: Marseille | AA22: Polen
F23: 1 | G23: 1 | AA23: Norwegen
F24: (1 | G24: 0) | AA24: Belgien
C25: 1938-06-05 | D25: Brasilien | E25: Polen | F25: 6 | G25: 5 | H25: n.V. | I25: Straßburg | AA25: Niederlande
F26: 4 | G26: 4 | AA26: Niederl.-Indien
F27: (3 | G27: 1)
C28: 1938-06-05 | D28: CSSR | E28: Niederlande | F28: 3 | G28: 0 | H28: n.V. | I28: Le Havre
F29: 0 | G29: 0
F30: (0 | G30: 0)
C31: 1938-06-05 | D31: Schweden | E31: Österreich | F31: kampflos | I31: Lyon
F34: Wiederholungsspiele:
C36: 1938-06-09 | D36: Schweiz | E36: Dtsch. Reich | F36: 4 | G36: 2 | I36: Paris | S36: Schweiz | T36: Dtsch. Reich | U36: 4 | V36: 2 | X36: =(IF(U36>V36,3,IF(U36=V36,1,2))) -> 3 | Y36: =(IF(V36>U36,3,IF(U36=V36,1,2))) -> 2
F37: (1 | G37: 2) | S37: Kuba | T37: Rumänien | U37: 2 | V37: 1 | X37: =(IF(U37>V37,3,IF(U37=V37,1,2))) -> 3 | Y37: =(IF(V37>U37,3,IF(U37=V37,1,2))) -> 2
C38: 1938-06-09 | D38: Kuba | E38: Rumänien | F38: 2 | G38: 1 | I38: Toulouse
F39: (0 | G39: 1)
F41: Viertelfinale:
C43: 1938-06-12 | D43: Italien | E43: Frankreich | F43: 3 | G43: 1 | I43: Colombes (bei Paris) | S43: Italien | T43: Frankreich | U43: 3 | V43: 1 | X43: =(IF(U43>V43,3,IF(U43=V43,1,2))) -> 3 | Y43: =(IF(V43>U43,3,IF(U43=V43,1,2))) -> 2
F44: (1 | G44: 1) | S44: CSSR | T44: Brasilien | U44: 1 | V44: 1 | X44: 1 | Y44: 1
C45: 1938-06-12 | D45: CSSR | E45: Brasilien | F45: 1 | G45: 1 | H45: n.V. | I45: Bordeaux | S45: Kuba | T45: Schweden | U45: 0 | V45: 8 | X45: 2 | Y45: 3
F46: 1 | G46: 1 | S46: Schweiz | T46: Ungarn | U46: 0 | V46: 2 | X46: =(IF(U46>V46,3,IF(U46=V46,1,2))) -> 2 | Y46: =(IF(V46>U46,3,IF(U46=V46,1,2))) -> 3
F47: (0 | G47: 1)
C48: 1938-06-12 | D48: Kuba | E48: Schweden | F48: 0 | G48: 8 | I48: Antibes
F49: (0 | G49: 4)
C50: 1938-06-12 | D50: Schweiz | E50: Ungarn | F50: 0 | G50: 2 | I50: Lille
F51: (0 | G51: 1)
F54: Wiederholungsspiel:
C56: 1938-06-14 | D56: CSSR | E56: Brasilien | F56: 1 | G56: 2 | I56: Bordeaux | S56: CSSR | T56: Brasilien | U56: 1 | V56: 2 | X56: =(IF(U56>V56,3,IF(U56=V56,1,2))) -> 2 | Y56: =(IF(V56>U56,3,IF(U56=V56,1,2))) -> 3
F57: (1 | G57: 0)
F60: Halbfinale:
C62: 1938-06-16 | D62: Italien | E62: Brasilien | F62: 2 | G62: 1 | I62: Marseille | S62: Italien | T62: Brasilien | U62: 2 | V62: 1 | X62: =(IF(U62>V62,3,IF(U62=V62,1,2))) -> 3 | Y62: =(IF(V62>U62,3,IF(U62=V62,1,2))) -> 2
F63: (0 | G63: 0) | S63: Schweden | T63: Ungarn | U63: 1 | V63: 5 | X63: 2 | Y63: 3
C64: 1938-06-16 | D64: Schweden | E64: Ungarn | F64: 1 | G64: 5 | I64: Paris
F65: (1 | G65: 3)
C68: Spiel um Platz 3 am 19. Juni 1938 in Bordeaux
D70: Brasilien | E70: Schweden | F70: 4 | G70: 2 | S70: Brasilien | T70: Schweden | U70: 4 | V70: 2 | X70: =(IF(U70>V70,3,IF(U70=V70,1,2))) -> 3 | Y70: =(IF(V70>U70,3,IF(U70=V70,1,2))) -> 2
D71: 4 | F71: (1 | G71: 2)
C77: Endspiel am 19. Juni 1938 in Colombes (bei Paris)
D79: Italien | E79: Ungarn | F79: 4 | G79: 2 | S79: Italien | T79: Ungarn | U79: 4 | V79: 2 | X79: =(IF(U79>V79,3,IF(U79=V79,1,2))) -> 3 | Y79: =(IF(V79>U79,3,IF(U79=V79,1,2))) -> 2
F80: (3 | G80: 1)
A86: Auswertung | B86: Nation | C86: Spiele | D86: gew | E86: unent | F86: verl | G86: Tore+ | H86: Tore- | I86: Punkte+ | J86: Punkte-
B87: Italien | C87: =COUNTIF($S$12:$T$79,"Italien") -> 4 | D87: =SUMPRODUCT(($S$12:$T$79=B87)*($X$12:$Y$79=3)) -> 4 | E87: =SUMPRODUCT(($S$12:$T$79=B87)*($X$12:$Y$79=1)) -> 0 | F87: =SUMPRODUCT(($S$12:$T$79=B87)*($X$12:$Y$79=2)) -> 0 | G87: =SUMPRODUCT(($S$12:$S$79=B87)*($U$12:$U$79))+SUMPRODUCT(($T$12:$T$79=B87)*($V$12:$V$79)) -> 11 | H87: =SUMPRODUCT(($S$12:$S$79=B87)*($V$12:$V$79))+SUMPRODUCT(($T$12:$T$79=B87)*($U$12:$U$79)) -> 5 | I87: =(D87*2)+E87 -> 8 | J87: =(F87*2)+E87 -> 0
B88: Brasilien | C88: =COUNTIF($S$12:$T$79,"Brasilien") -> 5 | D88: 3 | E88: 1 | F88: 1 | G88: 14 | H88: 11 | I88: 7 | J88: 3
B89: Ungarn | C89: =COUNTIF($S$12:$T$79,"Ungarn") -> 4 | D89: 3 | E89: 0 | F89: 1 | G89: 15 | H89: 5 | I89: 6 | J89: 2
B90: CSSR | C90: =COUNTIF($S$12:$T$79,"CSSR") -> 3 | D90: 1 | E90: 1 | F90: 1 | G90: 5 | H90: 3 | I90: 3 | J90: 3
B91: Schweiz | C91: =COUNTIF($S$12:$T$79,"Schweiz") -> 3 | D91: 1 | E91: 1 | F91: 1 | G91: 5 | H91: 5 | I91: 3 | J91: 3
B92: Kuba | C92: =COUNTIF($S$12:$T$79,"Kuba") -> 3 | D92: 1 | E92: 1 | F92: 1 | G92: 5 | H92: 12 | I92: 3 | J92: 3
B93: Frankreich | C93: =COUNTIF($S$12:$T$79,"Frankreich") -> 2 | D93: 1 | E93: 0 | F93: 1 | G93: 4 | H93: 4 | I93: 2 | J93: 2
B94: Schweden | C94: =COUNTIF($S$12:$T$79,"Schweden") -> 3 | D94: 1 | E94: 0 | F94: 2 | G94: 11 | H94: 9 | I94: 2 | J94: 4
B95: Rumänien | C95: =COUNTIF($S$12:$T$79,"Rumänien") -> 2 | D95: 0 | E95: 1 | F95: 1 | G95: 4 | H95: 5 | I95: 1 | J95: 3
B96: Dtsch. Reich | C96: =COUNTIF($S$12:$T$79,"Dtsch. Reich") -> 2 | D96: 0 | E96: 1 | F96: 1 | G96: 3 | H96: 5 | I96: 1 | J96: 3
B97: Polen | C97: =COUNTIF($S$12:$T$79,"Polen") -> 1 | D97: 0 | E97: 0 | F97: 1 | G97: 5 | H97: 6 | I97: 0 | J97: 2
B98: Norwegen | C98: =COUNTIF($S$12:$T$79,"Norwegen") -> 1 | D98: 0 | E98: 0 | F98: 1 | G98: 1 | H98: 2 | I98: 0 | J98: 2
B99: Belgien | C99: =COUNTIF($S$12:$T$79,"Belgien") -> 1 | D99: 0 | E99: 0 | F99: 1 | G99: 1 | H99: 3 | I99: 0 | J99: 2
B100: Niederlande | C100: =COUNTIF($S$12:$T$79,"Niederlande") -> 1 | D100: 0 | E100: 0 | F100: 1 | G100: 0 | H100: 3 | I100: 0 | J100: 2
B101: Niederl.-Indien | C101: =COUNTIF($S$12:$T$79,"Niederl.-Indien") -> 1 | D101: 0 | E101: 0 | F101: 1 | G101: 0 | H101: 6 | I101: 0 | J101: 2

Sheet 1950
A2: 4. WM 1950 in Brasilien
A4: 24. Juni - 16. Juli 1950
A5: Teilnehmende Nationen: 13 --- Bewerbungen: 34
F10: Gruppe 1
C12: 1950-06-24 | D12: Brasilien | E12: Mexiko | F12: 4 | G12: 0 | I12: Rio de Janeiro | S12: Brasilien | T12: Mexiko | U12: 4 | V12: 0 | X12: =(IF(U12>V12,3,IF(U12=V12,1,2))) -> 3 | Y12: =(IF(V12>U12,3,IF(U12=V12,1,2))) -> 2 | AA12: Brasilien
F13: (1 | G13: 0) | S13: Jugoslawien | T13: Schweiz | U13: 3 | V13: 0 | X13: =(IF(U13>V13,3,IF(U13=V13,1,2))) -> 3 | Y13: =(IF(V13>U13,3,IF(U13=V13,1,2))) -> 2 | AA13: Uruguay
C14: 1950-06-25 | D14: Jugoslawien | E14: Schweiz | F14: 3 | G14: 0 | I14: Belo Horizonte | S14: Brasilien | T14: Schweiz | U14: 2 | V14: 2 | X14: 1 | Y14: 1 | AA14: Spanien
F15: (0 | G15: 0) | S15: Jugoslawien | T15: Mexiko | U15: 4 | V15: 1 | X15: 3 | Y15: 2 | AA15: Schweden
C16: 1950-06-28 | D16: Brasilien | E16: Schweiz | F16: 2 | G16: 2 | I16: São Paulo | S16: Brasilien | T16: Jugoslawien | U16: 2 | V16: 0 | X16: 3 | Y16: 2 | AA16: Jugoslawien
F17: (2 | G17: 1) | S17: Schweiz | T17: Mexiko | U17: 2 | V17: 1 | X17: 3 | Y17: 2 | AA17: Schweiz
C18: 1950-06-28 | D18: Jugoslawien | E18: Mexiko | F18: 4 | G18: 1 | I18: Porto Alegre | AA18: Italien
F19: (2 | G19: 0) | AA19: Chile
C20: 1950-07-01 | D20: Brasilien | E20: Jugoslawien | F20: 2 | G20: 0 | I20: Rio de Janeiro | AA20: USA
F21: (1 | G21: 0) | AA21: England
C22: 1950-07-02 | D22: Schweiz | E22: Mexiko | F22: 2 | G22: 1 | I22: Porto Alegre | AA22: Paraguay
F23: (2 | G23: 0) | AA23: Bolivien
AA24: Mexiko
C25: Spiele | D25: gew | E25: unent | F25: verl | G25: Tore+ | H25: Tore- | I25: Punkte+ | J25: Punkte-
B26: Brasilien | C26: =COUNTIF($S$12:$T$17,"Brasilien") -> 3 | D26: =SUMPRODUCT(($S$12:$T$17=B26)*($X$12:$Y$17=3)) -> 2 | E26: =SUMPRODUCT(($S$12:$T$17=B26)*($X$12:$Y$17=1)) -> 1 | F26: =SUMPRODUCT(($S$12:$T$17=B26)*($X$12:$Y$17=2)) -> 0 | G26: =SUMPRODUCT(($S$12:$S$17=B26)*($U$12:$U$17))+SUMPRODUCT(($T$12:$T$17=B26)*($V$12:$V$17)) -> 8 | H26: =SUMPRODUCT(($S$12:$S$17=B26)*($V$12:$V$17))+SUMPRODUCT(($T$12:$T$17=B26)*($U$12:$U$17)) -> 2 | I26: =(D26*2)+E26 -> 5 | J26: =(F26*2)+E26 -> 1
B27: Jugoslawien | C27: =COUNTIF($S$12:$T$17,"Jugoslawien") -> 3 | D27: =SUMPRODUCT(($S$12:$T$17=B27)*($X$12:$Y$17=3)) -> 2 | E27: =SUMPRODUCT(($S$12:$T$17=B27)*($X$12:$Y$17=1)) -> 0 | F27: =SUMPRODUCT(($S$12:$T$17=B27)*($X$12:$Y$17=2)) -> 1 | G27: =SUMPRODUCT(($S$12:$S$17=B27)*($U$12:$U$17))+SUMPRODUCT(($T$12:$T$17=B27)*($V$12:$V$17)) -> 7 | H27: =SUMPRODUCT(($S$12:$S$17=B27)*($V$12:$V$17))+SUMPRODUCT(($T$12:$T$17=B27)*($U$12:$U$17)) -> 3 | I27: =(D27*2)+E27 -> 4 | J27: =(F27*2)+E27 -> 2
B28: Schweiz | C28: =COUNTIF($S$12:$T$17,"Schweiz") -> 3 | D28: =SUMPRODUCT(($S$12:$T$17=B28)*($X$12:$Y$17=3)) -> 1 | E28: =SUMPRODUCT(($S$12:$T$17=B28)*($X$12:$Y$17=1)) -> 1 | F28: =SUMPRODUCT(($S$12:$T$17=B28)*($X$12:$Y$17=2)) -> 1 | G28: =SUMPRODUCT(($S$12:$S$17=B28)*($U$12:$U$17))+SUMPRODUCT(($T$12:$T$17=B28)*($V$12:$V$17)) -> 4 | H28: =SUMPRODUCT(($S$12:$S$17=B28)*($V$12:$V$17))+SUMPRODUCT(($T$12:$T$17=B28)*($U$12:$U$17)) -> 6 | I28: =(D28*2)+E28 -> 3 | J28: =(F28*2)+E28 -> 3
B29: Mexiko | C29: =COUNTIF($S$12:$T$17,"Mexiko") -> 3 | D29: =SUMPRODUCT(($S$12:$T$17=B29)*($X$12:$Y$17=3)) -> 0 | E29: =SUMPRODUCT(($S$12:$T$17=B29)*($X$12:$Y$17=1)) -> 0 | F29: =SUMPRODUCT(($S$12:$T$17=B29)*($X$12:$Y$17=2)) -> 3 | G29: =SUMPRODUCT(($S$12:$S$17=B29)*($U$12:$U$17))+SUMPRODUCT(($T$12:$T$17=B29)*($V$12:$V$17)) -> 2 | H29: =SUMPRODUCT(($S$12:$S$17=B29)*($V$12:$V$17))+SUMPRODUCT(($T$12:$T$17=B29)*($U$12:$U$17)) -> 10 | I29: =(D29*2)+E29 -> 0 | J29: =(F29*2)+E29 -> 6
F32: Gruppe 2
C34: 1950-06-25 | D34: Chile | E34: England | F34: 0 | G34: 2 | I34: Rio de Janeiro | S34: Chile | T34: England | U34: 0 | V34: 2 | X34: =(IF(U34>V34,3,IF(U34=V34,1,2))) -> 2 | Y34: =(IF(V34>U34,3,IF(U34=V34,1,2))) -> 3
F35: (0 | G35: 1) | S35: USA | T35: Spanien | U35: 1 | V35: 3 | X35: 2 | Y35: 3
C36: 1950-06-25 | D36: USA | E36: Spanien | F36: 1 | G36: 3 | I36: Curitiba | S36: USA | T36: England | U36: 1 | V36: 0 | X36: 3 | Y36: 2
F37: (1 | G37: 0) | S37: Chile | T37: Spanien | U37: 0 | V37: 2 | X37: 2 | Y37: 3
C38: 1950-06-29 | D38: USA | E38: England | F38: 1 | G38: 0 | I38: Belo Horizonte | S38: England | T38: Spanien | U38: 0 | V38: 1 | X38: =(IF(U38>V38,3,IF(U38=V38,1,2))) -> 2 | Y38: =(IF(V38>U38,3,IF(U38=V38,1,2))) -> 3
F39: (1 | G39: 0) | S39: Chile | T39: USA | U39: 5 | V39: 2 | X39: 3 | Y39: 2
C40: 1950-06-29 | D40: Chile | E40: Spanien | F40: 0 | G40: 2 | I40: Rio de Janeiro
F41: (0 | G41: 2)
C42: 1950-07-02 | D42: England | E42: Spanien | F42: 0 | G42: 1 | I42: Rio de Janeiro
F43: (0 | G43: 0)
C44: 1950-07-02 | D44: Chile | E44: USA | F44: 5 | G44: 2 | I44: Recife
F45: (2 | G45: 0)
C47: Spiele | D47: gew | E47: unent | F47: verl | G47: Tore+ | H47: Tore- | I47: Punkte+ | J47: Punkte-
B48: Spanien | C48: =COUNTIF($S$34:$T$39,"Spanien") -> 3 | D48: =SUMPRODUCT(($S$34:$T$39=B48)*($X$34:$Y$39=3)) -> 3 | E48: =SUMPRODUCT(($S$34:$T$39=B48)*($X$34:$Y$39=1)) -> 0 | F48: =SUMPRODUCT(($S$34:$T$39=B48)*($X$34:$Y$39=2)) -> 0 | G48: =SUMPRODUCT(($S$34:$S$39=B48)*($U$34:$U$39))+SUMPRODUCT(($T$34:$T$39=B48)*($V$34:$V$39)) -> 6 | H48: =SUMPRODUCT(($S$34:$S$39=B48)*($V$34:$V$39))+SUMPRODUCT(($T$34:$T$39=B48)*($U$34:$U$39)) -> 1 | I48: =(D48*2)+E48 -> 6 | J48: =(F48*2)+E48 -> 0
B49: Chile | C49: =COUNTIF($S$34:$T$39,"Chile") -> 3 | D49: =SUMPRODUCT(($S$34:$T$39=B49)*($X$34:$Y$39=3)) -> 1 | E49: =SUMPRODUCT(($S$34:$T$39=B49)*($X$34:$Y$39=1)) -> 0 | F49: =SUMPRODUCT(($S$34:$T$39=B49)*($X$34:$Y$39=2)) -> 2 | G49: =SUMPRODUCT(($S$34:$S$39=B49)*($U$34:$U$39))+SUMPRODUCT(($T$34:$T$39=B49)*($V$34:$V$39)) -> 5 | H49: =SUMPRODUCT(($S$34:$S$39=B49)*($V$34:$V$39))+SUMPRODUCT(($T$34:$T$39=B49)*($U$34:$U$39)) -> 6 | I49: =(D49*2)+E49 -> 2 | J49: =(F49*2)+E49 -> 4
B50: USA | C50: =COUNTIF($S$34:$T$39,"USA") -> 3 | D50: =SUMPRODUCT(($S$34:$T$39=B50)*($X$34:$Y$39=3)) -> 1 | E50: =SUMPRODUCT(($S$34:$T$39=B50)*($X$34:$Y$39=1)) -> 0 | F50: =SUMPRODUCT(($S$34:$T$39=B50)*($X$34:$Y$39=2)) -> 2 | G50: =SUMPRODUCT(($S$34:$S$39=B50)*($U$34:$U$39))+SUMPRODUCT(($T$34:$T$39=B50)*($V$34:$V$39)) -> 4 | H50: =SUMPRODUCT(($S$34:$S$39=B50)*($V$34:$V$39))+SUMPRODUCT(($T$34:$T$39=B50)*($U$34:$U$39)) -> 8 | I50: =(D50*2)+E50 -> 2 | J50: =(F50*2)+E50 -> 4
B51: England | C51: =COUNTIF($S$34:$T$39,"England") -> 3 | D51: =SUMPRODUCT(($S$34:$T$39=B51)*($X$34:$Y$39=3)) -> 1 | E51: =SUMPRODUCT(($S$34:$T$39=B51)*($X$34:$Y$39=1)) -> 0 | F51: =SUMPRODUCT(($S$34:$T$39=B51)*($X$34:$Y$39=2)) -> 2 | G51: =SUMPRODUCT(($S$34:$S$39=B51)*($U$34:$U$39))+SUMPRODUCT(($T$34:$T$39=B51)*($V$34:$V$39)) -> 2 | H51: =SUMPRODUCT(($S$34:$S$39=B51)*($V$34:$V$39))+SUMPRODUCT(($T$34:$T$39=B51)*($U$34:$U$39)) -> 2 | I51: =(D51*2)+E51 -> 2 | J51: =(F51*2)+E51 -> 4
F54: Gruppe 3
C56: 1950-06-25 | D56: Schweden | E56: Italien | F56: 3 | G56: 2 | I56: São Paulo | S56: Schweden | T56: Italien | U56: 3 | V56: 2 | X56: =(IF(U56>V56,3,IF(U56=V56,1,2))) -> 3 | Y56: =(IF(V56>U56,3,IF(U56=V56,1,2))) -> 2
F57: (2 | G57: 1) | S57: Paraguay | T57: Schweden | U57: 2 | V57: 2 | X57: 1 | Y57: 1
C58: 1950-06-29 | D58: Paraguay | E58: Schweden | F58: 2 | G58: 2 | I58: Curitiba | S58: Paraguay | T58: Italien | U58: 0 | V58: 2 | X58: =(IF(U58>V58,3,IF(U58=V58,1,2))) -> 2 | Y58: =(IF(V58>U58,3,IF(U58=V58,1,2))) -> 3
F59: (1 | G59: 2)
C60: 1950-07-02 | D60: Paraguay | E60: Italien | F60: 0 | G60: 2 | I60: São Paulo
F61: (0 | G61: 1)
C63: Spiele | D63: gew | E63: unent | F63: verl | G63: Tore+ | H63: Tore- | I63: Punkte+ | J63: Punkte-
B64: Schweden | C64: =COUNTIF($S$56:$T$58,"Schweden") -> 2 | D64: =SUMPRODUCT(($S$56:$T$58=B64)*($X$56:$Y$58=3)) -> 1 | E64: =SUMPRODUCT(($S$56:$T$58=B64)*($X$56:$Y$58=1)) -> 1 | F64: =SUMPRODUCT(($S$56:$T$58=B64)*($X$56:$Y$58=2)) -> 0 | G64: =SUMPRODUCT(($S$56:$S$58=B64)*($U$56:$U$58))+SUMPRODUCT(($T$56:$T$58=B64)*($V$56:$V$58)) -> 5 | H64: =SUMPRODUCT(($S$56:$S$58=B64)*($V$56:$V$58))+SUMPRODUCT(($T$56:$T$58=B64)*($U$56:$U$58)) -> 4 | I64: =(D64*2)+E64 -> 3 | J64: =(F64*2)+E64 -> 1
B65: Italien | C65: =COUNTIF($S$56:$T$58,"Italien") -> 2 | D65: =SUMPRODUCT(($S$56:$T$58=B65)*($X$56:$Y$58=3)) -> 1 | E65: =SUMPRODUCT(($S$56:$T$58=B65)*($X$56:$Y$58=1)) -> 0 | F65: =SUMPRODUCT(($S$56:$T$58=B65)*($X$56:$Y$58=2)) -> 1 | G65: =SUMPRODUCT(($S$56:$S$58=B65)*($U$56:$U$58))+SUMPRODUCT(($T$56:$T$58=B65)*($V$56:$V$58)) -> 4 | H65: =SUMPRODUCT(($S$56:$S$58=B65)*($V$56:$V$58))+SUMPRODUCT(($T$56:$T$58=B65)*($U$56:$U$58)) -> 3 | I65: =(D65*2)+E65 -> 2 | J65: =(F65*2)+E65 -> 2
B66: Paraguay | C66: =COUNTIF($S$56:$T$58,"Paraguay") -> 2 | D66: 0 | E66: 1 | F66: 1 | G66: 2 | H66: 4 | I66: 1 | J66: 3
B67: Indien | C67: Teilnahme zurück gezogen
F70: Gruppe 4
C72: 1950-07-02 | D72: Uruguay | E72: Bolivien | F72: 8 | G72: 0 | I72: Belo Horizonte | S72: Uruguay | T72: Bolivien | U72: 8 | V72: 0 | X72: =(IF(U72>V72,3,IF(U72=V72,1,2))) -> 3 | Y72: =(IF(V72>U72,3,IF(U72=V72,1,2))) -> 2
F73: (4 | G73: 0)
C75: Spiele | D75: gew | E75: unent | F75: verl | G75: Tore+ | H75: Tore- | I75: Punkte+ | J75: Punkte-
B76: Uruguay | C76: =COUNTIF($S$72:$T$72,"Uruguay") -> 1 | D76: =SUMPRODUCT(($S$72:$T$72=B76)*($X$72:$Y$72=3)) -> 1 | E76: =SUMPRODUCT(($S$72:$T$72=B76)*($X$72:$Y$72=1)) -> 0 | F76: =SUMPRODUCT(($S$72:$T$72=B76)*($X$72:$Y$72=2)) -> 0 | G76: =SUMPRODUCT(($S$72:$S$72=B76)*($U$72:$U$72))+SUMPRODUCT(($T$72:$T$72=B76)*($V$72:$V$72)) -> 8 | H76: =SUMPRODUCT(($S$72:$S$72=B76)*($V$72:$V$72))+SUMPRODUCT(($T$72:$T$72=B76)*($U$72:$U$72)) -> 0 | I76: =(D76*2)+E76 -> 2 | J76: =(F76*2)+E76 -> 0
B77: Bolivien | C77: =COUNTIF($S$72:$T$72,"Bolivien") -> 1 | D77: =SUMPRODUCT(($S$72:$T$72=B77)*($X$72:$Y$72=3)) -> 0 | E77: =SUMPRODUCT(($S$72:$T$72=B77)*($X$72:$Y$72=1)) -> 0 | F77: =SUMPRODUCT(($S$72:$T$72=B77)*($X$72:$Y$72=2)) -> 1 | G77: =SUMPRODUCT(($S$72:$S$72=B77)*($U$72:$U$72))+SUMPRODUCT(($T$72:$T$72=B77)*($V$72:$V$72)) -> 0 | H77: =SUMPRODUCT(($S$72:$S$72=B77)*($V$72:$V$72))+SUMPRODUCT(($T$72:$T$72=B77)*($U$72:$U$72)) -> 8 | I77: =(D77*2)+E77 -> 0 | J77: =(F77*2)+E77 -> 2
B78: Schottland | C78: Teilnahme zurück gezogen
B79: Türkei | C79: Teilnahme zurück gezogen
F82: Finalrunde:
C84: 1950-07-09 | D84: Brasilien | E84: Schweden | F84: 7 | G84: 1 | I84: Rio de Janeiro | S84: Brasilien | T84: Schweden | U84: 7 | V84: 1 | X84: =(IF(U84>V84,3,IF(U84=V84,1,2))) -> 3 | Y84: =(IF(V84>U84,3,IF(U84=V84,1,2))) -> 2
F85: (3 | G85: 0) | S85: Uruguay | T85: Spanien | U85: 2 | V85: 2 | X85: 1 | Y85: 1
C86: 1950-07-09 | D86: Uruguay | E86: Spanien | F86: 2 | G86: 2 | I86: São Paulo | S86: Brasilien | T86: Spanien | U86: 6 | V86: 1 | X86: 3 | Y86: 2
F87: (1 | G87: 2) | S87: Uruguay | T87: Schweden | U87: 3 | V87: 2 | X87: 3 | Y87: 2
C88: 1950-07-13 | D88: Brasilien | E88: Spanien | F88: 6 | G88: 1 | I88: Rio de Janeiro | S88: Spanien | T88: Schweden | U88: 1 | V88: 3 | X88: 2 | Y88: 3
F89: (3 | G89: 0) | S89: Brasilien | T89: Uruguay | U89: 1 | V89: 2 | X89: 2 | Y89: 3
C90: 1950-07-13 | D90: Uruguay | E90: Schweden | F90: 3 | G90: 2 | I90: São Paulo
F91: (1 | G91: 2)
C92: 1950-07-16 | D92: Spanien | E92: Schweden | F92: 1 | G92: 3 | I92: São Paulo
F93: (0 | G93: 2)
C94: 1950-07-16 | D94: Brasilien | E94: Uruguay | F94: 1 | G94: 2 | I94: Rio de Janeiro
F95: (0 | G95: 0)
C97: Spiele | D97: gew | E97: unent | F97: verl | G97: Tore+ | H97: Tore- | I97: Punkte+ | J97: Punkte-
B98: Uruguay | C98: =COUNTIF($S$84:$T$89,"Uruguay") -> 3 | D98: =SUMPRODUCT(($S$84:$T$89=B98)*($X$84:$Y$89=3)) -> 2 | E98: =SUMPRODUCT(($S$84:$T$89=B98)*($X$84:$Y$89=1)) -> 1 | F98: =SUMPRODUCT(($S$84:$T$89=B98)*($X$84:$Y$89=2)) -> 0 | G98: =SUMPRODUCT(($S$84:$S$89=B98)*($U$84:$U$89))+SUMPRODUCT(($T$84:$T$89=B98)*($V$84:$V$89)) -> 7 | H98: =SUMPRODUCT(($S$84:$S$89=B98)*($V$84:$V$89))+SUMPRODUCT(($T$84:$T$89=B98)*($U$84:$U$89)) -> 5 | I98: =(D98*2)+E98 -> 5 | J98: =(F98*2)+E98 -> 1
B99: Brasilien | C99: =COUNTIF($S$84:$T$89,"Brasilien") -> 3 | D99: =SUMPRODUCT(($S$84:$T$89=B99)*($X$84:$Y$89=3)) -> 2 | E99: =SUMPRODUCT(($S$84:$T$89=B99)*($X$84:$Y$89=1)) -> 0 | F99: =SUMPRODUCT(($S$84:$T$89=B99)*($X$84:$Y$89=2)) -> 1 | G99: =SUMPRODUCT(($S$84:$S$89=B99)*($U$84:$U$89))+SUMPRODUCT(($T$84:$T$89=B99)*($V$84:$V$89)) -> 14 | H99: =SUMPRODUCT(($S$84:$S$89=B99)*($V$84:$V$89))+SUMPRODUCT(($T$84:$T$89=B99)*($U$84:$U$89)) -> 4 | I99: =(D99*2)+E99 -> 4 | J99: =(F99*2)+E99 -> 2
B100: Schweden | C100: =COUNTIF($S$84:$T$89,"Schweden") -> 3 | D100: =SUMPRODUCT(($S$84:$T$89=B100)*($X$84:$Y$89=3)) -> 1 | E100: =SUMPRODUCT(($S$84:$T$89=B100)*($X$84:$Y$89=1)) -> 0 | F100: =SUMPRODUCT(($S$84:$T$89=B100)*($X$84:$Y$89=2)) -> 2 | G100: =SUMPRODUCT(($S$84:$S$89=B100)*($U$84:$U$89))+SUMPRODUCT(($T$84:$T$89=B100)*($V$84:$V$89)) -> 6 | H100: =SUMPRODUCT(($S$84:$S$89=B100)*($V$84:$V$89))+SUMPRODUCT(($T$84:$T$89=B100)*($U$84:$U$89)) -> 11 | I100: =(D100*2)+E100 -> 2 | J100: =(F100*2)+E100 -> 4
B101: Spanien | C101: =COUNTIF($S$84:$T$89,"Spanien") -> 3 | D101: =SUMPRODUCT(($S$84:$T$89=B101)*($X$84:$Y$89=3)) -> 0 | E101: =SUMPRODUCT(($S$84:$T$89=B101)*($X$84:$Y$89=1)) -> 1 | F101: =SUMPRODUCT(($S$84:$T$89=B101)*($X$84:$Y$89=2)) -> 2 | G101: =SUMPRODUCT(($S$84:$S$89=B101)*($U$84:$U$89))+SUMPRODUCT(($T$84:$T$89=B101)*($V$84:$V$89)) -> 4 | H101: =SUMPRODUCT(($S$84:$S$89=B101)*($V$84:$V$89))+SUMPRODUCT(($T$84:$T$89=B101)*($U$84:$U$89)) -> 11 | I101: =(D101*2)+E101 -> 1 | J101: =(F101*2)+E101 -> 5
A106: Auswertung | B106: Nation | C106: Spiele | D106: gew | E106: unent | F106: verl | G106: Tore+ | H106: Tore- | I106: Punkte+ | J106: Punkte-
B107: Brasilien | C107: =COUNTIF($S$12:$T$89,"Brasilien") -> 6 | D107: =SUMPRODUCT(($S$12:$T$89=B107)*($X$12:$Y$89=3)) -> 4 | E107: =SUMPRODUCT(($S$12:$T$89=B107)*($X$12:$Y$89=1)) -> 1 | F107: =SUMPRODUCT(($S$12:$T$89=B107)*($X$12:$Y$89=2)) -> 1 | G107: =SUMPRODUCT(($S$12:$S$89=B107)*($U$12:$U$89))+SUMPRODUCT(($T$12:$T$89=B107)*($V$12:$V$89)) -> 22 | H107: =SUMPRODUCT(($S$12:$S$89=B107)*($V$12:$V$89))+SUMPRODUCT(($T$12:$T$89=B107)*($U$12:$U$89)) -> 6 | I107: =(D107*2)+E107 -> 9 | J107: =(F107*2)+E107 -> 3
B108: Uruguay | C108: =COUNTIF($S$12:$T$89,"Uruguay") -> 4 | D108: 3 | E108: 1 | F108: 0 | G108: 15 | H108: 5 | I108: 7 | J108: 1
B109: Spanien | C109: =COUNTIF($S$12:$T$89,"Spanien") -> 6 | D109: 3 | E109: 1 | F109: 2 | G109: 10 | H109: 12 | I109: 7 | J109: 5
B110: Schweden | C110: =COUNTIF($S$12:$T$89,"Schweden") -> 5 | D110: 2 | E110: 1 | F110: 2 | G110: 11 | H110: 15 | I110: 5 | J110: 5
B111: Jugoslawien | C111: =COUNTIF($S$12:$T$89,"Jugoslawien") -> 3 | D111: 2 | E111: 0 | F111: 1 | G111: 7 | H111: 3 | I111: 4 | J111: 2
B112: Schweiz | C112: =COUNTIF($S$12:$T$89,"Schweiz") -> 3 | D112: 1 | E112: 1 | F112: 1 | G112: 4 | H112: 6 | I112: 3 | J112: 3
B113: Italien | C113: =COUNTIF($S$12:$T$89,"Italien") -> 2 | D113: 1 | E113: 0 | F113: 1 | G113: 4 | H113: 3 | I113: 2 | J113: 2
B114: Chile | C114: =COUNTIF($S$12:$T$89,"Chile") -> 3 | D114: 1 | E114: 0 | F114: 2 | G114: 5 | H114: 6 | I114: 2 | J114: 4
B115: USA | C115: =COUNTIF($S$12:$T$89,"USA") -> 3 | D115: 1 | E115: 0 | F115: 2 | G115: 4 | H115: 8 | I115: 2 | J115: 4
B116: England | C116: =COUNTIF($S$12:$T$89,"England") -> 3 | D116: 1 | E116: 0 | F116: 2 | G116: 2 | H116: 2 | I116: 2 | J116: 4
B117: Paraguay | C117: =COUNTIF($S$12:$T$89,"Paraguay") -> 2 | D117: 0 | E117: 1 | F117: 1 | G117: 2 | H117: 4 | I117: 1 | J117: 3
B118: Bolivien | C118: =COUNTIF($S$12:$T$89,"Bolivien") -> 1 | D118: 0 | E118: 0 | F118: 1 | G118: 0 | H118: 8 | I118: 0 | J118: 2
B119: Mexiko | C119: =COUNTIF($S$12:$T$89,"Mexiko") -> 3 | D119: 0 | E119: 0 | F119: 3 | G119: 2 | H119: 10 | I119: 0 | J119: 6

Sheet 1954
A2: 5. WM 1954 in der Schweiz
A4: 16. Juni - 4. Juli 1954
A5: Teilnehmende Nationen: 16 --- Bewerbungen: 38
F10: Gruppe 1
C12: 1954-06-16 | D12: Frankreich | E12: Jugoslawien | F12: 0 | G12: 1 | I12: Lausanne | S12: Frankreich | T12: Jugoslawien | U12: 0 | V12: 1 | X12: =(IF(U12>V12,3,IF(U12=V12,1,2))) -> 2 | Y12: =(IF(V12>U12,3,IF(U12=V12,1,2))) -> 3 | AA12: BRD
F13: (0 | G13: 1) | S13: Brasilien | T13: Mexiko | U13: 5 | V13: 0 | X13: 3 | Y13: 2 | AA13: Ungarn
C14: 1954-06-16 | D14: Brasilien | E14: Mexiko | F14: 5 | G14: 0 | I14: Genf | S14: Frankreich | T14: Mexiko | U14: 3 | V14: 2 | X14: =(IF(U14>V14,3,IF(U14=V14,1,2))) -> 3 | Y14: =(IF(V14>U14,3,IF(U14=V14,1,2))) -> 2 | AA14: Österreich
F15: (4 | G15: 0) | S15: Brasilien | T15: Jugoslawien | U15: 1 | V15: 1 | X15: =(IF(U15>V15,3,IF(U15=V15,1,2))) -> 1 | Y15: =(IF(V15>U15,3,IF(U15=V15,1,2))) -> 1 | AA15: Uruguay
C16: 1954-06-19 | D16: Frankreich | E16: Mexiko | F16: 3 | G16: 2 | I16: Genf | AA16: Schweiz
F17: (1 | G17: 0) | AA17: Brasilien
C18: 1954-06-19 | D18: Brasilien | E18: Jugoslawien | F18: 1 | G18: 1 | H18: n.V. | I18: Lausanne | AA18: England
F19: 1 | G19: 1 | AA19: Jugoslawien
F20: (0 | G20: 0) | AA20: Frankreich
AA21: Türkei
C22: Spiele | D22: gew | E22: unent | F22: verl | G22: Tore+ | H22: Tore- | I22: Punkte+ | J22: Punkte- | AA22: Italien
B23: Brasilien | C23: =COUNTIF($S$12:$T$15,"Brasilien") -> 2 | D23: =SUMPRODUCT(($S$12:$T$15=B23)*($X$12:$Y$15=3)) -> 1 | E23: =SUMPRODUCT(($S$12:$T$15=B23)*($X$12:$Y$15=1)) -> 1 | F23: =SUMPRODUCT(($S$12:$T$15=B23)*($X$12:$Y$15=2)) -> 0 | G23: =SUMPRODUCT(($S$12:$S$15=B23)*($U$12:$U$15))+SUMPRODUCT(($T$12:$T$15=B23)*($V$12:$V$15)) -> 6 | H23: =SUMPRODUCT(($S$12:$S$15=B23)*($V$12:$V$15))+SUMPRODUCT(($T$12:$T$15=B23)*($U$12:$U$15)) -> 1 | I23: =(D23*2)+E23 -> 3 | J23: =(F23*2)+E23 -> 1 | AA23: Belgien
B24: Jugoslawien | C24: =COUNTIF($S$12:$T$15,"Jugoslawien") -> 2 | D24: =SUMPRODUCT(($S$12:$T$15=B24)*($X$12:$Y$15=3)) -> 1 | E24: =SUMPRODUCT(($S$12:$T$15=B24)*($X$12:$Y$15=1)) -> 1 | F24: =SUMPRODUCT(($S$12:$T$15=B24)*($X$12:$Y$15=2)) -> 0 | G24: =SUMPRODUCT(($S$12:$S$15=B24)*($U$12:$U$15))+SUMPRODUCT(($T$12:$T$15=B24)*($V$12:$V$15)) -> 2 | H24: =SUMPRODUCT(($S$12:$S$15=B24)*($V$12:$V$15))+SUMPRODUCT(($T$12:$T$15=B24)*($U$12:$U$15)) -> 1 | I24: =(D24*2)+E24 -> 3 | J24: =(F24*2)+E24 -> 1 | AA24: Mexiko
B25: Frankreich | C25: =COUNTIF($S$12:$T$15,"Frankreich") -> 2 | D25: =SUMPRODUCT(($S$12:$T$15=B25)*($X$12:$Y$15=3)) -> 1 | E25: =SUMPRODUCT(($S$12:$T$15=B25)*($X$12:$Y$15=1)) -> 0 | F25: =SUMPRODUCT(($S$12:$T$15=B25)*($X$12:$Y$15=2)) -> 1 | G25: =SUMPRODUCT(($S$12:$S$15=B25)*($U$12:$U$15))+SUMPRODUCT(($T$12:$T$15=B25)*($V$12:$V$15)) -> 3 | H25: =SUMPRODUCT(($S$12:$S$15=B25)*($V$12:$V$15))+SUMPRODUCT(($T$12:$T$15=B25)*($U$12:$U$15)) -> 3 | I25: =(D25*2)+E25 -> 2 | J25: =(F25*2)+E25 -> 2 | AA25: CSSR
B26: Mexiko | C26: =COUNTIF($S$12:$T$15,"Mexiko") -> 2 | D26: =SUMPRODUCT(($S$12:$T$15=B26)*($X$12:$Y$15=3)) -> 0 | E26: =SUMPRODUCT(($S$12:$T$15=B26)*($X$12:$Y$15=1)) -> 0 | F26: =SUMPRODUCT(($S$12:$T$15=B26)*($X$12:$Y$15=2)) -> 2 | G26: =SUMPRODUCT(($S$12:$S$15=B26)*($U$12:$U$15))+SUMPRODUCT(($T$12:$T$15=B26)*($V$12:$V$15)) -> 2 | H26: =SUMPRODUCT(($S$12:$S$15=B26)*($V$12:$V$15))+SUMPRODUCT(($T$12:$T$15=B26)*($U$12:$U$15)) -> 8 | I26: =(D26*2)+E26 -> 0 | J26: =(F26*2)+E26 -> 4 | AA26: Schottland
AA27: Südkorea
F29: Gruppe 2
C31: 1954-06-17 | D31: Türkei | E31: BRD | F31: 1 | G31: 4 | I31: Bern | S31: Türkei | T31: BRD | U31: 1 | V31: 4 | X31: =(IF(U31>V31,3,IF(U31=V31,1,2))) -> 2 | Y31: =(IF(V31>U31,3,IF(U31=V31,1,2))) -> 3
F32: (1 | G32: 1) | S32: Ungarn | T32: Südkorea | U32: 9 | V32: 0 | X32: 3 | Y32: 2
C33: 1954-06-17 | D33: Ungarn | E33: Südkorea | F33: 9 | G33: 0 | I33: Zürich | S33: Ungarn | T33: BRD | U33: 8 | V33: 3 | X33: 3 | Y33: 2
F34: (4 | G34: 0) | S34: Türkei | T34: Südkorea | U34: 7 | V34: 0 | X34: =(IF(U34>V34,3,IF(U34=V34,1,2))) -> 3 | Y34: =(IF(V34>U34,3,IF(U34=V34,1,2))) -> 2
C35: 1954-06-20 | D35: Ungarn | E35: BRD | F35: 8 | G35: 3 | I35: Basel
F36: (3 | G36: 1)
C37: 1954-06-20 | D37: Türkei | E37: Südkorea | F37: 7 | G37: 0 | I37: Genf
F38: (4 | G38: 0)
F41: Entscheidungsspiel zum Einzug ins Viertelfinale:
C43: 1954-06-23 | D43: Türkei | E43: BRD | F43: 2 | G43: 7 | I43: Zürich | S43: Türkei | T43: BRD | U43: 2 | V43: 7 | X43: =(IF(U43>V43,3,IF(U43=V43,1,2))) -> 2 | Y43: =(IF(V43>U43,3,IF(U43=V43,1,2))) -> 3
F44: (1 | G44: 3)
C46: Spiele | D46: gew | E46: unent | F46: verl | G46: Tore+ | H46: Tore- | I46: Punkte+ | J46: Punkte-
B47: Ungarn | C47: =COUNTIF($S$31:$T$43,"Ungarn") -> 2 | D47: =SUMPRODUCT(($S$31:$T$43=B47)*($X$31:$Y$43=3)) -> 2 | E47: =SUMPRODUCT(($S$31:$T$43=B47)*($X$31:$Y$43=1)) -> 0 | F47: =SUMPRODUCT(($S$31:$T$43=B47)*($X$31:$Y$43=2)) -> 0 | G47: =SUMPRODUCT(($S$31:$S$43=B47)*($U$31:$U$43))+SUMPRODUCT(($T$31:$T$43=B47)*($V$31:$V$43)) -> 17 | H47: =SUMPRODUCT(($S$31:$S$43=B47)*($V$31:$V$43))+SUMPRODUCT(($T$31:$T$43=B47)*($U$31:$U$43)) -> 3 | I47: =(D47*2)+E47 -> 4 | J47: =(F47*2)+E47 -> 0
B48: BRD | C48: =COUNTIF($S$31:$T$43,"BRD") -> 3 | D48: =SUMPRODUCT(($S$31:$T$43=B48)*($X$31:$Y$43=3)) -> 2 | E48: =SUMPRODUCT(($S$31:$T$43=B48)*($X$31:$Y$43=1)) -> 0 | F48: =SUMPRODUCT(($S$31:$T$43=B48)*($X$31:$Y$43=2)) -> 1 | G48: =SUMPRODUCT(($S$31:$S$43=B48)*($U$31:$U$43))+SUMPRODUCT(($T$31:$T$43=B48)*($V$31:$V$43)) -> 14 | H48: =SUMPRODUCT(($S$31:$S$43=B48)*($V$31:$V$43))+SUMPRODUCT(($T$31:$T$43=B48)*($U$31:$U$43)) -> 11 | I48: =(D48*2)+E48 -> 4 | J48: =(F48*2)+E48 -> 2
B49: Türkei | C49: =COUNTIF($S$31:$T$43,"Türkei") -> 3 | D49: =SUMPRODUCT(($S$31:$T$43=B49)*($X$31:$Y$43=3)) -> 1 | E49: =SUMPRODUCT(($S$31:$T$43=B49)*($X$31:$Y$43=1)) -> 0 | F49: =SUMPRODUCT(($S$31:$T$43=B49)*($X$31:$Y$43=2)) -> 2 | G49: =SUMPRODUCT(($S$31:$S$43=B49)*($U$31:$U$43))+SUMPRODUCT(($T$31:$T$43=B49)*($V$31:$V$43)) -> 10 | H49: =SUMPRODUCT(($S$31:$S$43=B49)*($V$31:$V$43))+SUMPRODUCT(($T$31:$T$43=B49)*($U$31:$U$43)) -> 11 | I49: =(D49*2)+E49 -> 2 | J49: =(F49*2)+E49 -> 4
B50: Südkorea | C50: =COUNTIF($S$31:$T$43,"Südkorea") -> 2 | D50: =SUMPRODUCT(($S$31:$T$43=B50)*($X$31:$Y$43=3)) -> 0 | E50: =SUMPRODUCT(($S$31:$T$43=B50)*($X$31:$Y$43=1)) -> 0 | F50: =SUMPRODUCT(($S$31:$T$43=B50)*($X$31:$Y$43=2)) -> 2 | G50: =SUMPRODUCT(($S$31:$S$43=B50)*($U$31:$U$43))+SUMPRODUCT(($T$31:$T$43=B50)*($V$31:$V$43)) -> 0 | H50: =SUMPRODUCT(($S$31:$S$43=B50)*($V$31:$V$43))+SUMPRODUCT(($T$31:$T$43=B50)*($U$31:$U$43)) -> 16 | I50: =(D50*2)+E50 -> 0 | J50: =(F50*2)+E50 -> 4
F53: Gruppe 3
C55: 1954-06-16 | D55: Uruguay | E55: CSSR | F55: 2 | G55: 0 | I55: Bern | S55: Uruguay | T55: CSSR | U55: 2 | V55: 0 | X55: =(IF(U55>V55,3,IF(U55=V55,1,2))) -> 3 | Y55: =(IF(V55>U55,3,IF(U55=V55,1,2))) -> 2
F56: (0 | G56: 0) | S56: Österreich | T56: Schottland | U56: 1 | V56: 0 | X56: =(IF(U56>V56,3,IF(U56=V56,1,2))) -> 3 | Y56: =(IF(V56>U56,3,IF(U56=V56,1,2))) -> 2
C57: 1954-06-16 | D57: Österreich | E57: Schottland | F57: 1 | G57: 0 | I57: Zürich | S57: Uruguay | T57: Schottland | U57: 7 | V57: 0 | X57: 3 | Y57: 2
F58: (1 | G58: 0) | S58: Österreich | T58: CSSR | U58: 5 | V58: 0 | X58: 3 | Y58: 2
C59: 1954-06-19 | D59: Uruguay | E59: Schottland | F59: 7 | G59: 0 | I59: Basel
F60: (2 | G60: 0)
C61: 1954-06-19 | D61: Österreich | E61: CSSR | F61: 5 | G61: 0 | I61: Zürich
F62: (4 | G62: 0)
C64: Spiele | D64: gew | E64: unent | F64: verl | G64: Tore+ | H64: Tore- | I64: Punkte+ | J64: Punkte-
B65: Uruguay | C65: =COUNTIF($S$55:$T$58,"Uruguay") -> 2 | D65: =SUMPRODUCT(($S$55:$T$58=B65)*($X$55:$Y$58=3)) -> 2 | E65: =SUMPRODUCT(($S$55:$T$58=B65)*($X$55:$Y$58=1)) -> 0 | F65: =SUMPRODUCT(($S$55:$T$58=B65)*($X$55:$Y$58=2)) -> 0 | G65: =SUMPRODUCT(($S$55:$S$58=B65)*($U$55:$U$58))+SUMPRODUCT(($T$55:$T$58=B65)*($V$55:$V$58)) -> 9 | H65: =SUMPRODUCT(($S$55:$S$58=B65)*($V$55:$V$58))+SUMPRODUCT(($T$55:$T$58=B65)*($U$55:$U$58)) -> 0 | I65: =(D65*2)+E65 -> 4 | J65: =(F65*2)+E65 -> 0
B66: CSSR | C66: =COUNTIF($S$55:$T$58,"CSSR") -> 2 | D66: =SUMPRODUCT(($S$55:$T$58=B66)*($X$55:$Y$58=3)) -> 0 | E66: =SUMPRODUCT(($S$55:$T$58=B66)*($X$55:$Y$58=1)) -> 0 | F66: =SUMPRODUCT(($S$55:$T$58=B66)*($X$55:$Y$58=2)) -> 2 | G66: =SUMPRODUCT(($S$55:$S$58=B66)*($U$55:$U$58))+SUMPRODUCT(($T$55:$T$58=B66)*($V$55:$V$58)) -> 0 | H66: =SUMPRODUCT(($S$55:$S$58=B66)*($V$55:$V$58))+SUMPRODUCT(($T$55:$T$58=B66)*($U$55:$U$58)) -> 7 | I66: =(D66*2)+E66 -> 0 | J66: =(F66*2)+E66 -> 4
B67: Österreich | C67: =COUNTIF($S$55:$T$58,"Österreich") -> 2 | D67: 2 | E67: 0 | F67: 0 | G67: 6 | H67: 0 | I67: 4 | J67: 0
B68: Schottland | C68: =COUNTIF($S$55:$T$58,"Schottland") -> 2 | D68: 0 | E68: 0 | F68: 2 | G68: 0 | H68: 8 | I68: 0 | J68: 4
F71: Gruppe 4
C73: 1954-06-17 | D73: Italien | E73: Schweiz | F73: 1 | G73: 2 | I73: Lausanne | S73: Italien | T73: Schweiz | U73: 1 | V73: 2 | X73: =(IF(U73>V73,3,IF(U73=V73,1,2))) -> 2 | Y73: =(IF(V73>U73,3,IF(U73=V73,1,2))) -> 3
F74: (1 | G74: 1) | S74: England | T74: Belgien | U74: 4 | V74: 4 | X74: 1 | Y74: 1
C75: 1954-06-17 | D75: England | E75: Belgien | F75: 4 | G75: 4 | H75: n.V. | I75: Basel | S75: Italien | T75: Belgien | U75: 4 | V75: 1 | X75: 3 | Y75: 2
F76: 3 | G76: 3 | S76: England | T76: Schweiz | U76: 2 | V76: 0 | X76: 3 | Y76: 2
F77: (2 | G77: 1)
C78: 1954-06-20 | D78: Italien | E78: Belgien | F78: 4 | G78: 1 | I78: Lugano
F79: (1 | G79: 0)
C80: 1954-06-20 | D80: England | E80: Schweiz | F80: 2 | G80: 0 | I80: Bern
F81: (1 | G81: 0)
F84: Entscheidungsspiel zum Einzug ins Viertelfinale:
C86: 1954-06-23 | D86: Italien | E86: Schweiz | F86: 1 | G86: 4 | I86: Basel | S86: Italien | T86: Schweiz | U86: 1 | V86: 4 | X86: =(IF(U86>V86,3,IF(U86=V86,1,2))) -> 2 | Y86: =(IF(V86>U86,3,IF(U86=V86,1,2))) -> 3
F87: (0 | G87: 1)
C89: Spiele | D89: gew | E89: unent | F89: verl | G89: Tore+ | H89: Tore- | I89: Punkte+ | J89: Punkte-
B90: Schweiz | C90: =COUNTIF($S$73:$T$86,"Schweiz") -> 3 | D90: =SUMPRODUCT(($S$73:$T$86=B90)*($X$73:$Y$86=3)) -> 2 | E90: =SUMPRODUCT(($S$73:$T$86=B90)*($X$73:$Y$86=1)) -> 0 | F90: =SUMPRODUCT(($S$73:$T$86=B90)*($X$73:$Y$86=2)) -> 1 | G90: =SUMPRODUCT(($S$73:$S$86=B90)*($U$73:$U$86))+SUMPRODUCT(($T$73:$T$86=B90)*($V$73:$V$86)) -> 6 | H90: =SUMPRODUCT(($S$73:$S$86=B90)*($V$73:$V$86))+SUMPRODUCT(($T$73:$T$86=B90)*($U$73:$U$86)) -> 4 | I90: =(D90*2)+E90 -> 4 | J90: =(F90*2)+E90 -> 2
B91: England | C91: =COUNTIF($S$73:$T$86,"England") -> 2 | D91: =SUMPRODUCT(($S$73:$T$86=B91)*($X$73:$Y$86=3)) -> 1 | E91: =SUMPRODUCT(($S$73:$T$86=B91)*($X$73:$Y$86=1)) -> 1 | F91: =SUMPRODUCT(($S$73:$T$86=B91)*($X$73:$Y$86=2)) -> 0 | G91: =SUMPRODUCT(($S$73:$S$86=B91)*($U$73:$U$86))+SUMPRODUCT(($T$73:$T$86=B91)*($V$73:$V$86)) -> 6 | H91: =SUMPRODUCT(($S$73:$S$86=B91)*($V$73:$V$86))+SUMPRODUCT(($T$73:$T$86=B91)*($U$73:$U$86)) -> 4 | I91: =(D91*2)+E91 -> 3 | J91: =(F91*2)+E91 -> 1
B92: Italien | C92: =COUNTIF($S$73:$T$86,"Italien") -> 3 | D92: =SUMPRODUCT(($S$73:$T$86=B92)*($X$73:$Y$86=3)) -> 1 | E92: =SUMPRODUCT(($S$73:$T$86=B92)*($X$73:$Y$86=1)) -> 0 | F92: =SUMPRODUCT(($S$73:$T$86=B92)*($X$73:$Y$86=2)) -> 2 | G92: =SUMPRODUCT(($S$73:$S$86=B92)*($U$73:$U$86))+SUMPRODUCT(($T$73:$T$86=B92)*($V$73:$V$86)) -> 6 | H92: =SUMPRODUCT(($S$73:$S$86=B92)*($V$73:$V$86))+SUMPRODUCT(($T$73:$T$86=B92)*($U$73:$U$86)) -> 7 | I92: =(D92*2)+E92 -> 2 | J92: =(F92*2)+E92 -> 4
B93: Belgien | C93: =COUNTIF($S$73:$T$86,"Belgien") -> 2 | D93: =SUMPRODUCT(($S$73:$T$86=B93)*($X$73:$Y$86=3)) -> 0 | E93: =SUMPRODUCT(($S$73:$T$86=B93)*($X$73:$Y$86=1)) -> 1 | F93: =SUMPRODUCT(($S$73:$T$86=B93)*($X$73:$Y$86=2)) -> 1 | G93: =SUMPRODUCT(($S$73:$S$86=B93)*($U$73:$U$86))+SUMPRODUCT(($T$73:$T$86=B93)*($V$73:$V$86)) -> 5 | H93: =SUMPRODUCT(($S$73:$S$86=B93)*($V$73:$V$86))+SUMPRODUCT(($T$73:$T$86=B93)*($U$73:$U$86)) -> 8 | I93: =(D93*2)+E93 -> 1 | J93: =(F93*2)+E93 -> 3
F96: Viertelfinale:
C98: 1954-06-26 | D98: Österreich | E98: Schweiz | F98: 7 | G98: 5 | I98: Lausanne | S98: Österreich | T98: Schweiz | U98: 7 | V98: 5 | X98: =(IF(U98>V98,3,IF(U98=V98,1,2))) -> 3 | Y98: =(IF(V98>U98,3,IF(U98=V98,1,2))) -> 2
F99: (5 | G99: 4) | S99: England | T99: Uruguay | U99: 2 | V99: 4 | X99: 2 | Y99: 3
C100: 1954-06-26 | D100: England | E100: Uruguay | F100: 2 | G100: 4 | I100: Basel | S100: Jugoslawien | T100: BRD | U100: 0 | V100: 2 | X100: 2 | Y100: 3
F101: (1 | G101: 2) | S101: Ungarn | T101: Brasilien | U101: 4 | V101: 2 | X101: 3 | Y101: 2
C102: 1954-06-27 | D102: Jugoslawien | E102: BRD | F102: 0 | G102: 2 | I102: Genf
F103: (0 | G103: 1)
C104: 1954-06-27 | D104: Ungarn | E104: Brasilien | F104: 4 | G104: 2 | I104: Bern
F105: (2 | G105: 1)
F108: Halbfinale:
C110: 1954-06-30 | D110: Österreich | E110: BRD | F110: 1 | G110: 6 | I110: Basel | S110: Österreich | T110: BRD | U110: 1 | V110: 6 | X110: =(IF(U110>V110,3,IF(U110=V110,1,2))) -> 2 | Y110: =(IF(V110>U110,3,IF(U110=V110,1,2))) -> 3
F111: (0 | G111: 1) | S111: Uruguay | T111: Ungarn | U111: 2 | V111: 4 | X111: 2 | Y111: 3
C112: 1954-06-30 | D112: Uruguay | E112: Ungarn | F112: 2 | G112: 4 | H112: n. V. | I112: Lausanne
F113: 2 | G113: 2
F114: (0 | G114: 1)
C117: Spiel um Platz 3 am 3. Juli 1954 in Zürich
D119: Österreich | E119: Uruguay | F119: 3 | G119: 1 | S119: Österreich | T119: Uruguay | U119: 3 | V119: 1 | X119: =(IF(U119>V119,3,IF(U119=V119,1,2))) -> 3 | Y119: =(IF(V119>U119,3,IF(U119=V119,1,2))) -> 2
F120: (1 | G120: 1)
C126: Endspiel am 4. Juli 1954 in Bern
D128: BRD | E128: Ungarn | F128: 3 | G128: 2 | S128: BRD | T128: Ungarn | U128: 3 | V128: 2 | X128: =(IF(U128>V128,3,IF(U128=V128,1,2))) -> 3 | Y128: =(IF(V128>U128,3,IF(U128=V128,1,2))) -> 2
F129: (2 | G129: 2)
A135: Auswertung | B135: Nation | C135: Spiele | D135: gew | E135: unent | F135: verl | G135: Tore+ | H135: Tore- | I135: Punkte+ | J135: Punkte-
B136: BRD | C136: =COUNTIF($S$12:$T$128,"BRD") -> 6 | D136: =SUMPRODUCT(($S$12:$T$128=B136)*($X$12:$Y$128=3)) -> 5 | E136: =SUMPRODUCT(($S$12:$T$128=B136)*($X$12:$Y$128=1)) -> 0 | F136: =SUMPRODUCT(($S$12:$T$128=B136)*($X$12:$Y$128=2)) -> 1 | G136: =SUMPRODUCT(($S$12:$S$128=B136)*($U$12:$U$128))+SUMPRODUCT(($T$12:$T$128=B136)*($V$12:$V$128)) -> 25 | H136: =SUMPRODUCT(($S$12:$S$128=B136)*($V$12:$V$128))+SUMPRODUCT(($T$12:$T$128=B136)*($U$12:$U$128)) -> 14 | I136: =(D136*2)+E136 -> 10 | J136: =(F136*2)+E136 -> 2
B137: Ungarn | C137: =COUNTIF($S$12:$T$128,"Ungarn") -> 5 | D137: 4 | E137: 0 | F137: 1 | G137: 27 | H137: 10 | I137: 8 | J137: 2
B138: Österreich | C138: =COUNTIF($S$12:$T$128,"Österreich") -> 5 | D138: 4 | E138: 0 | F138: 1 | G138: 17 | H138: 12 | I138: 8 | J138: 2
B139: Uruguay | C139: =COUNTIF($S$12:$T$128,"Uruguay") -> 5 | D139: 3 | E139: 0 | F139: 2 | G139: 16 | H139: 9 | I139: 6 | J139: 4
B140: Schweiz | C140: =COUNTIF($S$12:$T$128,"Schweiz") -> 4 | D140: 2 | E140: 0 | F140: 2 | G140: 11 | H140: 11 | I140: 4 | J140: 4
B141: Brasilien | C141: =COUNTIF($S$12:$T$128,"Brasilien") -> 3 | D141: 1 | E141: 1 | F141: 1 | G141: 8 | H141: 5 | I141: 3 | J141: 3
B142: England | C142: =COUNTIF($S$12:$T$128,"England") -> 3 | D142: 1 | E142: 1 | F142: 1 | G142: 8 | H142: 8 | I142: 3 | J142: 3
B143: Jugoslawien | C143: =COUNTIF($S$12:$T$128,"Jugoslawien") -> 3 | D143: 1 | E143: 1 | F143: 1 | G143: 2 | H143: 3 | I143: 3 | J143: 3
B144: Frankreich | C144: =COUNTIF($S$12:$T$128,"Frankreich") -> 2 | D144: 1 | E144: 0 | F144: 1 | G144: 3 | H144: 3 | I144: 2 | J144: 2
B145: Türkei | C145: =COUNTIF($S$12:$T$128,"Türkei") -> 3 | D145: 1 | E145: 0 | F145: 2 | G145: 10 | H145: 11 | I145: 2 | J145: 4
B146: Italien | C146: =COUNTIF($S$12:$T$128,"Italien") -> 3 | D146: 1 | E146: 0 | F146: 2 | G146: 6 | H146: 7 | I146: 2 | J146: 4
B147: Belgien | C147: =COUNTIF($S$12:$T$128,"Belgien") -> 2 | D147: 0 | E147: 1 | F147: 1 | G147: 5 | H147: 8 | I147: 1 | J147: 3
B148: Mexiko | C148: =COUNTIF($S$12:$T$128,"Mexiko") -> 2 | D148: 0 | E148: 0 | F148: 2 | G148: 2 | H148: 8 | I148: 0 | J148: 4
B149: CSSR | C149: =COUNTIF($S$12:$T$128,"CSSR") -> 2 | D149: 0 | E149: 0 | F149: 2 | G149: 0 | H149: 7 | I149: 0 | J149: 4
B150: Schottland | C150: =COUNTIF($S$12:$T$128,"Schottland") -> 2 | D150: 0 | E150: 0 | F150: 2 | G150: 0 | H150: 8 | I150: 0 | J150: 4
B151: Südkorea | C151: =COUNTIF($S$12:$T$128,"Südkorea") -> 2 | D151: 0 | E151: 0 | F151: 2 | G151: 0 | H151: 16 | I151: 0 | J151: 4

Sheet 1958
A2: 6. WM 1958 in Schweden
A4: 8. - 29. Juni 1958
A5: Teilnehmende Nationen: 16 --- Bewerbungen: 52
F10: Gruppe 1
C12: 1958-06-08 | D12: Argentinien | E12: BRD | F12: 1 | G12: 3 | I12: Malmö | S12: Argentinien | T12: BRD | U12: 1 | V12: 3 | X12: =(IF(U12>V12,3,IF(U12=V12,1,2))) -> 2 | Y12: =(IF(V12>U12,3,IF(U12=V12,1,2))) -> 3 | AA12: Brasilien
F13: (1 | G13: 2) | S13: Nordirland | T13: CSSR | U13: 1 | V13: 0 | X13: 3 | Y13: 2 | AA13: Schweden
C14: 1958-06-08 | D14: Nordirland | E14: CSSR | F14: 1 | G14: 0 | I14: Halmstad | S14: BRD | T14: CSSR | U14: 2 | V14: 2 | X14: =(IF(U14>V14,3,IF(U14=V14,1,2))) -> 1 | Y14: =(IF(V14>U14,3,IF(U14=V14,1,2))) -> 1 | AA14: Frankreich
F15: (1 | G15: 0) | S15: Argentinien | T15: Nordirland | U15: 3 | V15: 1 | X15: =(IF(U15>V15,3,IF(U15=V15,1,2))) -> 3 | Y15: =(IF(V15>U15,3,IF(U15=V15,1,2))) -> 2 | AA15: BRD
C16: 1958-06-11 | D16: BRD | E16: CSSR | F16: 2 | G16: 2 | I16: Helsingborg | S16: BRD | T16: Nordirland | U16: 2 | V16: 2 | X16: =(IF(U16>V16,3,IF(U16=V16,1,2))) -> 1 | Y16: =(IF(V16>U16,3,IF(U16=V16,1,2))) -> 1 | AA16: Nordirland
F17: (0 | G17: 2) | S17: CSSR | T17: Argentinien | U17: 6 | V17: 1 | X17: =(IF(U17>V17,3,IF(U17=V17,1,2))) -> 3 | Y17: =(IF(V17>U17,3,IF(U17=V17,1,2))) -> 2 | AA17: UdSSR
C18: 1958-06-11 | D18: Argentinien | E18: Nordirland | F18: 3 | G18: 1 | I18: Halmstad | AA18: Wales
F19: (1 | G19: 1) | AA19: Jugoslawien
C20: 1958-06-15 | D20: BRD | E20: Nordirland | F20: 2 | G20: 2 | I20: Malmö | AA20: Paraguay
F21: (1 | G21: 1) | AA21: CSSR
C22: 1958-06-15 | D22: CSSR | E22: Argentinien | F22: 6 | G22: 1 | I22: Helsingborg | AA22: Ungarn
F23: (3 | G23: 0) | AA23: England
AA24: Argentinien
AA25: Schottland
F26: Entscheidungsspiel: | AA26: Österreich
AA27: Mexiko
C28: 1958-06-17 | D28: Nordirland | E28: CSSR | F28: 2 | G28: 1 | H28: n.V. | I28: Malmö | S28: Nordirland | T28: CSSR | U28: 2 | V28: 1 | X28: =(IF(U28>V28,3,IF(U28=V28,1,2))) -> 3 | Y28: =(IF(V28>U28,3,IF(U28=V28,1,2))) -> 2
F29: 1 | G29: 1
F30: (1 | G30: 1)
C32: Spiele | D32: gew | E32: unent | F32: verl | G32: Tore+ | H32: Tore- | I32: Punkte+ | J32: Punkte-
B33: Nordirland | C33: =COUNTIF($S$12:$T$28,"Nordirland") -> 4 | D33: =SUMPRODUCT(($S$12:$T$28=B33)*($X$12:$Y$28=3)) -> 2 | E33: =SUMPRODUCT(($S$12:$T$28=B33)*($X$12:$Y$28=1)) -> 1 | F33: =SUMPRODUCT(($S$12:$T$28=B33)*($X$12:$Y$28=2)) -> 1 | G33: =SUMPRODUCT(($S$12:$S$28=B33)*($U$12:$U$28))+SUMPRODUCT(($T$12:$T$28=B33)*($V$12:$V$28)) -> 6 | H33: =SUMPRODUCT(($S$12:$S$28=B33)*($V$12:$V$28))+SUMPRODUCT(($T$12:$T$28=B33)*($U$12:$U$28)) -> 6 | I33: =(D33*2)+E33 -> 5 | J33: =(F33*2)+E33 -> 3
B34: BRD | C34: =COUNTIF($S$12:$T$28,"BRD") -> 3 | D34: =SUMPRODUCT(($S$12:$T$28=B34)*($X$12:$Y$28=3)) -> 1 | E34: =SUMPRODUCT(($S$12:$T$28=B34)*($X$12:$Y$28=1)) -> 2 | F34: =SUMPRODUCT(($S$12:$T$28=B34)*($X$12:$Y$28=2)) -> 0 | G34: =SUMPRODUCT(($S$12:$S$28=B34)*($U$12:$U$28))+SUMPRODUCT(($T$12:$T$28=B34)*($V$12:$V$28)) -> 7 | H34: =SUMPRODUCT(($S$12:$S$28=B34)*($V$12:$V$28))+SUMPRODUCT(($T$12:$T$28=B34)*($U$12:$U$28)) -> 5 | I34: =(D34*2)+E34 -> 4 | J34: =(F34*2)+E34 -> 2
B35: CSSR | C35: =COUNTIF($S$12:$T$28,"CSSR") -> 4 | D35: =SUMPRODUCT(($S$12:$T$28=B35)*($X$12:$Y$28=3)) -> 1 | E35: =SUMPRODUCT(($S$12:$T$28=B35)*($X$12:$Y$28=1)) -> 1 | F35: =SUMPRODUCT(($S$12:$T$28=B35)*($X$12:$Y$28=2)) -> 2 | G35: =SUMPRODUCT(($S$12:$S$28=B35)*($U$12:$U$28))+SUMPRODUCT(($T$12:$T$28=B35)*($V$12:$V$28)) -> 9 | H35: =SUMPRODUCT(($S$12:$S$28=B35)*($V$12:$V$28))+SUMPRODUCT(($T$12:$T$28=B35)*($U$12:$U$28)) -> 6 | I35: =(D35*2)+E35 -> 3 | J35: =(F35*2)+E35 -> 5
B36: Argentinien | C36: =COUNTIF($S$12:$T$28,"Argentinien") -> 3 | D36: =SUMPRODUCT(($S$12:$T$28=B36)*($X$12:$Y$28=3)) -> 1 | E36: =SUMPRODUCT(($S$12:$T$28=B36)*($X$12:$Y$28=1)) -> 0 | F36: =SUMPRODUCT(($S$12:$T$28=B36)*($X$12:$Y$28=2)) -> 2 | G36: =SUMPRODUCT(($S$12:$S$28=B36)*($U$12:$U$28))+SUMPRODUCT(($T$12:$T$28=B36)*($V$12:$V$28)) -> 5 | H36: =SUMPRODUCT(($S$12:$S$28=B36)*($V$12:$V$28))+SUMPRODUCT(($T$12:$T$28=B36)*($U$12:$U$28)) -> 10 | I36: =(D36*2)+E36 -> 2 | J36: =(F36*2)+E36 -> 4
F39: Gruppe 2
C41: 1958-06-08 | D41: Frankreich | E41: Paraguay | F41: 7 | G41: 3 | I41: Norrköping | S41: Frankreich | T41: Paraguay | U41: 7 | V41: 3 | X41: =(IF(U41>V41,3,IF(U41=V41,1,2))) -> 3 | Y41: =(IF(V41>U41,3,IF(U41=V41,1,2))) -> 2
F42: (2 | G42: 2) | S42: Jugoslawien | T42: Schottland | U42: 1 | V42: 1 | X42: 1 | Y42: 1
C43: 1958-06-08 | D43: Jugoslawien | E43: Schottland | F43: 1 | G43: 1 | I43: Västerås | S43: Jugoslawien | T43: Frankreich | U43: 3 | V43: 2 | X43: 3 | Y43: 2
F44: (1 | G44: 0) | S44: Paraguay | T44: Schottland | U44: 3 | V44: 2 | X44: 3 | Y44: 2
C45: 1958-06-11 | D45: Jugoslawien | E45: Frankreich | F45: 3 | G45: 2 | I45: Västerås | S45: Frankreich | T45: Schottland | U45: 2 | V45: 1 | X45: =(IF(U45>V45,3,IF(U45=V45,1,2))) -> 3 | Y45: =(IF(V45>U45,3,IF(U45=V45,1,2))) -> 2
F46: (1 | G46: 1) | S46: Paraguay | T46: Jugoslawien | U46: 3 | V46: 3 | X46: =(IF(U46>V46,3,IF(U46=V46,1,2))) -> 1 | Y46: =(IF(V46>U46,3,IF(U46=V46,1,2))) -> 1
C47: 1958-06-11 | D47: Paraguay | E47: Schottland | F47: 3 | G47: 2 | I47: Norrköping
F48: (2 | G48: 1)
C49: 1958-06-15 | D49: Frankreich | E49: Schottland | F49: 2 | G49: 1 | I49: Örebro
F50: (2 | G50: 0)
C51: 1958-06-15 | D51: Paraguay | E51: Jugoslawien | F51: 3 | G51: 3 | I51: Eskilstuna
F52: (2 | G52: 1)
C54: Spiele | D54: gew | E54: unent | F54: verl | G54: Tore+ | H54: Tore- | I54: Punkte+ | J54: Punkte-
B55: Frankreich | C55: =COUNTIF($S$41:$T$46,"Frankreich") -> 3 | D55: =SUMPRODUCT(($S$41:$T$46=B55)*($X$41:$Y$46=3)) -> 2 | E55: =SUMPRODUCT(($S$41:$T$46=B55)*($X$41:$Y$46=1)) -> 0 | F55: =SUMPRODUCT(($S$41:$T$46=B55)*($X$41:$Y$46=2)) -> 1 | G55: =SUMPRODUCT(($S$41:$S$46=B55)*($U$41:$U$46))+SUMPRODUCT(($T$41:$T$46=B55)*($V$41:$V$46)) -> 11 | H55: =SUMPRODUCT(($S$41:$S$46=B55)*($V$41:$V$46))+SUMPRODUCT(($T$41:$T$46=B55)*($U$41:$U$46)) -> 7 | I55: =(D55*2)+E55 -> 4 | J55: =(F55*2)+E55 -> 2
B56: Jugoslawien | C56: =COUNTIF($S$41:$T$46,"Jugoslawien") -> 3 | D56: =SUMPRODUCT(($S$41:$T$46=B56)*($X$41:$Y$46=3)) -> 1 | E56: =SUMPRODUCT(($S$41:$T$46=B56)*($X$41:$Y$46=1)) -> 2 | F56: =SUMPRODUCT(($S$41:$T$46=B56)*($X$41:$Y$46=2)) -> 0 | G56: =SUMPRODUCT(($S$41:$S$46=B56)*($U$41:$U$46))+SUMPRODUCT(($T$41:$T$46=B56)*($V$41:$V$46)) -> 7 | H56: =SUMPRODUCT(($S$41:$S$46=B56)*($V$41:$V$46))+SUMPRODUCT(($T$41:$T$46=B56)*($U$41:$U$46)) -> 6 | I56: =(D56*2)+E56 -> 4 | J56: =(F56*2)+E56 -> 2
B57: Paraguay | C57: =COUNTIF($S$41:$T$46,"Paraguay") -> 3 | D57: =SUMPRODUCT(($S$41:$T$46=B57)*($X$41:$Y$46=3)) -> 1 | E57: =SUMPRODUCT(($S$41:$T$46=B57)*($X$41:$Y$46=1)) -> 1 | F57: =SUMPRODUCT(($S$41:$T$46=B57)*($X$41:$Y$46=2)) -> 1 | G57: =SUMPRODUCT(($S$41:$S$46=B57)*($U$41:$U$46))+SUMPRODUCT(($T$41:$T$46=B57)*($V$41:$V$46)) -> 9 | H57: =SUMPRODUCT(($S$41:$S$46=B57)*($V$41:$V$46))+SUMPRODUCT(($T$41:$T$46=B57)*($U$41:$U$46)) -> 12 | I57: =(D57*2)+E57 -> 3 | J57: =(F57*2)+E57 -> 3
B58: Schottland | C58: =COUNTIF($S$41:$T$46,"Schottland") -> 3 | D58: =SUMPRODUCT(($S$41:$T$46=B58)*($X$41:$Y$46=3)) -> 0 | E58: =SUMPRODUCT(($S$41:$T$46=B58)*($X$41:$Y$46=1)) -> 1 | F58: =SUMPRODUCT(($S$41:$T$46=B58)*($X$41:$Y$46=2)) -> 2 | G58: =SUMPRODUCT(($S$41:$S$46=B58)*($U$41:$U$46))+SUMPRODUCT(($T$41:$T$46=B58)*($V$41:$V$46)) -> 4 | H58: =SUMPRODUCT(($S$41:$S$46=B58)*($V$41:$V$46))+SUMPRODUCT(($T$41:$T$46=B58)*($U$41:$U$46)) -> 6 | I58: =(D58*2)+E58 -> 1 | J58: =(F58*2)+E58 -> 5
F61: Gruppe 3
C63: 1958-06-08 | D63: Schweden | E63: Mexiko | F63: 3 | G63: 0 | I63: Solna | S63: Schweden | T63: Mexiko | U63: 3 | V63: 0 | X63: =(IF(U63>V63,3,IF(U63=V63,1,2))) -> 3 | Y63: =(IF(V63>U63,3,IF(U63=V63,1,2))) -> 2
F64: (1 | G64: 0) | S64: Ungarn | T64: Wales | U64: 1 | V64: 1 | X64: 1 | Y64: 1
C65: 1958-06-08 | D65: Ungarn | E65: Wales | F65: 1 | G65: 1 | I65: Sandviken | S65: Mexiko | T65: Wales | U65: 1 | V65: 1 | X65: 1 | Y65: 1
F66: (1 | G66: 1) | S66: Schweden | T66: Ungarn | U66: 2 | V66: 1 | X66: 3 | Y66: 2
C67: 1958-06-11 | D67: Mexiko | E67: Wales | F67: 1 | G67: 1 | I67: Solna | S67: Schweden | T67: Wales | U67: 0 | V67: 0 | X67: 1 | Y67: 1
F68: (0 | G68: 1) | S68: Ungarn | T68: Mexiko | U68: 4 | V68: 0 | X68: 3 | Y68: 2
C69: 1958-06-12 | D69: Schweden | E69: Ungarn | F69: 2 | G69: 1 | I69: Solna
F70: (1 | G70: 0)
C71: 1958-06-15 | D71: Schweden | E71: Wales | F71: 0 | G71: 0 | I71: Solna
C72: 1958-06-15 | D72: Ungarn | E72: Mexiko | F72: 4 | G72: 0 | I72: Sandviken
F73: (1 | G73: 0)
F76: Entscheidungsspiel:
C78: 1958-06-17 | D78: Wales | E78: Ungarn | F78: 2 | G78: 1 | I78: Solna | S78: Wales | T78: Ungarn | U78: 2 | V78: 1 | X78: =(IF(U78>V78,3,IF(U78=V78,1,2))) -> 3 | Y78: =(IF(V78>U78,3,IF(U78=V78,1,2))) -> 2
F79: (0 | G79: 1)
C81: Spiele | D81: gew | E81: unent | F81: verl | G81: Tore+ | H81: Tore- | I81: Punkte+ | J81: Punkte-
B82: Schweden | C82: =COUNTIF($S$63:$T$78,"Schweden") -> 3 | D82: =SUMPRODUCT(($S$63:$T$78=B82)*($X$63:$Y$78=3)) -> 2 | E82: =SUMPRODUCT(($S$63:$T$78=B82)*($X$63:$Y$78=1)) -> 1 | F82: =SUMPRODUCT(($S$63:$T$78=B82)*($X$63:$Y$78=2)) -> 0 | G82: =SUMPRODUCT(($S$63:$S$78=B82)*($U$63:$U$78))+SUMPRODUCT(($T$63:$T$78=B82)*($V$63:$V$78)) -> 5 | H82: =SUMPRODUCT(($S$63:$S$78=B82)*($V$63:$V$78))+SUMPRODUCT(($T$63:$T$78=B82)*($U$63:$U$78)) -> 1 | I82: =(D82*2)+E82 -> 5 | J82: =(F82*2)+E82 -> 1
B83: Wales | C83: =COUNTIF($S$63:$T$78,"Wales") -> 4 | D83: =SUMPRODUCT(($S$63:$T$78=B83)*($X$63:$Y$78=3)) -> 1 | E83: =SUMPRODUCT(($S$63:$T$78=B83)*($X$63:$Y$78=1)) -> 3 | F83: =SUMPRODUCT(($S$63:$T$78=B83)*($X$63:$Y$78=2)) -> 0 | G83: =SUMPRODUCT(($S$63:$S$78=B83)*($U$63:$U$78))+SUMPRODUCT(($T$63:$T$78=B83)*($V$63:$V$78)) -> 4 | H83: =SUMPRODUCT(($S$63:$S$78=B83)*($V$63:$V$78))+SUMPRODUCT(($T$63:$T$78=B83)*($U$63:$U$78)) -> 3 | I83: =(D83*2)+E83 -> 5 | J83: =(F83*2)+E83 -> 3
B84: Ungarn | C84: =COUNTIF($S$63:$T$78,"Ungarn") -> 4 | D84: =SUMPRODUCT(($S$63:$T$78=B84)*($X$63:$Y$78=3)) -> 1 | E84: =SUMPRODUCT(($S$63:$T$78=B84)*($X$63:$Y$78=1)) -> 1 | F84: =SUMPRODUCT(($S$63:$T$78=B84)*($X$63:$Y$78=2)) -> 2 | G84: =SUMPRODUCT(($S$63:$S$78=B84)*($U$63:$U$78))+SUMPRODUCT(($T$63:$T$78=B84)*($V$63:$V$78)) -> 7 | H84: =SUMPRODUCT(($S$63:$S$78=B84)*($V$63:$V$78))+SUMPRODUCT(($T$63:$T$78=B84)*($U$63:$U$78)) -> 5 | I84: =(D84*2)+E84 -> 3 | J84: =(F84*2)+E84 -> 5
B85: Mexiko | C85: =COUNTIF($S$63:$T$78,"Mexiko") -> 3 | D85: =SUMPRODUCT(($S$63:$T$78=B85)*($X$63:$Y$78=3)) -> 0 | E85: =SUMPRODUCT(($S$63:$T$78=B85)*($X$63:$Y$78=1)) -> 1 | F85: =SUMPRODUCT(($S$63:$T$78=B85)*($X$63:$Y$78=2)) -> 2 | G85: =SUMPRODUCT(($S$63:$S$78=B85)*($U$63:$U$78))+SUMPRODUCT(($T$63:$T$78=B85)*($V$63:$V$78)) -> 1 | H85: =SUMPRODUCT(($S$63:$S$78=B85)*($V$63:$V$78))+SUMPRODUCT(($T$63:$T$78=B85)*($U$63:$U$78)) -> 8 | I85: =(D85*2)+E85 -> 1 | J85: =(F85*2)+E85 -> 5
F88: Gruppe 4
C90: 1958-06-08 | D90: Brasilien | E90: Österreich | F90: 3 | G90: 0 | I90: Uddevalla | S90: Brasilien | T90: Österreich | U90: 3 | V90: 0 | X90: =(IF(U90>V90,3,IF(U90=V90,1,2))) -> 3 | Y90: =(IF(V90>U90,3,IF(U90=V90,1,2))) -> 2
F91: (1 | G91: 0) | S91: UdSSR | T91: England | U91: 2 | V91: 2 | X91: 1 | Y91: 1
C92: 1958-06-08 | D92: UdSSR | E92: England | F92: 2 | G92: 2 | I92: Göteborg | S92: Brasilien | T92: England | U92: 0 | V92: 0 | X92: 1 | Y92: 1
F93: (1 | G93: 0) | S93: UdSSR | T93: Österreich | U93: 2 | V93: 0 | X93: 3 | Y93: 2
C94: 1958-06-11 | D94: Brasilien | E94: England | F94: 0 | G94: 0 | I94: Göteborg | S94: Brasilien | T94: UdSSR | U94: 2 | V94: 0 | X94: 3 | Y94: 2
C95: 1958-06-11 | D95: UdSSR | E95: Österreich | F95: 2 | G95: 0 | I95: Borås | S95: England | T95: Österreich | U95: 2 | V95: 2 | X95: 1 | Y95: 1
F96: (1 | G96: 0)
C97: 1958-06-15 | D97: Brasilien | E97: UdSSR | F97: 2 | G97: 0 | I97: Göteborg
F98: (1 | G98: 0)
C99: 1958-06-15 | D99: England | E99: Österreich | F99: 2 | G99: 2 | I99: Borås
F100: (0 | G100: 1)
F103: Entscheidungsspiel:
C105: 1958-06-17 | D105: UdSSR | E105: England | F105: 1 | G105: 0 | I105: Göteborg | S105: UdSSR | T105: England | U105: 1 | V105: 0 | X105: =(IF(U105>V105,3,IF(U105=V105,1,2))) -> 3 | Y105: =(IF(V105>U105,3,IF(U105=V105,1,2))) -> 2
F106: (0 | G106: 0)
C108: Spiele | D108: gew | E108: unent | F108: verl | G108: Tore+ | H108: Tore- | I108: Punkte+ | J108: Punkte-
B109: Brasilien | C109: =COUNTIF($S$90:$T$105,"Brasilien") -> 3 | D109: =SUMPRODUCT(($S$90:$T$105=B109)*($X$90:$Y$105=3)) -> 2 | E109: =SUMPRODUCT(($S$90:$T$105=B109)*($X$90:$Y$105=1)) -> 1 | F109: =SUMPRODUCT(($S$90:$T$105=B109)*($X$90:$Y$105=2)) -> 0 | G109: =SUMPRODUCT(($S$90:$S$105=B109)*($U$90:$U$105))+SUMPRODUCT(($T$90:$T$105=B109)*($V$90:$V$105)) -> 5 | H109: =SUMPRODUCT(($S$90:$S$105=B109)*($V$90:$V$105))+SUMPRODUCT(($T$90:$T$105=B109)*($U$90:$U$105)) -> 0 | I109: =(D109*2)+E109 -> 5 | J109: =(F109*2)+E109 -> 1
B110: UdSSR | C110: =COUNTIF($S$90:$T$105,"UdSSR") -> 4 | D110: =SUMPRODUCT(($S$90:$T$105=B110)*($X$90:$Y$105=3)) -> 2 | E110: =SUMPRODUCT(($S$90:$T$105=B110)*($X$90:$Y$105=1)) -> 1 | F110: =SUMPRODUCT(($S$90:$T$105=B110)*($X$90:$Y$105=2)) -> 1 | G110: =SUMPRODUCT(($S$90:$S$105=B110)*($U$90:$U$105))+SUMPRODUCT(($T$90:$T$105=B110)*($V$90:$V$105)) -> 5 | H110: =SUMPRODUCT(($S$90:$S$105=B110)*($V$90:$V$105))+SUMPRODUCT(($T$90:$T$105=B110)*($U$90:$U$105)) -> 4 | I110: =(D110*2)+E110 -> 5 | J110: =(F110*2)+E110 -> 3
B111: England | C111: =COUNTIF($S$90:$T$105,"England") -> 4 | D111: =SUMPRODUCT(($S$90:$T$105=B111)*($X$90:$Y$105=3)) -> 0 | E111: =SUMPRODUCT(($S$90:$T$105=B111)*($X$90:$Y$105=1)) -> 3 | F111: =SUMPRODUCT(($S$90:$T$105=B111)*($X$90:$Y$105=2)) -> 1 | G111: =SUMPRODUCT(($S$90:$S$105=B111)*($U$90:$U$105))+SUMPRODUCT(($T$90:$T$105=B111)*($V$90:$V$105)) -> 4 | H111: =SUMPRODUCT(($S$90:$S$105=B111)*($V$90:$V$105))+SUMPRODUCT(($T$90:$T$105=B111)*($U$90:$U$105)) -> 5 | I111: =(D111*2)+E111 -> 3 | J111: =(F111*2)+E111 -> 5
B112: Österreich | C112: =COUNTIF($S$90:$T$105,"Österreich") -> 3 | D112: =SUMPRODUCT(($S$90:$T$105=B112)*($X$90:$Y$105=3)) -> 0 | E112: =SUMPRODUCT(($S$90:$T$105=B112)*($X$90:$Y$105=1)) -> 1 | F112: =SUMPRODUCT(($S$90:$T$105=B112)*($X$90:$Y$105=2)) -> 2 | G112: =SUMPRODUCT(($S$90:$S$105=B112)*($U$90:$U$105))+SUMPRODUCT(($T$90:$T$105=B112)*($V$90:$V$105)) -> 2 | H112: =SUMPRODUCT(($S$90:$S$105=B112)*($V$90:$V$105))+SUMPRODUCT(($T$90:$T$105=B112)*($U$90:$U$105)) -> 7 | I112: =(D112*2)+E112 -> 1 | J112: =(F112*2)+E112 -> 5
F115: Viertelfinale:
C117: 1958-06-19 | D117: BRD | E117: Jugoslawien | F117: 1 | G117: 0 | I117: Malmö | S117: BRD | T117: Jugoslawien | U117: 1 | V117: 0 | X117: =(IF(U117>V117,3,IF(U117=V117,1,2))) -> 3 | Y117: =(IF(V117>U117,3,IF(U117=V117,1,2))) -> 2
F118: (1 | G118: 0) | S118: Schweden | T118: UdSSR | U118: 2 | V118: 0 | X118: 3 | Y118: 2
C119: 1958-06-19 | D119: Schweden | E119: UdSSR | F119: 2 | G119: 0 | I119: Solna | S119: Frankreich | T119: Nordirland | U119: 4 | V119: 0 | X119: 3 | Y119: 2
F120: (0 | G120: 0) | S120: Brasilien | T120: Wales | U120: 1 | V120: 0 | X120: =(IF(U120>V120,3,IF(U120=V120,1,2))) -> 3 | Y120: =(IF(V120>U120,3,IF(U120=V120,1,2))) -> 2
C121: 1958-06-19 | D121: Frankreich | E121: Nordirland | F121: 4 | G121: 0 | I121: Norrköping
F122: (1 | G122: 0)
C123: 1958-06-19 | D123: Brasilien | E123: Wales | F123: 1 | G123: 0 | I123: Göteborg
F124: (0 | G124: 0)
F127: Halbfinale:
C129: 1958-06-24 | D129: BRD | E129: Schweden | F129: 1 | G129: 3 | I129: Göteborg | S129: BRD | T129: Schweden | U129: 1 | V129: 3 | X129: =(IF(U129>V129,3,IF(U129=V129,1,2))) -> 2 | Y129: =(IF(V129>U129,3,IF(U129=V129,1,2))) -> 3
F130: (1 | G130: 1) | S130: Frankreich | T130: Brasilien | U130: 2 | V130: 5 | X130: 2 | Y130: 3
C131: 1958-06-24 | D131: Frankreich | E131: Brasilien | F131: 2 | G131: 5 | I131: Solna
F132: (1 | G132: 2)
C135: Spiel um Platz 3 am 28. Juni 1958 in Göteborg
D137: BRD | E137: Frankreich | F137: 3 | G137: 6 | S137: BRD | T137: Frankreich | U137: 3 | V137: 6 | X137: =(IF(U137>V137,3,IF(U137=V137,1,2))) -> 2 | Y137: =(IF(V137>U137,3,IF(U137=V137,1,2))) -> 3
F138: (1 | G138: 3)
C144: Endspiel am 29. Juni 1958 in Solna
D146: Schweden | E146: Brasilien | F146: 2 | G146: 5 | S146: Schweden | T146: Brasilien | U146: 2 | V146: 5 | X146: 2 | Y146: 3
F147: (1 | G147: 2)
A153: Auswertung | B153: Nation | C153: Spiele | D153: gew | E153: unent | F153: verl | G153: Tore+ | H153: Tore- | I153: Punkte+ | J153: Punkte-
B154: Brasilien | C154: =COUNTIF($S$12:$T$146,"Brasilien") -> 6 | D154: =SUMPRODUCT(($S$12:$T$146=B154)*($X$12:$Y$146=3)) -> 5 | E154: =SUMPRODUCT(($S$12:$T$146=B154)*($X$12:$Y$146=1)) -> 1 | F154: =SUMPRODUCT(($S$12:$T$146=B154)*($X$12:$Y$146=2)) -> 0 | G154: =SUMPRODUCT(($S$12:$S$146=B154)*($U$12:$U$146))+SUMPRODUCT(($T$12:$T$146=B154)*($V$12:$V$146)) -> 16 | H154: =SUMPRODUCT(($S$12:$S$146=B154)*($V$12:$V$146))+SUMPRODUCT(($T$12:$T$146=B154)*($U$12:$U$146)) -> 4 | I154: =(D154*2)+E154 -> 11 | J154: =(F154*2)+E154 -> 1
B155: Schweden | C155: =COUNTIF($S$12:$T$146,"Schweden") -> 6 | D155: 4 | E155: 1 | F155: 1 | G155: 12 | H155: 7 | I155: 9 | J155: 3
B156: Frankreich | C156: =COUNTIF($S$12:$T$146,"Frankreich") -> 6 | D156: 4 | E156: 0 | F156: 2 | G156: 23 | H156: 15 | I156: 8 | J156: 4
B157: BRD | C157: =COUNTIF($S$12:$T$146,"BRD") -> 6 | D157: 2 | E157: 2 | F157: 2 | G157: 12 | H157: 14 | I157: 6 | J157: 6
B158: Nordirland | C158: =COUNTIF($S$12:$T$146,"Nordirland") -> 5 | D158: 2 | E158: 1 | F158: 2 | G158: 6 | H158: 10 | I158: 5 | J158: 5
B159: UdSSR | C159: =COUNTIF($S$12:$T$146,"UdSSR") -> 5 | D159: 2 | E159: 1 | F159: 2 | G159: 5 | H159: 6 | I159: 5 | J159: 5
B160: Wales | C160: =COUNTIF($S$12:$T$146,"Wales") -> 5 | D160: 1 | E160: 3 | F160: 1 | G160: 4 | H160: 4 | I160: 5 | J160: 5
B161: Jugoslawien | C161: =COUNTIF($S$12:$T$146,"Jugoslawien") -> 4 | D161: 1 | E161: 2 | F161: 1 | G161: 7 | H161: 7 | I161: 4 | J161: 4
B162: Paraguay | C162: =COUNTIF($S$12:$T$146,"Paraguay") -> 3 | D162: 1 | E162: 1 | F162: 1 | G162: 9 | H162: 12 | I162: 3 | J162: 3
B163: CSSR | C163: =COUNTIF($S$12:$T$146,"CSSR") -> 4 | D163: 1 | E163: 1 | F163: 2 | G163: 9 | H163: 6 | I163: 3 | J163: 5
B164: Ungarn | C164: =COUNTIF($S$12:$T$146,"Ungarn") -> 4 | D164: 1 | E164: 1 | F164: 2 | G164: 7 | H164: 5 | I164: 3 | J164: 5
B165: England | C165: =COUNTIF($S$12:$T$146,"England") -> 4 | D165: 0 | E165: 3 | F165: 1 | G165: 4 | H165: 5 | I165: 3 | J165: 5
B166: Argentinien | C166: =COUNTIF($S$12:$T$146,"Argentinien") -> 3 | D166: 1 | E166: 0 | F166: 2 | G166: 5 | H166: 10 | I166: 2 | J166: 4
B167: Schottland | C167: =COUNTIF($S$12:$T$146,"Schottland") -> 3 | D167: 0 | E167: 1 | F167: 2 | G167: 4 | H167: 6 | I167: 1 | J167: 5
B168: Österreich | C168: =COUNTIF($S$12:$T$146,"Österreich") -> 3 | D168: 0 | E168: 1 | F168: 2 | G168: 2 | H168: 7 | I168: 1 | J168: 5
B169: Mexiko | C169: =COUNTIF($S$12:$T$146,"Mexiko") -> 3 | D169: 0 | E169: 1 | F169: 2 | G169: 1 | H169: 8 | I169: 1 | J169: 5

Sheet 1962
S1: 1 | T1: 2 | U1: 3 | V1: 4 | W1: 5 | X1: 6 | Y1: 7
A2: 7. WM 1962 in Chile
A4: 30. Mai - 17. Juni 1962
A5: Teilnehmende Nationen: 16 --- Bewerbungen: 54
F10: Gruppe A
C12: 1962-05-30 | D12: Uruguay | E12: Kolumbien | F12: 2 | G12: 1 | I12: Arica | S12: Uruguay | T12: Kolumbien | U12: 2 | V12: 1 | X12: =(IF(U12>V12,3,IF(U12=V12,1,2))) -> 3 | Y12: =(IF(V12>U12,3,IF(U12=V12,1,2))) -> 2 | AA12: Brasilien
F13: (0 | G13: 1) | S13: UdSSR | T13: Jugoslawien | U13: 2 | V13: 0 | X13: 3 | Y13: 2 | AA13: Chile
C14: 1962-05-31 | D14: UdSSR | E14: Jugoslawien | F14: 2 | G14: 0 | I14: Arica | S14: Jugoslawien | T14: Uruguay | U14: 3 | V14: 1 | X14: =(IF(U14>V14,3,IF(U14=V14,1,2))) -> 3 | Y14: =(IF(V14>U14,3,IF(U14=V14,1,2))) -> 2 | AA14: CSSR
F15: (0 | G15: 0) | S15: UdSSR | T15: Kolumbien | U15: 4 | V15: 4 | X15: 1 | Y15: 1 | AA15: Jugoslawien
C16: 1962-06-02 | D16: Jugoslawien | E16: Uruguay | F16: 3 | G16: 1 | I16: Arica | S16: Uruguay | T16: UdSSR | U16: 1 | V16: 2 | X16: =(IF(U16>V16,3,IF(U16=V16,1,2))) -> 2 | Y16: =(IF(V16>U16,3,IF(U16=V16,1,2))) -> 3 | AA16: UdSSR
F17: (2 | G17: 1) | S17: Kolumbien | T17: Jugoslawien | U17: 0 | V17: 5 | X17: =(IF(U17>V17,3,IF(U17=V17,1,2))) -> 2 | Y17: =(IF(V17>U17,3,IF(U17=V17,1,2))) -> 3 | AA17: Ungarn
C18: 1962-06-03 | D18: UdSSR | E18: Kolumbien | F18: 4 | G18: 4 | I18: Arica | AA18: BRD
F19: (3 | G19: 1) | AA19: Italien
C20: 1962-06-06 | D20: Uruguay | E20: UdSSR | F20: 1 | G20: 2 | I20: Arica | AA20: Argentinien
F21: (0 | G21: 1) | AA21: England
C22: 1962-06-07 | D22: Kolumbien | E22: Jugoslawien | F22: 0 | G22: 5 | I22: Arica | AA22: Uruguay
F23: (0 | G23: 2) | AA23: Mexiko
AA24: Spanien
C25: Spiele | D25: gew | E25: unent | F25: verl | G25: Tore+ | H25: Tore- | I25: Punkte+ | J25: Punkte- | AA25: Kolumbien
B26: UdSSR | C26: =COUNTIF($S$12:$T$17,"UdSSR") -> 3 | D26: =SUMPRODUCT(($S$12:$T$17=B26)*($X$12:$Y$17=3)) -> 2 | E26: =SUMPRODUCT(($S$12:$T$17=B26)*($X$12:$Y$17=1)) -> 1 | F26: =SUMPRODUCT(($S$12:$T$17=B26)*($X$12:$Y$17=2)) -> 0 | G26: =SUMPRODUCT(($S$12:$S$17=B26)*($U$12:$U$17))+SUMPRODUCT(($T$12:$T$17=B26)*($V$12:$V$17)) -> 8 | H26: =SUMPRODUCT(($S$12:$S$17=B26)*($V$12:$V$17))+SUMPRODUCT(($T$12:$T$17=B26)*($U$12:$U$17)) -> 5 | I26: =(D26*2)+E26 -> 5 | J26: =(F26*2)+E26 -> 1 | AA26: Bulgarien
B27: Jugoslawien | C27: =COUNTIF($S$12:$T$17,"UdSSR") -> 3 | D27: =SUMPRODUCT(($S$12:$T$17=B27)*($X$12:$Y$17=3)) -> 2 | E27: =SUMPRODUCT(($S$12:$T$17=B27)*($X$12:$Y$17=1)) -> 0 | F27: =SUMPRODUCT(($S$12:$T$17=B27)*($X$12:$Y$17=2)) -> 1 | G27: =SUMPRODUCT(($S$12:$S$17=B27)*($U$12:$U$17))+SUMPRODUCT(($T$12:$T$17=B27)*($V$12:$V$17)) -> 8 | H27: =SUMPRODUCT(($S$12:$S$17=B27)*($V$12:$V$17))+SUMPRODUCT(($T$12:$T$17=B27)*($U$12:$U$17)) -> 3 | I27: =(D27*2)+E27 -> 4 | J27: =(F27*2)+E27 -> 2 | AA27: Schweiz
B28: Uruguay | C28: =COUNTIF($S$12:$T$17,"UdSSR") -> 3 | D28: =SUMPRODUCT(($S$12:$T$17=B28)*($X$12:$Y$17=3)) -> 1 | E28: =SUMPRODUCT(($S$12:$T$17=B28)*($X$12:$Y$17=1)) -> 0 | F28: =SUMPRODUCT(($S$12:$T$17=B28)*($X$12:$Y$17=2)) -> 2 | G28: =SUMPRODUCT(($S$12:$S$17=B28)*($U$12:$U$17))+SUMPRODUCT(($T$12:$T$17=B28)*($V$12:$V$17)) -> 4 | H28: =SUMPRODUCT(($S$12:$S$17=B28)*($V$12:$V$17))+SUMPRODUCT(($T$12:$T$17=B28)*($U$12:$U$17)) -> 6 | I28: =(D28*2)+E28 -> 2 | J28: =(F28*2)+E28 -> 4
B29: Kolumbien | C29: =COUNTIF($S$12:$T$17,"UdSSR") -> 3 | D29: =SUMPRODUCT(($S$12:$T$17=B29)*($X$12:$Y$17=3)) -> 0 | E29: =SUMPRODUCT(($S$12:$T$17=B29)*($X$12:$Y$17=1)) -> 1 | F29: =SUMPRODUCT(($S$12:$T$17=B29)*($X$12:$Y$17=2)) -> 2 | G29: =SUMPRODUCT(($S$12:$S$17=B29)*($U$12:$U$17))+SUMPRODUCT(($T$12:$T$17=B29)*($V$12:$V$17)) -> 5 | H29: =SUMPRODUCT(($S$12:$S$17=B29)*($V$12:$V$17))+SUMPRODUCT(($T$12:$T$17=B29)*($U$12:$U$17)) -> 11 | I29: =(D29*2)+E29 -> 1 | J29: =(F29*2)+E29 -> 5
F32: Gruppe B
C34: 1962-05-30 | D34: Chile | E34: Schweiz | F34: 3 | G34: 1 | I34: Santiago dCh | S34: Chile | T34: Schweiz | U34: 3 | V34: 1 | X34: =(IF(U34>V34,3,IF(U34=V34,1,2))) -> 3 | Y34: =(IF(V34>U34,3,IF(U34=V34,1,2))) -> 2
F35: (1 | G35: 1) | S35: BRD | T35: Italien | U35: 0 | V35: 0 | X35: 1 | Y35: 1
C36: 1962-05-31 | D36: BRD | E36: Italien | F36: 0 | G36: 0 | I36: Santiago dCh | S36: Chile | T36: Italien | U36: 2 | V36: 0 | X36: 3 | Y36: 2
C37: 1962-06-02 | D37: Chile | E37: Italien | F37: 2 | G37: 0 | I37: Santiago dCh | S37: BRD | T37: Schweiz | U37: 2 | V37: 1 | X37: =(IF(U37>V37,3,IF(U37=V37,1,2))) -> 3 | Y37: =(IF(V37>U37,3,IF(U37=V37,1,2))) -> 2
F38: (0 | G38: 0) | S38: BRD | T38: Chile | U38: 2 | V38: 0 | X38: 3 | Y38: 2
C39: 1962-06-03 | D39: BRD | E39: Schweiz | F39: 2 | G39: 1 | I39: Santiago dCh | S39: Italien | T39: Schweiz | U39: 3 | V39: 0 | X39: 3 | Y39: 2
F40: (1 | G40: 0)
C41: 1962-06-06 | D41: BRD | E41: Chile | F41: 2 | G41: 0 | I41: Santiago dCh
F42: (1 | G42: 0)
C43: 1962-06-07 | D43: Italien | E43: Schweiz | F43: 3 | G43: 0 | I43: Santiago dCh
F44: (1 | G44: 0)
C46: Spiele | D46: gew | E46: unent | F46: verl | G46: Tore+ | H46: Tore- | I46: Punkte+ | J46: Punkte-
B47: Chile | C47: =COUNTIF($S$90:$T$105,"UdSSR") -> 1 | D47: =SUMPRODUCT(($S$90:$T$105=B47)*($X$90:$Y$105=3)) -> 1 | E47: =SUMPRODUCT(($S$90:$T$105=B47)*($X$90:$Y$105=1)) -> 0 | F47: =SUMPRODUCT(($S$90:$T$105=B47)*($X$90:$Y$105=2)) -> 0 | G47: =SUMPRODUCT(($S$90:$S$105=B47)*($U$90:$U$105))+SUMPRODUCT(($T$90:$T$105=B47)*($V$90:$V$105)) -> 2 | H47: =SUMPRODUCT(($S$90:$S$105=B47)*($V$90:$V$105))+SUMPRODUCT(($T$90:$T$105=B47)*($U$90:$U$105)) -> 1 | I47: =(D47*2)+E47 -> 2 | J47: =(F47*2)+E47 -> 0
B48: Schweiz
B49: BRD
B50: Italien
F53: Gruppe C
C55: 1962-05-30 | D55: Brasilien | E55: Mexiko | F55: 2 | G55: 0 | I55: Viña del Mar | S55: Brasilien | T55: Mexiko | U55: 2 | V55: 0 | X55: =(IF(U55>V55,3,IF(U55=V55,1,2))) -> 3 | Y55: =(IF(V55>U55,3,IF(U55=V55,1,2))) -> 2
F56: (0 | G56: 0) | S56: Spanien | T56: CSSR | U56: 0 | V56: 1 | X56: =(IF(U56>V56,3,IF(U56=V56,1,2))) -> 2 | Y56: =(IF(V56>U56,3,IF(U56=V56,1,2))) -> 3
C57: 1962-05-31 | D57: Spanien | E57: CSSR | F57: 0 | G57: 1 | I57: Viña del Mar | S57: Brasilien | T57: CSSR | U57: 0 | V57: 0 | X57: 1 | Y57: 1
F58: (0 | G58: 0) | S58: Mexiko | T58: Spanien | U58: 0 | V58: 1 | X58: 2 | Y58: 3
C59: 1962-06-02 | D59: Brasilien | E59: CSSR | F59: 0 | G59: 0 | I59: Viña del Mar | S59: Brasilien | T59: Spanien | U59: 2 | V59: 1 | X59: 3 | Y59: 2
C60: 1962-06-03 | D60: Mexiko | E60: Spanien | F60: 0 | G60: 1 | I60: Viña del Mar | S60: Mexiko | T60: CSSR | U60: 3 | V60: 1 | X60: =(IF(U60>V60,3,IF(U60=V60,1,2))) -> 3 | Y60: =(IF(V60>U60,3,IF(U60=V60,1,2))) -> 2
F61: (0 | G61: 0)
C62: 1962-06-06 | D62: Brasilien | E62: Spanien | F62: 2 | G62: 1 | I62: Viña del Mar
F63: (0 | G63: 1)
C64: 1962-06-07 | D64: Mexiko | E64: CSSR | F64: 3 | G64: 1 | I64: Viña del Mar
F65: (2 | G65: 1)
C67: Spiele | D67: gew | E67: unent | F67: verl | G67: Tore+ | H67: Tore- | I67: Punkte+ | J67: Punkte-
B68: Brasilien | C68: =COUNTIF($S$90:$T$105,"UdSSR") -> 1 | D68: =SUMPRODUCT(($S$90:$T$105=B68)*($X$90:$Y$105=3)) -> 1 | E68: =SUMPRODUCT(($S$90:$T$105=B68)*($X$90:$Y$105=1)) -> 0 | F68: =SUMPRODUCT(($S$90:$T$105=B68)*($X$90:$Y$105=2)) -> 0 | G68: =SUMPRODUCT(($S$90:$S$105=B68)*($U$90:$U$105))+SUMPRODUCT(($T$90:$T$105=B68)*($V$90:$V$105)) -> 3 | H68: =SUMPRODUCT(($S$90:$S$105=B68)*($V$90:$V$105))+SUMPRODUCT(($T$90:$T$105=B68)*($U$90:$U$105)) -> 1 | I68: =(D68*2)+E68 -> 2 | J68: =(F68*2)+E68 -> 0
B69: Mexiko
B70: Spanien
B71: CSSR
F74: Gruppe D
C76: 1962-05-30 | D76: Argentinien | E76: Bulgarien | F76: 1 | G76: 0 | I76: Rancagua | S76: Argentinien | T76: Bulgarien | U76: 1 | V76: 0 | X76: =(IF(U76>V76,3,IF(U76=V76,1,2))) -> 3 | Y76: =(IF(V76>U76,3,IF(U76=V76,1,2))) -> 2
F77: (1 | G77: 0) | S77: Ungarn | T77: England | U77: 2 | V77: 1 | X77: =(IF(U77>V77,3,IF(U77=V77,1,2))) -> 3 | Y77: =(IF(V77>U77,3,IF(U77=V77,1,2))) -> 2
C78: 1962-05-31 | D78: Ungarn | E78: England | F78: 2 | G78: 1 | I78: Rancagua | S78: England | T78: Argentinien | U78: 3 | V78: 1 | X78: 3 | Y78: 2
F79: (1 | G79: 0) | S79: Ungarn | T79: Bulgarien | U79: 6 | V79: 1 | X79: 3 | Y79: 2
C80: 1962-06-02 | D80: England | E80: Argentinien | F80: 3 | G80: 1 | I80: Rancagua | S80: Ungarn | T80: Argentinien | U80: 0 | V80: 0 | X80: 1 | Y80: 1
F81: (2 | G81: 0) | S81: England | T81: Bulgarien | U81: 0 | V81: 0 | X81: 1 | Y81: 1
C82: 1962-06-03 | D82: Ungarn | E82: Bulgarien | F82: 6 | G82: 1 | I82: Rancagua
F83: (4 | G83: 0)
C84: 1962-06-06 | D84: Ungarn | E84: Argentinien | F84: 0 | G84: 0 | I84: Rancagua
C85: 1962-06-07 | D85: England | E85: Bulgarien | F85: 0 | G85: 0 | I85: Rancagua
C87: Spiele | D87: gew | E87: unent | F87: verl | G87: Tore+ | H87: Tore- | I87: Punkte+ | J87: Punkte-
B88: Argentinien | C88: =COUNTIF($S$90:$T$105,"UdSSR") -> 1 | D88: =SUMPRODUCT(($S$90:$T$105=B88)*($X$90:$Y$105=3)) -> 0 | E88: =SUMPRODUCT(($S$90:$T$105=B88)*($X$90:$Y$105=1)) -> 0 | F88: =SUMPRODUCT(($S$90:$T$105=B88)*($X$90:$Y$105=2)) -> 0 | G88: =SUMPRODUCT(($S$90:$S$105=B88)*($U$90:$U$105))+SUMPRODUCT(($T$90:$T$105=B88)*($V$90:$V$105)) -> 0 | H88: =SUMPRODUCT(($S$90:$S$105=B88)*($V$90:$V$105))+SUMPRODUCT(($T$90:$T$105=B88)*($U$90:$U$105)) -> 0 | I88: =(D88*2)+E88 -> 0 | J88: =(F88*2)+E88 -> 0
B89: Bulgarien
B90: Ungarn
B91: England
F94: Viertelfinale:
C96: 1962-06-10 | D96: Chile | E96: UdSSR | F96: 2 | G96: 1 | I96: Arica | S96: Chile | T96: UdSSR | U96: 2 | V96: 1 | X96: =(IF(U96>V96,3,IF(U96=V96,1,2))) -> 3 | Y96: =(IF(V96>U96,3,IF(U96=V96,1,2))) -> 2
F97: (2 | G97: 1) | S97: Brasilien | T97: England | U97: 3 | V97: 1 | X97: 3 | Y97: 2
C98: 1962-06-10 | D98: Brasilien | E98: England | F98: 3 | G98: 1 | I98: Viña del Mar | S98: CSSR | T98: Ungarn | U98: 1 | V98: 0 | X98: 3 | Y98: 2
F99: (1 | G99: 1) | S99: Jugoslawien | T99: BRD | U99: 1 | V99: 0 | X99: 3 | Y99: 2
C100: 1962-06-10 | D100: CSSR | E100: Ungarn | F100: 1 | G100: 0 | I100: Rancagua
F101: (1 | G101: 0)
C102: 1962-06-10 | D102: Jugoslawien | E102: BRD | F102: 1 | G102: 0 | I102: Santiago dCh
F103: (0 | G103: 0)
F106: Halbfinale:
C108: 1962-06-13 | D108: Brasilien | E108: Chile | F108: 4 | G108: 2 | I108: Santiago dCh | S108: Brasilien | T108: Chile | U108: 4 | V108: 2 | X108: =(IF(U108>V108,3,IF(U108=V108,1,2))) -> 3 | Y108: =(IF(V108>U108,3,IF(U108=V108,1,2))) -> 2
F109: (2 | G109: 1) | S109: CSSR | T109: Jugoslawien | U109: 3 | V109: 1 | X109: 3 | Y109: 2
C110: 1962-06-13 | D110: CSSR | E110: Jugoslawien | F110: 3 | G110: 1 | I110: Viña del Mar
F111: (0 | G111: 0)
C114: Spiel um Platz 3 am 16. Juni 1962 in Santiago de Chile
D116: Chile | E116: Jugoslawien | F116: 1 | G116: 0 | S116: Chile | T116: Jugoslawien | U116: 1 | V116: 0 | X116: =(IF(U116>V116,3,IF(U116=V116,1,2))) -> 3 | Y116: =(IF(V116>U116,3,IF(U116=V116,1,2))) -> 2
F117: (0 | G117: 0)
C123: Endspielam 17. Juni 1962 in Santiago de Chile
D125: Brasilien | E125: CSSR | F125: 3 | G125: 1 | S125: Brasilien | T125: CSSR | U125: 3 | V125: 1 | X125: =(IF(U125>V125,3,IF(U125=V125,1,2))) -> 3 | Y125: =(IF(V125>U125,3,IF(U125=V125,1,2))) -> 2
F126: (1 | G126: 1)
A132: Auswertung | B132: Nation | C132: Spiele | D132: gew | E132: unent | F132: verl | G132: Tore+ | H132: Tore- | I132: Punkte+ | J132: Punkte-
B133: Brasilien | C133: =COUNTIF($S$12:$T$125,"Brasilien") -> 6 | D133: =SUMPRODUCT(($S$12:$T$125=B133)*($X$12:$Y$125=3)) -> 5 | E133: =SUMPRODUCT(($S$12:$T$125=B133)*($X$12:$Y$125=1)) -> 1 | F133: =SUMPRODUCT(($S$12:$T$125=B133)*($X$12:$Y$125=2)) -> 0 | G133: =SUMPRODUCT(($S$12:$S$125=B133)*($U$12:$U$125))+SUMPRODUCT(($T$12:$T$125=B133)*($V$12:$V$125)) -> 14 | H133: =SUMPRODUCT(($S$12:$S$125=B133)*($V$12:$V$125))+SUMPRODUCT(($T$12:$T$125=B133)*($U$12:$U$125)) -> 5 | I133: =(D133*2)+E133 -> 11 | J133: =(F133*2)+E133 -> 1
B134: Chile | C134: =COUNTIF($S$12:$T$125,"Chile") -> 6 | D134: 4 | E134: 0 | F134: 2 | G134: 10 | H134: 8 | I134: 8 | J134: 4
B135: CSSR | C135: =COUNTIF($S$12:$T$125,"CSSR") -> 6 | D135: 3 | E135: 1 | F135: 2 | G135: 7 | H135: 7 | I135: 7 | J135: 5
B136: Jugoslawien | C136: =COUNTIF($S$12:$T$125,"Jugoslawien") -> 6 | D136: 3 | E136: 0 | F136: 3 | G136: 10 | H136: 7 | I136: 6 | J136: 6
B137: UdSSR | C137: =COUNTIF($S$12:$T$125,"UdSSR") -> 4 | D137: 2 | E137: 1 | F137: 1 | G137: 9 | H137: 7 | I137: 5 | J137: 3
B138: Ungarn | C138: =COUNTIF($S$12:$T$125,"Ungarn") -> 4 | D138: 2 | E138: 1 | F138: 1 | G138: 8 | H138: 3 | I138: 5 | J138: 3
B139: BRD | C139: =COUNTIF($S$12:$T$125,"BRD") -> 4 | D139: 2 | E139: 1 | F139: 1 | G139: 4 | H139: 2 | I139: 5 | J139: 3
B140: Italien | C140: =COUNTIF($S$12:$T$125,"Italien") -> 3 | D140: 1 | E140: 1 | F140: 1 | G140: 3 | H140: 2 | I140: 3 | J140: 3
B141: Argentinien | C141: =COUNTIF($S$12:$T$125,"Argentinien") -> 3 | D141: 1 | E141: 1 | F141: 1 | G141: 2 | H141: 3 | I141: 3 | J141: 3
B142: England | C142: =COUNTIF($S$12:$T$125,"England") -> 4 | D142: 1 | E142: 1 | F142: 2 | G142: 5 | H142: 6 | I142: 3 | J142: 5
B143: Uruguay | C143: =COUNTIF($S$12:$T$125,"Uruguay") -> 3 | D143: 1 | E143: 0 | F143: 2 | G143: 4 | H143: 6 | I143: 2 | J143: 4
B144: Mexiko | C144: =COUNTIF($S$12:$T$125,"Mexiko") -> 3 | D144: 1 | E144: 0 | F144: 2 | G144: 3 | H144: 4 | I144: 2 | J144: 4
B145: Spanien | C145: =COUNTIF($S$12:$T$125,"Spanien") -> 3 | D145: 1 | E145: 0 | F145: 2 | G145: 2 | H145: 3 | I145: 2 | J145: 4
B146: Kolumbien | C146: =COUNTIF($S$12:$T$125,"Kolumbien") -> 3 | D146: 0 | E146: 1 | F146: 2 | G146: 5 | H146: 11 | I146: 1 | J146: 5
B147: Bulgarien | C147: =COUNTIF($S$12:$T$125,"Bulgarien") -> 3 | D147: 0 | E147: 1 | F147: 2 | G147: 1 | H147: 7 | I147: 1 | J147: 5
B148: Schweiz | C148: =COUNTIF($S$12:$T$125,"Schweiz") -> 3 | D148: 0 | E148: 0 | F148: 3 | G148: 2 | H148: 8 | I148: 0 | J148: 6

Sheet 1966
S1: 1 | T1: 2 | U1: 3 | V1: 4 | W1: 5 | X1: 6 | Y1: 7
A2: 8. WM 1966 in England
A4: 11. - 30. Juli 1966
A5: Teilnehmende Nationen: 16 --- Bewerbungen: 71
F10: Gruppe A
C12: 1966-07-11 | D12: England | E12: Uruguay | F12: 0 | G12: 0 | I12: London | S12: England | T12: Uruguay | U12: 0 | V12: 0 | X12: =(IF(U12>V12,3,IF(U12=V12,1,2))) -> 1 | Y12: =(IF(V12>U12,3,IF(U12=V12,1,2))) -> 1 | AA12: England
C13: 1966-07-13 | D13: Frankreich | E13: Mexiko | F13: 1 | G13: 1 | I13: London | S13: Frankreich | T13: Mexiko | U13: 1 | V13: 1 | X13: 1 | Y13: 1 | AA13: Portugal
S14: Uruguay | T14: Frankreich | U14: 2 | V14: 1 | X14: 3 | Y14: 2 | AA14: BRD
C15: 1966-07-15 | D15: Uruguay | E15: Frankreich | F15: 2 | G15: 1 | I15: London | S15: England | T15: Mexiko | U15: 2 | V15: 0 | X15: 3 | Y15: 2 | AA15: UdSSR
S16: Mexiko | T16: Uruguay | U16: 0 | V16: 0 | X16: 1 | Y16: 1 | AA16: Argentinien
C17: 1966-07-16 | D17: England | E17: Mexiko | F17: 2 | G17: 0 | I17: London | S17: England | T17: Frankreich | U17: 2 | V17: 0 | X17: =(IF(U17>V17,3,IF(U17=V17,1,2))) -> 3 | Y17: =(IF(V17>U17,3,IF(U17=V17,1,2))) -> 2 | AA17: Ungarn
AA18: Uruguay
C19: 1966-07-19 | D19: Mexiko | E19: Uruguay | F19: 0 | G19: 0 | I19: London | AA19: Nordkorea
C20: 1966-07-20 | D20: England | E20: Frankreich | F20: 2 | G20: 0 | I20: London | AA20: Spanien
F21: ( | G21: ) | AA21: Brasilien
AA22: Italien
C23: Spiele | D23: gew | E23: unent | F23: verl | G23: Tore+ | H23: Tore- | I23: Punkte+ | J23: Punkte- | AA23: Mexiko
B24: England | C24: =COUNTIF($S$90:$T$105,"UdSSR") -> 1 | D24: =SUMPRODUCT(($S$90:$T$105=B24)*($X$90:$Y$105=3)) -> 1 | E24: =SUMPRODUCT(($S$90:$T$105=B24)*($X$90:$Y$105=1)) -> 0 | F24: =SUMPRODUCT(($S$90:$T$105=B24)*($X$90:$Y$105=2)) -> 0 | G24: =SUMPRODUCT(($S$90:$S$105=B24)*($U$90:$U$105))+SUMPRODUCT(($T$90:$T$105=B24)*($V$90:$V$105)) -> 1 | H24: =SUMPRODUCT(($S$90:$S$105=B24)*($V$90:$V$105))+SUMPRODUCT(($T$90:$T$105=B24)*($U$90:$U$105)) -> 0 | I24: =(D24*2)+E24 -> 2 | J24: =(F24*2)+E24 -> 0 | AA24: Frankreich
B25: Uruguay | AA25: Chile
B26: Frankreich | AA26: Bulgarien
B27: Mexiko | AA27: Schweiz
F30: Gruppe B
C32: 1966-07-12 | D32: BRD | E32: Schweiz | F32: 5 | G32: 0 | I32: Sheffield | S32: BRD | T32: Schweiz | U32: 5 | V32: 0 | X32: =(IF(U32>V32,3,IF(U32=V32,1,2))) -> 3 | Y32: =(IF(V32>U32,3,IF(U32=V32,1,2))) -> 2
S33: Spanien | T33: Argentinien | U33: 1 | V33: 2 | X33: 2 | Y33: 3
C34: 1966-07-13 | D34: Spanien | E34: Argentinien | F34: 1 | G34: 2 | I34: Birmingham | S34: Spanien | T34: Schweiz | U34: 2 | V34: 1 | X34: 3 | Y34: 2
S35: BRD | T35: Argentinien | U35: 0 | V35: 0 | X35: 1 | Y35: 1
C36: 1966-07-15 | D36: Spanien | E36: Schweiz | F36: 2 | G36: 1 | I36: Sheffield | S36: Argentinien | T36: Schweiz | U36: 2 | V36: 0 | X36: 3 | Y36: 2
S37: BRD | T37: Spanien | U37: 2 | V37: 1 | X37: 3 | Y37: 2
C38: 1966-07-16 | D38: BRD | E38: Argentinien | F38: 0 | G38: 0 | I38: Birmingham
C39: 1966-07-19 | D39: Argentinien | E39: Schweiz | F39: 2 | G39: 0 | I39: Sheffield
C41: 1966-07-20 | D41: BRD | E41: Spanien | F41: 2 | G41: 1 | I41: Birmingham
C44: Spiele | D44: gew | E44: unent | F44: verl | G44: Tore+ | H44: Tore- | I44: Punkte+ | J44: Punkte-
B45: BRD | C45: =COUNTIF($S$90:$T$105,"UdSSR") -> 1 | D45: =SUMPRODUCT(($S$90:$T$105=B45)*($X$90:$Y$105=3)) -> 1 | E45: =SUMPRODUCT(($S$90:$T$105=B45)*($X$90:$Y$105=1)) -> 0 | F45: =SUMPRODUCT(($S$90:$T$105=B45)*($X$90:$Y$105=2)) -> 0 | G45: =SUMPRODUCT(($S$90:$S$105=B45)*($U$90:$U$105))+SUMPRODUCT(($T$90:$T$105=B45)*($V$90:$V$105)) -> 4 | H45: =SUMPRODUCT(($S$90:$S$105=B45)*($V$90:$V$105))+SUMPRODUCT(($T$90:$T$105=B45)*($U$90:$U$105)) -> 0 | I45: =(D45*2)+E45 -> 2 | J45: =(F45*2)+E45 -> 0
B46: Schweiz
B47: Spanien
B48: Argentinien
F51: Gruppe C
C53: 1966-07-12 | D53: Brasilien | E53: Bulgarien | F53: 2 | G53: 0 | I53: Liverpool | S53: Brasilien | T53: Bulgarien | U53: 2 | V53: 0 | X53: =(IF(U53>V53,3,IF(U53=V53,1,2))) -> 3 | Y53: =(IF(V53>U53,3,IF(U53=V53,1,2))) -> 2
S54: Portugal | T54: Ungarn | U54: 3 | V54: 1 | X54: 3 | Y54: 2
C55: 1966-07-13 | D55: Portugal | E55: Ungarn | F55: 3 | G55: 1 | I55: Manchester | S55: Brasilien | T55: Ungarn | U55: 1 | V55: 3 | X55: 2 | Y55: 3
S56: Portugal | T56: Bulgarien | U56: 3 | V56: 0 | X56: 3 | Y56: 2
C57: 1966-07-15 | D57: Brasilien | E57: Ungarn | F57: 1 | G57: 3 | I57: Liverpool | S57: Portugal | T57: Brasilien | U57: 3 | V57: 1 | X57: 3 | Y57: 2
S58: Ungarn | T58: Bulgarien | U58: 3 | V58: 1 | X58: 3 | Y58: 2
C59: 1966-07-16 | D59: Portugal | E59: Bulgarien | F59: 3 | G59: 0 | I59: Manchester
C61: 1966-07-19 | D61: Portugal | E61: Brasilien | F61: 3 | G61: 1 | I61: Liverpool
C63: 1966-07-20 | D63: Ungarn | E63: Bulgarien | F63: 3 | G63: 1 | I63: Manchester
C66: Spiele | D66: gew | E66: unent | F66: verl | G66: Tore+ | H66: Tore- | I66: Punkte+ | J66: Punkte-
B67: Brasilien | C67: =COUNTIF($S$90:$T$105,"UdSSR") -> 1 | D67: =SUMPRODUCT(($S$90:$T$105=B67)*($X$90:$Y$105=3)) -> 0 | E67: =SUMPRODUCT(($S$90:$T$105=B67)*($X$90:$Y$105=1)) -> 0 | F67: =SUMPRODUCT(($S$90:$T$105=B67)*($X$90:$Y$105=2)) -> 0 | G67: =SUMPRODUCT(($S$90:$S$105=B67)*($U$90:$U$105))+SUMPRODUCT(($T$90:$T$105=B67)*($V$90:$V$105)) -> 0 | H67: =SUMPRODUCT(($S$90:$S$105=B67)*($V$90:$V$105))+SUMPRODUCT(($T$90:$T$105=B67)*($U$90:$U$105)) -> 0 | I67: =(D67*2)+E67 -> 0 | J67: =(F67*2)+E67 -> 0
B68: Bulgarien
B69: Portugal
B70: Ungarn
F73: Gruppe D
C75: 1966-07-12 | D75: UdSSR | E75: Nordkorea | F75: 3 | G75: 0 | I75: Middlesbrough | S75: UdSSR | T75: Nordkorea | U75: 3 | V75: 0 | X75: =(IF(U75>V75,3,IF(U75=V75,1,2))) -> 3 | Y75: =(IF(V75>U75,3,IF(U75=V75,1,2))) -> 2
S76: Italien | T76: Chile | U76: 2 | V76: 0 | X76: 3 | Y76: 2
C77: 1966-07-13 | D77: Italien | E77: Chile | F77: 2 | G77: 0 | I77: Sunderland | S77: Chile | T77: Nordkorea | U77: 1 | V77: 1 | X77: =(IF(U77>V77,3,IF(U77=V77,1,2))) -> 1 | Y77: =(IF(V77>U77,3,IF(U77=V77,1,2))) -> 1
S78: UdSSR | T78: Italien | U78: 1 | V78: 0 | X78: =(IF(U78>V78,3,IF(U78=V78,1,2))) -> 3 | Y78: =(IF(V78>U78,3,IF(U78=V78,1,2))) -> 2
C79: 1966-07-15 | D79: Chile | E79: Nordkorea | F79: 1 | G79: 1 | I79: Middlesbrough | S79: Italien | T79: Nordkorea | U79: 0 | V79: 1 | X79: 2 | Y79: 3
S80: UdSSR | T80: Chile | U80: 2 | V80: 1 | X80: 3 | Y80: 2
C81: 1966-07-16 | D81: UdSSR | E81: Italien | F81: 1 | G81: 0 | I81: Sunderland
C83: 1966-07-19 | D83: Italien | E83: Nordkorea | F83: 0 | G83: 1 | I83: Middlesbrough
C85: 1966-07-20 | D85: UdSSR | E85: Chile | F85: 2 | G85: 1 | I85: Sunderland
C88: Spiele | D88: gew | E88: unent | F88: verl | G88: Tore+ | H88: Tore- | I88: Punkte+ | J88: Punkte-
B89: UdSSR | C89: =COUNTIF($S$90:$T$105,"UdSSR") -> 1 | D89: =SUMPRODUCT(($S$90:$T$105=B89)*($X$90:$Y$105=3)) -> 1 | E89: =SUMPRODUCT(($S$90:$T$105=B89)*($X$90:$Y$105=1)) -> 0 | F89: =SUMPRODUCT(($S$90:$T$105=B89)*($X$90:$Y$105=2)) -> 0 | G89: =SUMPRODUCT(($S$90:$S$105=B89)*($U$90:$U$105))+SUMPRODUCT(($T$90:$T$105=B89)*($V$90:$V$105)) -> 2 | H89: =SUMPRODUCT(($S$90:$S$105=B89)*($V$90:$V$105))+SUMPRODUCT(($T$90:$T$105=B89)*($U$90:$U$105)) -> 1 | I89: =(D89*2)+E89 -> 2 | J89: =(F89*2)+E89 -> 0
B90: Nordkorea
B91: Italien
B92: Chile
F95: Viertelfinale:
C97: 1966-07-23 | D97: England | E97: Argentinien | F97: 1 | G97: 0 | I97: London | S97: England | T97: Argentinien | U97: 1 | V97: 0 | X97: =(IF(U97>V97,3,IF(U97=V97,1,2))) -> 3 | Y97: =(IF(V97>U97,3,IF(U97=V97,1,2))) -> 2
S98: BRD | T98: Uruguay | U98: 4 | V98: 0 | X98: 3 | Y98: 2
C99: 1966-07-23 | D99: BRD | E99: Uruguay | F99: 4 | G99: 0 | I99: Sheffield | S99: Portugal | T99: Nordkorea | U99: 5 | V99: 3 | X99: 3 | Y99: 2
S100: UdSSR | T100: Ungarn | U100: 2 | V100: 1 | X100: 3 | Y100: 2
C101: 1966-07-23 | D101: Potugal | E101: Nordkorea | F101: 5 | G101: 3 | I101: Liverpool
C103: 1966-07-23 | D103: UdSSR | E103: Ungarn | F103: 2 | G103: 1 | I103: Sunderland
F104: ( | G104: )
F107: Halbfinale:
C109: 1966-07-25 | D109: BRD | E109: UdSSR | F109: 2 | G109: 1 | I109: Liverpool | S109: BRD | T109: UdSSR | U109: 2 | V109: 1 | X109: =(IF(U109>V109,3,IF(U109=V109,1,2))) -> 3 | Y109: =(IF(V109>U109,3,IF(U109=V109,1,2))) -> 2
S110: England | T110: Portugal | U110: 2 | V110: 1 | X110: 3 | Y110: 2
C111: 1966-07-26 | D111: England | E111: Portugal | F111: 2 | G111: 1 | I111: London
F112: ( | G112: )
C115: Spiel um Platz 3 am 28. Juli 1966 in London
D117: Portugal | E117: UdSSR | F117: 2 | G117: 1 | S117: Portugal | T117: UdSSR | U117: 2 | V117: 1 | X117: =(IF(U117>V117,3,IF(U117=V117,1,2))) -> 3 | Y117: =(IF(V117>U117,3,IF(U117=V117,1,2))) -> 2
F118: ( | G118: )
C124: Endspiel am 30. Juli 1966 in London
D126: England | E126: BRD | F126: 4 | G126: 2 | H126: n.V. | S126: England | T126: BRD | U126: 4 | V126: 2 | X126: =(IF(U126>V126,3,IF(U126=V126,1,2))) -> 3 | Y126: =(IF(V126>U126,3,IF(U126=V126,1,2))) -> 2
F128: ( | G128: )
A134: Auswertung | B134: Nation | C134: Spiele | D134: gew | E134: unent | F134: verl | G134: Tore+ | H134: Tore- | I134: Punkte+ | J134: Punkte-
B135: England | C135: =COUNTIF($S$12:$T$126,"England") -> 6 | D135: =SUMPRODUCT(($S$12:$T$126=B135)*($X$12:$Y$126=3)) -> 5 | E135: =SUMPRODUCT(($S$12:$T$126=B135)*($X$12:$Y$126=1)) -> 1 | F135: =SUMPRODUCT(($S$12:$T$126=B135)*($X$12:$Y$126=2)) -> 0 | G135: =SUMPRODUCT(($S$12:$S$126=B135)*($U$12:$U$126))+SUMPRODUCT(($T$12:$T$126=B135)*($V$12:$V$126)) -> 11 | H135: =SUMPRODUCT(($S$12:$S$126=B135)*($V$12:$V$126))+SUMPRODUCT(($T$12:$T$126=B135)*($U$12:$U$126)) -> 3 | I135: =(D135*2)+E135 -> 11 | J135: =(F135*2)+E135 -> 1
B136: Portugal | C136: =COUNTIF($S$12:$T$126,"Portugal") -> 6 | D136: 5 | E136: 0 | F136: 1 | G136: 17 | H136: 8 | I136: 10 | J136: 2
B137: BRD | C137: =COUNTIF($S$12:$T$126,"BRD") -> 6 | D137: 4 | E137: 1 | F137: 1 | G137: 15 | H137: 6 | I137: 9 | J137: 3
B138: UdSSR | C138: =COUNTIF($S$12:$T$126,"UdSSR") -> 6 | D138: 4 | E138: 0 | F138: 2 | G138: 10 | H138: 6 | I138: 8 | J138: 4
B139: Argentinien | C139: =COUNTIF($S$12:$T$126,"Argentinien") -> 4 | D139: 2 | E139: 1 | F139: 1 | G139: 4 | H139: 2 | I139: 5 | J139: 3
B140: Ungarn | C140: =COUNTIF($S$12:$T$126,"Ungarn") -> 4 | D140: 2 | E140: 0 | F140: 2 | G140: 8 | H140: 7 | I140: 4 | J140: 4
B141: Uruguay | C141: =COUNTIF($S$12:$T$126,"Uruguay") -> 4 | D141: 1 | E141: 2 | F141: 1 | G141: 2 | H141: 5 | I141: 4 | J141: 4
B142: Nordkorea | C142: =COUNTIF($S$12:$T$126,"Nordkorea") -> 4 | D142: 1 | E142: 1 | F142: 2 | G142: 5 | H142: 9 | I142: 3 | J142: 5
B143: Spanien | C143: =COUNTIF($S$12:$T$126,"Spanien") -> 3 | D143: 1 | E143: 0 | F143: 2 | G143: 4 | H143: 5 | I143: 2 | J143: 4
B144: Brasilien | C144: =COUNTIF($S$12:$T$126,"Brasilien") -> 3 | D144: 1 | E144: 0 | F144: 2 | G144: 4 | H144: 6 | I144: 2 | J144: 4
B145: Italien | C145: =COUNTIF($S$12:$T$126,"Italien") -> 3 | D145: 1 | E145: 0 | F145: 2 | G145: 2 | H145: 2 | I145: 2 | J145: 4
B146: Mexiko | C146: =COUNTIF($S$12:$T$126,"Mexiko") -> 3 | D146: 0 | E146: 2 | F146: 1 | G146: 1 | H146: 3 | I146: 2 | J146: 4
B147: Frankreich | C147: =COUNTIF($S$12:$T$126,"Frankreich") -> 3 | D147: 0 | E147: 1 | F147: 2 | G147: 2 | H147: 5 | I147: 1 | J147: 5
B148: Chile | C148: =COUNTIF($S$12:$T$126,"Chile") -> 3 | D148: 0 | E148: 1 | F148: 2 | G148: 2 | H148: 5 | I148: 1 | J148: 5
B149: Bulgarien | C149: =COUNTIF($S$12:$T$126,"Bulgarien") -> 3 | D149: 0 | E149: 0 | F149: 3 | G149: 1 | H149: 8 | I149: 0 | J149: 6
B150: Schweiz | C150: =COUNTIF($S$12:$T$126,"Schweiz") -> 3 | D150: 0 | E150: 0 | F150: 3 | G150: 1 | H150: 9 | I150: 0 | J150: 6

Sheet 1970
S1: 1 | T1: 2 | U1: 3 | V1: 4 | W1: 5 | X1: 6 | Y1: 7
A2: 9. WM 1970 in Mexiko
A4: 31. Mai - 21. Juni 1970
A5: Teilnehmende Nationen: 16 --- Bewerbungen: 70
F10: Gruppe 1
C12: 1970-05-31 | D12: Mexiko | E12: UdSSR | F12: 0 | G12: 0 | I12: Mexiko-City | S12: Mexiko | T12: UdSSR | U12: 0 | V12: 0 | X12: =(IF(U12>V12,3,IF(U12=V12,1,2))) -> 1 | Y12: =(IF(V12>U12,3,IF(U12=V12,1,2))) -> 1 | AA12: Brasilien
C13: 1970-06-03 | D13: Belgien | E13: El Salvador | F13: 3 | G13: 0 | I13: Mexiko-City | S13: Belgien | T13: El Salvador | U13: 3 | V13: 0 | X13: 3 | Y13: 2 | AA13: BRD
S14: UdSSR | T14: Belgien | U14: 4 | V14: 1 | X14: 3 | Y14: 2 | AA14: Italien
C15: 1970-06-06 | D15: UdSSR | E15: Belgien | F15: 4 | G15: 1 | I15: Mexiko-City | S15: Mexiko | T15: El Salvador | U15: 4 | V15: 0 | X15: 3 | Y15: 2 | AA15: UdSSR
S16: UdSSR | T16: El Salvador | U16: 2 | V16: 0 | X16: 3 | Y16: 2 | AA16: Mexiko
C17: 1970-06-07 | D17: Mexiko | E17: El Salvador | F17: 4 | G17: 0 | I17: Mexiko-City | S17: Mexiko | T17: Belgien | U17: 1 | V17: 0 | X17: =(IF(U17>V17,3,IF(U17=V17,1,2))) -> 3 | Y17: =(IF(V17>U17,3,IF(U17=V17,1,2))) -> 2 | AA17: Uruguay
AA18: Peru
C19: 1970-06-10 | D19: UdSSR | E19: El Salvador | F19: 2 | G19: 0 | I19: Mexiko-City | AA19: England
AA20: Schweden
C21: 1970-06-11 | D21: Mexiko | E21: Belgien | F21: 1 | G21: 0 | I21: Mexiko-City | AA21: Belgien
F22: ( | G22: ) | AA22: Rumänien
AA23: Israel
C24: Spiele | D24: gew | E24: unent | F24: verl | G24: Tore+ | H24: Tore- | I24: Punkte+ | J24: Punkte- | AA24: Bulgarien
B25: Mexiko | C25: =COUNTIF($S$90:$T$105,"UdSSR") -> 1 | D25: =SUMPRODUCT(($S$90:$T$105=B25)*($X$90:$Y$105=3)) -> 0 | E25: =SUMPRODUCT(($S$90:$T$105=B25)*($X$90:$Y$105=1)) -> 0 | F25: =SUMPRODUCT(($S$90:$T$105=B25)*($X$90:$Y$105=2)) -> 1 | G25: =SUMPRODUCT(($S$90:$S$105=B25)*($U$90:$U$105))+SUMPRODUCT(($T$90:$T$105=B25)*($V$90:$V$105)) -> 1 | H25: =SUMPRODUCT(($S$90:$S$105=B25)*($V$90:$V$105))+SUMPRODUCT(($T$90:$T$105=B25)*($U$90:$U$105)) -> 4 | I25: =(D25*2)+E25 -> 0 | J25: =(F25*2)+E25 -> 2 | AA25: Marokko
B26: UdSSR | AA26: CSSR
B27: Belgien | AA27: El Salvador
B28: El Salvador
F31: Gruppe 2
C33: 1970-06-02 | D33: Uruguay | E33: Israel | F33: 2 | G33: 0 | I33: Puebla | S33: Uruguay | T33: Israel | U33: 2 | V33: 0 | X33: =(IF(U33>V33,3,IF(U33=V33,1,2))) -> 3 | Y33: =(IF(V33>U33,3,IF(U33=V33,1,2))) -> 2
S34: Italien | T34: Schweden | U34: 1 | V34: 0 | X34: 3 | Y34: 2
C35: 1970-06-03 | D35: Italien | E35: Schweden | F35: 1 | G35: 0 | I35: Toluca | S35: Uruguay | T35: Italien | U35: 0 | V35: 0 | X35: 1 | Y35: 1
S36: Schweden | T36: Israel | U36: 1 | V36: 1 | X36: 1 | Y36: 1
C37: 1970-06-06 | D37: Uruguay | E37: Italien | F37: 0 | G37: 0 | I37: Puebla | S37: Schweden | T37: Uruguay | U37: 1 | V37: 0 | X37: 3 | Y37: 2
C38: 1970-06-07 | D38: Schweden | E38: Israel | F38: 1 | G38: 1 | I38: Toluca | S38: Italien | T38: Israel | U38: 0 | V38: 0 | X38: 1 | Y38: 1
C40: 1970-06-10 | D40: Schweden | E40: Uruguay | F40: 1 | G40: 0 | I40: Puebla
C42: 1970-06-11 | D42: Italien | E42: Israel | F42: 0 | G42: 0 | I42: Toluca
F43: ( | G43: )
C45: Spiele | D45: gew | E45: unent | F45: verl | G45: Tore+ | H45: Tore- | I45: Punkte+ | J45: Punkte-
B46: Uruguay | C46: =COUNTIF($S$90:$T$105,"UdSSR") -> 1 | D46: =SUMPRODUCT(($S$90:$T$105=B46)*($X$90:$Y$105=3)) -> 1 | E46: =SUMPRODUCT(($S$90:$T$105=B46)*($X$90:$Y$105=1)) -> 0 | F46: =SUMPRODUCT(($S$90:$T$105=B46)*($X$90:$Y$105=2)) -> 0 | G46: =SUMPRODUCT(($S$90:$S$105=B46)*($U$90:$U$105))+SUMPRODUCT(($T$90:$T$105=B46)*($V$90:$V$105)) -> 1 | H46: =SUMPRODUCT(($S$90:$S$105=B46)*($V$90:$V$105))+SUMPRODUCT(($T$90:$T$105=B46)*($U$90:$U$105)) -> 0 | I46: =(D46*2)+E46 -> 2 | J46: =(F46*2)+E46 -> 0
B47: Israel
B48: Italien
B49: Schweden
F52: Gruppe 3
C54: 1970-06-02 | D54: Rumänien | E54: England | F54: 0 | G54: 1 | I54: Guadalajara | S54: Rumänien | T54: England | U54: 0 | V54: 1 | X54: =(IF(U54>V54,3,IF(U54=V54,1,2))) -> 2 | Y54: =(IF(V54>U54,3,IF(U54=V54,1,2))) -> 3
S55: CSSR | T55: Brasilien | U55: 1 | V55: 4 | X55: 2 | Y55: 3
C56: 1970-06-03 | D56: CSSR | E56: Brasilien | F56: 1 | G56: 4 | I56: Guadalajara | S56: Rumänien | T56: CSSR | U56: 2 | V56: 1 | X56: 3 | Y56: 2
S57: England | T57: Brasilien | U57: 0 | V57: 1 | X57: 2 | Y57: 3
C58: 1970-06-06 | D58: Rumänien | E58: CSSR | F58: 2 | G58: 1 | I58: Guadalajara | S58: Rumänien | T58: Brasilien | U58: 2 | V58: 3 | X58: 2 | Y58: 3
S59: England | T59: CSSR | U59: 1 | V59: 0 | X59: 3 | Y59: 2
C60: 1970-06-07 | D60: England | E60: Brasilien | F60: 0 | G60: 1 | I60: Guadalajara
C62: 1970-06-10 | D62: Rumänien | E62: Brasilien | F62: 2 | G62: 3 | I62: Guadalajara
C64: 1970-06-11 | D64: England | E64: CSSR | F64: 1 | G64: 0 | I64: Guadalajara
F65: ( | G65: )
C67: Spiele | D67: gew | E67: unent | F67: verl | G67: Tore+ | H67: Tore- | I67: Punkte+ | J67: Punkte-
B68: Rumänien | C68: =COUNTIF($S$90:$T$105,"UdSSR") -> 1 | D68: =SUMPRODUCT(($S$90:$T$105=B68)*($X$90:$Y$105=3)) -> 0 | E68: =SUMPRODUCT(($S$90:$T$105=B68)*($X$90:$Y$105=1)) -> 0 | F68: =SUMPRODUCT(($S$90:$T$105=B68)*($X$90:$Y$105=2)) -> 0 | G68: =SUMPRODUCT(($S$90:$S$105=B68)*($U$90:$U$105))+SUMPRODUCT(($T$90:$T$105=B68)*($V$90:$V$105)) -> 0 | H68: =SUMPRODUCT(($S$90:$S$105=B68)*($V$90:$V$105))+SUMPRODUCT(($T$90:$T$105=B68)*($U$90:$U$105)) -> 0 | I68: =(D68*2)+E68 -> 0 | J68: =(F68*2)+E68 -> 0
B69: England
B70: CSSR
B71: Brasilien
F74: Gruppe 4
C76: 1970-06-02 | D76: Peru | E76: Bulgarien | F76: 3 | G76: 2 | I76: León | S76: Peru | T76: Bulgarien | U76: 3 | V76: 2 | X76: =(IF(U76>V76,3,IF(U76=V76,1,2))) -> 3 | Y76: =(IF(V76>U76,3,IF(U76=V76,1,2))) -> 2
S77: Marokko | T77: BRD | U77: 1 | V77: 2 | X77: 2 | Y77: 3
C78: 1970-06-03 | D78: Marokko | E78: BRD | F78: 1 | G78: 2 | I78: León | S78: Peru | T78: Marokko | U78: 3 | V78: 0 | X78: 3 | Y78: 2
S79: Bulgarien | T79: BRD | U79: 2 | V79: 5 | X79: 2 | Y79: 3
C80: 1970-06-06 | D80: Peru | E80: Marokko | F80: 3 | G80: 0 | I80: León | S80: Peru | T80: BRD | U80: 1 | V80: 3 | X80: 2 | Y80: 3
S81: Bulgarien | T81: Marokko | U81: 1 | V81: 1 | X81: 1 | Y81: 1
C82: 1970-06-07 | D82: Bulgarien | E82: BRD | F82: 2 | G82: 5 | I82: León
C84: 1970-06-10 | D84: Peru | E84: BRD | F84: 1 | G84: 3 | I84: León
C86: 1970-06-11 | D86: Bulgarien | E86: Marokko | F86: 1 | G86: 1 | I86: León
F87: ( | G87: )
C89: Spiele | D89: gew | E89: unent | F89: verl | G89: Tore+ | H89: Tore- | I89: Punkte+ | J89: Punkte-
B90: Peru | C90: =COUNTIF($S$90:$T$105,"UdSSR") -> 1 | D90: =SUMPRODUCT(($S$90:$T$105=B90)*($X$90:$Y$105=3)) -> 0 | E90: =SUMPRODUCT(($S$90:$T$105=B90)*($X$90:$Y$105=1)) -> 0 | F90: =SUMPRODUCT(($S$90:$T$105=B90)*($X$90:$Y$105=2)) -> 1 | G90: =SUMPRODUCT(($S$90:$S$105=B90)*($U$90:$U$105))+SUMPRODUCT(($T$90:$T$105=B90)*($V$90:$V$105)) -> 2 | H90: =SUMPRODUCT(($S$90:$S$105=B90)*($V$90:$V$105))+SUMPRODUCT(($T$90:$T$105=B90)*($U$90:$U$105)) -> 4 | I90: =(D90*2)+E90 -> 0 | J90: =(F90*2)+E90 -> 2
B91: Bulgarien
B92: Marokko
B93: BRD
F96: Viertelfinale:
C98: 1970-06-14 | D98: UdSSR | E98: Uruguay | F98: 0 | G98: 1 | H98: n.V. | I98: Mexiko-City | S98: UdSSR | T98: Uruguay | U98: 0 | V98: 1 | X98: =(IF(U98>V98,3,IF(U98=V98,1,2))) -> 2 | Y98: =(IF(V98>U98,3,IF(U98=V98,1,2))) -> 3
S99: Italien | T99: Mexiko | U99: 4 | V99: 1 | X99: 3 | Y99: 2
F100: ( | G100: ) | S100: Brasilien | T100: Peru | U100: 4 | V100: 2 | X100: 3 | Y100: 2
C101: 1970-06-14 | D101: Italien | E101: Mexiko | F101: 4 | G101: 1 | I101: Toluca | S101: BRD | T101: England | U101: 3 | V101: 2 | X101: 3 | Y101: 2
C103: 1970-06-14 | D103: Brasilien | E103: Peru | F103: 4 | G103: 2 | I103: Guadalajara
C105: 1970-06-14 | D105: BRD | E105: England | F105: 3 | G105: 2 | H105: n.V. | I105: León
F107: ( | G107: )
F110: Halbfinale:
C112: 1970-06-17 | D112: Uruguay | E112: Brasilien | F112: 1 | G112: 3 | I112: Guadalajara | S112: Uruguay | T112: Brasilien | U112: 1 | V112: 3 | X112: =(IF(U112>V112,3,IF(U112=V112,1,2))) -> 2 | Y112: =(IF(V112>U112,3,IF(U112=V112,1,2))) -> 3
S113: Italien | T113: BRD | U113: 4 | V113: 3 | X113: =(IF(U113>V113,3,IF(U113=V113,1,2))) -> 3 | Y113: =(IF(V113>U113,3,IF(U113=V113,1,2))) -> 2
C114: 1970-06-17 | D114: Italien | E114: BRD | F114: 4 | G114: 3 | H114: n.V. | I114: Mexiko-City
F116: ( | G116: )
C119: Spiel um Platz 3 am 20. Juni 1970 in Mexiko-City
D121: Uruguay | E121: BRD | F121: 0 | G121: 1 | S121: Uruguay | T121: BRD | U121: 0 | V121: 1 | X121: =(IF(U121>V121,3,IF(U121=V121,1,2))) -> 2 | Y121: =(IF(V121>U121,3,IF(U121=V121,1,2))) -> 3
F122: ( | G122: )
C128: Endspiel am 21. Juni 1970 in Mexiko-City
D130: Brasilien | E130: Italien | F130: 4 | G130: 1 | S130: Brasilien | T130: Italien | U130: 4 | V130: 1 | X130: =(IF(U130>V130,3,IF(U130=V130,1,2))) -> 3 | Y130: =(IF(V130>U130,3,IF(U130=V130,1,2))) -> 2
F131: ( | G131: )
A137: Auswertung | B137: Nation | C137: Spiele | D137: gew | E137: unent | F137: verl | G137: Tore+ | H137: Tore- | I137: Punkte+ | J137: Punkte-
B138: Brasilien | C138: =COUNTIF($S$12:$T$130,"Brasilien") -> 6 | D138: =SUMPRODUCT(($S$12:$T$130=B138)*($X$12:$Y$130=3)) -> 6 | E138: =SUMPRODUCT(($S$12:$T$130=B138)*($X$12:$Y$130=1)) -> 0 | F138: =SUMPRODUCT(($S$12:$T$130=B138)*($X$12:$Y$130=2)) -> 0 | G138: =SUMPRODUCT(($S$12:$S$130=B138)*($U$12:$U$130))+SUMPRODUCT(($T$12:$T$130=B138)*($V$12:$V$130)) -> 19 | H138: =SUMPRODUCT(($S$12:$S$130=B138)*($V$12:$V$130))+SUMPRODUCT(($T$12:$T$130=B138)*($U$12:$U$130)) -> 7 | I138: =(D138*2)+E138 -> 12 | J138: =(F138*2)+E138 -> 0
B139: BRD | C139: =COUNTIF($S$12:$T$130,"BRD") -> 6 | D139: 5 | E139: 0 | F139: 1 | G139: 17 | H139: 10 | I139: 10 | J139: 2
B140: Italien | C140: =COUNTIF($S$12:$T$130,"Italien") -> 6 | D140: 3 | E140: 2 | F140: 1 | G140: 10 | H140: 8 | I140: 8 | J140: 4
B141: UdSSR | C141: =COUNTIF($S$12:$T$130,"UdSSR") -> 4 | D141: 2 | E141: 1 | F141: 1 | G141: 6 | H141: 2 | I141: 5 | J141: 3
B142: Mexiko | C142: =COUNTIF($S$12:$T$130,"Mexiko") -> 4 | D142: 2 | E142: 1 | F142: 1 | G142: 6 | H142: 4 | I142: 5 | J142: 3
B143: Uruguay | C143: =COUNTIF($S$12:$T$130,"Uruguay") -> 6 | D143: 2 | E143: 1 | F143: 3 | G143: 4 | H143: 5 | I143: 5 | J143: 7
B144: Peru | C144: =COUNTIF($S$12:$T$130,"Peru") -> 4 | D144: 2 | E144: 0 | F144: 2 | G144: 9 | H144: 9 | I144: 4 | J144: 4
B145: England | C145: =COUNTIF($S$12:$T$130,"England") -> 4 | D145: 2 | E145: 0 | F145: 2 | G145: 4 | H145: 4 | I145: 4 | J145: 4
B146: Schweden | C146: =COUNTIF($S$12:$T$130,"Schweden") -> 3 | D146: 1 | E146: 1 | F146: 1 | G146: 2 | H146: 2 | I146: 3 | J146: 3
B147: Belgien | C147: =COUNTIF($S$12:$T$130,"Belgien") -> 3 | D147: 1 | E147: 0 | F147: 2 | G147: 4 | H147: 5 | I147: 2 | J147: 4
B148: Rumänien | C148: =COUNTIF($S$12:$T$130,"Rumänien") -> 3 | D148: 1 | E148: 0 | F148: 2 | G148: 4 | H148: 5 | I148: 2 | J148: 4
B149: Israel | C149: =COUNTIF($S$12:$T$130,"Israel") -> 3 | D149: 0 | E149: 2 | F149: 1 | G149: 1 | H149: 3 | I149: 2 | J149: 4
B150: Bulgarien | C150: =COUNTIF($S$12:$T$130,"Bulgarien") -> 3 | D150: 0 | E150: 1 | F150: 2 | G150: 5 | H150: 9 | I150: 1 | J150: 5
B151: Marokko | C151: =COUNTIF($S$12:$T$130,"Marokko") -> 3 | D151: 0 | E151: 1 | F151: 2 | G151: 2 | H151: 6 | I151: 1 | J151: 5
B152: CSSR | C152: =COUNTIF($S$12:$T$130,"CSSR") -> 3 | D152: 0 | E152: 0 | F152: 3 | G152: 2 | H152: 7 | I152: 0 | J152: 6
B153: El Salvador | C153: =COUNTIF($S$12:$T$130,"El Salvador") -> 3 | D153: 0 | E153: 0 | F153: 3 | G153: 0 | H153: 9 | I153: 0 | J153: 6

Sheet 1974
A2: 10. WM 1974 in der BRD
A4: 13. Juni - 7. Juli 1974
A5: Teilnehmende Nationen: 16 --- Bewerbungen: 99
F10: Gruppe 1
C12: 1974-06-14 | D12: BRD | E12: Chile | F12: 1 | G12: 0 | I12: Berlin | S12: BRD | T12: Chile | U12: 1 | V12: 0 | X12: =(IF(U12>V12,3,IF(U12=V12,1,2))) -> 3 | Y12: =(IF(V12>U12,3,IF(U12=V12,1,2))) -> 2 | AA12: Polen
S13: DDR | T13: Australien | U13: 2 | V13: 0 | X13: 3 | Y13: 2 | AA13: BRD
C14: 1974-06-14 | D14: DDR | E14: Australien | F14: 2 | G14: 0 | I14: Hamburg | S14: Australien | T14: BRD | U14: 0 | V14: 3 | X14: 2 | Y14: 3 | AA14: Niederlande
S15: Chile | T15: DDR | U15: 1 | V15: 1 | X15: 1 | Y15: 1 | AA15: Brasilien
C16: 1974-06-18 | D16: Australien | E16: BRD | F16: 0 | G16: 3 | I16: Hamburg | S16: Australien | T16: Chile | U16: 0 | V16: 0 | X16: 1 | Y16: 1 | AA16: Schweden
S17: DDR | T17: BRD | U17: 1 | V17: 0 | X17: 3 | Y17: 2 | AA17: DDR
C18: 1974-06-18 | D18: Chile | E18: DDR | F18: 1 | G18: 1 | I18: Berlin | AA18: Schottland
AA19: Jugoslawien
C20: 1974-06-22 | D20: Australien | E20: Chile | F20: 0 | G20: 0 | I20: Berlin | AA20: Argentinien
C21: 1974-06-22 | D21: DDR | E21: BRD | F21: 1 | G21: 0 | I21: Hamburg | AA21: Italien
F22: ( | G22: ) | AA22: Bulgarien
AA23: Chile
C24: Spiele | D24: gew | E24: unent | F24: verl | G24: Tore+ | H24: Tore- | I24: Punkte+ | J24: Punkte- | AA24: Uruguay
B25: BRD | AA25: Australien
B26: Chile | AA26: Haiti
B27: DDR | AA27: Zaire
B28: Australien
F31: Gruppe 2
C33: 1974-06-13 | D33: Brasilien | E33: Jugoslawien | F33: 0 | G33: 0 | I33: Frankfurt | S33: Brasilien | T33: Jugoslawien | U33: 0 | V33: 0 | X33: =(IF(U33>V33,3,IF(U33=V33,1,2))) -> 1 | Y33: =(IF(V33>U33,3,IF(U33=V33,1,2))) -> 1
C34: 1974-06-14 | D34: Zaire | E34: Schottland | F34: 0 | G34: 2 | I34: Dortmund | S34: Zaire | T34: Schottland | U34: 0 | V34: 2 | X34: 2 | Y34: 3
S35: Jugoslawien | T35: Zaire | U35: 9 | V35: 0 | X35: 3 | Y35: 2
C36: 1974-06-18 | D36: Jugoslawien | E36: Zaire | F36: 9 | G36: 0 | I36: Gelsenkirchen | S36: Schottland | T36: Brasilien | U36: 0 | V36: 0 | X36: 1 | Y36: 1
S37: Schottland | T37: Jugoslawien | U37: 1 | V37: 1 | X37: 1 | Y37: 1
C38: 1974-06-18 | D38: Schottland | E38: Brasilien | F38: 0 | G38: 0 | I38: Frankfurt | S38: Zaire | T38: Brasilien | U38: 0 | V38: 3 | X38: 2 | Y38: 3
C39: 1974-06-22 | D39: Schottland | E39: Jugoslawien | F39: 1 | G39: 1 | I39: Frankfurt
C41: 1974-06-22 | D41: Zaire | E41: Brasilien | F41: 0 | G41: 3 | I41: Gelsenkirchen
F42: ( | G42: )
C44: Spiele | D44: gew | E44: unent | F44: verl | G44: Tore+ | H44: Tore- | I44: Punkte+ | J44: Punkte-
B45: Brasilien
B46: Jugoslawien
B47: Zaire
B48: Schottland
F51: Gruppe 3
C53: 1974-06-15 | D53: Schweden | E53: Bulgarien | F53: 0 | G53: 0 | I53: Düsseldorf | S53: Schweden | T53: Bulgarien | U53: 0 | V53: 0 | X53: =(IF(U53>V53,3,IF(U53=V53,1,2))) -> 1 | Y53: =(IF(V53>U53,3,IF(U53=V53,1,2))) -> 1
C54: 1974-06-15 | D54: Niederlande | E54: Uruguay | F54: 2 | G54: 0 | I54: Hannover | S54: Niederlande | T54: Uruguay | U54: 2 | V54: 0 | X54: 3 | Y54: 2
S55: Niederlande | T55: Schweden | U55: 0 | V55: 0 | X55: 1 | Y55: 1
C56: 1974-06-19 | D56: Niederlande | E56: Schweden | F56: 0 | G56: 0 | I56: Dortmund | S56: Bulgarien | T56: Uruguay | U56: 1 | V56: 1 | X56: 1 | Y56: 1
C57: 1974-06-19 | D57: Bulgarien | E57: Uruguay | F57: 1 | G57: 1 | I57: Hannover | S57: Schweden | T57: Uruguay | U57: 3 | V57: 0 | X57: 3 | Y57: 2
S58: Niederlande | T58: Bulgarien | U58: 4 | V58: 1 | X58: 3 | Y58: 2
C59: 1974-06-23 | D59: Schweden | E59: Uruguay | F59: 3 | G59: 0 | I59: Düsseldorf
C61: 1974-06-23 | D61: Niederlande | E61: Bulgarien | F61: 4 | G61: 1 | I61: Dortmund
F62: ( | G62: )
C64: Spiele | D64: gew | E64: unent | F64: verl | G64: Tore+ | H64: Tore- | I64: Punkte+ | J64: Punkte-
B65: Schweden
B66: Bulgarien
B67: Niederlande
B68: Uruguay
F71: Gruppe 4
C73: 1974-06-15 | D73: Italien | E73: Haiti | F73: 3 | G73: 1 | I73: München | S73: Italien | T73: Haiti | U73: 3 | V73: 1 | X73: =(IF(U73>V73,3,IF(U73=V73,1,2))) -> 3 | Y73: =(IF(V73>U73,3,IF(U73=V73,1,2))) -> 2
S74: Polen | T74: Argentinien | U74: 3 | V74: 2 | X74: 3 | Y74: 2
C75: 1974-06-15 | D75: Polen | E75: Argentinien | F75: 3 | G75: 2 | I75: Stuttgart | S75: Polen | T75: Haiti | U75: 7 | V75: 0 | X75: 3 | Y75: 2
S76: Argentinien | T76: Italien | U76: 1 | V76: 1 | X76: 1 | Y76: 1
C77: 1974-06-19 | D77: Polen | E77: Haiti | F77: 7 | G77: 0 | I77: München | S77: Argentinien | T77: Haiti | U77: 4 | V77: 1 | X77: 3 | Y77: 2
S78: Polen | T78: Italien | U78: 2 | V78: 1 | X78: 3 | Y78: 2
C79: 1974-06-19 | D79: Argentinien | E79: Italien | F79: 1 | G79: 1 | I79: Stuttgart
C81: 1974-06-23 | D81: Argentinien | E81: Haiti | F81: 4 | G81: 1 | I81: München
C83: 1974-06-23 | D83: Polen | E83: Italien | F83: 2 | G83: 1 | I83: Stuttgart
F84: ( | G84: )
C86: Spiele | D86: gew | E86: unent | F86: verl | G86: Tore+ | H86: Tore- | I86: Punkte+ | J86: Punkte-
B87: Italien
B88: Haiti
B89: Polen
B90: Argentinien
F93: Gruppe A:
C95: 1974-06-26 | D95: Niederlande | E95: Argentinien | F95: 4 | G95: 0 | I95: Gelsenkirchen | S95: Niederlande | T95: Argentinien | U95: 4 | V95: 0 | X95: =(IF(U95>V95,3,IF(U95=V95,1,2))) -> 3 | Y95: =(IF(V95>U95,3,IF(U95=V95,1,2))) -> 2
S96: Brasilien | T96: DDR | U96: 1 | V96: 0 | X96: 3 | Y96: 2
C97: 1974-06-26 | D97: Brasilien | E97: DDR | F97: 1 | G97: 0 | I97: Hannover | S97: Niederlande | T97: DDR | U97: 2 | V97: 0 | X97: 3 | Y97: 2
S98: Brasilien | T98: Argentinien | U98: 2 | V98: 1 | X98: 3 | Y98: 2
C99: 1974-06-30 | D99: Niederlande | E99: DDR | F99: 2 | G99: 0 | I99: Gelsenkirchen | S99: Argentinien | T99: DDR | U99: 1 | V99: 1 | X99: 1 | Y99: 1
S100: Niederlande | T100: Brasilien | U100: 2 | V100: 0 | X100: 3 | Y100: 2
C101: 1974-06-30 | D101: Brasilien | E101: Argentinien | F101: 2 | G101: 1 | I101: Hannover
C103: 1974-07-03 | D103: Argentinien | E103: DDR | F103: 1 | G103: 1 | I103: Gelsenkirchen
C105: 1974-07-03 | D105: Niederlande | E105: Brasilien | F105: 2 | G105: 0 | I105: Dortmund
F106: ( | G106: )
C108: Spiele | D108: gew | E108: unent | F108: verl | G108: Tore+ | H108: Tore- | I108: Punkte+ | J108: Punkte-
B109: Niederlande
B110: Argentinien
B111: Brasilien
B112: DDR
F115: Gruppe B:
C117: 1974-06-26 | D117: BRD | E117: Jugoslawien | F117: 2 | G117: 0 | I117: Düsseldorf | S117: BRD | T117: Jugoslawien | U117: 2 | V117: 0 | X117: =(IF(U117>V117,3,IF(U117=V117,1,2))) -> 3 | Y117: =(IF(V117>U117,3,IF(U117=V117,1,2))) -> 2
S118: Polen | T118: Schweden | U118: 1 | V118: 0 | X118: 3 | Y118: 2
C119: 1974-06-26 | D119: Polen | E119: Schweden | F119: 1 | G119: 0 | I119: Stuttgart | S119: Polen | T119: Jugoslawien | U119: 2 | V119: 1 | X119: 3 | Y119: 2
S120: BRD | T120: Schweden | U120: 4 | V120: 2 | X120: 3 | Y120: 2
C121: 1974-06-30 | D121: Polen | E121: Jugoslawien | F121: 2 | G121: 1 | I121: Frankfurt | S121: BRD | T121: Polen | U121: 1 | V121: 0 | X121: =(IF(U121>V121,3,IF(U121=V121,1,2))) -> 3 | Y121: =(IF(V121>U121,3,IF(U121=V121,1,2))) -> 2
S122: Schweden | T122: Jugoslawien | U122: 2 | V122: 1 | X122: =(IF(U122>V122,3,IF(U122=V122,1,2))) -> 3 | Y122: =(IF(V122>U122,3,IF(U122=V122,1,2))) -> 2
C123: 1974-06-30 | D123: BRD | E123: Schweden | F123: 4 | G123: 2 | I123: Düsseldorf
C125: 1974-07-03 | D125: BRD | E125: Polen | F125: 1 | G125: 0 | I125: Frankfurt
C127: 1974-07-03 | D127: Schweden | E127: Jugoslawien | F127: 2 | G127: 1 | I127: Düsseldorf
F128: ( | G128: )
C130: Spiele | D130: gew | E130: unent | F130: verl | G130: Tore+ | H130: Tore- | I130: Punkte+ | J130: Punkte-
B131: BRD
B132: Jugoslawien
B133: Polen
B134: Schweden
C137: Spiel um Platz 3 am 6. Juli 1974 in München
D139: Brasilien | E139: Polen | F139: 0 | G139: 1 | S139: Brasilien | T139: Polen | U139: 0 | V139: 1 | X139: =(IF(U139>V139,3,IF(U139=V139,1,2))) -> 2 | Y139: =(IF(V139>U139,3,IF(U139=V139,1,2))) -> 3
F140: (0 | G140: 0)
C146: Endspiel am 7. Juli 1974 in München
D148: Niederlande | E148: BRD | F148: 1 | G148: 2 | S148: Niederlande | T148: BRD | U148: 1 | V148: 2 | X148: =(IF(U148>V148,3,IF(U148=V148,1,2))) -> 2 | Y148: =(IF(V148>U148,3,IF(U148=V148,1,2))) -> 3
F149: (1 | G149: 2)
A155: Auswertung | B155: Nation | C155: Spiele | D155: gew | E155: unent | F155: verl | G155: Tore+ | H155: Tore- | I155: Punkte+ | J155: Punkte-
B156: Polen | C156: =COUNTIF($S$12:$T$148,"Polen") -> 7 | D156: =SUMPRODUCT(($S$12:$T$148=B156)*($X$12:$Y$148=3)) -> 6 | E156: =SUMPRODUCT(($S$12:$T$148=B156)*($X$12:$Y$148=1)) -> 0 | F156: =SUMPRODUCT(($S$12:$T$148=B156)*($X$12:$Y$148=2)) -> 1 | G156: =SUMPRODUCT(($S$12:$S$148=B156)*($U$12:$U$148))+SUMPRODUCT(($T$12:$T$148=B156)*($V$12:$V$148)) -> 16 | H156: =SUMPRODUCT(($S$12:$S$148=B156)*($V$12:$V$148))+SUMPRODUCT(($T$12:$T$148=B156)*($U$12:$U$148)) -> 5 | I156: =(D156*2)+E156 -> 12 | J156: =(F156*2)+E156 -> 2
B157: BRD | C157: =COUNTIF($S$12:$T$148,"BRD") -> 7 | D157: 6 | E157: 0 | F157: 1 | G157: 13 | H157: 4 | I157: 12 | J157: 2
B158: Niederlande | C158: =COUNTIF($S$12:$T$148,"Niederlande") -> 7 | D158: 5 | E158: 1 | F158: 1 | G158: 15 | H158: 3 | I158: 11 | J158: 3
B159: Brasilien | C159: =COUNTIF($S$12:$T$148,"Brasilien") -> 7 | D159: 3 | E159: 2 | F159: 2 | G159: 6 | H159: 4 | I159: 8 | J159: 6
B160: Schweden | C160: =COUNTIF($S$12:$T$148,"Schweden") -> 6 | D160: 2 | E160: 2 | F160: 2 | G160: 7 | H160: 6 | I160: 6 | J160: 6
B161: DDR | C161: =COUNTIF($S$12:$T$148,"DDR") -> 6 | D161: 2 | E161: 2 | F161: 2 | G161: 5 | H161: 5 | I161: 6 | J161: 6
B162: Schottland | C162: =COUNTIF($S$12:$T$148,"Schottland") -> 3 | D162: 1 | E162: 2 | F162: 0 | G162: 3 | H162: 1 | I162: 4 | J162: 2
B163: Jugoslawien | C163: =COUNTIF($S$12:$T$148,"Jugoslawien") -> 6 | D163: 1 | E163: 2 | F163: 3 | G163: 12 | H163: 7 | I163: 4 | J163: 8
B164: Argentinien | C164: =COUNTIF($S$12:$T$148,"Argentinien") -> 6 | D164: 1 | E164: 2 | F164: 3 | G164: 9 | H164: 12 | I164: 4 | J164: 8
B165: Italien | C165: =COUNTIF($S$12:$T$148,"Italien") -> 3 | D165: 1 | E165: 1 | F165: 1 | G165: 5 | H165: 4 | I165: 3 | J165: 3
B166: Bulgarien | C166: =COUNTIF($S$12:$T$148,"Bulgarien") -> 3 | D166: 0 | E166: 2 | F166: 1 | G166: 2 | H166: 5 | I166: 2 | J166: 4
B167: Chile | C167: =COUNTIF($S$12:$T$148,"Chile") -> 3 | D167: 0 | E167: 2 | F167: 1 | G167: 1 | H167: 2 | I167: 2 | J167: 4
B168: Uruguay | C168: =COUNTIF($S$12:$T$148,"Uruguay") -> 3 | D168: 0 | E168: 1 | F168: 2 | G168: 1 | H168: 6 | I168: 1 | J168: 5
B169: Australien | C169: =COUNTIF($S$12:$T$148,"Australien") -> 3 | D169: 0 | E169: 1 | F169: 2 | G169: 0 | H169: 5 | I169: 1 | J169: 5
B170: Haiti | C170: =COUNTIF($S$12:$T$148,"Haiti") -> 3 | D170: 0 | E170: 0 | F170: 3 | G170: 2 | H170: 14 | I170: 0 | J170: 6
B171: Zaire | C171: =COUNTIF($S$12:$T$148,"Zaire") -> 3 | D171: 0 | E171: 0 | F171: 3 | G171: 0 | H171: 14 | I171: 0 | J171: 6

Sheet 1978
S1: 1 | T1: 2 | U1: 3 | V1: 4 | W1: 5 | X1: 6 | Y1: 7
A2: 11. WM 1978 in Argentinien
A4: 1. - 25. Juni 1978
A5: Teilnehmende Nationen: 16 --- Bewerbungen: 106
F10: Gruppe 1
C12: 1978-06-02 | D12: Frankreich | E12: Italien | F12: 1 | G12: 2 | I12: Mar del Plata | S12: Frankreich | T12: Italien | U12: 1 | V12: 2 | X12: =(IF(U12>V12,3,IF(U12=V12,1,2))) -> 2 | Y12: =(IF(V12>U12,3,IF(U12=V12,1,2))) -> 3 | AA12: Argentinien
S13: Ungarn | T13: Argentinien | U13: 1 | V13: 2 | X13: 2 | Y13: 3 | AA13: Brasilien
C14: 1978-06-02 | D14: Ungarn | E14: Argentinien | F14: 1 | G14: 2 | I14: Buenos Aires | S14: Italien | T14: Ungarn | U14: 3 | V14: 1 | X14: 3 | Y14: 2 | AA14: Italien
S15: Argentinien | T15: Frankreich | U15: 2 | V15: 1 | X15: 3 | Y15: 2 | AA15: Niederlande
C16: 1978-06-06 | D16: Italien | E16: Ungarn | F16: 3 | G16: 1 | I16: Mar del Plata | S16: Frankreich | T16: Ungarn | U16: 3 | V16: 1 | X16: 3 | Y16: 2 | AA16: Polen
S17: Italien | T17: Argentinien | U17: 1 | V17: 0 | X17: 3 | Y17: 2 | AA17: BRD
C18: 1978-06-06 | D18: Argentinien | E18: Frankreich | F18: 2 | G18: 1 | I18: Buenos Aires | AA18: Österreich
AA19: Peru
C20: 1978-06-10 | D20: Frankreich | E20: Ungarn | F20: 3 | G20: 1 | I20: Mar del Plata | AA20: Schottland
AA21: Tunesien
C22: 1978-06-10 | D22: Italien | E22: Argentinien | F22: 1 | G22: 0 | I22: Buenos Aires | AA22: Spanien
F23: ( | G23: ) | AA23: Frankreich
AA24: Iran
C25: Spiele | D25: gew | E25: unent | F25: verl | G25: Tore+ | H25: Tore- | I25: Punkte+ | J25: Punkte- | AA25: Schweden
B26: Frankreich | AA26: Ungarn
B27: Italien | AA27: Mexiko
B28: Ungarn
B29: Argentinien
F32: Gruppe 2
C34: 1978-06-01 | D34: BRD | E34: Polen | F34: 0 | G34: 0 | I34: Buenos Aires | S34: BRD | T34: Polen | U34: 0 | V34: 0 | X34: =(IF(U34>V34,3,IF(U34=V34,1,2))) -> 1 | Y34: =(IF(V34>U34,3,IF(U34=V34,1,2))) -> 1
C35: 1978-06-02 | D35: Tunesien | E35: Mexiko | F35: 3 | G35: 1 | I35: Rosario | S35: Tunesien | T35: Mexiko | U35: 3 | V35: 1 | X35: 3 | Y35: 2
S36: Mexiko | T36: BRD | U36: 0 | V36: 6 | X36: 2 | Y36: 3
C37: 1978-06-06 | D37: Mexiko | E37: BRD | F37: 0 | G37: 6 | I37: Córdoba | S37: Polen | T37: Tunesien | U37: 1 | V37: 0 | X37: 3 | Y37: 2
S38: Tunesien | T38: BRD | U38: 0 | V38: 0 | X38: 1 | Y38: 1
C39: 1978-06-06 | D39: Polen | E39: Tunesien | F39: 1 | G39: 0 | I39: Rosario | S39: Mexiko | T39: Polen | U39: 1 | V39: 3 | X39: 2 | Y39: 3
C41: 1978-06-10 | D41: Tunesien | E41: BRD | F41: 0 | G41: 0 | I41: Córdoba
C42: 1978-06-10 | D42: Mexiko | E42: Polen | F42: 1 | G42: 3 | I42: Rosario
F43: ( | G43: )
C45: Spiele | D45: gew | E45: unent | F45: verl | G45: Tore+ | H45: Tore- | I45: Punkte+ | J45: Punkte-
B46: BRD
B47: Polen
B48: Tunesien
B49: Mexiko
F52: Gruppe 3
C54: 1978-06-03 | D54: Spanien | E54: Österreich | F54: 1 | G54: 2 | I54: Buenos Aires (Vélez) | S54: Spanien | T54: Österreich | U54: 1 | V54: 2 | X54: =(IF(U54>V54,3,IF(U54=V54,1,2))) -> 2 | Y54: =(IF(V54>U54,3,IF(U54=V54,1,2))) -> 3
S55: Schweden | T55: Brasilien | U55: 1 | V55: 1 | X55: 1 | Y55: 1
C56: 1978-06-03 | D56: Schweden | E56: Brasilien | F56: 1 | G56: 1 | I56: Mar del Plata | S56: Österreich | T56: Schweden | U56: 1 | V56: 0 | X56: 3 | Y56: 2
S57: Brasilien | T57: Spanien | U57: 0 | V57: 0 | X57: 1 | Y57: 1
C58: 1978-06-07 | D58: Österreich | E58: Schweden | F58: 1 | G58: 0 | I58: Buenos Aires (Vélez) | S58: Schweden | T58: Spanien | U58: 0 | V58: 1 | X58: 2 | Y58: 3
S59: Brasilien | T59: Österreich | U59: 1 | V59: 0 | X59: 3 | Y59: 2
C60: 1978-06-07 | D60: Brasilien | E60: Spanien | F60: 0 | G60: 0 | I60: Mar del Plata
C61: 1978-06-11 | D61: Schweden | E61: Spanien | F61: 0 | G61: 1 | I61: Buenos Aires (Vélez)
C63: 1978-06-11 | D63: Brasilien | E63: Österreich | F63: 1 | G63: 0 | I63: Mar del Plata
F64: ( | G64: )
C66: Spiele | D66: gew | E66: unent | F66: verl | G66: Tore+ | H66: Tore- | I66: Punkte+ | J66: Punkte-
B67: Spanien
B68: Österreich
B69: Schweden
B70: Brasilien
F73: Gruppe 4
C75: 1978-06-03 | D75: Peru | E75: Schottland | F75: 3 | G75: 1 | I75: Córdoba | S75: Peru | T75: Schottland | U75: 3 | V75: 1 | X75: =(IF(U75>V75,3,IF(U75=V75,1,2))) -> 3 | Y75: =(IF(V75>U75,3,IF(U75=V75,1,2))) -> 2
S76: Iran | T76: Niederlande | U76: 0 | V76: 3 | X76: =(IF(U76>V76,3,IF(U76=V76,1,2))) -> 2 | Y76: =(IF(V76>U76,3,IF(U76=V76,1,2))) -> 3
C77: 1978-06-03 | D77: Iran | E77: Niederlande | F77: 0 | G77: 3 | I77: Mendoza | S77: Schottland | T77: Iran | U77: 1 | V77: 1 | X77: 1 | Y77: 1
S78: Niederlande | T78: Peru | U78: 0 | V78: 0 | X78: 1 | Y78: 1
C79: 7.Juni 1978 | D79: Schottland | E79: Iran | F79: 1 | G79: 1 | I79: Córdoba | S79: Peru | T79: Iran | U79: 4 | V79: 1 | X79: 3 | Y79: 2
S80: Schottland | T80: Niederlande | U80: 3 | V80: 2 | X80: 3 | Y80: 2
C81: 1978-06-07 | D81: Niederlande | E81: Peru | F81: 0 | G81: 0 | I81: Mendoza
C82: 1978-06-11 | D82: Peru | E82: Iran | F82: 4 | G82: 1 | I82: Córdoba
C84: 1978-06-11 | D84: Schottland | E84: Niederlande | F84: 3 | G84: 2 | I84: Mendoza
F85: ( | G85: )
C87: Spiele | D87: gew | E87: unent | F87: verl | G87: Tore+ | H87: Tore- | I87: Punkte+ | J87: Punkte-
B88: Peru
B89: Schottland
B90: Iran
B91: Niederlande
F94: Gruppe A:
C96: 1978-06-14 | D96: Österreich | E96: Niederlande | F96: 1 | G96: 5 | I96: Córdoba | S96: Österreich | T96: Niederlande | U96: 1 | V96: 5 | X96: =(IF(U96>V96,3,IF(U96=V96,1,2))) -> 2 | Y96: =(IF(V96>U96,3,IF(U96=V96,1,2))) -> 3
S97: BRD | T97: Italien | U97: 0 | V97: 0 | X97: 1 | Y97: 1
C98: 1978-06-14 | D98: BRD | E98: Italien | F98: 0 | G98: 0 | I98: Buenos Aires | S98: Niederlande | T98: BRD | U98: 2 | V98: 2 | X98: 1 | Y98: 1
C99: 1978-06-18 | D99: Niederlande | E99: BRD | F99: 2 | G99: 2 | I99: Córdoba | S99: Italien | T99: Österreich | U99: 1 | V99: 0 | X99: 3 | Y99: 2
S100: Österreich | T100: BRD | U100: 3 | V100: 2 | X100: 3 | Y100: 2
C101: 1978-06-18 | D101: Italien | E101: Österreich | F101: 1 | G101: 0 | I101: Buenos Aires | S101: Niederlande | T101: Italien | U101: 2 | V101: 1 | X101: 3 | Y101: 2
C103: 1978-06-21 | D103: Österreich | E103: BRD | F103: 3 | G103: 2 | I103: Córdoba
C105: 1978-06-21 | D105: Niederlande | E105: Italien | F105: 2 | G105: 1 | I105: Buenos Aires
F106: ( | G106: )
C108: Spiele | D108: gew | E108: unent | F108: verl | G108: Tore+ | H108: Tore- | I108: Punkte+ | J108: Punkte-
B109: Österreich
B110: Niederlande
B111: BRD
B112: Italien
F115: Gruppe B:
C117: 1978-06-14 | D117: Brasilien | E117: Peru | F117: 3 | G117: 0 | I117: Mendoza | S117: Brasilien | T117: Peru | U117: 3 | V117: 0 | X117: =(IF(U117>V117,3,IF(U117=V117,1,2))) -> 3 | Y117: =(IF(V117>U117,3,IF(U117=V117,1,2))) -> 2
S118: Polen | T118: Argentinien | U118: 0 | V118: 2 | X118: 2 | Y118: 3
C119: 1978-06-14 | D119: Polen | E119: Argentinien | F119: 0 | G119: 2 | I119: Rosario | S119: Peru | T119: Polen | U119: 0 | V119: 1 | X119: 2 | Y119: 3
S120: Argentinien | T120: Brasilien | U120: 0 | V120: 0 | X120: 1 | Y120: 1
C121: 1978-06-18 | D121: Peru | E121: Polen | F121: 0 | G121: 1 | I121: Mendoza | S121: Brasilien | T121: Polen | U121: 3 | V121: 1 | X121: 3 | Y121: 2
S122: Peru | T122: Argentinien | U122: 0 | V122: 6 | X122: 2 | Y122: 3
C123: 1978-06-18 | D123: Argentinien | E123: Brasilien | F123: 0 | G123: 0 | I123: Rosario
C124: 1978-06-21 | D124: Brasilien | E124: Polen | F124: 3 | G124: 1 | I124: Mendoza
C126: 1978-06-21 | D126: Peru | E126: Argentinien | F126: 0 | G126: 6 | I126: Rosario
F127: ( | G127: )
C129: Spiele | D129: gew | E129: unent | F129: verl | G129: Tore+ | H129: Tore- | I129: Punkte+ | J129: Punkte-
B130: Brasilien
B131: Peru
B132: Polen
B133: Argentinien
C136: Spiel um Platz 3 am 24. Juni 1978 in Buenos Aires
D138: Italien | E138: Brasilien | F138: 1 | G138: 2 | S138: Italien | T138: Brasilien | U138: 1 | V138: 2 | X138: =(IF(U138>V138,3,IF(U138=V138,1,2))) -> 2 | Y138: =(IF(V138>U138,3,IF(U138=V138,1,2))) -> 3
F139: (1 | G139: 0)
C145: Endspiel am 25. Juni 1978 in Buenos Aires
D147: Argentinien | E147: Niederlande | F147: 3 | G147: 1 | H147: n.V. | S147: Argentinien | T147: Niederlande | U147: 3 | V147: 1 | X147: =(IF(U147>V147,3,IF(U147=V147,1,2))) -> 3 | Y147: =(IF(V147>U147,3,IF(U147=V147,1,2))) -> 2
F148: (1 | G148: 1)
F149: (1 | G149: 0)
A155: Auswertung | B155: Nation | C155: Spiele | D155: gew | E155: unent | F155: verl | G155: Tore+ | H155: Tore- | I155: Punkte+ | J155: Punkte-
B156: Argentinien | C156: =COUNTIF($S$12:$T$147,"Argentinien") -> 7 | D156: =SUMPRODUCT(($S$12:$T$147=B156)*($X$12:$Y$147=3)) -> 5 | E156: =SUMPRODUCT(($S$12:$T$147=B156)*($X$12:$Y$147=1)) -> 1 | F156: =SUMPRODUCT(($S$12:$T$147=B156)*($X$12:$Y$147=2)) -> 1 | G156: =SUMPRODUCT(($S$12:$S$147=B156)*($U$12:$U$147))+SUMPRODUCT(($T$12:$T$147=B156)*($V$12:$V$147)) -> 15 | H156: =SUMPRODUCT(($S$12:$S$147=B156)*($V$12:$V$147))+SUMPRODUCT(($T$12:$T$147=B156)*($U$12:$U$147)) -> 4 | I156: =(D156*2)+E156 -> 11 | J156: =(F156*2)+E156 -> 3
B157: Brasilien | C157: =COUNTIF($S$12:$T$147,"Brasilien") -> 7 | D157: 4 | E157: 3 | F157: 0 | G157: 10 | H157: 3 | I157: 11 | J157: 3
B158: Italien | C158: =COUNTIF($S$12:$T$147,"Italien") -> 7 | D158: 4 | E158: 1 | F158: 2 | G158: 9 | H158: 6 | I158: 9 | J158: 5
B159: Niederlande | C159: =COUNTIF($S$12:$T$147,"Niederlande") -> 7 | D159: 3 | E159: 2 | F159: 2 | G159: 15 | H159: 10 | I159: 8 | J159: 6
B160: Polen | C160: =COUNTIF($S$12:$T$147,"Polen") -> 6 | D160: 3 | E160: 1 | F160: 2 | G160: 6 | H160: 6 | I160: 7 | J160: 5
B161: BRD | C161: =COUNTIF($S$12:$T$147,"BRD") -> 6 | D161: 1 | E161: 4 | F161: 1 | G161: 10 | H161: 5 | I161: 6 | J161: 6
B162: Österreich | C162: =COUNTIF($S$12:$T$147,"Österreich") -> 6 | D162: 3 | E162: 0 | F162: 3 | G162: 7 | H162: 10 | I162: 6 | J162: 6
B163: Peru | C163: =COUNTIF($S$12:$T$147,"Peru") -> 6 | D163: 2 | E163: 1 | F163: 3 | G163: 7 | H163: 12 | I163: 5 | J163: 7
B164: Schottland | C164: =COUNTIF($S$12:$T$147,"Schottland") -> 3 | D164: 1 | E164: 1 | F164: 1 | G164: 5 | H164: 6 | I164: 3 | J164: 3
B165: Tunesien | C165: =COUNTIF($S$12:$T$147,"Tunesien") -> 3 | D165: 1 | E165: 1 | F165: 1 | G165: 3 | H165: 2 | I165: 3 | J165: 3
B166: Spanien | C166: =COUNTIF($S$12:$T$147,"Spanien") -> 3 | D166: 1 | E166: 1 | F166: 1 | G166: 2 | H166: 2 | I166: 3 | J166: 3
B167: Frankreich | C167: =COUNTIF($S$12:$T$147,"Frankreich") -> 3 | D167: 1 | E167: 0 | F167: 2 | G167: 5 | H167: 5 | I167: 2 | J167: 4
B168: Iran | C168: =COUNTIF($S$12:$T$147,"Iran") -> 3 | D168: 0 | E168: 1 | F168: 2 | G168: 2 | H168: 8 | I168: 1 | J168: 5
B169: Schweden | C169: =COUNTIF($S$12:$T$147,"Schweden") -> 3 | D169: 0 | E169: 1 | F169: 2 | G169: 1 | H169: 3 | I169: 1 | J169: 5
B170: Ungarn | C170: =COUNTIF($S$12:$T$147,"Ungarn") -> 3 | D170: 0 | E170: 0 | F170: 3 | G170: 3 | H170: 8 | I170: 0 | J170: 6
B171: Mexiko | C171: =COUNTIF($S$12:$T$147,"Mexiko") -> 3 | D171: 0 | E171: 0 | F171: 3 | G171: 2 | H171: 12 | I171: 0 | J171: 6

Sheet 1982
S1: 1 | T1: 2 | U1: 3 | V1: 4 | W1: 5 | X1: 6 | Y1: 7
A2: 12. WM 1982 in Spanien
A4: 13. Juni-11. Juli 1982
A5: Teilnehmende Nationen: 24 --- Bewerbungen: 107
F10: Gruppe 1
C12: 1982-06-14 | D12: Italien | E12: Polen | F12: 0 | G12: 0 | I12: Vigo | S12: Italien | T12: Polen | U12: 0 | V12: 0 | X12: =(IF(U12>V12,3,IF(U12=V12,1,2))) -> 1 | Y12: =(IF(V12>U12,3,IF(U12=V12,1,2))) -> 1 | AA12: Italien
C13: 1982-06-15 | D13: Peru | E13: Kamerun | F13: 0 | G13: 0 | I13: La Coruña | S13: Peru | T13: Kamerun | U13: 0 | V13: 0 | X13: 1 | Y13: 1 | AA13: BRD
C14: 1982-06-18 | D14: Italien | E14: Peru | F14: 1 | G14: 1 | I14: Vigo | S14: Italien | T14: Peru | U14: 1 | V14: 1 | X14: 1 | Y14: 1 | AA14: Polen
F15: (1 | G15: 0) | S15: Polen | T15: Kamerun | U15: 0 | V15: 0 | X15: 1 | Y15: 1 | AA15: Brasilien
C16: 1982-06-19 | D16: Polen | E16: Kamerun | F16: 0 | G16: 0 | I16: La Coruña | S16: Polen | T16: Peru | U16: 5 | V16: 1 | X16: =(IF(U16>V16,3,IF(U16=V16,1,2))) -> 3 | Y16: =(IF(V16>U16,3,IF(U16=V16,1,2))) -> 2 | AA16: England
C17: 1982-06-22 | D17: Polen | E17: Peru | F17: 5 | G17: 1 | I17: La Coruña | S17: Italien | T17: Kamerun | U17: 1 | V17: 1 | X17: 1 | Y17: 1 | AA17: Frankreich
F18: (0 | G18: 0) | AA18: UdSSR
C19: 1982-06-23 | D19: Italien | E19: Kamerun | F19: 1 | G19: 1 | I19: Vigo | AA19: Österreich
F20: (0 | G20: 0) | AA20: Nordirland
AA21: Belgien
C22: Spiele | D22: gew | E22: unent | F22: verl | G22: Tore+ | H22: Tore- | I22: Punkte+ | J22: Punkte- | AA22: Algerien
B23: Polen | C23: =COUNTIF($S$12:$T$17,"Polen") -> 3 | D23: =SUMPRODUCT(($S$12:$T$17=B23)*($X$12:$Y$17=3)) -> 1 | E23: =SUMPRODUCT(($S$12:$T$17=B23)*($X$12:$Y$17=1)) -> 2 | F23: =SUMPRODUCT(($S$12:$T$17=B23)*($X$12:$Y$17=2)) -> 0 | G23: =SUMPRODUCT(($S$12:$S$17=B23)*($U$12:$U$17))+SUMPRODUCT(($T$12:$T$17=B23)*($V$12:$V$17)) -> 5 | H23: =SUMPRODUCT(($S$12:$S$17=B23)*($V$12:$V$17))+SUMPRODUCT(($T$12:$T$17=B23)*($U$12:$U$17)) -> 1 | I23: =(D23*2)+E23 -> 4 | J23: =(F23*2)+E23 -> 2 | AA23: Argentinien
B24: Italien | C24: =COUNTIF($S$12:$T$17,"Italien") -> 3 | D24: =SUMPRODUCT(($S$12:$T$17=B24)*($X$12:$Y$17=3)) -> 0 | E24: =SUMPRODUCT(($S$12:$T$17=B24)*($X$12:$Y$17=1)) -> 3 | F24: =SUMPRODUCT(($S$12:$T$17=B24)*($X$12:$Y$17=2)) -> 0 | G24: =SUMPRODUCT(($S$12:$S$17=B24)*($U$12:$U$17))+SUMPRODUCT(($T$12:$T$17=B24)*($V$12:$V$17)) -> 2 | H24: =SUMPRODUCT(($S$12:$S$17=B24)*($V$12:$V$17))+SUMPRODUCT(($T$12:$T$17=B24)*($U$12:$U$17)) -> 2 | I24: =(D24*2)+E24 -> 3 | J24: =(F24*2)+E24 -> 3 | AA24: Spanien
B25: Kamerun | C25: =COUNTIF($S$12:$T$17,"Kamerun") -> 3 | D25: =SUMPRODUCT(($S$12:$T$17=B25)*($X$12:$Y$17=3)) -> 0 | E25: =SUMPRODUCT(($S$12:$T$17=B25)*($X$12:$Y$17=1)) -> 3 | F25: =SUMPRODUCT(($S$12:$T$17=B25)*($X$12:$Y$17=2)) -> 0 | G25: =SUMPRODUCT(($S$12:$S$17=B25)*($U$12:$U$17))+SUMPRODUCT(($T$12:$T$17=B25)*($V$12:$V$17)) -> 1 | H25: =SUMPRODUCT(($S$12:$S$17=B25)*($V$12:$V$17))+SUMPRODUCT(($T$12:$T$17=B25)*($U$12:$U$17)) -> 1 | I25: =(D25*2)+E25 -> 3 | J25: =(F25*2)+E25 -> 3 | AA25: Ungarn
B26: Peru | C26: =COUNTIF($S$12:$T$17,"Peru") -> 3 | D26: =SUMPRODUCT(($S$12:$T$17=B26)*($X$12:$Y$17=3)) -> 0 | E26: =SUMPRODUCT(($S$12:$T$17=B26)*($X$12:$Y$17=1)) -> 2 | F26: =SUMPRODUCT(($S$12:$T$17=B26)*($X$12:$Y$17=2)) -> 1 | G26: =SUMPRODUCT(($S$12:$S$17=B26)*($U$12:$U$17))+SUMPRODUCT(($T$12:$T$17=B26)*($V$12:$V$17)) -> 2 | H26: =SUMPRODUCT(($S$12:$S$17=B26)*($V$12:$V$17))+SUMPRODUCT(($T$12:$T$17=B26)*($U$12:$U$17)) -> 6 | I26: =(D26*2)+E26 -> 2 | J26: =(F26*2)+E26 -> 4 | AA26: Schottland
AA27: Jugoslawien
AA28: Kamerun
F29: Gruppe 2 | AA29: Honduras
AA30: CSSR
C31: 1982-06-16 | D31: BRD | E31: Algerien | F31: 1 | G31: 2 | I31: Gijón | S31: BRD | T31: Algerien | U31: 1 | V31: 2 | X31: =(IF(U31>V31,3,IF(U31=V31,1,2))) -> 2 | Y31: =(IF(V31>U31,3,IF(U31=V31,1,2))) -> 3 | AA31: Peru
F32: (0 | G32: 0) | S32: Chile | T32: Österreich | U32: 0 | V32: 1 | X32: 2 | Y32: 3 | AA32: Kuwait
C33: 1982-06-17 | D33: Chile | E33: Österreich | F33: 0 | G33: 1 | I33: Oviedo | S33: BRD | T33: Chile | U33: 4 | V33: 1 | X33: 3 | Y33: 2 | AA33: Chile
F34: (0 | G34: 1) | S34: Algerien | T34: Österreich | U34: 0 | V34: 2 | X34: 2 | Y34: 3 | AA34: Neuseeland
C35: 1982-06-20 | D35: BRD | E35: Chile | F35: 4 | G35: 1 | I35: Gijón | S35: Algerien | T35: Chile | U35: 3 | V35: 2 | X35: 3 | Y35: 2 | AA35: El Salvador
F36: (1 | G36: 0) | S36: BRD | T36: Österreich | U36: 1 | V36: 0 | X36: 3 | Y36: 2
C37: 1982-06-21 | D37: Algerien | E37: Österreich | F37: 0 | G37: 2 | I37: Oviedo
F38: (0 | G38: 0)
C39: 1982-06-24 | D39: Algerien | E39: Chile | F39: 3 | G39: 2 | I39: Oviedo
F40: (3 | G40: 0)
C41: 1982-06-25 | D41: BRD | E41: Österreich | F41: 1 | G41: 0 | I41: Gijón
F42: (1 | G42: 0)
C44: Spiele | D44: gew | E44: unent | F44: verl | G44: Tore+ | H44: Tore- | I44: Punkte+ | J44: Punkte-
B45: BRD | C45: =COUNTIF($S$31:$T$36,"BRD") -> 3 | D45: =SUMPRODUCT(($S$31:$T$36=B45)*($X$31:$Y$36=3)) -> 2 | E45: =SUMPRODUCT(($S$31:$T$36=B45)*($X$31:$Y$36=1)) -> 0 | F45: =SUMPRODUCT(($S$31:$T$36=B45)*($X$31:$Y$36=2)) -> 1 | G45: =SUMPRODUCT(($S$31:$S$36=B45)*($U$31:$U$36))+SUMPRODUCT(($T$31:$T$36=B45)*($V$31:$V$36)) -> 6 | H45: =SUMPRODUCT(($S$31:$S$36=B45)*($V$31:$V$36))+SUMPRODUCT(($T$31:$T$36=B45)*($U$31:$U$36)) -> 3 | I45: =(D45*2)+E45 -> 4 | J45: =(F45*2)+E45 -> 2
B46: Algerien | C46: =COUNTIF($S$31:$T$36,"Algerien") -> 3 | D46: =SUMPRODUCT(($S$31:$T$36=B46)*($X$31:$Y$36=3)) -> 2 | E46: =SUMPRODUCT(($S$31:$T$36=B46)*($X$31:$Y$36=1)) -> 0 | F46: =SUMPRODUCT(($S$31:$T$36=B46)*($X$31:$Y$36=2)) -> 1 | G46: =SUMPRODUCT(($S$31:$S$36=B46)*($U$31:$U$36))+SUMPRODUCT(($T$31:$T$36=B46)*($V$31:$V$36)) -> 5 | H46: =SUMPRODUCT(($S$31:$S$36=B46)*($V$31:$V$36))+SUMPRODUCT(($T$31:$T$36=B46)*($U$31:$U$36)) -> 5 | I46: =(D46*2)+E46 -> 4 | J46: =(F46*2)+E46 -> 2
B47: Österreich | C47: =COUNTIF($S$31:$T$36,"Österreich") -> 3 | D47: =SUMPRODUCT(($S$31:$T$36=B47)*($X$31:$Y$36=3)) -> 2 | E47: =SUMPRODUCT(($S$31:$T$36=B47)*($X$31:$Y$36=1)) -> 0 | F47: =SUMPRODUCT(($S$31:$T$36=B47)*($X$31:$Y$36=2)) -> 1 | G47: =SUMPRODUCT(($S$31:$S$36=B47)*($U$31:$U$36))+SUMPRODUCT(($T$31:$T$36=B47)*($V$31:$V$36)) -> 3 | H47: =SUMPRODUCT(($S$31:$S$36=B47)*($V$31:$V$36))+SUMPRODUCT(($T$31:$T$36=B47)*($U$31:$U$36)) -> 1 | I47: =(D47*2)+E47 -> 4 | J47: =(F47*2)+E47 -> 2
B48: Chile | C48: =COUNTIF($S$31:$T$36,"Chile") -> 3 | D48: =SUMPRODUCT(($S$31:$T$36=B48)*($X$31:$Y$36=3)) -> 0 | E48: =SUMPRODUCT(($S$31:$T$36=B48)*($X$31:$Y$36=1)) -> 0 | F48: =SUMPRODUCT(($S$31:$T$36=B48)*($X$31:$Y$36=2)) -> 3 | G48: =SUMPRODUCT(($S$31:$S$36=B48)*($U$31:$U$36))+SUMPRODUCT(($T$31:$T$36=B48)*($V$31:$V$36)) -> 3 | H48: =SUMPRODUCT(($S$31:$S$36=B48)*($V$31:$V$36))+SUMPRODUCT(($T$31:$T$36=B48)*($U$31:$U$36)) -> 8 | I48: =(D48*2)+E48 -> 0 | J48: =(F48*2)+E48 -> 6
F51: Gruppe 3
C53: 1982-06-13 | D53: Argentinien | E53: Belgien | F53: 0 | G53: 1 | I53: Barcelona (Camp Nou) | S53: Argentinien | T53: Belgien | U53: 0 | V53: 1 | X53: =(IF(U53>V53,3,IF(U53=V53,1,2))) -> 2 | Y53: =(IF(V53>U53,3,IF(U53=V53,1,2))) -> 3
F54: (0 | G54: 0) | S54: Ungarn | T54: El Salvador | U54: 10 | V54: 1 | X54: =(IF(U54>V54,3,IF(U54=V54,1,2))) -> 3 | Y54: =(IF(V54>U54,3,IF(U54=V54,1,2))) -> 2
C55: 1982-06-15 | D55: Ungarn | E55: El Salvador | F55: 10 | G55: 1 | I55: Elche | S55: Argentinien | T55: Ungarn | U55: 4 | V55: 1 | X55: 3 | Y55: 2
F56: (3 | G56: 0) | S56: Belgien | T56: El Salvador | U56: 1 | V56: 0 | X56: 3 | Y56: 2
C57: 1982-06-18 | D57: Argentinien | E57: Ungarn | F57: 4 | G57: 1 | I57: Alicante | S57: Belgien | T57: Ungarn | U57: 1 | V57: 1 | X57: 1 | Y57: 1
F58: (2 | G58: 0) | S58: Argentinien | T58: El Salvador | U58: 2 | V58: 0 | X58: 3 | Y58: 2
C59: 1982-06-19 | D59: Belgien | E59: El Salvador | F59: 1 | G59: 0 | I59: Elche
F60: (1 | G60: 0)
C61: 1982-06-22 | D61: Belgien | E61: Ungarn | F61: 1 | G61: 1 | I61: Elche
F62: (0 | G62: 1)
C63: 1982-06-23 | D63: Argentinien | E63: El Salvador | F63: 2 | G63: 0 | I63: Alicante
F64: (1 | G64: 0)
C66: Spiele | D66: gew | E66: unent | F66: verl | G66: Tore+ | H66: Tore- | I66: Punkte+ | J66: Punkte-
B67: Belgien | C67: =COUNTIF($S$53:$T$58,"Belgien") -> 3 | D67: =SUMPRODUCT(($S$53:$T$58=B67)*($X$53:$Y$58=3)) -> 2 | E67: =SUMPRODUCT(($S$53:$T$58=B67)*($X$53:$Y$58=1)) -> 1 | F67: =SUMPRODUCT(($S$53:$T$58=B67)*($X$53:$Y$58=2)) -> 0 | G67: =SUMPRODUCT(($S$53:$S$58=B67)*($U$53:$U$58))+SUMPRODUCT(($T$53:$T$58=B67)*($V$53:$V$58)) -> 3 | H67: =SUMPRODUCT(($S$53:$S$58=B67)*($V$53:$V$58))+SUMPRODUCT(($T$53:$T$58=B67)*($U$53:$U$58)) -> 1 | I67: =(D67*2)+E67 -> 5 | J67: =(F67*2)+E67 -> 1
B68: Argentinien | C68: =COUNTIF($S$53:$T$58,"Argentinien") -> 3 | D68: =SUMPRODUCT(($S$53:$T$58=B68)*($X$53:$Y$58=3)) -> 2 | E68: =SUMPRODUCT(($S$53:$T$58=B68)*($X$53:$Y$58=1)) -> 0 | F68: =SUMPRODUCT(($S$53:$T$58=B68)*($X$53:$Y$58=2)) -> 1 | G68: =SUMPRODUCT(($S$53:$S$58=B68)*($U$53:$U$58))+SUMPRODUCT(($T$53:$T$58=B68)*($V$53:$V$58)) -> 6 | H68: =SUMPRODUCT(($S$53:$S$58=B68)*($V$53:$V$58))+SUMPRODUCT(($T$53:$T$58=B68)*($U$53:$U$58)) -> 2 | I68: =(D68*2)+E68 -> 4 | J68: =(F68*2)+E68 -> 2
B69: Ungarn | C69: =COUNTIF($S$53:$T$58,"Ungarn") -> 3 | D69: =SUMPRODUCT(($S$53:$T$58=B69)*($X$53:$Y$58=3)) -> 1 | E69: =SUMPRODUCT(($S$53:$T$58=B69)*($X$53:$Y$58=1)) -> 1 | F69: =SUMPRODUCT(($S$53:$T$58=B69)*($X$53:$Y$58=2)) -> 1 | G69: =SUMPRODUCT(($S$53:$S$58=B69)*($U$53:$U$58))+SUMPRODUCT(($T$53:$T$58=B69)*($V$53:$V$58)) -> 12 | H69: =SUMPRODUCT(($S$53:$S$58=B69)*($V$53:$V$58))+SUMPRODUCT(($T$53:$T$58=B69)*($U$53:$U$58)) -> 6 | I69: =(D69*2)+E69 -> 3 | J69: =(F69*2)+E69 -> 3
B70: El Salvador | C70: =COUNTIF($S$53:$T$58,"El Salvador") -> 3 | D70: =SUMPRODUCT(($S$53:$T$58=B70)*($X$53:$Y$58=3)) -> 0 | E70: =SUMPRODUCT(($S$53:$T$58=B70)*($X$53:$Y$58=1)) -> 0 | F70: =SUMPRODUCT(($S$53:$T$58=B70)*($X$53:$Y$58=2)) -> 3 | G70: =SUMPRODUCT(($S$53:$S$58=B70)*($U$53:$U$58))+SUMPRODUCT(($T$53:$T$58=B70)*($V$53:$V$58)) -> 1 | H70: =SUMPRODUCT(($S$53:$S$58=B70)*($V$53:$V$58))+SUMPRODUCT(($T$53:$T$58=B70)*($U$53:$U$58)) -> 13 | I70: =(D70*2)+E70 -> 0 | J70: =(F70*2)+E70 -> 6
F73: Gruppe 4
C75: 1982-06-16 | D75: England | E75: Frankreich | F75: 3 | G75: 1 | I75: Bilbao | S75: England | T75: Frankreich | U75: 3 | V75: 1 | X75: =(IF(U75>V75,3,IF(U75=V75,1,2))) -> 3 | Y75: =(IF(V75>U75,3,IF(U75=V75,1,2))) -> 2
F76: (1 | G76: 1) | S76: CSSR | T76: Kuwait | U76: 1 | V76: 1 | X76: =(IF(U76>V76,3,IF(U76=V76,1,2))) -> 1 | Y76: =(IF(V76>U76,3,IF(U76=V76,1,2))) -> 1
C77: 1982-06-17 | D77: CSSR | E77: Kuwait | F77: 1 | G77: 1 | I77: Valladolid | S77: England | T77: CSSR | U77: 2 | V77: 0 | X77: 3 | Y77: 2
F78: (1 | G78: 0) | S78: Frankreich | T78: Kuwait | U78: 4 | V78: 1 | X78: 3 | Y78: 2
C79: 1982-06-20 | D79: England | E79: CSSR | F79: 2 | G79: 0 | I79: Bilbao | S79: Frankreich | T79: CSSR | U79: 1 | V79: 1 | X79: 1 | Y79: 1
F80: (0 | G80: 0) | S80: England | T80: Kuwait | U80: 1 | V80: 0 | X80: 3 | Y80: 2
C81: 1982-06-21 | D81: Frankreich | E81: Kuwait | F81: 4 | G81: 1 | I81: Valladolid
F82: (2 | G82: 0)
C83: 1982-06-24 | D83: Frankreich | E83: CSSR | F83: 1 | G83: 1 | I83: Valladolid
F84: (0 | G84: 0)
C85: 1982-06-25 | D85: England | E85: Kuwait | F85: 1 | G85: 0 | I85: Bilbao
F86: (1 | G86: 0)
C88: Spiele | D88: gew | E88: unent | F88: verl | G88: Tore+ | H88: Tore- | I88: Punkte+ | J88: Punkte-
B89: England | C89: =COUNTIF($S$12:$T$17,"Polen") -> 3 | D89: =SUMPRODUCT(($S$12:$T$17=B89)*($X$12:$Y$17=3)) -> 0 | E89: =SUMPRODUCT(($S$12:$T$17=B89)*($X$12:$Y$17=1)) -> 0 | F89: =SUMPRODUCT(($S$12:$T$17=B89)*($X$12:$Y$17=2)) -> 0 | G89: =SUMPRODUCT(($S$12:$S$17=B89)*($U$12:$U$17))+SUMPRODUCT(($T$12:$T$17=B89)*($V$12:$V$17)) -> 0 | H89: =SUMPRODUCT(($S$12:$S$17=B89)*($V$12:$V$17))+SUMPRODUCT(($T$12:$T$17=B89)*($U$12:$U$17)) -> 0 | I89: =(D89*2)+E89 -> 0 | J89: =(F89*2)+E89 -> 0
B90: Frankreich
B91: CSSR
B92: Kuwait
F95: Gruppe 5
C97: 1982-06-16 | D97: Spanien | E97: Honduras | F97: 1 | G97: 1 | I97: Valencia | S97: Spanien | T97: Honduras | U97: 1 | V97: 1 | X97: =(IF(U97>V97,3,IF(U97=V97,1,2))) -> 1 | Y97: =(IF(V97>U97,3,IF(U97=V97,1,2))) -> 1
F98: (0 | G98: 1) | S98: Jugoslawien | T98: Nordirland | U98: 0 | V98: 0 | X98: 1 | Y98: 1
C99: 1982-06-17 | D99: Jugoslawien | E99: Nordirland | F99: 0 | G99: 0 | I99: Saragossa | S99: Spanien | T99: Jugoslawien | U99: 2 | V99: 1 | X99: 3 | Y99: 2
C100: 1982-06-20 | D100: Spanien | E100: Jugoslawien | F100: 2 | G100: 1 | I100: Valencia | S100: Honduras | T100: Nordirland | U100: 1 | V100: 1 | X100: 1 | Y100: 1
F101: (1 | G101: 1) | S101: Honduras | T101: Jugoslawien | U101: 0 | V101: 1 | X101: 2 | Y101: 3
C102: 1982-06-21 | D102: Honduras | E102: Nordirland | F102: 1 | G102: 1 | I102: Saragossa | S102: Spanien | T102: Nordirland | U102: 0 | V102: 1 | X102: 2 | Y102: 3
F103: (0 | G103: 1)
C104: 1982-06-24 | D104: Honduras | E104: Jugoslawien | F104: 0 | G104: 1 | I104: Saragossa
F105: (0 | G105: 0)
C106: 1982-06-25 | D106: Spanien | E106: Nordirland | F106: 0 | G106: 1 | I106: Valencia
F107: (0 | G107: 0)
C109: Spiele | D109: gew | E109: unent | F109: verl | G109: Tore+ | H109: Tore- | I109: Punkte+ | J109: Punkte-
B110: Spanien | C110: =COUNTIF($S$12:$T$17,"Polen") -> 3 | D110: =SUMPRODUCT(($S$12:$T$17=B110)*($X$12:$Y$17=3)) -> 0 | E110: =SUMPRODUCT(($S$12:$T$17=B110)*($X$12:$Y$17=1)) -> 0 | F110: =SUMPRODUCT(($S$12:$T$17=B110)*($X$12:$Y$17=2)) -> 0 | G110: =SUMPRODUCT(($S$12:$S$17=B110)*($U$12:$U$17))+SUMPRODUCT(($T$12:$T$17=B110)*($V$12:$V$17)) -> 0 | H110: =SUMPRODUCT(($S$12:$S$17=B110)*($V$12:$V$17))+SUMPRODUCT(($T$12:$T$17=B110)*($U$12:$U$17)) -> 0 | I110: =(D110*2)+E110 -> 0 | J110: =(F110*2)+E110 -> 0
B111: Honduras
B112: Jugoslawien
B113: Nordirland
F116: Gruppe 6
C118: 1982-06-14 | D118: Brasilien | E118: UdSSR | F118: 2 | G118: 1 | I118: Sevilla | S118: Brasilien | T118: UdSSR | U118: 2 | V118: 1 | X118: =(IF(U118>V118,3,IF(U118=V118,1,2))) -> 3 | Y118: =(IF(V118>U118,3,IF(U118=V118,1,2))) -> 2
F119: (0 | G119: 1) | S119: Schottland | T119: Neuseeland | U119: 5 | V119: 2 | X119: 3 | Y119: 2
C120: 1982-06-15 | D120: Schottland | E120: Neuseeland | F120: 5 | G120: 2 | I120: Málaga | S120: Brasilien | T120: Schottland | U120: 4 | V120: 1 | X120: 3 | Y120: 2
F121: (3 | G121: 0) | S121: UdSSR | T121: Neuseeland | U121: 3 | V121: 0 | X121: 3 | Y121: 2
C122: 1982-06-18 | D122: Brasilien | E122: Schottland | F122: 4 | G122: 1 | I122: Sevilla | S122: UdSSR | T122: Schottland | U122: 2 | V122: 2 | X122: 1 | Y122: 1
F123: (1 | G123: 1) | S123: Brasilien | T123: Neuseeland | U123: 4 | V123: 0 | X123: 3 | Y123: 2
C124: 1982-06-19 | D124: UdSSR | E124: Neuseeland | F124: 3 | G124: 0 | I124: Málaga
F125: (1 | G125: 0)
C126: 1982-06-22 | D126: UdSSR | E126: Schottland | F126: 2 | G126: 2 | I126: Málaga
F127: (0 | G127: 1)
C128: 1982-06-23 | D128: Brasilien | E128: Neuseeland | F128: 4 | G128: 0 | I128: Sevilla
F129: (2 | G129: 0)
C131: Spiele | D131: gew | E131: unent | F131: verl | G131: Tore+ | H131: Tore- | I131: Punkte+ | J131: Punkte-
B132: Brasilien | C132: =COUNTIF($S$12:$T$17,"Polen") -> 3 | D132: =SUMPRODUCT(($S$12:$T$17=B132)*($X$12:$Y$17=3)) -> 0 | E132: =SUMPRODUCT(($S$12:$T$17=B132)*($X$12:$Y$17=1)) -> 0 | F132: =SUMPRODUCT(($S$12:$T$17=B132)*($X$12:$Y$17=2)) -> 0 | G132: =SUMPRODUCT(($S$12:$S$17=B132)*($U$12:$U$17))+SUMPRODUCT(($T$12:$T$17=B132)*($V$12:$V$17)) -> 0 | H132: =SUMPRODUCT(($S$12:$S$17=B132)*($V$12:$V$17))+SUMPRODUCT(($T$12:$T$17=B132)*($U$12:$U$17)) -> 0 | I132: =(D132*2)+E132 -> 0 | J132: =(F132*2)+E132 -> 0
B133: UdSSR
B134: Schottland
B135: Neuseeland
F138: Gruppe A:
C140: 1982-06-28 | D140: Polen | E140: Belgien | F140: 3 | G140: 0 | I140: Barcelona (Camp Nou) | S140: Polen | T140: Belgien | U140: 3 | V140: 0 | X140: =(IF(U140>V140,3,IF(U140=V140,1,2))) -> 3 | Y140: =(IF(V140>U140,3,IF(U140=V140,1,2))) -> 2
F141: (2 | G141: 0) | S141: Belgien | T141: UdSSR | U141: 0 | V141: 1 | X141: =(IF(U141>V141,3,IF(U141=V141,1,2))) -> 2 | Y141: =(IF(V141>U141,3,IF(U141=V141,1,2))) -> 3
C142: 1982-07-01 | D142: Belgien | E142: UdSSR | F142: 0 | G142: 1 | I142: Barcelona (Camp Nou) | S142: Polen | T142: UdSSR | U142: 0 | V142: 0 | X142: 1 | Y142: 1
F143: (0 | G143: 0)
C144: 1982-07-04 | D144: Polen | E144: UdSSR | F144: 0 | G144: 0 | I144: Barcelona (Camp Nou)
C147: Spiele | D147: gew | E147: unent | F147: verl | G147: Tore+ | H147: Tore- | I147: Punkte+ | J147: Punkte-
B148: Polen | C148: =COUNTIF($S$12:$T$17,"Polen") -> 3 | D148: =SUMPRODUCT(($S$12:$T$17=B148)*($X$12:$Y$17=3)) -> 1 | E148: =SUMPRODUCT(($S$12:$T$17=B148)*($X$12:$Y$17=1)) -> 2 | F148: =SUMPRODUCT(($S$12:$T$17=B148)*($X$12:$Y$17=2)) -> 0 | G148: =SUMPRODUCT(($S$12:$S$17=B148)*($U$12:$U$17))+SUMPRODUCT(($T$12:$T$17=B148)*($V$12:$V$17)) -> 5 | H148: =SUMPRODUCT(($S$12:$S$17=B148)*($V$12:$V$17))+SUMPRODUCT(($T$12:$T$17=B148)*($U$12:$U$17)) -> 1 | I148: =(D148*2)+E148 -> 4 | J148: =(F148*2)+E148 -> 2
B149: Belgien
B150: UdSSR
F153: Gruppe B:
C155: 1982-06-29 | D155: BRD | E155: England | F155: 0 | G155: 0 | I155: Madrid (Bernabéu) | S155: BRD | T155: England | U155: 0 | V155: 0 | X155: =(IF(U155>V155,3,IF(U155=V155,1,2))) -> 1 | Y155: =(IF(V155>U155,3,IF(U155=V155,1,2))) -> 1
C156: 1982-07-02 | D156: BRD | E156: Spanien | F156: 2 | G156: 1 | I156: Madrid (Bernabéu) | S156: BRD | T156: Spanien | U156: 2 | V156: 1 | X156: 3 | Y156: 2
F157: (0 | G157: 0) | S157: Spanien | T157: England | U157: 0 | V157: 0 | X157: 1 | Y157: 1
C158: 1982-07-05 | D158: Spanien | E158: England | F158: 0 | G158: 0 | I158: Madrid (Bernabéu)
C161: Spiele | D161: gew | E161: unent | F161: verl | G161: Tore+ | H161: Tore- | I161: Punkte+ | J161: Punkte-
B162: BRD | C162: =COUNTIF($S$12:$T$17,"Polen") -> 3 | D162: =SUMPRODUCT(($S$12:$T$17=B162)*($X$12:$Y$17=3)) -> 0 | E162: =SUMPRODUCT(($S$12:$T$17=B162)*($X$12:$Y$17=1)) -> 0 | F162: =SUMPRODUCT(($S$12:$T$17=B162)*($X$12:$Y$17=2)) -> 0 | G162: =SUMPRODUCT(($S$12:$S$17=B162)*($U$12:$U$17))+SUMPRODUCT(($T$12:$T$17=B162)*($V$12:$V$17)) -> 0 | H162: =SUMPRODUCT(($S$12:$S$17=B162)*($V$12:$V$17))+SUMPRODUCT(($T$12:$T$17=B162)*($U$12:$U$17)) -> 0 | I162: =(D162*2)+E162 -> 0 | J162: =(F162*2)+E162 -> 0
B163: England
B164: Spanien
F167: Gruppe C:
C169: 1982-06-29 | D169: Italien | E169: Argentinien | F169: 2 | G169: 1 | I169: Barcelona (Sarrià) | S169: Italien | T169: Argentinien | U169: 2 | V169: 1 | X169: =(IF(U169>V169,3,IF(U169=V169,1,2))) -> 3 | Y169: =(IF(V169>U169,3,IF(U169=V169,1,2))) -> 2
F170: (0 | G170: 0) | S170: Brasilien | T170: Argentinien | U170: 3 | V170: 1 | X170: =(IF(U170>V170,3,IF(U170=V170,1,2))) -> 3 | Y170: =(IF(V170>U170,3,IF(U170=V170,1,2))) -> 2
C171: 1982-07-02 | D171: Brasilien | E171: Argentinien | F171: 3 | G171: 1 | I171: Barcelona (Sarrià) | S171: Brasilien | T171: Italien | U171: 2 | V171: 3 | X171: 2 | Y171: 3
F172: (1 | G172: 0)
C173: 1982-07-05 | D173: Brasilien | E173: Italien | F173: 2 | G173: 3 | I173: Barcelona (Sarrià)
F174: (1 | G174: 2)
C176: Spiele | D176: gew | E176: unent | F176: verl | G176: Tore+ | H176: Tore- | I176: Punkte+ | J176: Punkte-
B177: Italien | C177: =COUNTIF($S$12:$T$17,"Polen") -> 3 | D177: =SUMPRODUCT(($S$12:$T$17=B177)*($X$12:$Y$17=3)) -> 0 | E177: =SUMPRODUCT(($S$12:$T$17=B177)*($X$12:$Y$17=1)) -> 3 | F177: =SUMPRODUCT(($S$12:$T$17=B177)*($X$12:$Y$17=2)) -> 0 | G177: =SUMPRODUCT(($S$12:$S$17=B177)*($U$12:$U$17))+SUMPRODUCT(($T$12:$T$17=B177)*($V$12:$V$17)) -> 2 | H177: =SUMPRODUCT(($S$12:$S$17=B177)*($V$12:$V$17))+SUMPRODUCT(($T$12:$T$17=B177)*($U$12:$U$17)) -> 2 | I177: =(D177*2)+E177 -> 3 | J177: =(F177*2)+E177 -> 3
B178: Argentinien
B179: Brasilien
F182: Gruppe D:
C184: 1982-06-28 | D184: Österreich | E184: Frankreich | F184: 0 | G184: 1 | I184: Madrid (Calderón) | S184: Österreich | T184: Frankreich | U184: 0 | V184: 1 | X184: =(IF(U184>V184,3,IF(U184=V184,1,2))) -> 2 | Y184: =(IF(V184>U184,3,IF(U184=V184,1,2))) -> 3
F185: (0 | G185: 1) | S185: Österreich | T185: Nordirland | U185: 2 | V185: 2 | X185: 1 | Y185: 1
C186: 1982-07-01 | D186: Österreich | E186: Nordirland | F186: 2 | G186: 2 | I186: Madrid (Calderón) | S186: Nordirland | T186: Frankreich | U186: 1 | V186: 4 | X186: 2 | Y186: 3
F187: (0 | G187: 1)
C188: 1982-07-04 | D188: Nordirland | E188: Frankreich | F188: 1 | G188: 4 | I188: Madrid (Calderón)
F189: (0 | G189: 1)
C191: Spiele | D191: gew | E191: unent | F191: verl | G191: Tore+ | H191: Tore- | I191: Punkte+ | J191: Punkte-
B192: Österreich | C192: =COUNTIF($S$12:$T$17,"Polen") -> 3 | D192: =SUMPRODUCT(($S$12:$T$17=B192)*($X$12:$Y$17=3)) -> 0 | E192: =SUMPRODUCT(($S$12:$T$17=B192)*($X$12:$Y$17=1)) -> 0 | F192: =SUMPRODUCT(($S$12:$T$17=B192)*($X$12:$Y$17=2)) -> 0 | G192: =SUMPRODUCT(($S$12:$S$17=B192)*($U$12:$U$17))+SUMPRODUCT(($T$12:$T$17=B192)*($V$12:$V$17)) -> 0 | H192: =SUMPRODUCT(($S$12:$S$17=B192)*($V$12:$V$17))+SUMPRODUCT(($T$12:$T$17=B192)*($U$12:$U$17)) -> 0 | I192: =(D192*2)+E192 -> 0 | J192: =(F192*2)+E192 -> 0
B193: Frankreich
B194: Nordirland
F197: Halbfinale:
C199: 1970-06-17 | D199: Polen | E199: Italien | F199: 0 | G199: 2 | I199: Barcelona (Camp Nou) | S199: Polen | T199: Italien | U199: 0 | V199: 2 | X199: =(IF(U199>V199,3,IF(U199=V199,1,2))) -> 2 | Y199: =(IF(V199>U199,3,IF(U199=V199,1,2))) -> 3
F200: (0 | G200: 1) | S200: BRD | T200: Frankreich | U200: 8 | V200: 7 | X200: 3 | Y200: 2
C201: 1970-06-17 | D201: BRD | E201: Frankreich | F201: 5 | G201: 4 | H201: n.E. | I201: Sevilla (Pizjuán)
F202: (3 | G202: 3) | H202: n.V.
F203: 1 | G203: 1
F204: (1 | G204: 1)
C207: Spiel um Platz 3 am 10. Juli 1982 in Alicante
E208: Polen | F208: --- | G208: Frankreich | S208: Polen | T208: Frankreich | U208: 3 | V208: 2 | X208: =(IF(U208>V208,3,IF(U208=V208,1,2))) -> 3 | Y208: =(IF(V208>U208,3,IF(U208=V208,1,2))) -> 2
E209: 3 | G209: 2
E210: (2 | G210: 1)
C215: Endspiel am 11. Juli 1982 in Madrid (Bernabéu)
E216: Italien | F216: --- | G216: BRD | S216: Italien | T216: BRD | U216: 3 | V216: 1 | X216: =(IF(U216>V216,3,IF(U216=V216,1,2))) -> 3 | Y216: =(IF(V216>U216,3,IF(U216=V216,1,2))) -> 2
E217: 3 | G217: 1
E218: (0 | G218: 0)
A223: Auswertung | B223: Nation | C223: Spiele | D223: gew | E223: unent | F223: verl | G223: Tore+ | H223: Tore- | I223: Punkte+ | J223: Punkte-
B224: Italien | C224: =COUNTIF($S$12:$T$216,"Italien") -> 7 | D224: =SUMPRODUCT(($S$12:$T$216=B224)*($X$12:$Y$216=3)) -> 4 | E224: =SUMPRODUCT(($S$12:$T$216=B224)*($X$12:$Y$216=1)) -> 3 | F224: =SUMPRODUCT(($S$12:$T$216=B224)*($X$12:$Y$216=2)) -> 0 | G224: =SUMPRODUCT(($S$12:$S$216=B224)*($U$12:$U$216))+SUMPRODUCT(($T$12:$T$216=B224)*($V$12:$V$216)) -> 12 | H224: =SUMPRODUCT(($S$12:$S$216=B224)*($V$12:$V$216))+SUMPRODUCT(($T$12:$T$216=B224)*($U$12:$U$216)) -> 6 | I224: =(D224*2)+E224 -> 11 | J224: =(F224*2)+E224 -> 3
B225: BRD | C225: =COUNTIF($S$12:$T$216,"BRD") -> 7 | D225: 4 | E225: 1 | F225: 2 | G225: 17 | H225: 14 | I225: 9 | J225: 5
B226: Polen | C226: =COUNTIF($S$12:$T$216,"Polen") -> 7 | D226: 3 | E226: 3 | F226: 1 | G226: 11 | H226: 5 | I226: 9 | J226: 5
B227: Brasilien | C227: =COUNTIF($S$12:$T$216,"Brasilien") -> 5 | D227: 4 | E227: 0 | F227: 1 | G227: 15 | H227: 6 | I227: 8 | J227: 2
B228: England | C228: =COUNTIF($S$12:$T$216,"England") -> 5 | D228: 3 | E228: 2 | F228: 0 | G228: 6 | H228: 1 | I228: 8 | J228: 2
B229: Frankreich | C229: =COUNTIF($S$12:$T$216,"Frankreich") -> 7 | D229: 3 | E229: 1 | F229: 3 | G229: 20 | H229: 17 | I229: 7 | J229: 7
B230: UdSSR | C230: =COUNTIF($S$12:$T$216,"UdSSR") -> 5 | D230: 2 | E230: 2 | F230: 1 | G230: 7 | H230: 4 | I230: 6 | J230: 4
B231: Österreich | C231: =COUNTIF($S$12:$T$216,"Österreich") -> 5 | D231: 2 | E231: 1 | F231: 2 | G231: 5 | H231: 4 | I231: 5 | J231: 5
B232: Nordirland | C232: =COUNTIF($S$12:$T$216,"Nordirland") -> 5 | D232: 1 | E232: 3 | F232: 1 | G232: 5 | H232: 7 | I232: 5 | J232: 5
B233: Belgien | C233: =COUNTIF($S$12:$T$216,"Belgien") -> 5 | D233: 2 | E233: 1 | F233: 2 | G233: 3 | H233: 5 | I233: 5 | J233: 5
B234: Algerien | C234: =COUNTIF($S$12:$T$216,"Algerien") -> 3 | D234: 2 | E234: 0 | F234: 1 | G234: 5 | H234: 5 | I234: 4 | J234: 2
B235: Argentinien | C235: =COUNTIF($S$12:$T$216,"Argentinien") -> 5 | D235: 2 | E235: 0 | F235: 3 | G235: 8 | H235: 7 | I235: 4 | J235: 6
B236: Spanien | C236: =COUNTIF($S$12:$T$216,"Spanien") -> 5 | D236: 1 | E236: 2 | F236: 2 | G236: 4 | H236: 5 | I236: 4 | J236: 6
B237: Ungarn | C237: =COUNTIF($S$12:$T$216,"Ungarn") -> 3 | D237: 1 | E237: 1 | F237: 1 | G237: 12 | H237: 6 | I237: 3 | J237: 3
B238: Schottland | C238: =COUNTIF($S$12:$T$216,"Schottland") -> 3 | D238: 1 | E238: 1 | F238: 1 | G238: 8 | H238: 8 | I238: 3 | J238: 3
B239: Jugoslawien | C239: =COUNTIF($S$12:$T$216,"Jugoslawien") -> 3 | D239: 1 | E239: 1 | F239: 1 | G239: 2 | H239: 2 | I239: 3 | J239: 3
B240: Kamerun | C240: =COUNTIF($S$12:$T$216,"Kamerun") -> 3 | D240: 0 | E240: 3 | F240: 0 | G240: 1 | H240: 1 | I240: 3 | J240: 3
B241: Honduras | C241: =COUNTIF($S$12:$T$216,"Honduras") -> 3 | D241: 0 | E241: 2 | F241: 1 | G241: 2 | H241: 3 | I241: 2 | J241: 4
B242: CSSR | C242: =COUNTIF($S$12:$T$216,"CSSR") -> 3 | D242: 0 | E242: 2 | F242: 1 | G242: 2 | H242: 4 | I242: 2 | J242: 4
B243: Peru | C243: =COUNTIF($S$12:$T$216,"Peru") -> 3 | D243: 0 | E243: 2 | F243: 1 | G243: 2 | H243: 6 | I243: 2 | J243: 4
B244: Kuwait | C244: =COUNTIF($S$12:$T$216,"Kuwait") -> 3 | D244: 0 | E244: 1 | F244: 2 | G244: 2 | H244: 6 | I244: 1 | J244: 5
B245: Chile | C245: =COUNTIF($S$12:$T$216,"Chile") -> 3 | D245: 0 | E245: 0 | F245: 3 | G245: 3 | H245: 8 | I245: 0 | J245: 6
B246: Neuseeland | C246: =COUNTIF($S$12:$T$216,"Neuseeland") -> 3 | D246: 0 | E246: 0 | F246: 3 | G246: 2 | H246: 12 | I246: 0 | J246: 6
B247: El Salvador | C247: =COUNTIF($S$12:$T$216,"El Salvador") -> 3 | D247: 0 | E247: 0 | F247: 3 | G247: 1 | H247: 13 | I247: 0 | J247: 6

Sheet 1986
S1: 1 | T1: 2 | U1: 3 | V1: 4 | W1: 5 | X1: 6 | Y1: 7
A2: 13. WM 1986 in Mexiko
A4: 31. Mai-29. Juni 1986
A5: Teilnehmende Nationen: 24 --- Bewerbungen: 121
F10: Gruppe A
C12: 1986-05-31 | D12: Bulgarien | E12: Italien | F12: 1 | G12: 1 | I12: Mexiko-Stadt (Aztekenstadion) | S12: Bulgarien | T12: Italien | U12: 1 | V12: 1 | X12: =(IF(U12>V12,3,IF(U12=V12,1,2))) -> 1 | Y12: =(IF(V12>U12,3,IF(U12=V12,1,2))) -> 1 | AA12: Argentinien
F13: (0 | G13: 1) | S13: Argentinien | T13: Südkorea | U13: 3 | V13: 1 | X13: 3 | Y13: 2 | AA13: Frankreich
C14: 1986-06-02 | D14: Argentinien | E14: Südkorea | F14: 3 | G14: 1 | I14: Mexiko-Stadt (Olympiastadion) | S14: Italien | T14: Argentinien | U14: 1 | V14: 1 | X14: =(IF(U14>V14,3,IF(U14=V14,1,2))) -> 1 | Y14: =(IF(V14>U14,3,IF(U14=V14,1,2))) -> 1 | AA14: BRD
F15: (2 | G15: 0) | S15: Südkorea | T15: Bulgarien | U15: 1 | V15: 1 | X15: 1 | Y15: 1 | AA15: Brasilien
C16: 1986-06-05 | D16: Italien | E16: Argentinien | F16: 1 | G16: 1 | I16: Puebla | S16: Südkorea | T16: Italien | U16: 2 | V16: 3 | X16: 2 | Y16: 3 | AA16: Mexiko
F17: (1 | G17: 1) | S17: Argentinien | T17: Bulgarien | U17: 2 | V17: 0 | X17: 3 | Y17: 2 | AA17: Belgien
C18: 1986-06-05 | D18: Südkorea | E18: Bulgarien | F18: 1 | G18: 1 | I18: Mexiko-Stadt (Olympiastadion) | AA18: Dänemark
F19: (0 | G19: 1) | AA19: Spanien
C20: 1986-06-10 | D20: Südkorea | E20: Italien | F20: 2 | G20: 3 | I20: Puebla | AA20: UdSSR
F21: (0 | G21: 1) | AA21: England
C22: 1986-06-10 | D22: Argentinien | E22: Bulgarien | F22: 2 | G22: 0 | I22: Mexiko-Stadt (Olympiastadion) | AA22: Italien
F23: (1 | G23: 0) | AA23: Paraguay
AA24: Marokko
C25: Spiele | D25: gew | E25: unent | F25: verl | G25: Tore+ | H25: Tore- | I25: Punkte+ | J25: Punkte- | AA25: Polen
B26: Argentinien | C26: =COUNTIF($S$12:$T$17,"Argentinien") -> 3 | D26: =SUMPRODUCT(($S$12:$T$17=B26)*($X$12:$Y$17=3)) -> 2 | E26: =SUMPRODUCT(($S$12:$T$17=B26)*($X$12:$Y$17=1)) -> 1 | F26: =SUMPRODUCT(($S$12:$T$17=B26)*($X$12:$Y$17=2)) -> 0 | G26: =SUMPRODUCT(($S$12:$S$17=B26)*($U$12:$U$17))+SUMPRODUCT(($T$12:$T$17=B26)*($V$12:$V$17)) -> 6 | H26: =SUMPRODUCT(($S$12:$S$17=B26)*($V$12:$V$17))+SUMPRODUCT(($T$12:$T$17=B26)*($U$12:$U$17)) -> 2 | I26: =(D26*2)+E26 -> 5 | J26: =(F26*2)+E26 -> 1 | AA26: Portugal
B27: Italien | C27: =COUNTIF($S$12:$T$17,"Italien") -> 3 | D27: =SUMPRODUCT(($S$12:$T$17=B27)*($X$12:$Y$17=3)) -> 1 | E27: =SUMPRODUCT(($S$12:$T$17=B27)*($X$12:$Y$17=1)) -> 2 | F27: =SUMPRODUCT(($S$12:$T$17=B27)*($X$12:$Y$17=2)) -> 0 | G27: =SUMPRODUCT(($S$12:$S$17=B27)*($U$12:$U$17))+SUMPRODUCT(($T$12:$T$17=B27)*($V$12:$V$17)) -> 5 | H27: =SUMPRODUCT(($S$12:$S$17=B27)*($V$12:$V$17))+SUMPRODUCT(($T$12:$T$17=B27)*($U$12:$U$17)) -> 4 | I27: =(D27*2)+E27 -> 4 | J27: =(F27*2)+E27 -> 2 | AA27: Ungarn
B28: Bulgarien | C28: =COUNTIF($S$12:$T$17,"Bulgarien") -> 3 | D28: =SUMPRODUCT(($S$12:$T$17=B28)*($X$12:$Y$17=3)) -> 0 | E28: =SUMPRODUCT(($S$12:$T$17=B28)*($X$12:$Y$17=1)) -> 2 | F28: =SUMPRODUCT(($S$12:$T$17=B28)*($X$12:$Y$17=2)) -> 1 | G28: =SUMPRODUCT(($S$12:$S$17=B28)*($U$12:$U$17))+SUMPRODUCT(($T$12:$T$17=B28)*($V$12:$V$17)) -> 2 | H28: =SUMPRODUCT(($S$12:$S$17=B28)*($V$12:$V$17))+SUMPRODUCT(($T$12:$T$17=B28)*($U$12:$U$17)) -> 4 | I28: =(D28*2)+E28 -> 2 | J28: =(F28*2)+E28 -> 4 | AA28: Bulgarien
B29: Südkorea | C29: =COUNTIF($S$12:$T$17,"Südkorea") -> 3 | D29: =SUMPRODUCT(($S$12:$T$17=B29)*($X$12:$Y$17=3)) -> 0 | E29: =SUMPRODUCT(($S$12:$T$17=B29)*($X$12:$Y$17=1)) -> 1 | F29: =SUMPRODUCT(($S$12:$T$17=B29)*($X$12:$Y$17=2)) -> 2 | G29: =SUMPRODUCT(($S$12:$S$17=B29)*($U$12:$U$17))+SUMPRODUCT(($T$12:$T$17=B29)*($V$12:$V$17)) -> 4 | H29: =SUMPRODUCT(($S$12:$S$17=B29)*($V$12:$V$17))+SUMPRODUCT(($T$12:$T$17=B29)*($U$12:$U$17)) -> 7 | I29: =(D29*2)+E29 -> 1 | J29: =(F29*2)+E29 -> 5 | AA29: Uruguay
AA30: Südkorea
AA31: Nordirland
F32: Gruppe B | AA32: Schottland
AA33: Algerien
C34: 1986-06-03 | D34: Belgien | E34: Mexiko | F34: 1 | G34: 2 | I34: Mexiko-Stadt (Aztekenstadion) | S34: Belgien | T34: Mexiko | U34: 1 | V34: 2 | X34: =(IF(U34>V34,3,IF(U34=V34,1,2))) -> 2 | Y34: =(IF(V34>U34,3,IF(U34=V34,1,2))) -> 3 | AA34: Irak
F35: (1 | G35: 2) | S35: Paraguay | T35: Irak | U35: 1 | V35: 0 | X35: 3 | Y35: 2 | AA35: Kanada
C36: 1986-06-04 | D36: Paraguay | E36: Irak | F36: 1 | G36: 0 | I36: Toluca | S36: Mexiko | T36: Paraguay | U36: 1 | V36: 1 | X36: 1 | Y36: 1
F37: (1 | G37: 0) | S37: Irak | T37: Belgien | U37: 1 | V37: 2 | X37: 2 | Y37: 3
C38: 1986-06-07 | D38: Mexiko | E38: Paraguay | F38: 1 | G38: 1 | I38: Mexiko-Stadt (Aztekenstadion) | S38: Irak | T38: Mexiko | U38: 0 | V38: 1 | X38: 2 | Y38: 3
F39: (1 | G39: 0) | S39: Paraguay | T39: Belgien | U39: 2 | V39: 2 | X39: =(IF(U39>V39,3,IF(U39=V39,1,2))) -> 1 | Y39: =(IF(V39>U39,3,IF(U39=V39,1,2))) -> 1
C40: 1986-06-08 | D40: Irak | E40: Belgien | F40: 1 | G40: 2 | I40: Toluca
F41: (0 | G41: 2)
C42: 1986-06-11 | D42: Irak | E42: Mexiko | F42: 0 | G42: 1 | I42: Mexiko-Stadt (Aztekenstadion)
F43: (0 | G43: 0)
C44: 1986-06-11 | D44: Paraguay | E44: Belgien | F44: 2 | G44: 2 | I44: Toluca
F45: (0 | G45: 1)
C47: Spiele | D47: gew | E47: unent | F47: verl | G47: Tore+ | H47: Tore- | I47: Punkte+ | J47: Punkte-
B48: Mexiko | C48: =COUNTIF($S$34:$T$39,"Mexiko") -> 3 | D48: =SUMPRODUCT(($S$34:$T$39=B48)*($X$34:$Y$39=3)) -> 2 | E48: =SUMPRODUCT(($S$34:$T$39=B48)*($X$34:$Y$39=1)) -> 1 | F48: =SUMPRODUCT(($S$34:$T$39=B48)*($X$34:$Y$39=2)) -> 0 | G48: =SUMPRODUCT(($S$34:$S$39=B48)*($U$34:$U$39))+SUMPRODUCT(($T$34:$T$39=B48)*($V$34:$V$39)) -> 4 | H48: =SUMPRODUCT(($S$34:$S$39=B48)*($V$34:$V$39))+SUMPRODUCT(($T$34:$T$39=B48)*($U$34:$U$39)) -> 2 | I48: =(D48*2)+E48 -> 5 | J48: =(F48*2)+E48 -> 1
B49: Paraguay | C49: =COUNTIF($S$34:$T$39,"Paraguay") -> 3 | D49: =SUMPRODUCT(($S$34:$T$39=B49)*($X$34:$Y$39=3)) -> 1 | E49: =SUMPRODUCT(($S$34:$T$39=B49)*($X$34:$Y$39=1)) -> 2 | F49: =SUMPRODUCT(($S$34:$T$39=B49)*($X$34:$Y$39=2)) -> 0 | G49: =SUMPRODUCT(($S$34:$S$39=B49)*($U$34:$U$39))+SUMPRODUCT(($T$34:$T$39=B49)*($V$34:$V$39)) -> 4 | H49: =SUMPRODUCT(($S$34:$S$39=B49)*($V$34:$V$39))+SUMPRODUCT(($T$34:$T$39=B49)*($U$34:$U$39)) -> 3 | I49: =(D49*2)+E49 -> 4 | J49: =(F49*2)+E49 -> 2
B50: Belgien | C50: =COUNTIF($S$34:$T$39,"Belgien") -> 3 | D50: =SUMPRODUCT(($S$34:$T$39=B50)*($X$34:$Y$39=3)) -> 1 | E50: =SUMPRODUCT(($S$34:$T$39=B50)*($X$34:$Y$39=1)) -> 1 | F50: =SUMPRODUCT(($S$34:$T$39=B50)*($X$34:$Y$39=2)) -> 1 | G50: =SUMPRODUCT(($S$34:$S$39=B50)*($U$34:$U$39))+SUMPRODUCT(($T$34:$T$39=B50)*($V$34:$V$39)) -> 5 | H50: =SUMPRODUCT(($S$34:$S$39=B50)*($V$34:$V$39))+SUMPRODUCT(($T$34:$T$39=B50)*($U$34:$U$39)) -> 5 | I50: =(D50*2)+E50 -> 3 | J50: =(F50*2)+E50 -> 3
B51: Irak | C51: =COUNTIF($S$34:$T$39,"Irak") -> 3 | D51: =SUMPRODUCT(($S$34:$T$39=B51)*($X$34:$Y$39=3)) -> 0 | E51: =SUMPRODUCT(($S$34:$T$39=B51)*($X$34:$Y$39=1)) -> 0 | F51: =SUMPRODUCT(($S$34:$T$39=B51)*($X$34:$Y$39=2)) -> 3 | G51: =SUMPRODUCT(($S$34:$S$39=B51)*($U$34:$U$39))+SUMPRODUCT(($T$34:$T$39=B51)*($V$34:$V$39)) -> 1 | H51: =SUMPRODUCT(($S$34:$S$39=B51)*($V$34:$V$39))+SUMPRODUCT(($T$34:$T$39=B51)*($U$34:$U$39)) -> 4 | I51: =(D51*2)+E51 -> 0 | J51: =(F51*2)+E51 -> 6
F54: Gruppe C
C56: 1986-06-01 | D56: Kanada | E56: Frankreich | F56: 0 | G56: 1 | I56: León | S56: Kanada | T56: Frankreich | U56: 0 | V56: 1 | X56: =(IF(U56>V56,3,IF(U56=V56,1,2))) -> 2 | Y56: =(IF(V56>U56,3,IF(U56=V56,1,2))) -> 3
F57: (0 | G57: 0) | S57: UdSSR | T57: Ungarn | U57: 6 | V57: 0 | X57: 3 | Y57: 2
C58: 1986-06-02 | D58: UdSSR | E58: Ungarn | F58: 6 | G58: 0 | I58: Irapuato | S58: Frankreich | T58: UdSSR | U58: 1 | V58: 1 | X58: 1 | Y58: 1
F59: (3 | G59: 0) | S59: Ungarn | T59: Kanada | U59: 2 | V59: 0 | X59: 3 | Y59: 2
C60: 1986-06-05 | D60: Frankreich | E60: UdSSR | F60: 1 | G60: 1 | I60: León | S60: Frankreich | T60: Ungarn | U60: 3 | V60: 0 | X60: 3 | Y60: 2
F61: (0 | G61: 0) | S61: UdSSR | T61: Kanada | U61: 2 | V61: 0 | X61: 3 | Y61: 2
C62: 1986-06-06 | D62: Ungarn | E62: Kanada | F62: 2 | G62: 0 | I62: Irapuato
F63: (1 | G63: 0)
C64: 1986-06-09 | D64: Frankreich | E64: Ungarn | F64: 3 | G64: 0 | I64: León
F65: (1 | G65: 0)
C66: 1986-06-09 | D66: UdSSR | E66: Kanada | F66: 2 | G66: 0 | I66: Irapuato
F67: (0 | G67: 0)
C69: Spiele | D69: gew | E69: unent | F69: verl | G69: Tore+ | H69: Tore- | I69: Punkte+ | J69: Punkte-
B70: UdSSR | C70: =COUNTIF($S$56:$T$61,"UdSSR") -> 3 | D70: =SUMPRODUCT(($S$56:$T$61=B70)*($X$56:$Y$61=3)) -> 2 | E70: =SUMPRODUCT(($S$56:$T$61=B70)*($X$56:$Y$61=1)) -> 1 | F70: =SUMPRODUCT(($S$56:$T$61=B70)*($X$56:$Y$61=2)) -> 0 | G70: =SUMPRODUCT(($S$56:$S$61=B70)*($U$56:$U$61))+SUMPRODUCT(($T$56:$T$61=B70)*($V$56:$V$61)) -> 9 | H70: =SUMPRODUCT(($S$56:$S$61=B70)*($V$56:$V$61))+SUMPRODUCT(($T$56:$T$61=B70)*($U$56:$U$61)) -> 1 | I70: =(D70*2)+E70 -> 5 | J70: =(F70*2)+E70 -> 1
B71: Frankreich | C71: =COUNTIF($S$56:$T$61,"Frankreich") -> 3 | D71: =SUMPRODUCT(($S$56:$T$61=B71)*($X$56:$Y$61=3)) -> 2 | E71: =SUMPRODUCT(($S$56:$T$61=B71)*($X$56:$Y$61=1)) -> 1 | F71: =SUMPRODUCT(($S$56:$T$61=B71)*($X$56:$Y$61=2)) -> 0 | G71: =SUMPRODUCT(($S$56:$S$61=B71)*($U$56:$U$61))+SUMPRODUCT(($T$56:$T$61=B71)*($V$56:$V$61)) -> 5 | H71: =SUMPRODUCT(($S$56:$S$61=B71)*($V$56:$V$61))+SUMPRODUCT(($T$56:$T$61=B71)*($U$56:$U$61)) -> 1 | I71: =(D71*2)+E71 -> 5 | J71: =(F71*2)+E71 -> 1
B72: Ungarn | C72: =COUNTIF($S$56:$T$61,"Ungarn") -> 3 | D72: =SUMPRODUCT(($S$56:$T$61=B72)*($X$56:$Y$61=3)) -> 1 | E72: =SUMPRODUCT(($S$56:$T$61=B72)*($X$56:$Y$61=1)) -> 0 | F72: =SUMPRODUCT(($S$56:$T$61=B72)*($X$56:$Y$61=2)) -> 2 | G72: =SUMPRODUCT(($S$56:$S$61=B72)*($U$56:$U$61))+SUMPRODUCT(($T$56:$T$61=B72)*($V$56:$V$61)) -> 2 | H72: =SUMPRODUCT(($S$56:$S$61=B72)*($V$56:$V$61))+SUMPRODUCT(($T$56:$T$61=B72)*($U$56:$U$61)) -> 9 | I72: =(D72*2)+E72 -> 2 | J72: =(F72*2)+E72 -> 4
B73: Kanada | C73: =COUNTIF($S$56:$T$61,"Kanada") -> 3 | D73: =SUMPRODUCT(($S$56:$T$61=B73)*($X$56:$Y$61=3)) -> 0 | E73: =SUMPRODUCT(($S$56:$T$61=B73)*($X$56:$Y$61=1)) -> 0 | F73: =SUMPRODUCT(($S$56:$T$61=B73)*($X$56:$Y$61=2)) -> 3 | G73: =SUMPRODUCT(($S$56:$S$61=B73)*($U$56:$U$61))+SUMPRODUCT(($T$56:$T$61=B73)*($V$56:$V$61)) -> 0 | H73: =SUMPRODUCT(($S$56:$S$61=B73)*($V$56:$V$61))+SUMPRODUCT(($T$56:$T$61=B73)*($U$56:$U$61)) -> 5 | I73: =(D73*2)+E73 -> 0 | J73: =(F73*2)+E73 -> 6
F76: Gruppe D
C78: 1986-06-01 | D78: Spanien | E78: Brasilien | F78: 0 | G78: 1 | I78: Guadalajara (Estadio Jalisco) | S78: Spanien | T78: Brasilien | U78: 0 | V78: 1 | X78: =(IF(U78>V78,3,IF(U78=V78,1,2))) -> 2 | Y78: =(IF(V78>U78,3,IF(U78=V78,1,2))) -> 3
F79: (0 | G79: 0) | S79: Algerien | T79: Nordirland | U79: 1 | V79: 1 | X79: 1 | Y79: 1
C80: 1986-06-03 | D80: Algerien | E80: Nordirland | F80: 1 | G80: 1 | I80: Guadalajara (Tres de Marzo) | S80: Brasilien | T80: Algerien | U80: 1 | V80: 0 | X80: =(IF(U80>V80,3,IF(U80=V80,1,2))) -> 3 | Y80: =(IF(V80>U80,3,IF(U80=V80,1,2))) -> 2
F81: (0 | G81: 1) | S81: Nordirland | T81: Spanien | U81: 1 | V81: 2 | X81: 2 | Y81: 3
C82: 1986-06-06 | D82: Brasilien | E82: Algerien | F82: 1 | G82: 0 | I82: Guadalajara (Estadio Jalisco) | S82: Nordirland | T82: Brasilien | U82: 0 | V82: 3 | X82: 2 | Y82: 3
F83: (0 | G83: 0) | S83: Algerien | T83: Spanien | U83: 0 | V83: 3 | X83: 2 | Y83: 3
C84: 1986-06-07 | D84: Nordirland | E84: Spanien | F84: 1 | G84: 2 | I84: Guadalajara (Tres de Marzo)
F85: (0 | G85: 2)
C86: 1986-06-12 | D86: Nordirland | E86: Brasilien | F86: 0 | G86: 3 | I86: Guadalajara (Estadio Jalisco)
F87: (0 | G87: 1)
C88: 1986-06-12 | D88: Algerien | E88: Spanien | F88: 0 | G88: 3 | I88: Monterrey (Tecnológico)
F89: (0 | G89: 2)
C91: Spiele | D91: gew | E91: unent | F91: verl | G91: Tore+ | H91: Tore- | I91: Punkte+ | J91: Punkte-
B92: Brasilien | C92: =COUNTIF($S$78:$T$83,"Brasilien") -> 3 | D92: =SUMPRODUCT(($S$78:$T$83=B92)*($X$78:$Y$83=3)) -> 3 | E92: =SUMPRODUCT(($S$78:$T$83=B92)*($X$78:$Y$83=1)) -> 0 | F92: =SUMPRODUCT(($S$78:$T$83=B92)*($X$78:$Y$83=2)) -> 0 | G92: =SUMPRODUCT(($S$78:$S$83=B92)*($U$78:$U$83))+SUMPRODUCT(($T$78:$T$83=B92)*($V$78:$V$83)) -> 5 | H92: =SUMPRODUCT(($S$78:$S$83=B92)*($V$78:$V$83))+SUMPRODUCT(($T$78:$T$83=B92)*($U$78:$U$83)) -> 0 | I92: =(D92*2)+E92 -> 6 | J92: =(F92*2)+E92 -> 0
B93: Spanien | C93: =COUNTIF($S$78:$T$83,"Spanien") -> 3 | D93: =SUMPRODUCT(($S$78:$T$83=B93)*($X$78:$Y$83=3)) -> 2 | E93: =SUMPRODUCT(($S$78:$T$83=B93)*($X$78:$Y$83=1)) -> 0 | F93: =SUMPRODUCT(($S$78:$T$83=B93)*($X$78:$Y$83=2)) -> 1 | G93: =SUMPRODUCT(($S$78:$S$83=B93)*($U$78:$U$83))+SUMPRODUCT(($T$78:$T$83=B93)*($V$78:$V$83)) -> 5 | H93: =SUMPRODUCT(($S$78:$S$83=B93)*($V$78:$V$83))+SUMPRODUCT(($T$78:$T$83=B93)*($U$78:$U$83)) -> 2 | I93: =(D93*2)+E93 -> 4 | J93: =(F93*2)+E93 -> 2
B94: Nordirland | C94: =COUNTIF($S$78:$T$83,"Nordirland") -> 3 | D94: =SUMPRODUCT(($S$78:$T$83=B94)*($X$78:$Y$83=3)) -> 0 | E94: =SUMPRODUCT(($S$78:$T$83=B94)*($X$78:$Y$83=1)) -> 1 | F94: =SUMPRODUCT(($S$78:$T$83=B94)*($X$78:$Y$83=2)) -> 2 | G94: =SUMPRODUCT(($S$78:$S$83=B94)*($U$78:$U$83))+SUMPRODUCT(($T$78:$T$83=B94)*($V$78:$V$83)) -> 2 | H94: =SUMPRODUCT(($S$78:$S$83=B94)*($V$78:$V$83))+SUMPRODUCT(($T$78:$T$83=B94)*($U$78:$U$83)) -> 6 | I94: =(D94*2)+E94 -> 1 | J94: =(F94*2)+E94 -> 5
B95: Algerien | C95: =COUNTIF($S$78:$T$83,"Algerien") -> 3 | D95: =SUMPRODUCT(($S$78:$T$83=B95)*($X$78:$Y$83=3)) -> 0 | E95: =SUMPRODUCT(($S$78:$T$83=B95)*($X$78:$Y$83=1)) -> 1 | F95: =SUMPRODUCT(($S$78:$T$83=B95)*($X$78:$Y$83=2)) -> 2 | G95: =SUMPRODUCT(($S$78:$S$83=B95)*($U$78:$U$83))+SUMPRODUCT(($T$78:$T$83=B95)*($V$78:$V$83)) -> 1 | H95: =SUMPRODUCT(($S$78:$S$83=B95)*($V$78:$V$83))+SUMPRODUCT(($T$78:$T$83=B95)*($U$78:$U$83)) -> 5 | I95: =(D95*2)+E95 -> 1 | J95: =(F95*2)+E95 -> 5
F98: Gruppe E
C100: 1986-06-04 | D100: Uruguay | E100: BRD | F100: 1 | G100: 1 | I100: Querétaro | S100: Uruguay | T100: BRD | U100: 1 | V100: 1 | X100: =(IF(U100>V100,3,IF(U100=V100,1,2))) -> 1 | Y100: =(IF(V100>U100,3,IF(U100=V100,1,2))) -> 1
F101: (1 | G101: 0) | S101: Schottland | T101: Dänemark | U101: 0 | V101: 1 | X101: =(IF(U101>V101,3,IF(U101=V101,1,2))) -> 2 | Y101: =(IF(V101>U101,3,IF(U101=V101,1,2))) -> 3
C102: 1986-06-04 | D102: Schottland | E102: Dänemark | F102: 0 | G102: 1 | I102: Nezahualcóyotl | S102: BRD | T102: Schottland | U102: 2 | V102: 1 | X102: 3 | Y102: 2
F103: (0 | G103: 0) | S103: Dänemark | T103: Uruguay | U103: 6 | V103: 1 | X103: 3 | Y103: 2
C104: 1986-06-08 | D104: BRD | E104: Schottland | F104: 2 | G104: 1 | I104: Querétaro | S104: Dänemark | T104: BRD | U104: 2 | V104: 0 | X104: 3 | Y104: 2
F105: (1 | G105: 1) | S105: Schottland | T105: Uruguay | U105: 0 | V105: 0 | X105: 1 | Y105: 1
C106: 1986-06-08 | D106: Dänemark | E106: Uruguay | F106: 6 | G106: 1 | I106: Nezahualcóyotl
F107: (2 | G107: 1)
C108: 1986-06-13 | D108: Dänemark | E108: BRD | F108: 2 | G108: 0 | I108: Querétaro
F109: (1 | G109: 0)
C110: 1986-06-13 | D110: Schottland | E110: Uruguay | F110: 0 | G110: 0 | I110: Nezahualcóyotl
C113: Spiele | D113: gew | E113: unent | F113: verl | G113: Tore+ | H113: Tore- | I113: Punkte+ | J113: Punkte-
B114: Dänemark | C114: =COUNTIF($S$100:$T$105,"Dänemark") -> 3 | D114: =SUMPRODUCT(($S$100:$T$105=B114)*($X$100:$Y$105=3)) -> 3 | E114: =SUMPRODUCT(($S$100:$T$105=B114)*($X$100:$Y$105=1)) -> 0 | F114: =SUMPRODUCT(($S$100:$T$105=B114)*($X$100:$Y$105=2)) -> 0 | G114: =SUMPRODUCT(($S$100:$S$105=B114)*($U$100:$U$105))+SUMPRODUCT(($T$100:$T$105=B114)*($V$100:$V$105)) -> 9 | H114: =SUMPRODUCT(($S$100:$S$105=B114)*($V$100:$V$105))+SUMPRODUCT(($T$100:$T$105=B114)*($U$100:$U$105)) -> 1 | I114: =(D114*2)+E114 -> 6 | J114: =(F114*2)+E114 -> 0
B115: BRD | C115: =COUNTIF($S$100:$T$105,"BRD") -> 3 | D115: =SUMPRODUCT(($S$100:$T$105=B115)*($X$100:$Y$105=3)) -> 1 | E115: =SUMPRODUCT(($S$100:$T$105=B115)*($X$100:$Y$105=1)) -> 1 | F115: =SUMPRODUCT(($S$100:$T$105=B115)*($X$100:$Y$105=2)) -> 1 | G115: =SUMPRODUCT(($S$100:$S$105=B115)*($U$100:$U$105))+SUMPRODUCT(($T$100:$T$105=B115)*($V$100:$V$105)) -> 3 | H115: =SUMPRODUCT(($S$100:$S$105=B115)*($V$100:$V$105))+SUMPRODUCT(($T$100:$T$105=B115)*($U$100:$U$105)) -> 4 | I115: =(D115*2)+E115 -> 3 | J115: =(F115*2)+E115 -> 3
B116: Uruguay | C116: =COUNTIF($S$100:$T$105,"Uruguay") -> 3 | D116: =SUMPRODUCT(($S$100:$T$105=B116)*($X$100:$Y$105=3)) -> 0 | E116: =SUMPRODUCT(($S$100:$T$105=B116)*($X$100:$Y$105=1)) -> 2 | F116: =SUMPRODUCT(($S$100:$T$105=B116)*($X$100:$Y$105=2)) -> 1 | G116: =SUMPRODUCT(($S$100:$S$105=B116)*($U$100:$U$105))+SUMPRODUCT(($T$100:$T$105=B116)*($V$100:$V$105)) -> 2 | H116: =SUMPRODUCT(($S$100:$S$105=B116)*($V$100:$V$105))+SUMPRODUCT(($T$100:$T$105=B116)*($U$100:$U$105)) -> 7 | I116: =(D116*2)+E116 -> 2 | J116: =(F116*2)+E116 -> 4
B117: Schottland | C117: =COUNTIF($S$100:$T$105,"Schottland") -> 3 | D117: =SUMPRODUCT(($S$100:$T$105=B117)*($X$100:$Y$105=3)) -> 0 | E117: =SUMPRODUCT(($S$100:$T$105=B117)*($X$100:$Y$105=1)) -> 1 | F117: =SUMPRODUCT(($S$100:$T$105=B117)*($X$100:$Y$105=2)) -> 2 | G117: =SUMPRODUCT(($S$100:$S$105=B117)*($U$100:$U$105))+SUMPRODUCT(($T$100:$T$105=B117)*($V$100:$V$105)) -> 1 | H117: =SUMPRODUCT(($S$100:$S$105=B117)*($V$100:$V$105))+SUMPRODUCT(($T$100:$T$105=B117)*($U$100:$U$105)) -> 3 | I117: =(D117*2)+E117 -> 1 | J117: =(F117*2)+E117 -> 5
F120: Gruppe F
C122: 1986-06-02 | D122: Marokko | E122: Polen | F122: 0 | G122: 0 | I122: Monterrey (Universitario) | S122: Marokko | T122: Polen | U122: 0 | V122: 0 | X122: =(IF(U122>V122,3,IF(U122=V122,1,2))) -> 1 | Y122: =(IF(V122>U122,3,IF(U122=V122,1,2))) -> 1
C123: 1986-06-03 | D123: Portugal | E123: England | F123: 1 | G123: 0 | I123: Monterrey (Tecnológico) | S123: Portugal | T123: England | U123: 1 | V123: 0 | X123: 3 | Y123: 2
F124: (0 | G124: 0) | S124: England | T124: Marokko | U124: 0 | V124: 0 | X124: 1 | Y124: 1
C125: 1986-06-06 | D125: England | E125: Marokko | F125: 0 | G125: 0 | I125: Monterrey (Tecnológico) | S125: Polen | T125: Portugal | U125: 1 | V125: 0 | X125: 3 | Y125: 2
C126: 1986-06-07 | D126: Polen | E126: Portugal | F126: 1 | G126: 0 | I126: Monterrey (Universitario) | S126: Portugal | T126: Marokko | U126: 1 | V126: 3 | X126: 2 | Y126: 3
F127: (0 | G127: 0) | S127: England | T127: Polen | U127: 3 | V127: 0 | X127: 3 | Y127: 2
C128: 1986-06-11 | D128: Portugal | E128: Marokko | F128: 1 | G128: 3 | I128: Guadalajara (Estadio Tres de Marzo)
F129: (0 | G129: 2)
C130: 1986-06-11 | D130: England | E130: Polen | F130: 3 | G130: 0 | I130: Monterrey (Tecnológico)
F131: (3 | G131: 0)
C133: Spiele | D133: gew | E133: unent | F133: verl | G133: Tore+ | H133: Tore- | I133: Punkte+ | J133: Punkte-
B134: Marokko | C134: =COUNTIF($S$122:$T$127,"Marokko") -> 3 | D134: =SUMPRODUCT(($S$122:$T$127=B134)*($X$122:$Y$127=3)) -> 1 | E134: =SUMPRODUCT(($S$122:$T$127=B134)*($X$122:$Y$127=1)) -> 2 | F134: =SUMPRODUCT(($S$122:$T$127=B134)*($X$122:$Y$127=2)) -> 0 | G134: =SUMPRODUCT(($S$122:$S$127=B134)*($U$122:$U$127))+SUMPRODUCT(($T$122:$T$127=B134)*($V$122:$V$127)) -> 3 | H134: =SUMPRODUCT(($S$122:$S$127=B134)*($V$122:$V$127))+SUMPRODUCT(($T$122:$T$127=B134)*($U$122:$U$127)) -> 1 | I134: =(D134*2)+E134 -> 4 | J134: =(F134*2)+E134 -> 2
B135: England | C135: =COUNTIF($S$122:$T$127,"England") -> 3 | D135: =SUMPRODUCT(($S$122:$T$127=B135)*($X$122:$Y$127=3)) -> 1 | E135: =SUMPRODUCT(($S$122:$T$127=B135)*($X$122:$Y$127=1)) -> 1 | F135: =SUMPRODUCT(($S$122:$T$127=B135)*($X$122:$Y$127=2)) -> 1 | G135: =SUMPRODUCT(($S$122:$S$127=B135)*($U$122:$U$127))+SUMPRODUCT(($T$122:$T$127=B135)*($V$122:$V$127)) -> 3 | H135: =SUMPRODUCT(($S$122:$S$127=B135)*($V$122:$V$127))+SUMPRODUCT(($T$122:$T$127=B135)*($U$122:$U$127)) -> 1 | I135: =(D135*2)+E135 -> 3 | J135: =(F135*2)+E135 -> 3
B136: Polen | C136: =COUNTIF($S$122:$T$127,"Polen") -> 3 | D136: =SUMPRODUCT(($S$122:$T$127=B136)*($X$122:$Y$127=3)) -> 1 | E136: =SUMPRODUCT(($S$122:$T$127=B136)*($X$122:$Y$127=1)) -> 1 | F136: =SUMPRODUCT(($S$122:$T$127=B136)*($X$122:$Y$127=2)) -> 1 | G136: =SUMPRODUCT(($S$122:$S$127=B136)*($U$122:$U$127))+SUMPRODUCT(($T$122:$T$127=B136)*($V$122:$V$127)) -> 1 | H136: =SUMPRODUCT(($S$122:$S$127=B136)*($V$122:$V$127))+SUMPRODUCT(($T$122:$T$127=B136)*($U$122:$U$127)) -> 3 | I136: =(D136*2)+E136 -> 3 | J136: =(F136*2)+E136 -> 3
B137: Portugal | C137: =COUNTIF($S$122:$T$127,"Portugal") -> 3 | D137: =SUMPRODUCT(($S$122:$T$127=B137)*($X$122:$Y$127=3)) -> 1 | E137: =SUMPRODUCT(($S$122:$T$127=B137)*($X$122:$Y$127=1)) -> 0 | F137: =SUMPRODUCT(($S$122:$T$127=B137)*($X$122:$Y$127=2)) -> 2 | G137: =SUMPRODUCT(($S$122:$S$127=B137)*($U$122:$U$127))+SUMPRODUCT(($T$122:$T$127=B137)*($V$122:$V$127)) -> 2 | H137: =SUMPRODUCT(($S$122:$S$127=B137)*($V$122:$V$127))+SUMPRODUCT(($T$122:$T$127=B137)*($U$122:$U$127)) -> 4 | I137: =(D137*2)+E137 -> 2 | J137: =(F137*2)+E137 -> 4
F140: Rangliste der Gruppendritten:
B142: Nation | C142: Spiele | D142: gew | E142: unent | F142: verl | G142: Tore+ | H142: Tore- | I142: Punkte+ | J142: Punkte-
B143: Belgien | C143: 3 | D143: 1 | E143: 1 | F143: 1 | G143: 5 | H143: 5 | I143: 3 | J143: 3
B144: Polen | C144: 3 | D144: 1 | E144: 1 | F144: 1 | G144: 1 | H144: 3 | I144: 3 | J144: 3
B145: Bulgarien | C145: 3 | D145: 0 | E145: 2 | F145: 1 | G145: 2 | H145: 4 | I145: 2 | J145: 4
B146: Uruguay | C146: 3 | D146: 0 | E146: 2 | F146: 1 | G146: 2 | H146: 7 | I146: 2 | J146: 4
B147: Ungarn | C147: 3 | D147: 1 | E147: 0 | F147: 2 | G147: 2 | H147: 9 | I147: 2 | J147: 4
B148: Nordirland | C148: 3 | D148: 0 | E148: 1 | F148: 2 | G148: 2 | H148: 6 | I148: 1 | J148: 5
F151: Achtelfinale:
C153: 1986-06-15 | D153: Mexiko | E153: Bulgarien | F153: 2 | G153: 0 | I153: Mexiko-Stadt | S153: Mexiko | T153: Bulgarien | U153: 2 | V153: 0 | X153: =(IF(U153>V153,3,IF(U153=V153,1,2))) -> 3 | Y153: =(IF(V153>U153,3,IF(U153=V153,1,2))) -> 2
F154: (1 | G154: 0) | S154: UdSSR | T154: Belgien | U154: 3 | V154: 4 | X154: 2 | Y154: 3
C155: 1986-06-15 | D155: UdSSR | E155: Belgien | F155: 3 | G155: 4 | H155: n.V. | I155: León | S155: Brasilien | T155: Polen | U155: 4 | V155: 0 | X155: 3 | Y155: 2
F156: 2 | G156: 2 | S156: Argentinien | T156: Uruguay | U156: 1 | V156: 0 | X156: 3 | Y156: 2
F157: (1 | G157: 0) | S157: Italien | T157: Frankreich | U157: 0 | V157: 2 | X157: 2 | Y157: 3
C158: 1986-06-16 | D158: Brasilien | E158: Polen | F158: 4 | G158: 0 | I158: Guadalajara | S158: Marokko | T158: BRD | U158: 0 | V158: 1 | X158: 2 | Y158: 3
F159: (1 | G159: 0) | S159: England | T159: Paraguay | U159: 3 | V159: 0 | X159: 3 | Y159: 2
C160: 1986-06-16 | D160: Argentinien | E160: Uruguay | F160: 1 | G160: 0 | I160: Puebla | S160: Dänemark | T160: Spanien | U160: 1 | V160: 5 | X160: 2 | Y160: 3
F161: (1 | G161: 0)
C162: 1986-06-17 | D162: Italien | E162: Frankreich | F162: 0 | G162: 2 | I162: Mexiko-Stadt (Olympiastadion)
F163: (0 | G163: 1)
C164: 1986-06-17 | D164: Marokko | E164: BRD | F164: 0 | G164: 1 | I164: Monterrey (Universitario)
F165: (0 | G165: 0)
C166: 1986-06-18 | D166: England | E166: Paraguay | F166: 3 | G166: 0 | I166: Mexiko-Stadt
F167: (1 | G167: 0)
C168: 1986-06-18 | D168: Dänemark | E168: Spanien | F168: 1 | G168: 5 | I168: Querétaro
F169: (1 | G169: 1)
F172: Viertelfinale:
C174: 1986-06-21 | D174: Brasilien | E174: Frankreich | F174: 3 | G174: 4 | H174: n.E. | I174: Guadalajara | S174: Brasilien | T174: Frankreich | U174: 4 | V174: 5 | X174: =(IF(U174>V174,3,IF(U174=V174,1,2))) -> 2 | Y174: =(IF(V174>U174,3,IF(U174=V174,1,2))) -> 3
F175: 1 | G175: 1 | H175: n.V. | S175: BRD | T175: Mexiko | U175: 4 | V175: 1 | X175: 3 | Y175: 2
F176: 1 | G176: 1 | S176: Argentinien | T176: England | U176: 2 | V176: 1 | X176: 3 | Y176: 2
F177: (1 | G177: 1) | S177: Spanien | T177: Belgien | U177: 5 | V177: 6 | X177: 2 | Y177: 3
C178: 1986-06-21 | D178: BRD | E178: Mexiko | F178: 4 | G178: 1 | H178: n.E. | I178: Monterrey (Universitario)
F179: 0 | G179: 0 | H179: n.V.
F180: 0 | G180: 0
F181: (0 | G181: 0)
C182: 1986-06-22 | D182: Argentinien | E182: England | F182: 2 | G182: 1 | I182: Mexiko-Stadt
F183: (0 | G183: 0)
C184: 1986-06-22 | D184: Spanien | E184: Belgien | F184: 4 | G184: 5 | H184: n.E. | I184: Puebla
F185: 1 | G185: 1 | H185: n.V.
F186: 1 | G186: 1
F187: (0 | G187: 1)
F190: Halbfinale:
C192: 1986-06-25 | D192: Frankreich | E192: BRD | F192: 0 | G192: 2 | I192: Guadalajara | S192: Frankreich | T192: BRD | U192: 0 | V192: 2 | X192: =(IF(U192>V192,3,IF(U192=V192,1,2))) -> 2 | Y192: =(IF(V192>U192,3,IF(U192=V192,1,2))) -> 3
F193: (0 | G193: 1) | S193: Argentinien | T193: Belgien | U193: 2 | V193: 0 | X193: 3 | Y193: 2
C194: 1986-06-25 | D194: Argentinien | E194: Belgien | F194: 2 | G194: 0 | I194: Mexiko-Stadt
F195: (0 | G195: 0)
C198: Spiel um Platz 3 am 28. Juli 1986 in Puebla:
E199: Frankreich | G199: Belgien | S199: Frankreich | T199: Belgien | U199: 4 | V199: 2 | X199: =(IF(U199>V199,3,IF(U199=V199,1,2))) -> 3 | Y199: =(IF(V199>U199,3,IF(U199=V199,1,2))) -> 2
E200: 4 | G200: 2 | H200: n.V.
E201: 2 | G201: 2
E202: (2 | G202: 1)
C207: Endspiel am 29. Juli 1986 in Mexiko-Stadt
E208: BRD | G208: Argentinien | S208: BRD | T208: Argentinien | U208: 2 | V208: 3 | X208: 2 | Y208: 3
E209: 2 | G209: 3
E210: (0 | G210: 1)
A215: Auswertung | B215: Nation | C215: Spiele | D215: gew | E215: unent | F215: verl | G215: Tore+ | H215: Tore- | I215: Punkte+ | J215: Punkte-
B216: Argentinien | C216: =COUNTIF($S$12:$T$208,"Argentinien") -> 7 | D216: =SUMPRODUCT(($S$12:$T$208=B216)*($X$12:$Y$208=3)) -> 6 | E216: =SUMPRODUCT(($S$12:$T$208=B216)*($X$12:$Y$208=1)) -> 1 | F216: =SUMPRODUCT(($S$12:$T$208=B216)*($X$12:$Y$208=2)) -> 0 | G216: =SUMPRODUCT(($S$12:$S$208=B216)*($U$12:$U$208))+SUMPRODUCT(($T$12:$T$208=B216)*($V$12:$V$208)) -> 14 | H216: =SUMPRODUCT(($S$12:$S$208=B216)*($V$12:$V$208))+SUMPRODUCT(($T$12:$T$208=B216)*($U$12:$U$208)) -> 5 | I216: =(D216*2)+E216 -> 13 | J216: =(F216*2)+E216 -> 1
B217: Frankreich | C217: =COUNTIF($S$12:$T$208,"Frankreich") -> 7 | D217: 5 | E217: 1 | F217: 1 | G217: 16 | H217: 9 | I217: 11 | J217: 3
B218: BRD | C218: =COUNTIF($S$12:$T$208,"BRD") -> 7 | D218: 4 | E218: 1 | F218: 2 | G218: 12 | H218: 8 | I218: 9 | J218: 5
B219: Brasilien | C219: =COUNTIF($S$12:$T$208,"Brasilien") -> 5 | D219: 4 | E219: 0 | F219: 1 | G219: 13 | H219: 5 | I219: 8 | J219: 2
B220: Mexiko | C220: =COUNTIF($S$12:$T$208,"Mexiko") -> 5 | D220: 3 | E220: 1 | F220: 1 | G220: 7 | H220: 6 | I220: 7 | J220: 3
B221: Belgien | C221: =COUNTIF($S$12:$T$208,"Belgien") -> 7 | D221: 3 | E221: 1 | F221: 3 | G221: 17 | H221: 19 | I221: 7 | J221: 7
B222: Dänemark | C222: =COUNTIF($S$12:$T$208,"Dänemark") -> 4 | D222: 3 | E222: 0 | F222: 1 | G222: 10 | H222: 6 | I222: 6 | J222: 2
B223: Spanien | C223: =COUNTIF($S$12:$T$208,"Spanien") -> 5 | D223: 3 | E223: 0 | F223: 2 | G223: 15 | H223: 9 | I223: 6 | J223: 4
B224: UdSSR | C224: =COUNTIF($S$12:$T$208,"UdSSR") -> 4 | D224: 2 | E224: 1 | F224: 1 | G224: 12 | H224: 5 | I224: 5 | J224: 3
B225: England | C225: =COUNTIF($S$12:$T$208,"England") -> 5 | D225: 2 | E225: 1 | F225: 2 | G225: 7 | H225: 3 | I225: 5 | J225: 5
B226: Italien | C226: =COUNTIF($S$12:$T$208,"Italien") -> 4 | D226: 1 | E226: 2 | F226: 1 | G226: 5 | H226: 6 | I226: 4 | J226: 4
B227: Paraguay | C227: =COUNTIF($S$12:$T$208,"Paraguay") -> 4 | D227: 1 | E227: 2 | F227: 1 | G227: 4 | H227: 6 | I227: 4 | J227: 4
B228: Marokko | C228: =COUNTIF($S$12:$T$208,"Marokko") -> 4 | D228: 1 | E228: 2 | F228: 1 | G228: 3 | H228: 2 | I228: 4 | J228: 4
B229: Polen | C229: =COUNTIF($S$12:$T$208,"Polen") -> 4 | D229: 1 | E229: 1 | F229: 2 | G229: 1 | H229: 7 | I229: 3 | J229: 5
B230: Portugal | C230: =COUNTIF($S$12:$T$208,"Portugal") -> 3 | D230: 1 | E230: 0 | F230: 2 | G230: 2 | H230: 4 | I230: 2 | J230: 4
B231: Ungarn | C231: =COUNTIF($S$12:$T$208,"Ungarn") -> 3 | D231: 1 | E231: 0 | F231: 2 | G231: 2 | H231: 9 | I231: 2 | J231: 4
B232: Bulgarien | C232: =COUNTIF($S$12:$T$208,"Bulgarien") -> 4 | D232: 0 | E232: 2 | F232: 2 | G232: 2 | H232: 6 | I232: 2 | J232: 6
B233: Uruguay | C233: =COUNTIF($S$12:$T$208,"Uruguay") -> 4 | D233: 0 | E233: 2 | F233: 2 | G233: 2 | H233: 8 | I233: 2 | J233: 6
B234: Südkorea | C234: =COUNTIF($S$12:$T$208,"Südkorea") -> 3 | D234: 0 | E234: 1 | F234: 2 | G234: 4 | H234: 7 | I234: 1 | J234: 5
B235: Nordirland | C235: =COUNTIF($S$12:$T$208,"Nordirland") -> 3 | D235: 0 | E235: 1 | F235: 2 | G235: 2 | H235: 6 | I235: 1 | J235: 5
B236: Schottland | C236: =COUNTIF($S$12:$T$208,"Schottland") -> 3 | D236: 0 | E236: 1 | F236: 2 | G236: 1 | H236: 3 | I236: 1 | J236: 5
B237: Algerien | C237: =COUNTIF($S$12:$T$208,"Algerien") -> 3 | D237: 0 | E237: 1 | F237: 2 | G237: 1 | H237: 5 | I237: 1 | J237: 5
B238: Irak | C238: =COUNTIF($S$12:$T$208,"Irak") -> 3 | D238: 0 | E238: 0 | F238: 3 | G238: 1 | H238: 4 | I238: 0 | J238: 6
B239: Kanada | C239: =COUNTIF($S$12:$T$208,"Kanada") -> 3 | D239: 0 | E239: 0 | F239: 3 | G239: 0 | H239: 5 | I239: 0 | J239: 6

Sheet 1990
A2: 14. WM 1990 in Italien
A4: 8. Juni-8. Juli 1990
A5: Teilnehmende Nationen: 24 --- Bewerbungen: 112
F10: Gruppe A
C12: 1990-06-09 | D12: Italien | E12: Österreich | F12: 1 | G12: 0 | I12: Rom | S12: Italien | T12: Österreich | U12: 1 | V12: 0 | X12: =(IF(U12>V12,3,IF(U12=V12,1,2))) -> 3 | Y12: =(IF(V12>U12,3,IF(U12=V12,1,2))) -> 2 | AA12: BRD
F13: (0 | G13: 0) | S13: USA | T13: ČSFR | U13: 1 | V13: 5 | X13: 2 | Y13: 3 | AA13: Italien
C14: 1990-06-10 | D14: USA | E14: ČSFR | F14: 1 | G14: 5 | I14: Florenz | S14: Italien | T14: USA | U14: 1 | V14: 0 | X14: =(IF(U14>V14,3,IF(U14=V14,1,2))) -> 3 | Y14: =(IF(V14>U14,3,IF(U14=V14,1,2))) -> 2 | AA14: Argentinien
F15: (0 | G15: 2) | S15: Österreich | T15: ČSFR | U15: 0 | V15: 1 | X15: 2 | Y15: 3 | AA15: England
C16: 1990-06-14 | D16: Italien | E16: USA | F16: 1 | G16: 0 | I16: Rom | S16: Italien | T16: ČSFR | U16: 2 | V16: 0 | X16: 3 | Y16: 2 | AA16: Brasilien
F17: (1 | G17: 0) | S17: Österreich | T17: USA | U17: 2 | V17: 1 | X17: 3 | Y17: 2 | AA17: ČSFR
C18: 1990-06-15 | D18: Österreich | E18: ČSFR | F18: 0 | G18: 1 | I18: Florenz | AA18: Jugoslawien
F19: (0 | G19: 1) | AA19: Kamerun
C20: 1990-06-19 | D20: Italien | E20: ČSFR | F20: 2 | G20: 0 | I20: Rom | AA20: Spanien
F21: (1 | G21: 0) | AA21: Irland
C22: 1990-06-19 | D22: Österreich | E22: USA | F22: 2 | G22: 1 | I22: Florenz | AA22: Belgien
F23: (0 | G23: 0) | AA23: Costa Rica
AA24: Rumänien
AA25: Kolumbien
B26: Nation | C26: Spiele | D26: gew | E26: unent | F26: verl | G26: Tore+ | H26: Tore- | I26: Punkte+ | J26: Punkte- | AA26: Niederlande
B27: Italien | C27: =COUNTIF($S$12:$T$17,"Italien") -> 3 | D27: =SUMPRODUCT(($S$12:$T$17=B27)*($X$12:$Y$17=3)) -> 3 | E27: =SUMPRODUCT(($S$12:$T$17=B27)*($X$12:$Y$17=1)) -> 0 | F27: =SUMPRODUCT(($S$12:$T$17=B27)*($X$12:$Y$17=2)) -> 0 | G27: =SUMPRODUCT(($S$12:$S$17=B27)*($U$12:$U$17))+SUMPRODUCT(($T$12:$T$17=B27)*($V$12:$V$17)) -> 4 | H27: =SUMPRODUCT(($S$12:$S$17=B27)*($V$12:$V$17))+SUMPRODUCT(($T$12:$T$17=B27)*($U$12:$U$17)) -> 0 | I27: =(D27*2)+E27 -> 6 | J27: =(F27*2)+E27 -> 0 | AA27: Uruguay
B28: ČSFR | C28: =COUNTIF($S$12:$T$17,"ČSFR") -> 3 | D28: =SUMPRODUCT(($S$12:$T$17=B28)*($X$12:$Y$17=3)) -> 2 | E28: =SUMPRODUCT(($S$12:$T$17=B28)*($X$12:$Y$17=1)) -> 0 | F28: =SUMPRODUCT(($S$12:$T$17=B28)*($X$12:$Y$17=2)) -> 1 | G28: =SUMPRODUCT(($S$12:$S$17=B28)*($U$12:$U$17))+SUMPRODUCT(($T$12:$T$17=B28)*($V$12:$V$17)) -> 6 | H28: =SUMPRODUCT(($S$12:$S$17=B28)*($V$12:$V$17))+SUMPRODUCT(($T$12:$T$17=B28)*($U$12:$U$17)) -> 3 | I28: =(D28*2)+E28 -> 4 | J28: =(F28*2)+E28 -> 2 | AA28: UdSSR
B29: Österreich | C29: =COUNTIF($S$12:$T$17,"Österreich") -> 3 | D29: 1 | E29: 0 | F29: 2 | G29: 2 | H29: 3 | I29: 2 | J29: 4 | AA29: Österreich
B30: USA | C30: =COUNTIF($S$12:$T$17,"USA") -> 3 | D30: 0 | E30: 0 | F30: 3 | G30: 2 | H30: 8 | I30: 0 | J30: 6 | AA30: Schottland
AA31: Ägypten
AA32: Schweden
F33: Gruppe B | AA33: USA
AA34: VAE
C35: 1990-06-08 | D35: Argentinien | E35: Kamerun | F35: 0 | G35: 1 | I35: Mailand | S35: Argentinien | T35: Kamerun | U35: 0 | V35: 1 | X35: =(IF(U35>V35,3,IF(U35=V35,1,2))) -> 2 | Y35: =(IF(V35>U35,3,IF(U35=V35,1,2))) -> 3 | AA35: Südkorea
F36: (0 | G36: 0) | S36: UdSSR | T36: Rumänien | U36: 0 | V36: 2 | X36: =(IF(U36>V36,3,IF(U36=V36,1,2))) -> 2 | Y36: =(IF(V36>U36,3,IF(U36=V36,1,2))) -> 3
C37: 1990-06-09 | D37: UdSSR | E37: Rumänien | F37: 0 | G37: 2 | I37: Bari | S37: Argentinien | T37: UdSSR | U37: 2 | V37: 0 | X37: 3 | Y37: 2
F38: (0 | G38: 1) | S38: Kamerun | T38: Rumänien | U38: 2 | V38: 1 | X38: 3 | Y38: 2
C39: 1990-06-13 | D39: Argentinien | E39: UdSSR | F39: 2 | G39: 0 | I39: Neapel | S39: Argentinien | T39: Rumänien | U39: 1 | V39: 1 | X39: 1 | Y39: 1
F40: (1 | G40: 0) | S40: Kamerun | T40: UdSSR | U40: 0 | V40: 4 | X40: 2 | Y40: 3
C41: 1990-06-14 | D41: Kamerun | E41: Rumänien | F41: 2 | G41: 1 | I41: Bari
F42: (0 | G42: 0)
C43: 1990-06-18 | D43: Argentinien | E43: Rumänien | F43: 1 | G43: 1 | I43: Neapel
F44: (0 | G44: 0)
C45: 1990-06-18 | D45: Kamerun | E45: UdSSR | F45: 0 | G45: 4 | I45: Bari
F46: (0 | G46: 2)
B49: Nation | C49: Spiele | D49: gew | E49: unent | F49: verl | G49: Tore+ | H49: Tore- | I49: Punkte+ | J49: Punkte-
B50: Kamerun | C50: =COUNTIF($S$35:$T$40,"Kamerun") -> 3 | D50: =SUMPRODUCT(($S$35:$T$40=B50)*($X$35:$Y$40=3)) -> 2 | E50: =SUMPRODUCT(($S$35:$T$40=B50)*($X$35:$Y$40=1)) -> 0 | F50: =SUMPRODUCT(($S$35:$T$40=B50)*($X$35:$Y$40=2)) -> 1 | G50: =SUMPRODUCT(($S$35:$S$40=B50)*($U$35:$U$40))+SUMPRODUCT(($T$35:$T$40=B50)*($V$35:$V$40)) -> 3 | H50: =SUMPRODUCT(($S$35:$S$40=B50)*($V$35:$V$40))+SUMPRODUCT(($T$35:$T$40=B50)*($U$35:$U$40)) -> 5 | I50: =(D50*2)+E50 -> 4 | J50: =(F50*2)+E50 -> 2
B51: Rumänien | C51: =COUNTIF($S$35:$T$40,"Rumänien") -> 3 | D51: =SUMPRODUCT(($S$35:$T$40=B51)*($X$35:$Y$40=3)) -> 1 | E51: =SUMPRODUCT(($S$35:$T$40=B51)*($X$35:$Y$40=1)) -> 1 | F51: =SUMPRODUCT(($S$35:$T$40=B51)*($X$35:$Y$40=2)) -> 1 | G51: =SUMPRODUCT(($S$35:$S$40=B51)*($U$35:$U$40))+SUMPRODUCT(($T$35:$T$40=B51)*($V$35:$V$40)) -> 4 | H51: =SUMPRODUCT(($S$35:$S$40=B51)*($V$35:$V$40))+SUMPRODUCT(($T$35:$T$40=B51)*($U$35:$U$40)) -> 3 | I51: =(D51*2)+E51 -> 3 | J51: =(F51*2)+E51 -> 3
B52: Argentinien | C52: =COUNTIF($S$35:$T$40,"Argentinien") -> 3 | D52: 1 | E52: 1 | F52: 1 | G52: 3 | H52: 2 | I52: 3 | J52: 3
B53: UdSSR | C53: =COUNTIF($S$35:$T$40,"UdSSR") -> 3 | D53: 1 | E53: 0 | F53: 2 | G53: 4 | H53: 4 | I53: 2 | J53: 4
F56: Gruppe C
C58: 1990-06-10 | D58: Brasilien | E58: Schweden | F58: 2 | G58: 1 | I58: Turin | S58: Brasilien | T58: Schweden | U58: 2 | V58: 1 | X58: =(IF(U58>V58,3,IF(U58=V58,1,2))) -> 3 | Y58: =(IF(V58>U58,3,IF(U58=V58,1,2))) -> 2
F59: (1 | G59: 0) | S59: Costa Rica | T59: Schottland | U59: 1 | V59: 0 | X59: 3 | Y59: 2
C60: 1990-06-11 | D60: Costa Rica | E60: Schottland | F60: 1 | G60: 0 | I60: Genua | S60: Brasilien | T60: Costa Rica | U60: 1 | V60: 0 | X60: 3 | Y60: 2
F61: (0 | G61: 0) | S61: Schweden | T61: Schottland | U61: 1 | V61: 2 | X61: 2 | Y61: 3
C62: 1990-06-16 | D62: Brasilien | E62: Costa Rica | F62: 1 | G62: 0 | I62: Turin | S62: Brasilien | T62: Schottland | U62: 1 | V62: 0 | X62: 3 | Y62: 2
F63: (1 | G63: 0) | S63: Schweden | T63: Costa Rica | U63: 1 | V63: 2 | X63: 2 | Y63: 3
C64: 1990-06-16 | D64: Schweden | E64: Schottland | F64: 1 | G64: 2 | I64: Genua
F65: (0 | G65: 1)
C66: 1990-06-20 | D66: Brasilien | E66: Schottland | F66: 1 | G66: 0 | I66: Turin
F67: (0 | G67: 0)
C68: 1990-06-20 | D68: Schweden | E68: Costa Rica | F68: 1 | G68: 2 | I68: Genua
F69: (1 | G69: 0)
B72: Nation | C72: Spiele | D72: gew | E72: unent | F72: verl | G72: Tore+ | H72: Tore- | I72: Punkte+ | J72: Punkte-
B73: Brasilien | C73: =COUNTIF($S$58:$T$63,"Brasilien") -> 3 | D73: =SUMPRODUCT(($S$58:$T$63=B73)*($X$58:$Y$63=3)) -> 3 | E73: =SUMPRODUCT(($S$58:$T$63=B73)*($X$58:$Y$63=1)) -> 0 | F73: =SUMPRODUCT(($S$58:$T$63=B73)*($X$58:$Y$63=2)) -> 0 | G73: =SUMPRODUCT(($S$58:$S$63=B73)*($U$58:$U$63))+SUMPRODUCT(($T$58:$T$63=B73)*($V$58:$V$63)) -> 4 | H73: =SUMPRODUCT(($S$58:$S$63=B73)*($V$58:$V$63))+SUMPRODUCT(($T$58:$T$63=B73)*($U$58:$U$63)) -> 1 | I73: =(D73*2)+E73 -> 6 | J73: =(F73*2)+E73 -> 0
B74: Costa Rica | C74: =COUNTIF($S$58:$T$63,"Costa Rica") -> 3 | D74: =SUMPRODUCT(($S$58:$T$63=B74)*($X$58:$Y$63=3)) -> 2 | E74: =SUMPRODUCT(($S$58:$T$63=B74)*($X$58:$Y$63=1)) -> 0 | F74: =SUMPRODUCT(($S$58:$T$63=B74)*($X$58:$Y$63=2)) -> 1 | G74: =SUMPRODUCT(($S$58:$S$63=B74)*($U$58:$U$63))+SUMPRODUCT(($T$58:$T$63=B74)*($V$58:$V$63)) -> 3 | H74: =SUMPRODUCT(($S$58:$S$63=B74)*($V$58:$V$63))+SUMPRODUCT(($T$58:$T$63=B74)*($U$58:$U$63)) -> 2 | I74: =(D74*2)+E74 -> 4 | J74: =(F74*2)+E74 -> 2
B75: Schottland | C75: =COUNTIF($S$58:$T$63,"Schottland") -> 3 | D75: 1 | E75: 0 | F75: 2 | G75: 2 | H75: 3 | I75: 2 | J75: 4
B76: Schweden | C76: =COUNTIF($S$58:$T$63,"Schweden") -> 3 | D76: 0 | E76: 0 | F76: 3 | G76: 3 | H76: 6 | I76: 0 | J76: 6
F79: Gruppe D
C81: 1990-06-09 | D81: VAE | E81: Kolumbien | F81: 0 | G81: 2 | I81: Bologna | S81: VAE | T81: Kolumbien | U81: 0 | V81: 2 | X81: =(IF(U81>V81,3,IF(U81=V81,1,2))) -> 2 | Y81: =(IF(V81>U81,3,IF(U81=V81,1,2))) -> 3
F82: (0 | G82: 0) | S82: BRD | T82: Jugoslawien | U82: 4 | V82: 1 | X82: 3 | Y82: 2
C83: 1990-06-10 | D83: BRD | E83: Jugoslawien | F83: 4 | G83: 1 | I83: Mailand | S83: Jugoslawien | T83: Kolumbien | U83: 1 | V83: 0 | X83: 3 | Y83: 2
F84: (2 | G84: 0) | S84: BRD | T84: VAE | U84: 5 | V84: 1 | X84: 3 | Y84: 2
C85: 1990-06-14 | D85: Jugoslawien | E85: Kolumbien | F85: 1 | G85: 0 | I85: Bologna | S85: BRD | T85: Kolumbien | U85: 1 | V85: 1 | X85: 1 | Y85: 1
F86: (0 | G86: 0) | S86: Jugoslawien | T86: VAE | U86: 4 | V86: 1 | X86: 3 | Y86: 2
C87: 1990-06-15 | D87: BRD | E87: VAE | F87: 5 | G87: 1 | I87: Mailand
F88: (2 | G88: 0)
C89: 1990-06-19 | D89: BRD | E89: Kolumbien | F89: 1 | G89: 1 | I89: Mailand
F90: (0 | G90: 0)
C91: 1990-06-19 | D91: Jugoslawien | E91: VAE | F91: 4 | G91: 1 | I91: Bologna
F92: (2 | G92: 1)
B95: Nation | C95: Spiele | D95: gew | E95: unent | F95: verl | G95: Tore+ | H95: Tore- | I95: Punkte+ | J95: Punkte-
B96: BRD | C96: =COUNTIF($S$81:$T$86,"BRD") -> 3 | D96: =SUMPRODUCT(($S$81:$T$86=B96)*($X$81:$Y$86=3)) -> 2 | E96: =SUMPRODUCT(($S$81:$T$86=B96)*($X$81:$Y$86=1)) -> 1 | F96: =SUMPRODUCT(($S$81:$T$86=B96)*($X$81:$Y$86=2)) -> 0 | G96: =SUMPRODUCT(($S$81:$S$86=B96)*($U$81:$U$86))+SUMPRODUCT(($T$81:$T$86=B96)*($V$81:$V$86)) -> 10 | H96: =SUMPRODUCT(($S$81:$S$86=B96)*($V$81:$V$86))+SUMPRODUCT(($T$81:$T$86=B96)*($U$81:$U$86)) -> 3 | I96: =(D96*2)+E96 -> 5 | J96: =(F96*2)+E96 -> 1
B97: Jugoslawien | C97: =COUNTIF($S$81:$T$86,"Jugoslawien") -> 3 | D97: =SUMPRODUCT(($S$81:$T$86=B97)*($X$81:$Y$86=3)) -> 2 | E97: =SUMPRODUCT(($S$81:$T$86=B97)*($X$81:$Y$86=1)) -> 0 | F97: =SUMPRODUCT(($S$81:$T$86=B97)*($X$81:$Y$86=2)) -> 1 | G97: =SUMPRODUCT(($S$81:$S$86=B97)*($U$81:$U$86))+SUMPRODUCT(($T$81:$T$86=B97)*($V$81:$V$86)) -> 6 | H97: =SUMPRODUCT(($S$81:$S$86=B97)*($V$81:$V$86))+SUMPRODUCT(($T$81:$T$86=B97)*($U$81:$U$86)) -> 5 | I97: =(D97*2)+E97 -> 4 | J97: =(F97*2)+E97 -> 2
B98: Kolumbien | C98: =COUNTIF($S$81:$T$86,"Kolumbien") -> 3 | D98: 1 | E98: 1 | F98: 1 | G98: 3 | H98: 2 | I98: 3 | J98: 3
B99: VAE | C99: =COUNTIF($S$81:$T$86,"VAE") -> 3 | D99: 0 | E99: 0 | F99: 3 | G99: 2 | H99: 11 | I99: 0 | J99: 6
F102: Gruppe E
C104: 1990-06-12 | D104: Belgien | E104: Südkorea | F104: 2 | G104: 0 | I104: Verona | S104: Belgien | T104: Südkorea | U104: 2 | V104: 0 | X104: =(IF(U104>V104,3,IF(U104=V104,1,2))) -> 3 | Y104: =(IF(V104>U104,3,IF(U104=V104,1,2))) -> 2
F105: (0 | G105: 0) | S105: Uruguay | T105: Spanien | U105: 0 | V105: 0 | X105: 1 | Y105: 1
C106: 1990-06-13 | D106: Uruguay | E106: Spanien | F106: 0 | G106: 0 | I106: Udine | S106: Belgien | T106: Uruguay | U106: 3 | V106: 1 | X106: 3 | Y106: 2
C107: 1990-06-17 | D107: Belgien | E107: Uruguay | F107: 3 | G107: 1 | I107: Verona | S107: Südkorea | T107: Spanien | U107: 1 | V107: 3 | X107: 2 | Y107: 3
F108: (2 | G108: 0) | S108: Belgien | T108: Spanien | U108: 1 | V108: 2 | X108: 2 | Y108: 3
C109: 1990-06-17 | D109: Südkorea | E109: Spanien | F109: 1 | G109: 3 | I109: Udine | S109: Südkorea | T109: Uruguay | U109: 0 | V109: 1 | X109: 2 | Y109: 3
F110: (1 | G110: 1)
C111: 1990-06-21 | D111: Belgien | E111: Spanien | F111: 1 | G111: 2 | I111: Verona
F112: (1 | G112: 2)
C113: 1990-06-21 | D113: Südkorea | E113: Uruguay | F113: 0 | G113: 1 | I113: Udine
F114: (0 | G114: 0)
B117: Nation | C117: Spiele | D117: gew | E117: unent | F117: verl | G117: Tore+ | H117: Tore- | I117: Punkte+ | J117: Punkte-
B118: Spanien | C118: =COUNTIF($S$104:$T$109,"Spanien") -> 3 | D118: =SUMPRODUCT(($S$104:$T$109=B118)*($X$104:$Y$109=3)) -> 2 | E118: =SUMPRODUCT(($S$104:$T$109=B118)*($X$104:$Y$109=1)) -> 1 | F118: =SUMPRODUCT(($S$104:$T$109=B118)*($X$104:$Y$109=2)) -> 0 | G118: =SUMPRODUCT(($S$104:$S$109=B118)*($U$104:$U$109))+SUMPRODUCT(($T$104:$T$109=B118)*($V$104:$V$109)) -> 5 | H118: =SUMPRODUCT(($S$104:$S$109=B118)*($V$104:$V$109))+SUMPRODUCT(($T$104:$T$109=B118)*($U$104:$U$109)) -> 2 | I118: =(D118*2)+E118 -> 5 | J118: =(F118*2)+E118 -> 1
B119: Belgien | C119: =COUNTIF($S$104:$T$109,"Belgien") -> 3 | D119: =SUMPRODUCT(($S$104:$T$109=B119)*($X$104:$Y$109=3)) -> 2 | E119: =SUMPRODUCT(($S$104:$T$109=B119)*($X$104:$Y$109=1)) -> 0 | F119: =SUMPRODUCT(($S$104:$T$109=B119)*($X$104:$Y$109=2)) -> 1 | G119: =SUMPRODUCT(($S$104:$S$109=B119)*($U$104:$U$109))+SUMPRODUCT(($T$104:$T$109=B119)*($V$104:$V$109)) -> 6 | H119: =SUMPRODUCT(($S$104:$S$109=B119)*($V$104:$V$109))+SUMPRODUCT(($T$104:$T$109=B119)*($U$104:$U$109)) -> 3 | I119: =(D119*2)+E119 -> 4 | J119: =(F119*2)+E119 -> 2
B120: Uruguay | C120: =COUNTIF($S$104:$T$109,"Uruguay") -> 3 | D120: 1 | E120: 1 | F120: 1 | G120: 2 | H120: 3 | I120: 3 | J120: 3
B121: Südkorea | C121: =COUNTIF($S$104:$T$109,"Südkorea") -> 3 | D121: 0 | E121: 0 | F121: 3 | G121: 1 | H121: 6 | I121: 0 | J121: 6
F124: Gruppe F
C126: 1990-06-11 | D126: England | E126: Irland | F126: 1 | G126: 1 | I126: Cagliari | S126: England | T126: Irland | U126: 1 | V126: 1 | X126: =(IF(U126>V126,3,IF(U126=V126,1,2))) -> 1 | Y126: =(IF(V126>U126,3,IF(U126=V126,1,2))) -> 1
F127: (1 | G127: 0) | S127: Niederlande | T127: Ägypten | U127: 1 | V127: 1 | X127: 1 | Y127: 1
C128: 1990-06-12 | D128: Niederlande | E128: Ägypten | F128: 1 | G128: 1 | I128: Palermo | S128: England | T128: Niederlande | U128: 0 | V128: 0 | X128: 1 | Y128: 1
F129: (0 | G129: 0) | S129: Irland | T129: Ägypten | U129: 0 | V129: 0 | X129: 1 | Y129: 1
C130: 1990-06-16 | D130: England | E130: Niederlande | F130: 0 | G130: 0 | I130: Cagliari | S130: England | T130: Ägypten | U130: 1 | V130: 0 | X130: 3 | Y130: 2
C131: 1990-06-17 | D131: Irland | E131: Ägypten | F131: 0 | G131: 0 | I131: Palermo | S131: Irland | T131: Niederlande | U131: 1 | V131: 1 | X131: 1 | Y131: 1
C132: 1990-06-21 | D132: England | E132: Ägypten | F132: 1 | G132: 0 | I132: Cagliari
F133: (0 | G133: 0)
C134: 1990-06-21 | D134: Irland | E134: Niederlande | F134: 1 | G134: 1 | I134: Palermo
F135: (0 | G135: 1)
B137: Nation | C137: Spiele | D137: gew | E137: unent | F137: verl | G137: Tore+ | H137: Tore- | I137: Punkte+ | J137: Punkte-
B138: England | C138: =COUNTIF($S$126:$T$131,"England") -> 3 | D138: =SUMPRODUCT(($S$126:$T$131=B138)*($X$126:$Y$131=3)) -> 1 | E138: =SUMPRODUCT(($S$126:$T$131=B138)*($X$126:$Y$131=1)) -> 2 | F138: =SUMPRODUCT(($S$126:$T$131=B138)*($X$126:$Y$131=2)) -> 0 | G138: =SUMPRODUCT(($S$126:$S$131=B138)*($U$126:$U$131))+SUMPRODUCT(($T$126:$T$131=B138)*($V$126:$V$131)) -> 2 | H138: =SUMPRODUCT(($S$126:$S$131=B138)*($V$126:$V$131))+SUMPRODUCT(($T$126:$T$131=B138)*($U$126:$U$131)) -> 1 | I138: =(D138*2)+E138 -> 4 | J138: =(F138*2)+E138 -> 2
B139: Irland | C139: =COUNTIF($S$126:$T$131,"Irland") -> 3 | D139: =SUMPRODUCT(($S$126:$T$131=B139)*($X$126:$Y$131=3)) -> 0 | E139: =SUMPRODUCT(($S$126:$T$131=B139)*($X$126:$Y$131=1)) -> 3 | F139: =SUMPRODUCT(($S$126:$T$131=B139)*($X$126:$Y$131=2)) -> 0 | G139: =SUMPRODUCT(($S$126:$S$131=B139)*($U$126:$U$131))+SUMPRODUCT(($T$126:$T$131=B139)*($V$126:$V$131)) -> 2 | H139: =SUMPRODUCT(($S$126:$S$131=B139)*($V$126:$V$131))+SUMPRODUCT(($T$126:$T$131=B139)*($U$126:$U$131)) -> 2 | I139: =(D139*2)+E139 -> 3 | J139: =(F139*2)+E139 -> 3
B140: Niederlande | C140: =COUNTIF($S$126:$T$131,"Niederlande") -> 3 | D140: 0 | E140: 3 | F140: 0 | G140: 2 | H140: 2 | I140: 3 | J140: 3
B141: Ägypten | C141: =COUNTIF($S$126:$T$131,"Ägypten") -> 3 | D141: 0 | E141: 2 | F141: 1 | G141: 1 | H141: 2 | I141: 2 | J141: 4
C143: Irland durch Losentscheid Gruppenzweiter
F146: Rangliste der Gruppendritten:
B148: Nation | C148: Spiele | D148: gew | E148: unent | F148: verl | G148: Tore+ | H148: Tore- | I148: Punkte+ | J148: Punkte-
B149: Argentinien | C149: 3 | D149: 1 | E149: 1 | F149: 1 | G149: 3 | H149: 2 | I149: 3 | J149: 3
B150: Kolumbien | C150: 3 | D150: 1 | E150: 1 | F150: 1 | G150: 3 | H150: 2 | I150: 3 | J150: 3
B151: Niederlande | C151: 3 | D151: 0 | E151: 3 | F151: 0 | G151: 2 | H151: 2 | I151: 3 | J151: 3
B152: Uruguay | C152: 3 | D152: 1 | E152: 1 | F152: 1 | G152: 2 | H152: 3 | I152: 3 | J152: 3
B153: Österreich | C153: 3 | D153: 1 | E153: 0 | F153: 2 | G153: 2 | H153: 3 | I153: 2 | J153: 4
B154: Schottland | C154: 3 | D154: 1 | E154: 0 | F154: 2 | G154: 2 | H154: 3 | I154: 2 | J154: 4
F157: Achtelfinale:
C159: 1990-06-23 | D159: Kamerun | E159: Kolumbien | F159: 2 | G159: 1 | H159: n.V. | I159: Neapel | S159: Kamerun | T159: Kolumbien | U159: 2 | V159: 1 | X159: =(IF(U159>V159,3,IF(U159=V159,1,2))) -> 3 | Y159: =(IF(V159>U159,3,IF(U159=V159,1,2))) -> 2
F160: 0 | G160: 0 | S160: ČSFR | T160: Costa Rica | U160: 4 | V160: 1 | X160: 3 | Y160: 2
F161: (0 | G161: 0) | S161: Brasilien | T161: Argentinien | U161: 0 | V161: 1 | X161: 2 | Y161: 3
C162: 1990-06-23 | D162: ČSFR | E162: Costa Rica | F162: 4 | G162: 1 | I162: Bari | S162: BRD | T162: Niederlande | U162: 2 | V162: 1 | X162: 3 | Y162: 2
F163: (1 | G163: 0) | S163: Rumänien | T163: Irland | U163: 4 | V163: 5 | X163: 2 | Y163: 3
C164: 1990-06-24 | D164: Brasilien | E164: Argentinien | F164: 0 | G164: 1 | I164: Turin | S164: Italien | T164: Uruguay | U164: 2 | V164: 0 | X164: 3 | Y164: 2
F165: (0 | G165: 0) | S165: Spanien | T165: Jugoslawien | U165: 1 | V165: 2 | X165: 2 | Y165: 3
C166: 1990-06-24 | D166: BRD | E166: Niederlande | F166: 2 | G166: 1 | I166: Mailand | S166: England | T166: Belgien | U166: 1 | V166: 0 | X166: 3 | Y166: 2
F167: (0 | G167: 0)
C168: 1990-06-25 | D168: Rumänien | E168: Irland | F168: 4 | G168: 5 | H168: n.E. | I168: Genua
F169: 0 | G169: 0 | H169: n.V.
F170: 0 | G170: 0
F171: (0 | G171: 0)
C172: 1990-06-25 | D172: Italien | E172: Uruguay | F172: 2 | G172: 0 | I172: Rom
F173: (0 | G173: 0)
C174: 1990-06-26 | D174: Spanien | E174: Jugoslawien | F174: 1 | G174: 2 | H174: n.V. | I174: Verona
F175: 1 | G175: 1
F176: (0 | G176: 0)
C177: 1990-06-26 | D177: England | E177: Belgien | F177: 1 | G177: 0 | H177: n.V. | I177: Bologna
F178: 0 | G178: 0
F179: (0 | G179: 0)
F182: Viertelfinale:
C184: 1990-06-30 | D184: Jugoslawien | E184: Argentinien | F184: 2 | G184: 3 | H184: n.E. | I184: Florenz | S184: Jugoslawien | T184: Argentinien | U184: 2 | V184: 3 | X184: =(IF(U184>V184,3,IF(U184=V184,1,2))) -> 2 | Y184: =(IF(V184>U184,3,IF(U184=V184,1,2))) -> 3
F185: 0 | G185: 0 | H185: n.V. | S185: Italien | T185: Irland | U185: 1 | V185: 0 | X185: 3 | Y185: 2
F186: 0 | G186: 0 | S186: BRD | T186: ČSFR | U186: 1 | V186: 0 | X186: 3 | Y186: 2
F187: (0 | G187: 0) | S187: England | T187: Kamerun | U187: 3 | V187: 2 | X187: 3 | Y187: 2
C188: 1990-06-30 | D188: Italien | E188: Irland | F188: 1 | G188: 0 | I188: Rom
F189: (1 | G189: 0)
C190: 1990-07-01 | D190: BRD | E190: ČSFR | F190: 1 | G190: 0 | I190: Mailand
F191: (1 | G191: 0)
C192: 1990-07-01 | D192: England | E192: Kamerun | F192: 3 | G192: 2 | H192: n.V. | I192: Neapel
F193: 2 | G193: 2
F194: (1 | G194: 0)
F197: Halbfinale:
C199: 1990-07-03 | D199: Italien | E199: Argentinien | F199: 3 | G199: 4 | H199: n.E. | I199: Neapel | S199: Italien | T199: Argentinien | U199: 4 | V199: 5 | X199: =(IF(U199>V199,3,IF(U199=V199,1,2))) -> 2 | Y199: =(IF(V199>U199,3,IF(U199=V199,1,2))) -> 3
F200: 1 | G200: 1 | H200: n.V. | S200: BRD | T200: England | U200: 5 | V200: 4 | X200: 3 | Y200: 2
F201: 1 | G201: 1
F202: (1 | G202: 0)
C203: 1990-07-04 | D203: BRD | E203: England | F203: 4 | G203: 3 | H203: n.E. | I203: Turin
F204: 1 | G204: 1 | H204: n.V.
F205: 1 | G205: 1
F206: (0 | G206: 0)
C209: Spiel um Platz 3 am 7. Juli 1990 in Bari:
D211: Italien | E211: England | F211: 2 | G211: 1 | S211: Italien | T211: England | U211: 2 | V211: 1 | X211: =(IF(U211>V211,3,IF(U211=V211,1,2))) -> 3 | Y211: =(IF(V211>U211,3,IF(U211=V211,1,2))) -> 2
F212: (0 | G212: 0)
C218: Endspiel am 8. Juli 1990 in Rom:
D220: Argentinien | E220: BRD | F220: 0 | G220: 1 | S220: Argentinien | T220: BRD | U220: 0 | V220: 1 | X220: =(IF(U220>V220,3,IF(U220=V220,1,2))) -> 2 | Y220: =(IF(V220>U220,3,IF(U220=V220,1,2))) -> 3
F221: (0 | G221: 0)
A227: Auswertung | B227: Nation | C227: Spiele | D227: gew | E227: unent | F227: verl | G227: Tore+ | H227: Tore- | I227: Punkte+ | J227: Punkte-
B228: BRD | C228: =COUNTIF($S$12:$T$220,"BRD") -> 7 | D228: =SUMPRODUCT(($S$12:$T$220=B228)*($X$12:$Y$220=3)) -> 6 | E228: =SUMPRODUCT(($S$12:$T$220=B228)*($X$12:$Y$220=1)) -> 1 | F228: =SUMPRODUCT(($S$12:$T$220=B228)*($X$12:$Y$220=2)) -> 0 | G228: =SUMPRODUCT(($S$12:$S$220=B228)*($U$12:$U$220))+SUMPRODUCT(($T$12:$T$220=B228)*($V$12:$V$220)) -> 19 | H228: =SUMPRODUCT(($S$12:$S$220=B228)*($V$12:$V$220))+SUMPRODUCT(($T$12:$T$220=B228)*($U$12:$U$220)) -> 8 | I228: =(D228*2)+E228 -> 13 | J228: =(F228*2)+E228 -> 1
B229: Italien | C229: =COUNTIF($S$12:$T$220,"Italien") -> 7 | D229: 6 | E229: 0 | F229: 1 | G229: 13 | H229: 6 | I229: 12 | J229: 2
B230: Argentinien | C230: =COUNTIF($S$12:$T$220,"Argentinien") -> 7 | D230: 4 | E230: 1 | F230: 2 | G230: 12 | H230: 9 | I230: 9 | J230: 5
B231: England | C231: =COUNTIF($S$12:$T$220,"England") -> 7 | D231: 3 | E231: 2 | F231: 2 | G231: 11 | H231: 10 | I231: 8 | J231: 6
B232: Brasilien | C232: =COUNTIF($S$12:$T$220,"Brasilien") -> 4 | D232: 3 | E232: 0 | F232: 1 | G232: 4 | H232: 2 | I232: 6 | J232: 2
B233: ČSFR | C233: =COUNTIF($S$12:$T$220,"ČSFR") -> 5 | D233: 3 | E233: 0 | F233: 2 | G233: 10 | H233: 5 | I233: 6 | J233: 4
B234: Jugoslawien | C234: =COUNTIF($S$12:$T$220,"Jugoslawien") -> 5 | D234: 3 | E234: 0 | F234: 2 | G234: 10 | H234: 9 | I234: 6 | J234: 4
B235: Kamerun | C235: =COUNTIF($S$12:$T$220,"Kamerun") -> 5 | D235: 3 | E235: 0 | F235: 2 | G235: 7 | H235: 9 | I235: 6 | J235: 4
B236: Spanien | C236: =COUNTIF($S$12:$T$220,"Spanien") -> 4 | D236: 2 | E236: 1 | F236: 1 | G236: 6 | H236: 4 | I236: 5 | J236: 3
B237: Irland | C237: =COUNTIF($S$12:$T$220,"Irland") -> 5 | D237: 1 | E237: 3 | F237: 1 | G237: 7 | H237: 7 | I237: 5 | J237: 5
B238: Belgien | C238: =COUNTIF($S$12:$T$220,"Belgien") -> 4 | D238: 2 | E238: 0 | F238: 2 | G238: 6 | H238: 4 | I238: 4 | J238: 4
B239: Costa Rica | C239: =COUNTIF($S$12:$T$220,"Costa Rica") -> 4 | D239: 2 | E239: 0 | F239: 2 | G239: 4 | H239: 6 | I239: 4 | J239: 4
B240: Rumänien | C240: =COUNTIF($S$12:$T$220,"Rumänien") -> 4 | D240: 1 | E240: 1 | F240: 2 | G240: 8 | H240: 8 | I240: 3 | J240: 5
B241: Kolumbien | C241: =COUNTIF($S$12:$T$220,"Kolumbien") -> 4 | D241: 1 | E241: 1 | F241: 2 | G241: 4 | H241: 4 | I241: 3 | J241: 5
B242: Niederlande | C242: =COUNTIF($S$12:$T$220,"Niederlande") -> 4 | D242: 0 | E242: 3 | F242: 1 | G242: 3 | H242: 4 | I242: 3 | J242: 5
B243: Uruguay | C243: =COUNTIF($S$12:$T$220,"Uruguay") -> 4 | D243: 1 | E243: 1 | F243: 2 | G243: 2 | H243: 5 | I243: 3 | J243: 5
B244: UdSSR | C244: =COUNTIF($S$12:$T$220,"UdSSR") -> 3 | D244: 1 | E244: 0 | F244: 2 | G244: 4 | H244: 4 | I244: 2 | J244: 4
B245: Österreich | C245: =COUNTIF($S$12:$T$220,"Österreich") -> 3 | D245: 1 | E245: 0 | F245: 2 | G245: 2 | H245: 3 | I245: 2 | J245: 4
B246: Schottland | C246: =COUNTIF($S$12:$T$220,"Schottland") -> 3 | D246: 1 | E246: 0 | F246: 2 | G246: 2 | H246: 3 | I246: 2 | J246: 4
B247: Ägypten | C247: =COUNTIF($S$12:$T$220,"Ägypten") -> 3 | D247: 0 | E247: 2 | F247: 1 | G247: 1 | H247: 2 | I247: 2 | J247: 4
B248: Schweden | C248: =COUNTIF($S$12:$T$220,"Schweden") -> 3 | D248: 0 | E248: 0 | F248: 3 | G248: 3 | H248: 6 | I248: 0 | J248: 6
B249: USA | C249: =COUNTIF($S$12:$T$220,"USA") -> 3 | D249: 0 | E249: 0 | F249: 3 | G249: 2 | H249: 8 | I249: 0 | J249: 6
B250: VAE | C250: =COUNTIF($S$12:$T$220,"VAE") -> 3 | D250: 0 | E250: 0 | F250: 3 | G250: 2 | H250: 11 | I250: 0 | J250: 6
B251: Südkorea | C251: =COUNTIF($S$12:$T$220,"Südkorea") -> 3 | D251: 0 | E251: 0 | F251: 3 | G251: 1 | H251: 6 | I251: 0 | J251: 6

Sheet Gesamt
C1: Länder existieren nicht mehr
A3: Teilnehmer | B3: Teilnahme | C3: Nation | D3: Spiele | E3: gew | F3: unent | G3: verl | H3: Tore+ | I3: Tore- | J3: diff. +/- | K3: Punkte+ | L3: Punkte- | M3: Spiele | N3: gew | O3: unent | P3: verl | Q3: Punkte | R3: Punkte+ | T3: 1930 | U3: 1934 | V3: 1938 | W3: 1950 | X3: 1954 | Y3: 1958 | Z3: 1962 | AA3: 1966 | AB3: 1970 | AC3: 1974 | AD3: 1978 | AE3: 1982 | AF3: 1986 | AG3: 1990 | AH3: 1994 | AI3: 1998 | AJ3: 2002 | AK3: 2006 | AL3: 2010 | AM3: 2014 | AN3: 2018 | AO3: 2022 | AP3: 2026 | AQ3: 2030
B4: Gesamt | D4: bis 1990 | E4: Ergebnisse bis 1990 | H4: Gesamt | K4: Punkte +/- bis 1990 | M4: ab 1994 | N4: Ergebnisse ab 1994 | Q4: Punkte ab 1994 | R4: Gesamt
A5: 1 | B5: =SUM($T5:$AQ5) -> 22 | C5: Brasilien | D5: =SUM(COUNTIF(INDIRECT(""&$T$3:$AG$3&"!$S$12:$T$400"),"Brasilien")) -> 66 | E5: =SUM('1930'!D108,'1934'!D92,'1938'!D88,'1950'!D107,'1954'!D141,'1958'!D154,'1962'!D133,'1966'!D144,'1970'!D138,'1974'!D159,'1978'!D157,'1982'!D227,'1986'!D219,'1990'!D232) -> 44 | F5: =SUM('1930'!E108,'1934'!E92,'1938'!E88,'1950'!E107,'1954'!E141,'1958'!E154,'1962'!E133,'1966'!E144,'1970'!E138,'1974'!E159,'1978'!E157,'1982'!E227,'1986'!E219,'1990'!E232) -> 10 | G5: =SUM('1930'!F108,'1934'!F92,'1938'!F88,'1950'!F107,'1954'!F141,'1958'!F154,'1962'!F133,'1966'!F144,'1970'!F138,'1974'!F159,'1978'!F157,'1982'!F227,'1986'!F219,'1990'!F232) -> 12 | H5: =SUM('1930'!G108,'1934'!G92,'1938'!G88,'1950'!G107,'1954'!G141,'1958'!G154,'1962'!G133,'1966'!G144,'1970'!G138,'1974'!G159,'1978'!G157,'1982'!G227,'1986'!G219,'1990'!G232,'1994'!G223,'1998'!G250,'2002'!G250,'2006'!G253,'2010'!G250,'2014'!G255,'2018'!G258,'2022'!G256) -> 252 | I5: =SUM('1930'!H108,'1934'!H92,'1938'!H88,'1950'!H107,'1954'!H141,'1958'!H154,'1962'!H133,'1966'!H144,'1970'!H138,'1974'!H159,'1978'!H157,'1982'!H227,'1986'!H219,'1990'!H232,'1994'!H223,'1998'!H250,'2002'!H250,'2006'!H253,'2010'!H250,'2014'!H255,'2018'!H258,'2022'!H256) -> 122 | J5: =SUM(H5-I5) -> 130 | K5: =(E5*2)+F5 -> 98 | L5: =(G5*2)+F5 -> 34 | M5: =SUM(COUNTIF(INDIRECT(""&$AH$3:$AO$3&"!$S$12:$T$400"),"Brasilien")) -> 48 | N5: =SUM('1994'!D223,'1998'!D250,'2002'!D250,'2006'!D253,'2010'!D250,'2014'!D255,'2018'!D258,'2022'!D256) -> 35 | O5: =SUM('1994'!E223,'1998'!E250,'2002'!E250,'2006'!E253,'2010'!E250,'2014'!E255,'2018'!E258,'2022'!E256) -> 4 | P5: =SUM('1994'!F223,'1998'!F250,'2002'!F250,'2006'!F253,'2010'!F250,'2014'!F255,'2018'!F258,'2022'!F256) -> 9 | Q5: =(N5*3)+O5 -> 109 | R5: =SUM(K5+Q5) -> 207 | T5: =TeilnahmeImWMJahr(T$3,"$AA$1:$AA$102",$C5) -> 1 | U5: =TeilnahmeImWMJahr(U$3,"$AA$1:$AA$102",$C5) -> 1 | V5: =TeilnahmeImWMJahr(V$3,"$AA$1:$AA$102",$C5) -> 1 | W5: =TeilnahmeImWMJahr(W$3,"$AA$1:$AA$102",$C5) -> 1 | X5: =TeilnahmeImWMJahr(X$3,"$AA$1:$AA$102",$C5) -> 1 | Y5: =TeilnahmeImWMJahr(Y$3,"$AA$1:$AA$102",$C5) -> 1 | Z5: =TeilnahmeImWMJahr(Z$3,"$AA$1:$AA$102",$C5) -> 1 | AA5: =TeilnahmeImWMJahr(AA$3,"$AA$1:$AA$102",$C5) -> 1 | AB5: =TeilnahmeImWMJahr(AB$3,"$AA$1:$AA$102",$C5) -> 1 | AC5: =TeilnahmeImWMJahr(AC$3,"$AA$1:$AA$102",$C5) -> 1 | AD5: =TeilnahmeImWMJahr(AD$3,"$AA$1:$AA$102",$C5) -> 1 | AE5: =TeilnahmeImWMJahr(AE$3,"$AA$1:$AA$102",$C5) -> 1 | AF5: =TeilnahmeImWMJahr(AF$3,"$AA$1:$AA$102",$C5) -> 1 | AG5: =TeilnahmeImWMJahr(AG$3,"$AA$1:$AA$102",$C5) -> 1 | AH5: =TeilnahmeImWMJahr(AH$3,"$AA$1:$AA$102",$C5) -> 1 | AI5: =TeilnahmeImWMJahr(AI$3,"$AA$1:$AA$102",$C5) -> 1 | AJ5: =TeilnahmeImWMJahr(AJ$3,"$AA$1:$AA$102",$C5) -> 1 | AK5: =TeilnahmeImWMJahr(AK$3,"$AA$1:$AA$102",$C5) -> 1 | AL5: =TeilnahmeImWMJahr(AL$3,"$AA$1:$AA$102",$C5) -> 1 | AM5: =TeilnahmeImWMJahr(AM$3,"$AA$1:$AA$102",$C5) -> 1 | AN5: =TeilnahmeImWMJahr(AN$3,"$AA$1:$AA$102",$C5) -> 1 | AO5: =TeilnahmeImWMJahr(AO$3,"$AA$1:$AA$102",$C5) -> 1
A6: 2 | B6: 18 | C6: BRD | D6: =SUM(COUNTIF(INDIRECT(""&$T$3:$AG$3&"!$S$12:$T$400"),"BRD")) -> 62 | E6: =SUM('1954'!D136,'1958'!D157,'1962'!D139,'1966'!D137,'1970'!D139,'1974'!D157,'1978'!D161,'1982'!D225,'1986'!D218,'1990'!D228) -> 39 | F6: =SUM('1954'!E136,'1958'!E157,'1962'!E139,'1966'!E137,'1970'!E139,'1974'!E157,'1978'!E161,'1982'!E225,'1986'!E218,'1990'!E228) -> 11 | G6: =SUM('1954'!F136,'1958'!F157,'1962'!F139,'1966'!F137,'1970'!F139,'1974'!F157,'1978'!F161,'1982'!F225,'1986'!F218,'1990'!F228) -> 12 | H6: =SUM('1954'!G136,'1958'!G157,'1962'!G139,'1966'!G137,'1970'!G139,'1974'!G157,'1978'!G161,'1982'!G225,'1986'!G218,'1990'!G228,'1994'!G227,'1998'!G255,'2002'!G251,'2006'!G250,'2010'!G247,'2014'!G252,'2018'!G276,'2022'!G263) -> 235 | I6: =SUM('1954'!H136,'1958'!H157,'1962'!H139,'1966'!H137,'1970'!H139,'1974'!H157,'1978'!H161,'1982'!H225,'1986'!H218,'1990'!H228,'1994'!H227,'1998'!H255,'2002'!H251,'2006'!H250,'2010'!H247,'2014'!H252,'2018'!H276,'2022'!H263) -> 127 | J6: =SUM(H6-I6) -> 108 | K6: 89 | L6: 35 | M6: =SUM(COUNTIF(INDIRECT(""&$AH$3:$AO$3&"!$S$12:$T$400"),"BRD")) -> 44 | N6: =SUM('1994'!D227,'1998'!D255,'2002'!D251,'2006'!D250,'2010'!D247,'2014'!D252,'2018'!D276,'2022'!D263) -> 30 | O6: =SUM('1994'!E227,'1998'!E255,'2002'!E251,'2006'!E250,'2010'!E247,'2014'!E252,'2018'!E276,'2022'!E263) -> 5 | P6: =SUM('1994'!F227,'1998'!F255,'2002'!F251,'2006'!F250,'2010'!F247,'2014'!F252,'2018'!F276,'2022'!F263) -> 9 | Q6: =(N6*3)+O6 -> 95 | R6: =SUM(K6+Q6) -> 184 | T6: =TeilnahmeImWMJahr(T$3,"$AA$1:$AA$102",$C6) -> 0 | U6: =TeilnahmeImWMJahr(U$3,"$AA$1:$AA$102",$C6) -> 0 | V6: =TeilnahmeImWMJahr(V$3,"$AA$1:$AA$102",$C6) -> 0 | W6: =TeilnahmeImWMJahr(W$3,"$AA$1:$AA$102",$C6) -> 0 | X6: =TeilnahmeImWMJahr(X$3,"$AA$1:$AA$102",$C6) -> 1 | Y6: =TeilnahmeImWMJahr(Y$3,"$AA$1:$AA$102",$C6) -> 1 | Z6: =TeilnahmeImWMJahr(Z$3,"$AA$1:$AA$102",$C6) -> 1 | AA6: =TeilnahmeImWMJahr(AA$3,"$AA$1:$AA$102",$C6) -> 1 | AB6: =TeilnahmeImWMJahr(AB$3,"$AA$1:$AA$102",$C6) -> 1 | AC6: =TeilnahmeImWMJahr(AC$3,"$AA$1:$AA$102",$C6) -> 1 | AD6: =TeilnahmeImWMJahr(AD$3,"$AA$1:$AA$102",$C6) -> 1 | AE6: =TeilnahmeImWMJahr(AE$3,"$AA$1:$AA$102",$C6) -> 1 | AF6: =TeilnahmeImWMJahr(AF$3,"$AA$1:$AA$102",$C6) -> 1 | AG6: =TeilnahmeImWMJahr(AG$3,"$AA$1:$AA$102",$C6) -> 1 | AH6: =TeilnahmeImWMJahr(AH$3,"$AA$1:$AA$102",$C6) -> 1 | AI6: =TeilnahmeImWMJahr(AI$3,"$AA$1:$AA$102",$C6) -> 1 | AJ6: =TeilnahmeImWMJahr(AJ$3,"$AA$1:$AA$102",$C6) -> 1 | AK6: =TeilnahmeImWMJahr(AK$3,"$AA$1:$AA$102",$C6) -> 1 | AL6: =TeilnahmeImWMJahr(AL$3,"$AA$1:$AA$102",$C6) -> 1 | AM6: =TeilnahmeImWMJahr(AM$3,"$AA$1:$AA$102",$C6) -> 1 | AN6: =TeilnahmeImWMJahr(AN$3,"$AA$1:$AA$102",$C6) -> 1 | AO6: =TeilnahmeImWMJahr(AO$3,"$AA$1:$AA$102",$C6) -> 1
A7: 4 | B7: 18 | C7: Argentinien | D7: =SUM(COUNTIF(INDIRECT(""&$T$3:$AG$3&"!$S$12:$T$400"),"Argentinien")) -> 48 | E7: =SUM('1930'!D104,'1934'!D88,'1958'!D166,'1962'!D141,'1966'!D139,'1974'!D164,'1978'!D156,'1982'!D235,'1986'!D216,'1990'!D230) -> 26 | F7: =SUM('1930'!E104,'1934'!E88,'1958'!E166,'1962'!E141,'1966'!E139,'1974'!E164,'1978'!E156,'1982'!E235,'1986'!E216,'1990'!E230) -> 7 | G7: =SUM('1930'!F104,'1934'!F88,'1958'!F166,'1962'!F141,'1966'!F139,'1974'!F164,'1978'!F156,'1982'!F235,'1986'!F216,'1990'!F230) -> 15 | H7: =SUM('1930'!G104,'1934'!G88,'1958'!G166,'1962'!G141,'1966'!G139,'1974'!G164,'1978'!G156,'1982'!G235,'1986'!G216,'1990'!G230,'1994'!G231,'1998'!G252,'2002'!G268,'2006'!G254,'2010'!G249,'2014'!G254,'2018'!G268,'2022'!G249) -> 177 | I7: =SUM('1930'!H104,'1934'!H88,'1958'!H166,'1962'!H141,'1966'!H139,'1974'!H164,'1978'!H156,'1982'!H235,'1986'!H216,'1990'!H230,'1994'!H231,'1998'!H252,'2002'!H268,'2006'!H254,'2010'!H249,'2014'!H254,'2018'!H268,'2022'!H249) -> 120 | J7: 57 | K7: 59 | L7: 37 | M7: =SUM(COUNTIF(INDIRECT(""&$AH$3:$AO$3&"!$S$12:$T$400"),"Argentinien")) -> 40 | N7: =SUM('1994'!D231,'1998'!D252,'2002'!D268,'2006'!D254,'2010'!D249,'2014'!D254,'2018'!D268,'2022'!D249) -> 27 | O7: =SUM('1994'!E231,'1998'!E252,'2002'!E268,'2006'!E254,'2010'!E249,'2014'!E254,'2018'!E268,'2022'!E249) -> 3 | P7: =SUM('1994'!F231,'1998'!F252,'2002'!F268,'2006'!F254,'2010'!F249,'2014'!F254,'2018'!F268,'2022'!F249) -> 10 | Q7: 84 | R7: 143 | T7: =TeilnahmeImWMJahr(T$3,"$AA$1:$AA$102",$C7) -> 1 | U7: =TeilnahmeImWMJahr(U$3,"$AA$1:$AA$102",$C7) -> 1 | V7: =TeilnahmeImWMJahr(V$3,"$AA$1:$AA$102",$C7) -> 0 | W7: =TeilnahmeImWMJahr(W$3,"$AA$1:$AA$102",$C7) -> 0 | X7: =TeilnahmeImWMJahr(X$3,"$AA$1:$AA$102",$C7) -> 0 | Y7: =TeilnahmeImWMJahr(Y$3,"$AA$1:$AA$102",$C7) -> 1 | Z7: =TeilnahmeImWMJahr(Z$3,"$AA$1:$AA$102",$C7) -> 1 | AA7: =TeilnahmeImWMJahr(AA$3,"$AA$1:$AA$102",$C7) -> 1 | AB7: =TeilnahmeImWMJahr(AB$3,"$AA$1:$AA$102",$C7) -> 0 | AC7: =TeilnahmeImWMJahr(AC$3,"$AA$1:$AA$102",$C7) -> 1 | AD7: =TeilnahmeImWMJahr(AD$3,"$AA$1:$AA$102",$C7) -> 1 | AE7: =TeilnahmeImWMJahr(AE$3,"$AA$1:$AA$102",$C7) -> 1 | AF7: =TeilnahmeImWMJahr(AF$3,"$AA$1:$AA$102",$C7) -> 1 | AG7: =TeilnahmeImWMJahr(AG$3,"$AA$1:$AA$102",$C7) -> 1 | AH7: =TeilnahmeImWMJahr(AH$3,"$AA$1:$AA$102",$C7) -> 1 | AI7: =TeilnahmeImWMJahr(AI$3,"$AA$1:$AA$102",$C7) -> 1 | AJ7: =TeilnahmeImWMJahr(AJ$3,"$AA$1:$AA$102",$C7) -> 1 | AK7: =TeilnahmeImWMJahr(AK$3,"$AA$1:$AA$102",$C7) -> 1 | AL7: =TeilnahmeImWMJahr(AL$3,"$AA$1:$AA$102",$C7) -> 1 | AM7: =TeilnahmeImWMJahr(AM$3,"$AA$1:$AA$102",$C7) -> 1 | AN7: =TeilnahmeImWMJahr(AN$3,"$AA$1:$AA$102",$C7) -> 1 | AO7: =TeilnahmeImWMJahr(AO$3,"$AA$1:$AA$102",$C7) -> 1
A8: 3 | B8: 18 | C8: Italien | D8: =SUM(COUNTIF(INDIRECT(""&$T$3:$AG$3&"!$S$12:$T$400"),"Italien")) -> 54 | E8: =SUM('1934'!D78,'1938'!D87,'1950'!D113,'1954'!D146,'1962'!D140,'1966'!D145,'1970'!D140,'1974'!D165,'1978'!D158,'1982'!D224,'1986'!D226,'1990'!D229) -> 31 | F8: =SUM('1934'!E78,'1938'!E87,'1950'!E113,'1954'!E146,'1962'!E140,'1966'!E145,'1970'!E140,'1974'!E165,'1978'!E158,'1982'!E224,'1986'!E226,'1990'!E229) -> 11 | G8: =SUM('1934'!F78,'1938'!F87,'1950'!F113,'1954'!F146,'1962'!F140,'1966'!F145,'1970'!F140,'1974'!F165,'1978'!F158,'1982'!F224,'1986'!F226,'1990'!F229) -> 12 | H8: =SUM('1934'!G78,'1938'!G87,'1950'!G113,'1954'!G146,'1962'!G140,'1966'!G145,'1970'!G140,'1974'!G165,'1978'!G158,'1982'!G224,'1986'!G226,'1990'!G229,'1994'!G225,'1998'!G254,'2002'!G266,'2006'!G249,'2010'!G270,'2014'!G274) -> 141 | I8: =SUM('1934'!H78,'1938'!H87,'1950'!H113,'1954'!H146,'1962'!H140,'1966'!H145,'1970'!H140,'1974'!H165,'1978'!H158,'1982'!H224,'1986'!H226,'1990'!H229,'1994'!H225,'1998'!H254,'2002'!H266,'2006'!H249,'2010'!H270,'2014'!H274) -> 91 | J8: 50 | K8: 73 | L8: 35 | M8: =SUM(COUNTIF(INDIRECT(""&$AH$3:$AO$3&"!$S$12:$T$400"),"Italien")) -> 29 | N8: =SUM('1994'!D225,'1998'!D254,'2002'!D266,'2006'!D249,'2010'!D270,'2014'!D274) -> 15 | O8: =SUM('1994'!E225,'1998'!E254,'2002'!E266,'2006'!E249,'2010'!E270,'2014'!E274) -> 6 | P8: =SUM('1994'!F225,'1998'!F254,'2002'!F266,'2006'!F249,'2010'!F270,'2014'!F274) -> 8 | Q8: 51 | R8: 124 | T8: =TeilnahmeImWMJahr(T$3,"$AA$1:$AA$102",$C8) -> 0 | U8: =TeilnahmeImWMJahr(U$3,"$AA$1:$AA$102",$C8) -> 1 | V8: =TeilnahmeImWMJahr(V$3,"$AA$1:$AA$102",$C8) -> 1 | W8: =TeilnahmeImWMJahr(W$3,"$AA$1:$AA$102",$C8) -> 1 | X8: =TeilnahmeImWMJahr(X$3,"$AA$1:$AA$102",$C8) -> 1 | Y8: =TeilnahmeImWMJahr(Y$3,"$AA$1:$AA$102",$C8) -> 0 | Z8: =TeilnahmeImWMJahr(Z$3,"$AA$1:$AA$102",$C8) -> 1 | AA8: =TeilnahmeImWMJahr(AA$3,"$AA$1:$AA$102",$C8) -> 1 | AB8: =TeilnahmeImWMJahr(AB$3,"$AA$1:$AA$102",$C8) -> 1 | AC8: =TeilnahmeImWMJahr(AC$3,"$AA$1:$AA$102",$C8) -> 1 | AD8: =TeilnahmeImWMJahr(AD$3,"$AA$1:$AA$102",$C8) -> 1 | AE8: =TeilnahmeImWMJahr(AE$3,"$AA$1:$AA$102",$C8) -> 1 | AF8: =TeilnahmeImWMJahr(AF$3,"$AA$1:$AA$102",$C8) -> 1 | AG8: =TeilnahmeImWMJahr(AG$3,"$AA$1:$AA$102",$C8) -> 1 | AH8: =TeilnahmeImWMJahr(AH$3,"$AA$1:$AA$102",$C8) -> 1 | AI8: =TeilnahmeImWMJahr(AI$3,"$AA$1:$AA$102",$C8) -> 1 | AJ8: =TeilnahmeImWMJahr(AJ$3,"$AA$1:$AA$102",$C8) -> 1 | AK8: =TeilnahmeImWMJahr(AK$3,"$AA$1:$AA$102",$C8) -> 1 | AL8: =TeilnahmeImWMJahr(AL$3,"$AA$1:$AA$102",$C8) -> 1 | AM8: =TeilnahmeImWMJahr(AM$3,"$AA$1:$AA$102",$C8) -> 1 | AN8: =TeilnahmeImWMJahr(AN$3,"$AA$1:$AA$102",$C8) -> 0 | AO8: =TeilnahmeImWMJahr(AO$3,"$AA$1:$AA$102",$C8) -> 0
A9: 7 | B9: 16 | C9: Frankreich | D9: =SUM(COUNTIF(INDIRECT(""&$T$3:$AG$3&"!$S$12:$T$400"),"Frankreich")) -> 34 | E9: =SUM('1930'!D111,'1934'!D86,'1938'!D93,'1954'!D144,'1958'!D156,'1966'!D147,'1978'!D167,'1982'!D229,'1986'!D217) -> 16 | F9: =SUM('1930'!E111,'1934'!E86,'1938'!E93,'1954'!E144,'1958'!E156,'1966'!E147,'1978'!E167,'1982'!E229,'1986'!E217) -> 3 | G9: =SUM('1930'!F111,'1934'!F86,'1938'!F93,'1954'!F144,'1958'!F156,'1966'!F147,'1978'!F167,'1982'!F229,'1986'!F217) -> 15 | H9: =SUM('1930'!G111,'1934'!G86,'1938'!G93,'1954'!G144,'1958'!G156,'1966'!G147,'1978'!G167,'1982'!G229,'1986'!G217,'1998'!G249,'2002'!G278,'2006'!G252,'2010'!G272,'2014'!G259,'2018'!G253) -> 135 | I9: =SUM('1930'!H111,'1934'!H86,'1938'!H93,'1954'!H144,'1958'!H156,'1966'!H147,'1978'!H167,'1982'!H229,'1986'!H217,'1998'!H249,'2002'!H278,'2006'!H252,'2010'!H272,'2014'!H259,'2018'!H253) -> 93 | J9: 42 | K9: 35 | L9: 33 | M9: =SUM(COUNTIF(INDIRECT(""&$AH$3:$AO$3&"!$S$12:$T$400"),"Frankreich")) -> 39 | N9: =SUM('1998'!D249,'2002'!D278,'2006'!D252,'2010'!D272,'2014'!D259,'2018'!D253,'2022'!D250) -> 25 | O9: =SUM('1998'!E249,'2002'!E278,'2006'!E252,'2010'!E272,'2014'!E259,'2018'!E253,'2022'!E250) -> 6 | P9: =SUM('1998'!F249,'2002'!F278,'2006'!F252,'2010'!F272,'2014'!F259,'2018'!F253,'2022'!F250) -> 8 | Q9: 81 | R9: 116 | T9: =TeilnahmeImWMJahr(T$3,"$AA$1:$AA$102",$C9) -> 1 | U9: =TeilnahmeImWMJahr(U$3,"$AA$1:$AA$102",$C9) -> 1 | V9: =TeilnahmeImWMJahr(V$3,"$AA$1:$AA$102",$C9) -> 1 | W9: =TeilnahmeImWMJahr(W$3,"$AA$1:$AA$102",$C9) -> 0 | X9: =TeilnahmeImWMJahr(X$3,"$AA$1:$AA$102",$C9) -> 1 | Y9: =TeilnahmeImWMJahr(Y$3,"$AA$1:$AA$102",$C9) -> 1 | Z9: =TeilnahmeImWMJahr(Z$3,"$AA$1:$AA$102",$C9) -> 0 | AA9: =TeilnahmeImWMJahr(AA$3,"$AA$1:$AA$102",$C9) -> 1 | AB9: =TeilnahmeImWMJahr(AB$3,"$AA$1:$AA$102",$C9) -> 0 | AC9: =TeilnahmeImWMJahr(AC$3,"$AA$1:$AA$102",$C9) -> 0 | AD9: =TeilnahmeImWMJahr(AD$3,"$AA$1:$AA$102",$C9) -> 1 | AE9: =TeilnahmeImWMJahr(AE$3,"$AA$1:$AA$102",$C9) -> 1 | AF9: =TeilnahmeImWMJahr(AF$3,"$AA$1:$AA$102",$C9) -> 1 | AG9: =TeilnahmeImWMJahr(AG$3,"$AA$1:$AA$102",$C9) -> 0 | AH9: =TeilnahmeImWMJahr(AH$3,"$AA$1:$AA$102",$C9) -> 0 | AI9: =TeilnahmeImWMJahr(AI$3,"$AA$1:$AA$102",$C9) -> 1 | AJ9: =TeilnahmeImWMJahr(AJ$3,"$AA$1:$AA$102",$C9) -> 1 | AK9: =TeilnahmeImWMJahr(AK$3,"$AA$1:$AA$102",$C9) -> 1 | AL9: =TeilnahmeImWMJahr(AL$3,"$AA$1:$AA$102",$C9) -> 1 | AM9: =TeilnahmeImWMJahr(AM$3,"$AA$1:$AA$102",$C9) -> 1 | AN9: =TeilnahmeImWMJahr(AN$3,"$AA$1:$AA$102",$C9) -> 1 | AO9: =TeilnahmeImWMJahr(AO$3,"$AA$1:$AA$102",$C9) -> 1
A10: 8 | B10: 16 | C10: England | D10: =SUM(COUNTIF(INDIRECT(""&$T$3:$AG$3&"!$S$12:$T$400"),"England")) -> 41 | E10: =SUM('1950'!D116,'1954'!D142,'1958'!D165,'1962'!D142,'1966'!D135,'1970'!D145,'1982'!D228,'1986'!D225,'1990'!D231) -> 18 | F10: =SUM('1950'!E116,'1954'!E142,'1958'!E165,'1962'!E142,'1966'!E135,'1970'!E145,'1982'!E228,'1986'!E225,'1990'!E231) -> 11 | G10: =SUM('1950'!F116,'1954'!F142,'1958'!F165,'1962'!F142,'1966'!F135,'1970'!F145,'1982'!F228,'1986'!F225,'1990'!F231) -> 12 | H10: =SUM('1950'!G116,'1954'!G142,'1958'!G165,'1962'!G142,'1966'!G135,'1970'!G145,'1982'!G228,'1986'!G225,'1990'!G231,'1998'!G259,'2002'!G256,'2006'!G255,'2010'!G257,'2014'!G278,'2018'!G256,'2022'!G253) -> 115 | I10: =SUM('1950'!H116,'1954'!H142,'1958'!H165,'1962'!H142,'1966'!H135,'1970'!H145,'1982'!H228,'1986'!H225,'1990'!H231,'1998'!H259,'2002'!H256,'2006'!H255,'2010'!H257,'2014'!H278,'2018'!H256,'2022'!H253) -> 82 | J10: 33 | K10: 47 | L10: 35 | M10: =SUM(COUNTIF(INDIRECT(""&$AH$3:$AO$3&"!$S$12:$T$400"),"England")) -> 33 | N10: =SUM('1998'!D259,'2002'!D256,'2006'!D255,'2010'!D257,'2014'!D278,'2018'!D256,'2022'!D253) -> 15 | O10: =SUM('1998'!E259,'2002'!E256,'2006'!E255,'2010'!E257,'2014'!E278,'2018'!E256,'2022'!E253) -> 7 | P10: =SUM('1998'!F259,'2002'!F256,'2006'!F255,'2010'!F257,'2014'!F278,'2018'!F256,'2022'!F253) -> 11 | Q10: 52 | R10: 99 | T10: =TeilnahmeImWMJahr(T$3,"$AA$1:$AA$102",$C10) -> 0 | U10: =TeilnahmeImWMJahr(U$3,"$AA$1:$AA$102",$C10) -> 0 | V10: =TeilnahmeImWMJahr(V$3,"$AA$1:$AA$102",$C10) -> 0 | W10: =TeilnahmeImWMJahr(W$3,"$AA$1:$AA$102",$C10) -> 1 | X10: =TeilnahmeImWMJahr(X$3,"$AA$1:$AA$102",$C10) -> 1 | Y10: =TeilnahmeImWMJahr(Y$3,"$AA$1:$AA$102",$C10) -> 1 | Z10: =TeilnahmeImWMJahr(Z$3,"$AA$1:$AA$102",$C10) -> 1 | AA10: =TeilnahmeImWMJahr(AA$3,"$AA$1:$AA$102",$C10) -> 1 | AB10: =TeilnahmeImWMJahr(AB$3,"$AA$1:$AA$102",$C10) -> 1 | AC10: =TeilnahmeImWMJahr(AC$3,"$AA$1:$AA$102",$C10) -> 0 | AD10: =TeilnahmeImWMJahr(AD$3,"$AA$1:$AA$102",$C10) -> 0 | AE10: =TeilnahmeImWMJahr(AE$3,"$AA$1:$AA$102",$C10) -> 1 | AF10: =TeilnahmeImWMJahr(AF$3,"$AA$1:$AA$102",$C10) -> 1 | AG10: =TeilnahmeImWMJahr(AG$3,"$AA$1:$AA$102",$C10) -> 1 | AH10: =TeilnahmeImWMJahr(AH$3,"$AA$1:$AA$102",$C10) -> 0 | AI10: =TeilnahmeImWMJahr(AI$3,"$AA$1:$AA$102",$C10) -> 1 | AJ10: =TeilnahmeImWMJahr(AJ$3,"$AA$1:$AA$102",$C10) -> 1 | AK10: =TeilnahmeImWMJahr(AK$3,"$AA$1:$AA$102",$C10) -> 1 | AL10: =TeilnahmeImWMJahr(AL$3,"$AA$1:$AA$102",$C10) -> 1 | AM10: =TeilnahmeImWMJahr(AM$3,"$AA$1:$AA$102",$C10) -> 1 | AN10: =TeilnahmeImWMJahr(AN$3,"$AA$1:$AA$102",$C10) -> 1 | AO10: =TeilnahmeImWMJahr(AO$3,"$AA$1:$AA$102",$C10) -> 1
A11: 5 | B11: 16 | C11: Spanien | D11: =SUM(COUNTIF(INDIRECT(""&$T$3:$AG$3&"!$S$12:$T$400"),"Spanien")) -> 32 | E11: =SUM('1934'!D82,'1950'!D109,'1962'!D145,'1966'!D143,'1978'!D166,'1982'!D236,'1986'!D223,'1990'!D236) -> 13 | F11: =SUM('1934'!E82,'1950'!E109,'1962'!E145,'1966'!E143,'1978'!E166,'1982'!E236,'1986'!E223,'1990'!E236) -> 6 | G11: =SUM('1934'!F82,'1950'!F109,'1962'!F145,'1966'!F143,'1978'!F166,'1982'!F236,'1986'!F223,'1990'!F236) -> 13 | H11: =SUM('1934'!G82,'1950'!G109,'1962'!G145,'1966'!G143,'1978'!G166,'1982'!G236,'1986'!G223,'1990'!G236,'1994'!G230,'1998'!G264,'2002'!G254,'2006'!G256,'2010'!G246,'2014'!G273,'2018'!G263,'2022'!G262) -> 121 | I11: =SUM('1934'!H82,'1950'!H109,'1962'!H145,'1966'!H143,'1978'!H166,'1982'!H236,'1986'!H223,'1990'!H236,'1994'!H230,'1998'!H264,'2002'!H254,'2006'!H256,'2010'!H246,'2014'!H273,'2018'!H263,'2022'!H262) -> 94 | J11: 27 | K11: 32 | L11: 32 | M11: =SUM(COUNTIF(INDIRECT(""&$AH$3:$AO$3&"!$S$12:$T$400"),"Spanien")) -> 35 | N11: =SUM('1994'!D230,'1998'!D264,'2002'!D254,'2006'!D256,'2010'!D246,'2014'!D273,'2018'!D263,'2022'!D262) -> 19 | O11: =SUM('1994'!E230,'1998'!E264,'2002'!E254,'2006'!E256,'2010'!E246,'2014'!E273,'2018'!E263,'2022'!E262) -> 6 | P11: =SUM('1994'!F230,'1998'!F264,'2002'!F254,'2006'!F256,'2010'!F246,'2014'!F273,'2018'!F263,'2022'!F262) -> 10 | Q11: 63 | R11: 95 | T11: =TeilnahmeImWMJahr(T$3,"$AA$1:$AA$102",$C11) -> 0 | U11: =TeilnahmeImWMJahr(U$3,"$AA$1:$AA$102",$C11) -> 1 | V11: =TeilnahmeImWMJahr(V$3,"$AA$1:$AA$102",$C11) -> 0 | W11: =TeilnahmeImWMJahr(W$3,"$AA$1:$AA$102",$C11) -> 1 | X11: =TeilnahmeImWMJahr(X$3,"$AA$1:$AA$102",$C11) -> 0 | Y11: =TeilnahmeImWMJahr(Y$3,"$AA$1:$AA$102",$C11) -> 0 | Z11: =TeilnahmeImWMJahr(Z$3,"$AA$1:$AA$102",$C11) -> 1 | AA11: =TeilnahmeImWMJahr(AA$3,"$AA$1:$AA$102",$C11) -> 1 | AB11: =TeilnahmeImWMJahr(AB$3,"$AA$1:$AA$102",$C11) -> 0 | AC11: =TeilnahmeImWMJahr(AC$3,"$AA$1:$AA$102",$C11) -> 0 | AD11: =TeilnahmeImWMJahr(AD$3,"$AA$1:$AA$102",$C11) -> 1 | AE11: =TeilnahmeImWMJahr(AE$3,"$AA$1:$AA$102",$C11) -> 1 | AF11: =TeilnahmeImWMJahr(AF$3,"$AA$1:$AA$102",$C11) -> 1 | AG11: =TeilnahmeImWMJahr(AG$3,"$AA$1:$AA$102",$C11) -> 1 | AH11: =TeilnahmeImWMJahr(AH$3,"$AA$1:$AA$102",$C11) -> 1 | AI11: =TeilnahmeImWMJahr(AI$3,"$AA$1:$AA$102",$C11) -> 1 | AJ11: =TeilnahmeImWMJahr(AJ$3,"$AA$1:$AA$102",$C11) -> 1 | AK11: =TeilnahmeImWMJahr(AK$3,"$AA$1:$AA$102",$C11) -> 1 | AL11: =TeilnahmeImWMJahr(AL$3,"$AA$1:$AA$102",$C11) -> 1 | AM11: =TeilnahmeImWMJahr(AM$3,"$AA$1:$AA$102",$C11) -> 1 | AN11: =TeilnahmeImWMJahr(AN$3,"$AA$1:$AA$102",$C11) -> 1 | AO11: =TeilnahmeImWMJahr(AO$3,"$AA$1:$AA$102",$C11) -> 1
A12: 6 | B12: 11 | C12: Niederlande | D12: =SUM(COUNTIF(INDIRECT(""&$T$3:$AG$3&"!$S$12:$T$400"),"Niederlande")) -> 20 | E12: =SUM('1934'!D87,'1938'!D100,'1974'!D158,'1978'!D159,'1990'!D242) -> 8 | F12: =SUM('1934'!E87,'1938'!E100,'1974'!E158,'1978'!E159,'1990'!E242) -> 6 | G12: =SUM('1934'!F87,'1938'!F100,'1974'!F158,'1978'!F159,'1990'!F242) -> 6 | H12: =SUM('1934'!G87,'1938'!G100,'1974'!G158,'1978'!G159,'1990'!G242,'1994'!G229,'1998'!G253,'2006'!G259,'2010'!G245,'2014'!G253,'2022'!G254) -> 107 | I12: =SUM('1934'!H87,'1938'!H100,'1974'!H158,'1978'!H159,'1990'!H242,'1994'!H229,'1998'!H253,'2006'!H259,'2010'!H245,'2014'!H253,'2022'!H254) -> 67 | J12: 40 | K12: 22 | L12: 18 | M12: =SUM(COUNTIF(INDIRECT(""&$AH$3:$AO$3&"!$S$12:$T$400"),"Niederlande")) -> 35 | N12: =SUM('1994'!D229,'1998'!D253,'2006'!D259,'2010'!D245,'2014'!D253,'2022'!D254) -> 23 | O12: =SUM('1994'!E229,'1998'!E253,'2006'!E259,'2010'!E245,'2014'!E253,'2022'!E254) -> 4 | P12: =SUM('1994'!F229,'1998'!F253,'2006'!F259,'2010'!F245,'2014'!F253,'2022'!F254) -> 8 | Q12: 73 | R12: 95 | T12: =TeilnahmeImWMJahr(T$3,"$AA$1:$AA$102",$C12) -> 0 | U12: =TeilnahmeImWMJahr(U$3,"$AA$1:$AA$102",$C12) -> 1 | V12: =TeilnahmeImWMJahr(V$3,"$AA$1:$AA$102",$C12) -> 1 | W12: =TeilnahmeImWMJahr(W$3,"$AA$1:$AA$102",$C12) -> 0 | X12: =TeilnahmeImWMJahr(X$3,"$AA$1:$AA$102",$C12) -> 0 | Y12: =TeilnahmeImWMJahr(Y$3,"$AA$1:$AA$102",$C12) -> 0 | Z12: =TeilnahmeImWMJahr(Z$3,"$AA$1:$AA$102",$C12) -> 0 | AA12: =TeilnahmeImWMJahr(AA$3,"$AA$1:$AA$102",$C12) -> 0 | AB12: =TeilnahmeImWMJahr(AB$3,"$AA$1:$AA$102",$C12) -> 0 | AC12: =TeilnahmeImWMJahr(AC$3,"$AA$1:$AA$102",$C12) -> 1 | AD12: =TeilnahmeImWMJahr(AD$3,"$AA$1:$AA$102",$C12) -> 1 | AE12: =TeilnahmeImWMJahr(AE$3,"$AA$1:$AA$102",$C12) -> 0 | AF12: =TeilnahmeImWMJahr(AF$3,"$AA$1:$AA$102",$C12) -> 0 | AG12: =TeilnahmeImWMJahr(AG$3,"$AA$1:$AA$102",$C12) -> 1 | AH12: =TeilnahmeImWMJahr(AH$3,"$AA$1:$AA$102",$C12) -> 1 | AI12: =TeilnahmeImWMJahr(AI$3,"$AA$1:$AA$102",$C12) -> 1 | AJ12: =TeilnahmeImWMJahr(AJ$3,"$AA$1:$AA$102",$C12) -> 0 | AK12: =TeilnahmeImWMJahr(AK$3,"$AA$1:$AA$102",$C12) -> 1 | AL12: =TeilnahmeImWMJahr(AL$3,"$AA$1:$AA$102",$C12) -> 1 | AM12: =TeilnahmeImWMJahr(AM$3,"$AA$1:$AA$102",$C12) -> 1 | AN12: =TeilnahmeImWMJahr(AN$3,"$AA$1:$AA$102",$C12) -> 0 | AO12: =TeilnahmeImWMJahr(AO$3,"$AA$1:$AA$102",$C12) -> 1
A13: 9 | B13: 14 | C13: Uruguay | D13: =SUM(COUNTIF(INDIRECT(""&$T$3:$AG$3&"!$S$12:$T$400"),"Uruguay")) -> 37 | E13: =SUM('1930'!D103,'1950'!D108,'1954'!D139,'1962'!D143,'1966'!D141,'1970'!D143,'1974'!D168,'1986'!D233,'1990'!D243) -> 15 | F13: =SUM('1930'!E103,'1950'!E108,'1954'!E139,'1962'!E143,'1966'!E141,'1970'!E143,'1974'!E168,'1986'!E233,'1990'!E243) -> 8 | G13: =SUM('1930'!F103,'1950'!F108,'1954'!F139,'1962'!F143,'1966'!F141,'1970'!F143,'1974'!F168,'1986'!F233,'1990'!F243) -> 14 | H13: =SUM('1930'!G103,'1950'!G108,'1954'!G139,'1962'!G143,'1966'!G141,'1970'!G143,'1974'!G168,'1986'!G233,'1990'!G243,'2002'!G275,'2010'!G248,'2014'!G263,'2018'!G257,'2022'!G268) -> 92 | I13: =SUM('1930'!H103,'1950'!H108,'1954'!H139,'1962'!H143,'1966'!H141,'1970'!H143,'1974'!H168,'1986'!H233,'1990'!H243,'2002'!H275,'2010'!H248,'2014'!H263,'2018'!H257,'2022'!H268) -> 77 | J13: 15 | K13: 38 | L13: 36 | M13: =SUM(COUNTIF(INDIRECT(""&$AH$3:$AO$3&"!$S$12:$T$400"),"Uruguay")) -> 22 | N13: =SUM('2002'!D275,'2010'!D248,'2014'!D263,'2018'!D257,'2022'!D268) -> 11 | O13: =SUM('2002'!E275,'2010'!E248,'2014'!E263,'2018'!E257,'2022'!E268) -> 4 | P13: =SUM('2002'!F275,'2010'!F248,'2014'!F263,'2018'!F257,'2022'!F268) -> 7 | Q13: 37 | R13: 75 | T13: =TeilnahmeImWMJahr(T$3,"$AA$1:$AA$102",$C13) -> 1 | U13: =TeilnahmeImWMJahr(U$3,"$AA$1:$AA$102",$C13) -> 0 | V13: =TeilnahmeImWMJahr(V$3,"$AA$1:$AA$102",$C13) -> 0 | W13: =TeilnahmeImWMJahr(W$3,"$AA$1:$AA$102",$C13) -> 1 | X13: =TeilnahmeImWMJahr(X$3,"$AA$1:$AA$102",$C13) -> 1 | Y13: =TeilnahmeImWMJahr(Y$3,"$AA$1:$AA$102",$C13) -> 0 | Z13: =TeilnahmeImWMJahr(Z$3,"$AA$1:$AA$102",$C13) -> 1 | AA13: =TeilnahmeImWMJahr(AA$3,"$AA$1:$AA$102",$C13) -> 1 | AB13: =TeilnahmeImWMJahr(AB$3,"$AA$1:$AA$102",$C13) -> 1 | AC13: =TeilnahmeImWMJahr(AC$3,"$AA$1:$AA$102",$C13) -> 1 | AD13: =TeilnahmeImWMJahr(AD$3,"$AA$1:$AA$102",$C13) -> 0 | AE13: =TeilnahmeImWMJahr(AE$3,"$AA$1:$AA$102",$C13) -> 0 | AF13: =TeilnahmeImWMJahr(AF$3,"$AA$1:$AA$102",$C13) -> 1 | AG13: =TeilnahmeImWMJahr(AG$3,"$AA$1:$AA$102",$C13) -> 1 | AH13: =TeilnahmeImWMJahr(AH$3,"$AA$1:$AA$102",$C13) -> 0 | AI13: =TeilnahmeImWMJahr(AI$3,"$AA$1:$AA$102",$C13) -> 0 | AJ13: =TeilnahmeImWMJahr(AJ$3,"$AA$1:$AA$102",$C13) -> 1 | AK13: =TeilnahmeImWMJahr(AK$3,"$AA$1:$AA$102",$C13) -> 0 | AL13: =TeilnahmeImWMJahr(AL$3,"$AA$1:$AA$102",$C13) -> 1 | AM13: =TeilnahmeImWMJahr(AM$3,"$AA$1:$AA$102",$C13) -> 1 | AN13: =TeilnahmeImWMJahr(AN$3,"$AA$1:$AA$102",$C13) -> 1 | AO13: =TeilnahmeImWMJahr(AO$3,"$AA$1:$AA$102",$C13) -> 1
A14: 12 | B14: 14 | C14: Belgien | D14: =SUM(COUNTIF(INDIRECT(""&$T$3:$AG$3&"!$S$12:$T$400"),"Belgien")) -> 25 | E14: =SUM('1930'!D113,'1934'!D90,'1938'!D99,'1954'!D147,'1970'!D147,'1982'!D233,'1986'!D221,'1990'!D238) -> 8 | F14: =SUM('1930'!E113,'1934'!E90,'1938'!E99,'1954'!E147,'1970'!E147,'1982'!E233,'1986'!E221,'1990'!E238) -> 3 | G14: =SUM('1930'!F113,'1934'!F90,'1938'!F99,'1954'!F147,'1970'!F147,'1982'!F233,'1986'!F221,'1990'!F238) -> 14 | H14: =SUM('1930'!G113,'1934'!G90,'1938'!G99,'1954'!G147,'1970'!G147,'1982'!G233,'1986'!G221,'1990'!G238,'1994'!G234,'1998'!G267,'2002'!G262,'2014'!G257,'2018'!G255,'2022'!G271) -> 74 | I14: =SUM('1930'!H113,'1934'!H90,'1938'!H99,'1954'!H147,'1970'!H147,'1982'!H233,'1986'!H221,'1990'!H238,'1994'!H234,'1998'!H267,'2002'!H262,'2014'!H257,'2018'!H255,'2022'!H271) -> 78 | J14: -4 | K14: 19 | L14: 31 | M14: =SUM(COUNTIF(INDIRECT(""&$AH$3:$AO$3&"!$S$12:$T$400"),"Belgien")) -> 26 | N14: =SUM('1994'!D234,'1998'!D267,'2002'!D262,'2014'!D257,'2018'!D255,'2022'!D271) -> 14 | O14: =SUM('1994'!E234,'1998'!E267,'2002'!E262,'2014'!E257,'2018'!E255,'2022'!E271) -> 6 | P14: =SUM('1994'!F234,'1998'!F267,'2002'!F262,'2014'!F257,'2018'!F255,'2022'!F271) -> 6 | Q14: 48 | R14: 67 | T14: =TeilnahmeImWMJahr(T$3,"$AA$1:$AA$102",$C14) -> 1 | U14: =TeilnahmeImWMJahr(U$3,"$AA$1:$AA$102",$C14) -> 1 | V14: =TeilnahmeImWMJahr(V$3,"$AA$1:$AA$102",$C14) -> 1 | W14: =TeilnahmeImWMJahr(W$3,"$AA$1:$AA$102",$C14) -> 0 | X14: =TeilnahmeImWMJahr(X$3,"$AA$1:$AA$102",$C14) -> 1 | Y14: =TeilnahmeImWMJahr(Y$3,"$AA$1:$AA$102",$C14) -> 0 | Z14: =TeilnahmeImWMJahr(Z$3,"$AA$1:$AA$102",$C14) -> 0 | AA14: =TeilnahmeImWMJahr(AA$3,"$AA$1:$AA$102",$C14) -> 0 | AB14: =TeilnahmeImWMJahr(AB$3,"$AA$1:$AA$102",$C14) -> 1 | AC14: =TeilnahmeImWMJahr(AC$3,"$AA$1:$AA$102",$C14) -> 0 | AD14: =TeilnahmeImWMJahr(AD$3,"$AA$1:$AA$102",$C14) -> 0 | AE14: =TeilnahmeImWMJahr(AE$3,"$AA$1:$AA$102",$C14) -> 1 | AF14: =TeilnahmeImWMJahr(AF$3,"$AA$1:$AA$102",$C14) -> 1 | AG14: =TeilnahmeImWMJahr(AG$3,"$AA$1:$AA$102",$C14) -> 1 | AH14: =TeilnahmeImWMJahr(AH$3,"$AA$1:$AA$102",$C14) -> 1 | AI14: =TeilnahmeImWMJahr(AI$3,"$AA$1:$AA$102",$C14) -> 1 | AJ14: =TeilnahmeImWMJahr(AJ$3,"$AA$1:$AA$102",$C14) -> 1 | AK14: =TeilnahmeImWMJahr(AK$3,"$AA$1:$AA$102",$C14) -> 0 | AL14: =TeilnahmeImWMJahr(AL$3,"$AA$1:$AA$102",$C14) -> 0 | AM14: =TeilnahmeImWMJahr(AM$3,"$AA$1:$AA$102",$C14) -> 1 | AN14: =TeilnahmeImWMJahr(AN$3,"$AA$1:$AA$102",$C14) -> 1 | AO14: =TeilnahmeImWMJahr(AO$3,"$AA$1:$AA$102",$C14) -> 1
A15: 10 | B15: 12 | C15: Schweden | D15: =SUM(COUNTIF(INDIRECT(""&$T$3:$AG$3&"!$S$12:$T$400"),"Schweden")) -> 31 | E15: =SUM('1934'!D85,'1938'!D94,'1950'!D110,'1958'!D155,'1970'!D146,'1974'!D160,'1978'!D169,'1990'!D248) -> 11 | F15: =SUM('1934'!E85,'1938'!E94,'1950'!E110,'1958'!E155,'1970'!E146,'1974'!E160,'1978'!E169,'1990'!E248) -> 6 | G15: =SUM('1934'!F85,'1938'!F94,'1950'!F110,'1958'!F155,'1970'!F146,'1974'!F160,'1978'!F169,'1990'!F248) -> 14 | H15: =SUM('1934'!G85,'1938'!G94,'1950'!G110,'1958'!G155,'1970'!G146,'1974'!G160,'1978'!G169,'1990'!G248,'1994'!G224,'2002'!G263,'2006'!G262,'2018'!G260) -> 85 | I15: =SUM('1934'!H85,'1938'!H94,'1950'!H110,'1958'!H155,'1970'!H146,'1974'!H160,'1978'!H169,'1990'!H248,'1994'!H224,'2002'!H263,'2006'!H262,'2018'!H260) -> 77 | J15: 8 | K15: 28 | L15: 34 | M15: =SUM(COUNTIF(INDIRECT(""&$AH$3:$AO$3&"!$S$12:$T$400"),"Schweden")) -> 20 | N15: =SUM('1994'!D224,'2002'!D263,'2006'!D262,'2018'!D260) -> 9 | O15: =SUM('1994'!E224,'2002'!E263,'2006'!E262,'2018'!E260) -> 6 | P15: =SUM('1994'!F224,'2002'!F263,'2006'!F262,'2018'!F260) -> 5 | Q15: 33 | R15: 61 | T15: =TeilnahmeImWMJahr(T$3,"$AA$1:$AA$102",$C15) -> 0 | U15: =TeilnahmeImWMJahr(U$3,"$AA$1:$AA$102",$C15) -> 1 | V15: =TeilnahmeImWMJahr(V$3,"$AA$1:$AA$102",$C15) -> 1 | W15: =TeilnahmeImWMJahr(W$3,"$AA$1:$AA$102",$C15) -> 1 | X15: =TeilnahmeImWMJahr(X$3,"$AA$1:$AA$102",$C15) -> 0 | Y15: =TeilnahmeImWMJahr(Y$3,"$AA$1:$AA$102",$C15) -> 1 | Z15: =TeilnahmeImWMJahr(Z$3,"$AA$1:$AA$102",$C15) -> 0 | AA15: =TeilnahmeImWMJahr(AA$3,"$AA$1:$AA$102",$C15) -> 0 | AB15: =TeilnahmeImWMJahr(AB$3,"$AA$1:$AA$102",$C15) -> 1 | AC15: =TeilnahmeImWMJahr(AC$3,"$AA$1:$AA$102",$C15) -> 1 | AD15: =TeilnahmeImWMJahr(AD$3,"$AA$1:$AA$102",$C15) -> 1 | AE15: =TeilnahmeImWMJahr(AE$3,"$AA$1:$AA$102",$C15) -> 0 | AF15: =TeilnahmeImWMJahr(AF$3,"$AA$1:$AA$102",$C15) -> 0 | AG15: =TeilnahmeImWMJahr(AG$3,"$AA$1:$AA$102",$C15) -> 1 | AH15: =TeilnahmeImWMJahr(AH$3,"$AA$1:$AA$102",$C15) -> 1 | AI15: =TeilnahmeImWMJahr(AI$3,"$AA$1:$AA$102",$C15) -> 0 | AJ15: =TeilnahmeImWMJahr(AJ$3,"$AA$1:$AA$102",$C15) -> 1 | AK15: =TeilnahmeImWMJahr(AK$3,"$AA$1:$AA$102",$C15) -> 1 | AL15: =TeilnahmeImWMJahr(AL$3,"$AA$1:$AA$102",$C15) -> 0 | AM15: =TeilnahmeImWMJahr(AM$3,"$AA$1:$AA$102",$C15) -> 0 | AN15: =TeilnahmeImWMJahr(AN$3,"$AA$1:$AA$102",$C15) -> 1 | AO15: =TeilnahmeImWMJahr(AO$3,"$AA$1:$AA$102",$C15) -> 0
A16: 11 | B16: 17 | C16: Mexiko | D16: =SUM(COUNTIF(INDIRECT(""&$T$3:$AG$3&"!$S$12:$T$400"),"Mexiko")) -> 29 | E16: =SUM('1930'!D115,'1950'!D119,'1954'!D148,'1958'!D169,'1962'!D144,'1966'!D146,'1970'!D142,'1978'!D171,'1986'!D220) -> 6 | F16: =SUM('1930'!E115,'1950'!E119,'1954'!E148,'1958'!E169,'1962'!E144,'1966'!E146,'1970'!E142,'1978'!E171,'1986'!E220) -> 5 | G16: =SUM('1930'!F115,'1950'!F119,'1954'!F148,'1958'!F169,'1962'!F144,'1966'!F146,'1970'!F142,'1978'!F171,'1986'!F220) -> 18 | H16: =SUM('1930'!G115,'1950'!G119,'1954'!G148,'1958'!G169,'1962'!G144,'1966'!G146,'1970'!G142,'1978'!G171,'1986'!G220,'1994'!G236,'1998'!G261,'2002'!G260,'2006'!G263,'2010'!G261,'2014'!G260,'2018'!G262,'2022'!G269) -> 64 | I16: =SUM('1930'!H115,'1950'!H119,'1954'!H148,'1958'!H169,'1962'!H144,'1966'!H146,'1970'!H142,'1978'!H171,'1986'!H220,'1994'!H236,'1998'!H261,'2002'!H260,'2006'!H263,'2010'!H261,'2014'!H260,'2018'!H262,'2022'!H269) -> 108 | J16: -44 | K16: 17 | L16: 41 | M16: =SUM(COUNTIF(INDIRECT(""&$AH$3:$AO$3&"!$S$12:$T$400"),"Mexiko")) -> 31 | N16: =SUM('1994'!D236,'1998'!D261,'2002'!D260,'2006'!D263,'2010'!D261,'2014'!D260,'2018'!D262,'2022'!D269) -> 11 | O16: =SUM('1994'!E236,'1998'!E261,'2002'!E260,'2006'!E263,'2010'!E261,'2014'!E260,'2018'!E262,'2022'!E269) -> 8 | P16: =SUM('1994'!F236,'1998'!F261,'2002'!F260,'2006'!F263,'2010'!F261,'2014'!F260,'2018'!F262,'2022'!F269) -> 12 | Q16: 41 | R16: 58 | T16: =TeilnahmeImWMJahr(T$3,"$AA$1:$AA$102",$C16) -> 1 | U16: =TeilnahmeImWMJahr(U$3,"$AA$1:$AA$102",$C16) -> 0 | V16: =TeilnahmeImWMJahr(V$3,"$AA$1:$AA$102",$C16) -> 0 | W16: =TeilnahmeImWMJahr(W$3,"$AA$1:$AA$102",$C16) -> 1 | X16: =TeilnahmeImWMJahr(X$3,"$AA$1:$AA$102",$C16) -> 1 | Y16: =TeilnahmeImWMJahr(Y$3,"$AA$1:$AA$102",$C16) -> 1 | Z16: =TeilnahmeImWMJahr(Z$3,"$AA$1:$AA$102",$C16) -> 1 | AA16: =TeilnahmeImWMJahr(AA$3,"$AA$1:$AA$102",$C16) -> 1 | AB16: =TeilnahmeImWMJahr(AB$3,"$AA$1:$AA$102",$C16) -> 1 | AC16: =TeilnahmeImWMJahr(AC$3,"$AA$1:$AA$102",$C16) -> 0 | AD16: =TeilnahmeImWMJahr(AD$3,"$AA$1:$AA$102",$C16) -> 1 | AE16: =TeilnahmeImWMJahr(AE$3,"$AA$1:$AA$102",$C16) -> 0 | AF16: =TeilnahmeImWMJahr(AF$3,"$AA$1:$AA$102",$C16) -> 1 | AG16: =TeilnahmeImWMJahr(AG$3,"$AA$1:$AA$102",$C16) -> 0 | AH16: =TeilnahmeImWMJahr(AH$3,"$AA$1:$AA$102",$C16) -> 1 | AI16: =TeilnahmeImWMJahr(AI$3,"$AA$1:$AA$102",$C16) -> 1 | AJ16: =TeilnahmeImWMJahr(AJ$3,"$AA$1:$AA$102",$C16) -> 1 | AK16: =TeilnahmeImWMJahr(AK$3,"$AA$1:$AA$102",$C16) -> 1 | AL16: =TeilnahmeImWMJahr(AL$3,"$AA$1:$AA$102",$C16) -> 1 | AM16: =TeilnahmeImWMJahr(AM$3,"$AA$1:$AA$102",$C16) -> 1 | AN16: =TeilnahmeImWMJahr(AN$3,"$AA$1:$AA$102",$C16) -> 1 | AO16: =TeilnahmeImWMJahr(AO$3,"$AA$1:$AA$102",$C16) -> 1
A17: 13 | B17: 8 | C17: Portugal | D17: =SUM(COUNTIF(INDIRECT(""&$T$3:$AG$3&"!$S$12:$T$400"),"Portugal")) -> 9 | E17: =SUM('1966'!D136,'1986'!D230) -> 6 | F17: =SUM('1966'!E136,'1986'!E230) -> 0 | G17: =SUM('1966'!F136,'1986'!F230) -> 3 | H17: =SUM('1966'!G136,'1986'!G230,'2002'!G270,'2006'!G251,'2010'!G255,'2014'!G267,'2018'!G264,'2022'!G255) -> 64 | I17: =SUM('1966'!H136,'1986'!H230,'2002'!H270,'2006'!H251,'2010'!H255,'2014'!H267,'2018'!H264,'2022'!H255) -> 42 | J17: 22 | K17: 12 | L17: 6 | M17: =SUM(COUNTIF(INDIRECT(""&$AH$3:$AO$3&"!$S$12:$T$400"),"Portugal")) -> 26 | N17: =SUM('2002'!D270,'2006'!D251,'2010'!D255,'2014'!D267,'2018'!D264,'2022'!D255) -> 12 | O17: =SUM('2002'!E270,'2006'!E251,'2010'!E255,'2014'!E267,'2018'!E264,'2022'!E255) -> 5 | P17: =SUM('2002'!F270,'2006'!F251,'2010'!F255,'2014'!F267,'2018'!F264,'2022'!F255) -> 9 | Q17: 41 | R17: 53 | T17: =TeilnahmeImWMJahr(T$3,"$AA$1:$AA$102",$C17) -> 0 | U17: =TeilnahmeImWMJahr(U$3,"$AA$1:$AA$102",$C17) -> 0 | V17: =TeilnahmeImWMJahr(V$3,"$AA$1:$AA$102",$C17) -> 0 | W17: =TeilnahmeImWMJahr(W$3,"$AA$1:$AA$102",$C17) -> 0 | X17: =TeilnahmeImWMJahr(X$3,"$AA$1:$AA$102",$C17) -> 0 | Y17: =TeilnahmeImWMJahr(Y$3,"$AA$1:$AA$102",$C17) -> 0 | Z17: =TeilnahmeImWMJahr(Z$3,"$AA$1:$AA$102",$C17) -> 0 | AA17: =TeilnahmeImWMJahr(AA$3,"$AA$1:$AA$102",$C17) -> 1 | AB17: =TeilnahmeImWMJahr(AB$3,"$AA$1:$AA$102",$C17) -> 0 | AC17: =TeilnahmeImWMJahr(AC$3,"$AA$1:$AA$102",$C17) -> 0 | AD17: =TeilnahmeImWMJahr(AD$3,"$AA$1:$AA$102",$C17) -> 0 | AE17: =TeilnahmeImWMJahr(AE$3,"$AA$1:$AA$102",$C17) -> 0 | AF17: =TeilnahmeImWMJahr(AF$3,"$AA$1:$AA$102",$C17) -> 1 | AG17: =TeilnahmeImWMJahr(AG$3,"$AA$1:$AA$102",$C17) -> 0 | AH17: =TeilnahmeImWMJahr(AH$3,"$AA$1:$AA$102",$C17) -> 0 | AI17: =TeilnahmeImWMJahr(AI$3,"$AA$1:$AA$102",$C17) -> 0 | AJ17: =TeilnahmeImWMJahr(AJ$3,"$AA$1:$AA$102",$C17) -> 1 | AK17: =TeilnahmeImWMJahr(AK$3,"$AA$1:$AA$102",$C17) -> 1 | AL17: =TeilnahmeImWMJahr(AL$3,"$AA$1:$AA$102",$C17) -> 1 | AM17: =TeilnahmeImWMJahr(AM$3,"$AA$1:$AA$102",$C17) -> 1 | AN17: =TeilnahmeImWMJahr(AN$3,"$AA$1:$AA$102",$C17) -> 1 | AO17: =TeilnahmeImWMJahr(AO$3,"$AA$1:$AA$102",$C17) -> 1
A18: 16 | B18: 12 | C18: Schweiz | D18: =SUM(COUNTIF(INDIRECT(""&$T$3:$AG$3&"!$S$12:$T$400"),"Schweiz")) -> 18 | E18: =SUM('1934'!D84,'1938'!D91,'1950'!D112,'1954'!D140,'1962'!D148,'1966'!D150) -> 5 | F18: =SUM('1934'!E84,'1938'!E91,'1950'!E112,'1954'!E140,'1962'!E148,'1966'!E150) -> 2 | G18: =SUM('1934'!F84,'1938'!F91,'1950'!F112,'1954'!F140,'1962'!F148,'1966'!F150) -> 11 | H18: =SUM('1934'!G84,'1938'!G91,'1950'!G112,'1954'!G140,'1962'!G148,'1966'!G150,'1994'!G235,'2006'!G258,'2010'!G265,'2014'!G262,'2018'!G266,'2022'!G259) -> 55 | I18: =SUM('1934'!H84,'1938'!H91,'1950'!H112,'1954'!H140,'1962'!H148,'1966'!H150,'1994'!H235,'2006'!H258,'2010'!H265,'2014'!H262,'2018'!H266,'2022'!H259) -> 76 | J18: -21 | K18: 12 | L18: 24 | M18: =SUM(COUNTIF(INDIRECT(""&$AH$3:$AO$3&"!$S$12:$T$400"),"Schweiz")) -> 23 | N18: =SUM('1994'!D235,'2006'!D258,'2010'!D265,'2014'!D262,'2018'!D266,'2022'!D259) -> 9 | O18: =SUM('1994'!E235,'2006'!E258,'2010'!E265,'2014'!E262,'2018'!E266,'2022'!E259) -> 5 | P18: =SUM('1994'!F235,'2006'!F258,'2010'!F265,'2014'!F262,'2018'!F266,'2022'!F259) -> 9 | Q18: 32 | R18: 44 | T18: =TeilnahmeImWMJahr(T$3,"$AA$1:$AA$102",$C18) -> 0 | U18: =TeilnahmeImWMJahr(U$3,"$AA$1:$AA$102",$C18) -> 1 | V18: =TeilnahmeImWMJahr(V$3,"$AA$1:$AA$102",$C18) -> 1 | W18: =TeilnahmeImWMJahr(W$3,"$AA$1:$AA$102",$C18) -> 1 | X18: =TeilnahmeImWMJahr(X$3,"$AA$1:$AA$102",$C18) -> 1 | Y18: =TeilnahmeImWMJahr(Y$3,"$AA$1:$AA$102",$C18) -> 0 | Z18: =TeilnahmeImWMJahr(Z$3,"$AA$1:$AA$102",$C18) -> 1 | AA18: =TeilnahmeImWMJahr(AA$3,"$AA$1:$AA$102",$C18) -> 1 | AB18: =TeilnahmeImWMJahr(AB$3,"$AA$1:$AA$102",$C18) -> 0 | AC18: =TeilnahmeImWMJahr(AC$3,"$AA$1:$AA$102",$C18) -> 0 | AD18: =TeilnahmeImWMJahr(AD$3,"$AA$1:$AA$102",$C18) -> 0 | AE18: =TeilnahmeImWMJahr(AE$3,"$AA$1:$AA$102",$C18) -> 0 | AF18: =TeilnahmeImWMJahr(AF$3,"$AA$1:$AA$102",$C18) -> 0 | AG18: =TeilnahmeImWMJahr(AG$3,"$AA$1:$AA$102",$C18) -> 0 | AH18: =TeilnahmeImWMJahr(AH$3,"$AA$1:$AA$102",$C18) -> 1 | AI18: =TeilnahmeImWMJahr(AI$3,"$AA$1:$AA$102",$C18) -> 0 | AJ18: =TeilnahmeImWMJahr(AJ$3,"$AA$1:$AA$102",$C18) -> 0 | AK18: =TeilnahmeImWMJahr(AK$3,"$AA$1:$AA$102",$C18) -> 1 | AL18: =TeilnahmeImWMJahr(AL$3,"$AA$1:$AA$102",$C18) -> 1 | AM18: =TeilnahmeImWMJahr(AM$3,"$AA$1:$AA$102",$C18) -> 1 | AN18: =TeilnahmeImWMJahr(AN$3,"$AA$1:$AA$102",$C18) -> 1 | AO18: =TeilnahmeImWMJahr(AO$3,"$AA$1:$AA$102",$C18) -> 1
A19: 15 | B19: 9 | C19: Polen | D19: =SUM(COUNTIF(INDIRECT(""&$T$3:$AG$3&"!$S$12:$T$400"),"Polen")) -> 25 | E19: =SUM('1938'!D97,'1974'!D156,'1978'!D160,'1982'!D226,'1986'!D229) -> 13 | F19: =SUM('1938'!E97,'1974'!E156,'1978'!E160,'1982'!E226,'1986'!E229) -> 5 | G19: =SUM('1938'!F97,'1974'!F156,'1978'!F160,'1982'!F226,'1986'!F229) -> 7 | H19: =SUM('1938'!G97,'1974'!G156,'1978'!G160,'1982'!G226,'1986'!G229,'2002'!G272,'2006'!G269,'2018'!G277,'2022'!G267) -> 49 | I19: =SUM('1938'!H97,'1974'!H156,'1978'!H160,'1982'!H226,'1986'!H229,'2002'!H272,'2006'!H269,'2018'!H277,'2022'!H267) -> 50 | J19: -1 | K19: 31 | L19: 19 | M19: =SUM(COUNTIF(INDIRECT(""&$AH$3:$AO$3&"!$S$12:$T$400"),"Polen")) -> 13 | N19: =SUM('2002'!D272,'2006'!D269,'2018'!D277,'2022'!D267) -> 4 | O19: =SUM('2002'!E272,'2006'!E269,'2018'!E277,'2022'!E267) -> 1 | P19: =SUM('2002'!F272,'2006'!F269,'2018'!F277,'2022'!F267) -> 8 | Q19: 13 | R19: 44 | T19: =TeilnahmeImWMJahr(T$3,"$AA$1:$AA$102",$C19) -> 0 | U19: =TeilnahmeImWMJahr(U$3,"$AA$1:$AA$102",$C19) -> 0 | V19: =TeilnahmeImWMJahr(V$3,"$AA$1:$AA$102",$C19) -> 1 | W19: =TeilnahmeImWMJahr(W$3,"$AA$1:$AA$102",$C19) -> 0 | X19: =TeilnahmeImWMJahr(X$3,"$AA$1:$AA$102",$C19) -> 0 | Y19: =TeilnahmeImWMJahr(Y$3,"$AA$1:$AA$102",$C19) -> 0 | Z19: =TeilnahmeImWMJahr(Z$3,"$AA$1:$AA$102",$C19) -> 0 | AA19: =TeilnahmeImWMJahr(AA$3,"$AA$1:$AA$102",$C19) -> 0 | AB19: =TeilnahmeImWMJahr(AB$3,"$AA$1:$AA$102",$C19) -> 0 | AC19: =TeilnahmeImWMJahr(AC$3,"$AA$1:$AA$102",$C19) -> 1 | AD19: =TeilnahmeImWMJahr(AD$3,"$AA$1:$AA$102",$C19) -> 1 | AE19: =TeilnahmeImWMJahr(AE$3,"$AA$1:$AA$102",$C19) -> 1 | AF19: =TeilnahmeImWMJahr(AF$3,"$AA$1:$AA$102",$C19) -> 1 | AG19: =TeilnahmeImWMJahr(AG$3,"$AA$1:$AA$102",$C19) -> 0 | AH19: =TeilnahmeImWMJahr(AH$3,"$AA$1:$AA$102",$C19) -> 0 | AI19: =TeilnahmeImWMJahr(AI$3,"$AA$1:$AA$102",$C19) -> 0 | AJ19: =TeilnahmeImWMJahr(AJ$3,"$AA$1:$AA$102",$C19) -> 1 | AK19: =TeilnahmeImWMJahr(AK$3,"$AA$1:$AA$102",$C19) -> 1 | AL19: =TeilnahmeImWMJahr(AL$3,"$AA$1:$AA$102",$C19) -> 0 | AM19: =TeilnahmeImWMJahr(AM$3,"$AA$1:$AA$102",$C19) -> 0 | AN19: =TeilnahmeImWMJahr(AN$3,"$AA$1:$AA$102",$C19) -> 1 | AO19: =TeilnahmeImWMJahr(AO$3,"$AA$1:$AA$102",$C19) -> 1
A20: 14 | B20: 9 | C20: Jugoslawien | D20: =SUM(COUNTIF(INDIRECT(""&$T$3:$AG$3&"!$S$12:$T$400"),"Jugoslawien")) -> 33 | E20: =SUM('1930'!D106,'1950'!D111,'1954'!D143,'1958'!D161,'1962'!D136,'1974'!D163,'1982'!D239,'1990'!D234) -> 14 | F20: =SUM('1930'!E106,'1950'!E111,'1954'!E143,'1958'!E161,'1962'!E136,'1974'!E163,'1982'!E239,'1990'!E234) -> 6 | G20: =SUM('1930'!F106,'1950'!F111,'1954'!F143,'1958'!F161,'1962'!F136,'1974'!F163,'1982'!F239,'1990'!F234) -> 13 | H20: =SUM('1930'!G106,'1950'!G111,'1954'!G143,'1958'!G161,'1962'!G136,'1974'!G163,'1982'!G239,'1990'!G234,'1998'!G257) -> 62 | I20: =SUM('1930'!H106,'1950'!H111,'1954'!H143,'1958'!H161,'1962'!H136,'1974'!H163,'1982'!H239,'1990'!H234,'1998'!H257) -> 49 | J20: 13 | K20: 34 | L20: 32 | M20: =SUM(COUNTIF(INDIRECT(""&$AH$3:$AO$3&"!$S$12:$T$400"),"Jugoslawien")) -> 4 | N20: =SUM('1998'!D257) -> 2 | O20: =SUM('1998'!E257) -> 1 | P20: =SUM('1998'!F257) -> 1 | Q20: 7 | R20: 41 | T20: =TeilnahmeImWMJahr(T$3,"$AA$1:$AA$102",$C20) -> 1 | U20: =TeilnahmeImWMJahr(U$3,"$AA$1:$AA$102",$C20) -> 0 | V20: =TeilnahmeImWMJahr(V$3,"$AA$1:$AA$102",$C20) -> 0 | W20: =TeilnahmeImWMJahr(W$3,"$AA$1:$AA$102",$C20) -> 1 | X20: =TeilnahmeImWMJahr(X$3,"$AA$1:$AA$102",$C20) -> 1 | Y20: =TeilnahmeImWMJahr(Y$3,"$AA$1:$AA$102",$C20) -> 1 | Z20: =TeilnahmeImWMJahr(Z$3,"$AA$1:$AA$102",$C20) -> 1 | AA20: =TeilnahmeImWMJahr(AA$3,"$AA$1:$AA$102",$C20) -> 0 | AB20: =TeilnahmeImWMJahr(AB$3,"$AA$1:$AA$102",$C20) -> 0 | AC20: =TeilnahmeImWMJahr(AC$3,"$AA$1:$AA$102",$C20) -> 1 | AD20: =TeilnahmeImWMJahr(AD$3,"$AA$1:$AA$102",$C20) -> 0 | AE20: =TeilnahmeImWMJahr(AE$3,"$AA$1:$AA$102",$C20) -> 1 | AF20: =TeilnahmeImWMJahr(AF$3,"$AA$1:$AA$102",$C20) -> 0 | AG20: =TeilnahmeImWMJahr(AG$3,"$AA$1:$AA$102",$C20) -> 1 | AH20: =TeilnahmeImWMJahr(AH$3,"$AA$1:$AA$102",$C20) -> 0 | AI20: =TeilnahmeImWMJahr(AI$3,"$AA$1:$AA$102",$C20) -> 1 | AJ20: =TeilnahmeImWMJahr(AJ$3,"$AA$1:$AA$102",$C20) -> 0 | AK20: =TeilnahmeImWMJahr(AK$3,"$AA$1:$AA$102",$C20) -> 0 | AL20: =TeilnahmeImWMJahr(AL$3,"$AA$1:$AA$102",$C20) -> 0 | AM20: =TeilnahmeImWMJahr(AM$3,"$AA$1:$AA$102",$C20) -> 0 | AN20: =TeilnahmeImWMJahr(AN$3,"$AA$1:$AA$102",$C20) -> 0 | AO20: =TeilnahmeImWMJahr(AO$3,"$AA$1:$AA$102",$C20) -> 0
A21: 17 | B21: 7 | C21: UdSSR | D21: =SUM(COUNTIF(INDIRECT(""&$T$3:$AG$3&"!$S$12:$T$400"),"UdSSR")) -> 31 | E21: =SUM('1958'!D159,'1962'!D137,'1966'!D138,'1970'!D141,'1982'!D230,'1986'!D224,'1990'!D244) -> 15 | F21: =SUM('1958'!E159,'1962'!E137,'1966'!E138,'1970'!E141,'1982'!E230,'1986'!E224,'1990'!E244) -> 6 | G21: =SUM('1958'!F159,'1962'!F137,'1966'!F138,'1970'!F141,'1982'!F230,'1986'!F224,'1990'!F244) -> 10 | H21: =SUM('1958'!G159,'1962'!G137,'1966'!G138,'1970'!G141,'1982'!G230,'1986'!G224,'1990'!G244) -> 53 | I21: =SUM('1958'!H159,'1962'!H137,'1966'!H138,'1970'!H141,'1982'!H230,'1986'!H224,'1990'!H244) -> 34 | J21: 19 | K21: 36 | L21: 26 | M21: =SUM(COUNTIF(INDIRECT(""&$AH$3:$AO$3&"!$S$12:$T$400"),"UdSSR")) -> 0 | N21: =SUM(0) -> 0 | O21: 0 | P21: 0 | Q21: 0 | R21: 36 | T21: =TeilnahmeImWMJahr(T$3,"$AA$1:$AA$102",$C21) -> 0 | U21: =TeilnahmeImWMJahr(U$3,"$AA$1:$AA$102",$C21) -> 0 | V21: =TeilnahmeImWMJahr(V$3,"$AA$1:$AA$102",$C21) -> 0 | W21: =TeilnahmeImWMJahr(W$3,"$AA$1:$AA$102",$C21) -> 0 | X21: =TeilnahmeImWMJahr(X$3,"$AA$1:$AA$102",$C21) -> 0 | Y21: =TeilnahmeImWMJahr(Y$3,"$AA$1:$AA$102",$C21) -> 1 | Z21: =TeilnahmeImWMJahr(Z$3,"$AA$1:$AA$102",$C21) -> 1 | AA21: =TeilnahmeImWMJahr(AA$3,"$AA$1:$AA$102",$C21) -> 1 | AB21: =TeilnahmeImWMJahr(AB$3,"$AA$1:$AA$102",$C21) -> 1 | AC21: =TeilnahmeImWMJahr(AC$3,"$AA$1:$AA$102",$C21) -> 0 | AD21: =TeilnahmeImWMJahr(AD$3,"$AA$1:$AA$102",$C21) -> 0 | AE21: =TeilnahmeImWMJahr(AE$3,"$AA$1:$AA$102",$C21) -> 1 | AF21: =TeilnahmeImWMJahr(AF$3,"$AA$1:$AA$102",$C21) -> 1 | AG21: =TeilnahmeImWMJahr(AG$3,"$AA$1:$AA$102",$C21) -> 1 | AH21: =TeilnahmeImWMJahr(AH$3,"$AA$1:$AA$102",$C21) -> 0 | AI21: =TeilnahmeImWMJahr(AI$3,"$AA$1:$AA$102",$C21) -> 0 | AJ21: =TeilnahmeImWMJahr(AJ$3,"$AA$1:$AA$102",$C21) -> 0 | AK21: =TeilnahmeImWMJahr(AK$3,"$AA$1:$AA$102",$C21) -> 0 | AL21: =TeilnahmeImWMJahr(AL$3,"$AA$1:$AA$102",$C21) -> 0 | AM21: =TeilnahmeImWMJahr(AM$3,"$AA$1:$AA$102",$C21) -> 0 | AN21: =TeilnahmeImWMJahr(AN$3,"$AA$1:$AA$102",$C21) -> 0 | AO21: =TeilnahmeImWMJahr(AO$3,"$AA$1:$AA$102",$C21) -> 0
A22: 18 | B22: 9 | C22: Ungarn | D22: =SUM(COUNTIF(INDIRECT(""&$T$3:$AG$3&"!$S$12:$T$400"),"Ungarn")) -> 32 | E22: =SUM('1934'!D83,'1938'!D89,'1954'!D137,'1958'!D164,'1962'!D138,'1966'!D140,'1978'!D170,'1982'!D237,'1986'!D231) -> 15 | F22: =SUM('1934'!E83,'1938'!E89,'1954'!E137,'1958'!E164,'1962'!E138,'1966'!E140,'1978'!E170,'1982'!E237,'1986'!E231) -> 3 | G22: =SUM('1934'!F83,'1938'!F89,'1954'!F137,'1958'!F164,'1962'!F138,'1966'!F140,'1978'!F170,'1982'!F237,'1986'!F231) -> 14 | H22: =SUM('1934'!G83,'1938'!G89,'1954'!G137,'1958'!G164,'1962'!G138,'1966'!G140,'1978'!G170,'1982'!G237,'1986'!G231) -> 87 | I22: =SUM('1934'!H83,'1938'!H89,'1954'!H137,'1958'!H164,'1962'!H138,'1966'!H140,'1978'!H170,'1982'!H237,'1986'!H231) -> 57 | J22: 30 | K22: 33 | L22: 31 | M22: =SUM(COUNTIF(INDIRECT(""&$AH$3:$AO$3&"!$S$12:$T$400"),"Ungarn")) -> 0 | N22: 0 | O22: 0 | P22: 0 | Q22: 0 | R22: 33 | T22: =TeilnahmeImWMJahr(T$3,"$AA$1:$AA$102",$C22) -> 0 | U22: =TeilnahmeImWMJahr(U$3,"$AA$1:$AA$102",$C22) -> 1 | V22: =TeilnahmeImWMJahr(V$3,"$AA$1:$AA$102",$C22) -> 1 | W22: =TeilnahmeImWMJahr(W$3,"$AA$1:$AA$102",$C22) -> 0 | X22: =TeilnahmeImWMJahr(X$3,"$AA$1:$AA$102",$C22) -> 1 | Y22: =TeilnahmeImWMJahr(Y$3,"$AA$1:$AA$102",$C22) -> 1 | Z22: =TeilnahmeImWMJahr(Z$3,"$AA$1:$AA$102",$C22) -> 1 | AA22: =TeilnahmeImWMJahr(AA$3,"$AA$1:$AA$102",$C22) -> 1 | AB22: =TeilnahmeImWMJahr(AB$3,"$AA$1:$AA$102",$C22) -> 0 | AC22: =TeilnahmeImWMJahr(AC$3,"$AA$1:$AA$102",$C22) -> 0 | AD22: =TeilnahmeImWMJahr(AD$3,"$AA$1:$AA$102",$C22) -> 1 | AE22: =TeilnahmeImWMJahr(AE$3,"$AA$1:$AA$102",$C22) -> 1 | AF22: =TeilnahmeImWMJahr(AF$3,"$AA$1:$AA$102",$C22) -> 1 | AG22: =TeilnahmeImWMJahr(AG$3,"$AA$1:$AA$102",$C22) -> 0 | AH22: =TeilnahmeImWMJahr(AH$3,"$AA$1:$AA$102",$C22) -> 0 | AI22: =TeilnahmeImWMJahr(AI$3,"$AA$1:$AA$102",$C22) -> 0 | AJ22: =TeilnahmeImWMJahr(AJ$3,"$AA$1:$AA$102",$C22) -> 0 | AK22: =TeilnahmeImWMJahr(AK$3,"$AA$1:$AA$102",$C22) -> 0 | AL22: =TeilnahmeImWMJahr(AL$3,"$AA$1:$AA$102",$C22) -> 0 | AM22: =TeilnahmeImWMJahr(AM$3,"$AA$1:$AA$102",$C22) -> 0 | AN22: =TeilnahmeImWMJahr(AN$3,"$AA$1:$AA$102",$C22) -> 0 | AO22: =TeilnahmeImWMJahr(AO$3,"$AA$1:$AA$102",$C22) -> 0
A23: 19 | B23: 9 | C23: Chile | D23: =SUM(COUNTIF(INDIRECT(""&$T$3:$AG$3&"!$S$12:$T$400"),"Chile")) -> 21 | E23: =SUM('1930'!D107,'1950'!D114,'1962'!D134,'1966'!D148,'1974'!D167,'1982'!D245) -> 7 | F23: =SUM('1930'!E107,'1950'!E114,'1962'!E134,'1966'!E148,'1974'!E167,'1982'!E245) -> 3 | G23: =SUM('1930'!F107,'1950'!F114,'1962'!F134,'1966'!F148,'1974'!F167,'1982'!F245) -> 11 | H23: =SUM('1930'!G107,'1950'!G114,'1962'!G134,'1966'!G148,'1974'!G167,'1982'!G245,'1998'!G266,'2010'!G254,'2014'!G261) -> 42 | I23: =SUM('1930'!H107,'1950'!H114,'1962'!H134,'1966'!H148,'1974'!H167,'1982'!H245,'1998'!H266,'2010'!H254,'2014'!H261) -> 52 | J23: -10 | K23: 17 | L23: 25 | M23: =SUM(COUNTIF(INDIRECT(""&$AH$3:$AO$3&"!$S$12:$T$400"),"Chile")) -> 12 | N23: =SUM('1998'!D266,'2010'!D254,'2014'!D261) -> 4 | O23: =SUM('1998'!E266,'2010'!E254,'2014'!E261) -> 3 | P23: =SUM('1998'!F266,'2010'!F254,'2014'!F261) -> 5 | Q23: 15 | R23: 32 | T23: =TeilnahmeImWMJahr(T$3,"$AA$1:$AA$102",$C23) -> 1 | U23: =TeilnahmeImWMJahr(U$3,"$AA$1:$AA$102",$C23) -> 0 | V23: =TeilnahmeImWMJahr(V$3,"$AA$1:$AA$102",$C23) -> 0 | W23: =TeilnahmeImWMJahr(W$3,"$AA$1:$AA$102",$C23) -> 1 | X23: =TeilnahmeImWMJahr(X$3,"$AA$1:$AA$102",$C23) -> 0 | Y23: =TeilnahmeImWMJahr(Y$3,"$AA$1:$AA$102",$C23) -> 0 | Z23: =TeilnahmeImWMJahr(Z$3,"$AA$1:$AA$102",$C23) -> 1 | AA23: =TeilnahmeImWMJahr(AA$3,"$AA$1:$AA$102",$C23) -> 1 | AB23: =TeilnahmeImWMJahr(AB$3,"$AA$1:$AA$102",$C23) -> 0 | AC23: =TeilnahmeImWMJahr(AC$3,"$AA$1:$AA$102",$C23) -> 1 | AD23: =TeilnahmeImWMJahr(AD$3,"$AA$1:$AA$102",$C23) -> 0 | AE23: =TeilnahmeImWMJahr(AE$3,"$AA$1:$AA$102",$C23) -> 1 | AF23: =TeilnahmeImWMJahr(AF$3,"$AA$1:$AA$102",$C23) -> 0 | AG23: =TeilnahmeImWMJahr(AG$3,"$AA$1:$AA$102",$C23) -> 0 | AH23: =TeilnahmeImWMJahr(AH$3,"$AA$1:$AA$102",$C23) -> 0 | AI23: =TeilnahmeImWMJahr(AI$3,"$AA$1:$AA$102",$C23) -> 1 | AJ23: =TeilnahmeImWMJahr(AJ$3,"$AA$1:$AA$102",$C23) -> 0 | AK23: =TeilnahmeImWMJahr(AK$3,"$AA$1:$AA$102",$C23) -> 0 | AL23: =TeilnahmeImWMJahr(AL$3,"$AA$1:$AA$102",$C23) -> 1 | AM23: =TeilnahmeImWMJahr(AM$3,"$AA$1:$AA$102",$C23) -> 1 | AN23: =TeilnahmeImWMJahr(AN$3,"$AA$1:$AA$102",$C23) -> 0 | AO23: =TeilnahmeImWMJahr(AO$3,"$AA$1:$AA$102",$C23) -> 0
A24: 20 | B24: 8 | C24: Paraguay | D24: =SUM(COUNTIF(INDIRECT(""&$T$3:$AG$3&"!$S$12:$T$400"),"Paraguay")) -> 11 | E24: =SUM('1930'!D110,'1950'!D117,'1958'!D162,'1986'!D227) -> 3 | F24: =SUM('1930'!E110,'1950'!E117,'1958'!E162,'1986'!E227) -> 4 | G24: =SUM('1930'!F110,'1950'!F117,'1958'!F162,'1986'!F227) -> 4 | H24: =SUM('1930'!G110,'1950'!G117,'1958'!G162,'1986'!G227,'1998'!G263,'2002'!G264,'2006'!G268,'2010'!G251) -> 35 | I24: =SUM('1930'!H110,'1950'!H117,'1958'!H162,'1986'!H227,'1998'!H263,'2002'!H264,'2006'!H268,'2010'!H251) -> 41 | J24: -6 | K24: 10 | L24: 12 | M24: =SUM(COUNTIF(INDIRECT(""&$AH$3:$AO$3&"!$S$12:$T$400"),"Paraguay")) -> 16 | N24: =SUM('1998'!D263,'2002'!D264,'2006'!D268,'2010'!D251) -> 5 | O24: =SUM('1998'!E263,'2002'!E264,'2006'!E268,'2010'!E251) -> 5 | P24: =SUM('1998'!F263,'2002'!F264,'2006'!F268,'2010'!F251) -> 6 | Q24: 20 | R24: 30 | T24: =TeilnahmeImWMJahr(T$3,"$AA$1:$AA$102",$C24) -> 1 | U24: =TeilnahmeImWMJahr(U$3,"$AA$1:$AA$102",$C24) -> 0 | V24: =TeilnahmeImWMJahr(V$3,"$AA$1:$AA$102",$C24) -> 0 | W24: =TeilnahmeImWMJahr(W$3,"$AA$1:$AA$102",$C24) -> 1 | X24: =TeilnahmeImWMJahr(X$3,"$AA$1:$AA$102",$C24) -> 0 | Y24: =TeilnahmeImWMJahr(Y$3,"$AA$1:$AA$102",$C24) -> 1 | Z24: =TeilnahmeImWMJahr(Z$3,"$AA$1:$AA$102",$C24) -> 0 | AA24: =TeilnahmeImWMJahr(AA$3,"$AA$1:$AA$102",$C24) -> 0 | AB24: =TeilnahmeImWMJahr(AB$3,"$AA$1:$AA$102",$C24) -> 0 | AC24: =TeilnahmeImWMJahr(AC$3,"$AA$1:$AA$102",$C24) -> 0 | AD24: =TeilnahmeImWMJahr(AD$3,"$AA$1:$AA$102",$C24) -> 0 | AE24: =TeilnahmeImWMJahr(AE$3,"$AA$1:$AA$102",$C24) -> 0 | AF24: =TeilnahmeImWMJahr(AF$3,"$AA$1:$AA$102",$C24) -> 1 | AG24: =TeilnahmeImWMJahr(AG$3,"$AA$1:$AA$102",$C24) -> 0 | AH24: =TeilnahmeImWMJahr(AH$3,"$AA$1:$AA$102",$C24) -> 0 | AI24: =TeilnahmeImWMJahr(AI$3,"$AA$1:$AA$102",$C24) -> 1 | AJ24: =TeilnahmeImWMJahr(AJ$3,"$AA$1:$AA$102",$C24) -> 1 | AK24: =TeilnahmeImWMJahr(AK$3,"$AA$1:$AA$102",$C24) -> 1 | AL24: =TeilnahmeImWMJahr(AL$3,"$AA$1:$AA$102",$C24) -> 1 | AM24: =TeilnahmeImWMJahr(AM$3,"$AA$1:$AA$102",$C24) -> 0 | AN24: =TeilnahmeImWMJahr(AN$3,"$AA$1:$AA$102",$C24) -> 0 | AO24: =TeilnahmeImWMJahr(AO$3,"$AA$1:$AA$102",$C24) -> 0

Sheet 1994
A2: 15. WM 1994 in den USA
A4: 17. Juni-17. Juli 1994
A5: Teilnehmende Nationen: 24 --- Bewerbungen: 143
F7: Ab dieser WM gibt es für einen Sieg 3 Punkte, für ein Unentschieden 1 Punkt
F10: Gruppe A
C12: 1994-06-18 | D12: USA | E12: Schweiz | F12: 1 | G12: 1 | I12: Pontiac | S12: USA | T12: Schweiz | U12: 1 | V12: 1 | X12: =(IF(U12>V12,3,IF(U12=V12,1,2))) -> 1 | Y12: =(IF(V12>U12,3,IF(U12=V12,1,2))) -> 1 | AA12: Brasilien
F13: (1 | G13: 1) | S13: Kolumbien | T13: Rumänien | U13: 1 | V13: 3 | X13: =(IF(U13>V13,3,IF(U13=V13,1,2))) -> 2 | Y13: =(IF(V13>U13,3,IF(U13=V13,1,2))) -> 3 | AA13: Schweden
C14: 1994-06-18 | D14: Kolumbien | E14: Rumänien | F14: 1 | G14: 3 | I14: Pasadena | S14: Rumänien | T14: Schweiz | U14: 1 | V14: 4 | X14: 2 | Y14: 3 | AA14: Italien
F15: (1 | G15: 2) | S15: USA | T15: Kolumbien | U15: 2 | V15: 1 | X15: 3 | Y15: 2 | AA15: Bulgarien
C16: 1994-06-22 | D16: Rumänien | E16: Schweiz | F16: 1 | G16: 4 | I16: Pontiac | S16: USA | T16: Rumänien | U16: 0 | V16: 1 | X16: 2 | Y16: 3 | AA16: BRD
F17: (1 | G17: 1) | S17: Schweiz | T17: Kolumbien | U17: 0 | V17: 2 | X17: 2 | Y17: 3 | AA17: Rumänien
C18: 1994-06-22 | D18: USA | E18: Kolumbien | F18: 2 | G18: 1 | I18: Pasadena | AA18: Niederlande
F19: (1 | G19: 0) | AA19: Spanien
C20: 1994-06-26 | D20: USA | E20: Rumänien | F20: 0 | G20: 1 | I20: Pasadena | AA20: Argentinien
F21: (0 | G21: 1) | AA21: Nigeria
C22: 1994-06-26 | D22: Schweiz | E22: Kolumbien | F22: 0 | G22: 2 | I22: Palo Alto | AA22: Saudi-Arabien
F23: (0 | G23: 1) | AA23: Belgien
AA24: Schweiz
B25: Nation | C25: Spiele | D25: gew | E25: unent | F25: verl | G25: Tore+ | H25: Tore- | I25: Punkte | AA25: Mexiko
A26: Tabelle: | B26: Rumänien | C26: =COUNTIF($S$12:$T$17,"Rumänien") -> 3 | D26: =SUMPRODUCT(($S$12:$T$17=B26)*($X$12:$Y$17=3)) -> 2 | E26: =SUMPRODUCT(($S$12:$T$17=B26)*($X$12:$Y$17=1)) -> 0 | F26: =SUMPRODUCT(($S$12:$T$17=B26)*($X$12:$Y$17=2)) -> 1 | G26: =SUMPRODUCT(($S$12:$S$17=B26)*($U$12:$U$17))+SUMPRODUCT(($T$12:$T$17=B26)*($V$12:$V$17)) -> 5 | H26: =SUMPRODUCT(($S$12:$S$17=B26)*($V$12:$V$17))+SUMPRODUCT(($T$12:$T$17=B26)*($U$12:$U$17)) -> 5 | I26: =(D26*3)+E26 -> 6 | AA26: USA
B27: Schweiz | C27: =COUNTIF($S$12:$T$17,"Schweiz") -> 3 | D27: =SUMPRODUCT(($S$12:$T$17=B27)*($X$12:$Y$17=3)) -> 1 | E27: =SUMPRODUCT(($S$12:$T$17=B27)*($X$12:$Y$17=1)) -> 1 | F27: =SUMPRODUCT(($S$12:$T$17=B27)*($X$12:$Y$17=2)) -> 1 | G27: =SUMPRODUCT(($S$12:$S$17=B27)*($U$12:$U$17))+SUMPRODUCT(($T$12:$T$17=B27)*($V$12:$V$17)) -> 5 | H27: =SUMPRODUCT(($S$12:$S$17=B27)*($V$12:$V$17))+SUMPRODUCT(($T$12:$T$17=B27)*($U$12:$U$17)) -> 4 | I27: =(D27*3)+E27 -> 4 | AA27: Irland
B28: USA | C28: =COUNTIF($S$12:$T$17,"USA") -> 3 | D28: 1 | E28: 1 | F28: 1 | G28: 3 | H28: 3 | I28: 4 | AA28: Norwegen
B29: Kolumbien | C29: =COUNTIF($S$12:$T$17,"Kolumbien") -> 3 | D29: 1 | E29: 0 | F29: 2 | G29: 4 | H29: 5 | I29: 3 | AA29: Russland
AA30: Kolumbien
AA31: Südkorea
F32: Gruppe B | AA32: Kamerun
AA33: Bolivien
C34: 1994-06-19 | D34: Kamerun | E34: Schweden | F34: 2 | G34: 2 | I34: Pasadena | S34: Kamerun | T34: Schweden | U34: 2 | V34: 2 | X34: =(IF(U34>V34,3,IF(U34=V34,1,2))) -> 1 | Y34: =(IF(V34>U34,3,IF(U34=V34,1,2))) -> 1 | AA34: Marokko
F35: (1 | G35: 1) | S35: Brasilien | T35: Russland | U35: 2 | V35: 0 | X35: =(IF(U35>V35,3,IF(U35=V35,1,2))) -> 3 | Y35: =(IF(V35>U35,3,IF(U35=V35,1,2))) -> 2 | AA35: Griechenland
C36: 1994-06-20 | D36: Brasilien | E36: Russland | F36: 2 | G36: 0 | I36: Palo Alto | S36: Brasilien | T36: Kamerun | U36: 3 | V36: 0 | X36: 3 | Y36: 2
F37: (1 | G37: 0) | S37: Schweden | T37: Russland | U37: 3 | V37: 1 | X37: 3 | Y37: 2
C38: 1994-06-24 | D38: Brasilien | E38: Kamerun | F38: 3 | G38: 0 | I38: Palo Alto | S38: Russland | T38: Kamerun | U38: 6 | V38: 1 | X38: 3 | Y38: 2
F39: (1 | G39: 0) | S39: Brasilien | T39: Schweden | U39: 1 | V39: 1 | X39: 1 | Y39: 1
C40: 1994-06-24 | D40: Schweden | E40: Russland | F40: 3 | G40: 1 | I40: Pontiac
F41: (1 | G41: 1)
C42: 1994-06-28 | D42: Russland | E42: Kamerun | F42: 6 | G42: 1 | I42: Palo Alto
F43: (3 | G43: 0)
C44: 1994-06-28 | D44: Brasilien | E44: Schweden | F44: 1 | G44: 1 | I44: Pontiac
F45: (0 | G45: 1)
B47: Nation | C47: Spiele | D47: gew | E47: unent | F47: verl | G47: Tore+ | H47: Tore- | I47: Punkte
A48: Tabelle: | B48: Brasilien | C48: 3 | D48: 2 | E48: 1 | F48: 0 | G48: 6 | H48: 1 | I48: 7
B49: Schweden
B50: Russland
B51: Kamerun
F54: Gruppe C
C56: 1994-06-17 | D56: BRD | E56: Bolivien | F56: 1 | G56: 0 | I56: Chicago | S56: BRD | T56: Bolivien | U56: 1 | V56: 0 | X56: =(IF(U56>V56,3,IF(U56=V56,1,2))) -> 3 | Y56: =(IF(V56>U56,3,IF(U56=V56,1,2))) -> 2
F57: (0 | G57: 0) | S57: Spanien | T57: Südkorea | U57: 2 | V57: 2 | X57: =(IF(U57>V57,3,IF(U57=V57,1,2))) -> 1 | Y57: =(IF(V57>U57,3,IF(U57=V57,1,2))) -> 1
C58: 1994-06-17 | D58: Spanien | E58: Südkorea | F58: 2 | G58: 2 | I58: Dallas | S58: BRD | T58: Spanien | U58: 1 | V58: 1 | X58: 1 | Y58: 1
F59: (0 | G59: 0) | S59: Südkorea | T59: Bolivien | U59: 0 | V59: 0 | X59: 1 | Y59: 1
C60: 1994-06-21 | D60: BRD | E60: Spanien | F60: 1 | G60: 1 | I60: Chicago | S60: Bolivien | T60: Spanien | U60: 1 | V60: 3 | X60: 2 | Y60: 3
F61: (0 | G61: 1) | S61: BRD | T61: Südkorea | U61: 3 | V61: 2 | X61: 3 | Y61: 2
C62: 1994-06-23 | D62: Südkorea | E62: Bolivien | F62: 0 | G62: 0 | I62: Foxborough
C63: 1994-06-27 | D63: Bolivien | E63: Spanien | F63: 1 | G63: 3 | I63: Chicago
F64: (0 | G64: 1)
C65: 1994-06-27 | D65: BRD | E65: Südkorea | F65: 3 | G65: 2 | I65: Dallas
F66: (3 | G66: 0)
B68: Nation | C68: Spiele | D68: gew | E68: unent | F68: verl | G68: Tore+ | H68: Tore- | I68: Punkte
B69: BRD | C69: 3 | D69: 2 | E69: 1 | F69: 0 | G69: 5 | H69: 3 | I69: 7
B70: Spanien
B71: Südkorea
B72: Bolivien
F75: Gruppe D
C77: 1994-06-21 | D77: Argentinien | E77: Griechenland | F77: 4 | G77: 0 | I77: Foxborough | S77: Argentinien | T77: Griechenland | U77: 4 | V77: 0 | X77: =(IF(U77>V77,3,IF(U77=V77,1,2))) -> 3 | Y77: =(IF(V77>U77,3,IF(U77=V77,1,2))) -> 2
F78: (2 | G78: 0) | S78: Nigeria | T78: Bulgarien | U78: 3 | V78: 0 | X78: 3 | Y78: 2
C79: 1994-06-21 | D79: Nigeria | E79: Bulgarien | F79: 3 | G79: 0 | I79: Dallas | S79: Argentinien | T79: Nigeria | U79: 2 | V79: 1 | X79: =(IF(U79>V79,3,IF(U79=V79,1,2))) -> 3 | Y79: =(IF(V79>U79,3,IF(U79=V79,1,2))) -> 2
F80: (2 | G80: 0) | S80: Bulgarien | T80: Griechenland | U80: 4 | V80: 0 | X80: 3 | Y80: 2
C81: 1994-06-25 | D81: Argentinien | E81: Nigeria | F81: 2 | G81: 1 | I81: Foxborough | S81: Griechenland | T81: Nigeria | U81: 0 | V81: 2 | X81: 2 | Y81: 3
F82: (2 | G82: 1) | S82: Argentinien | T82: Bulgarien | U82: 0 | V82: 2 | X82: 2 | Y82: 3
C83: 1994-06-26 | D83: Bulgarien | E83: Griechenland | F83: 4 | G83: 0 | I83: Chicago
F84: (1 | G84: 0)
C85: 1994-06-30 | D85: Griechenland | E85: Nigeria | F85: 0 | G85: 2 | I85: Foxborough
F86: (0 | G86: 1)
C87: 1994-06-30 | D87: Argentinien | E87: Bulgarien | F87: 0 | G87: 2 | I87: Dallas
F88: (0 | G88: 0)
B90: Nation | C90: Spiele | D90: gew | E90: unent | F90: verl | G90: Tore+ | H90: Tore- | I90: Punkte
B91: Nigeria | C91: 3 | D91: 2 | E91: 0 | F91: 1 | G91: 6 | H91: 2 | I91: 6
B92: Bulgarien
B93: Argentinien
B94: Griechenland
C96: Bulgarien durch direkten Vergleich vor Argentinien Gruppenzweiter
F99: Gruppe E
C101: 1994-06-18 | D101: Italien | E101: Irland | F101: 0 | G101: 1 | I101: East Rutherford | S101: Italien | T101: Irland | U101: 0 | V101: 1 | X101: =(IF(U101>V101,3,IF(U101=V101,1,2))) -> 2 | Y101: =(IF(V101>U101,3,IF(U101=V101,1,2))) -> 3
F102: (0 | G102: 1) | S102: Norwegen | T102: Mexiko | U102: 1 | V102: 0 | X102: 3 | Y102: 2
C103: 1994-06-19 | D103: Norwegen | E103: Mexiko | F103: 1 | G103: 0 | I103: Washington, D.C. | S103: Italien | T103: Norwegen | U103: 1 | V103: 0 | X103: 3 | Y103: 2
F104: (0 | G104: 0) | S104: Mexiko | T104: Irland | U104: 2 | V104: 1 | X104: 3 | Y104: 2
C105: 1994-06-23 | D105: Italien | E105: Norwegen | F105: 1 | G105: 0 | I105: East Rutherford | S105: Irland | T105: Norwegen | U105: 0 | V105: 0 | X105: 1 | Y105: 1
F106: (0 | G106: 0) | S106: Italien | T106: Mexiko | U106: 1 | V106: 1 | X106: 1 | Y106: 1
C107: 1994-06-24 | D107: Mexiko | E107: Irland | F107: 2 | G107: 1 | I107: Orlando
F108: (1 | G108: 0)
C109: 1994-06-28 | D109: Irland | E109: Norwegen | F109: 0 | G109: 0 | I109: East Rutherford
C110: 1994-06-28 | D110: Italien | E110: Mexiko | F110: 1 | G110: 1 | I110: Washington, D.C.
F111: (0 | G111: 0)
B113: Nation | C113: Spiele | D113: gew | E113: unent | F113: verl | G113: Tore+ | H113: Tore- | I113: Punkte
B114: Mexiko | C114: 3 | D114: 1 | E114: 1 | F114: 1 | G114: 3 | H114: 3 | I114: 4
B115: Irland
B116: Italien
B117: Norwegen
C119: Irland durch direkten Vergleich vor Italien Gruppenzweiter
F122: Gruppe F
C124: 1994-06-19 | D124: Belgien | E124: Marokko | F124: 1 | G124: 0 | I124: Orlando | S124: Belgien | T124: Marokko | U124: 1 | V124: 0 | X124: =(IF(U124>V124,3,IF(U124=V124,1,2))) -> 3 | Y124: =(IF(V124>U124,3,IF(U124=V124,1,2))) -> 2
F125: (1 | G125: 0) | S125: Niederlande | T125: Saudi-Arabien | U125: 2 | V125: 1 | X125: 3 | Y125: 2
C126: 1994-06-20 | D126: Niederlande | E126: Saudi-Arabien | F126: 2 | G126: 1 | I126: Washington, D.C. | S126: Belgien | T126: Niederlande | U126: 1 | V126: 0 | X126: 3 | Y126: 2
F127: (0 | G127: 1) | S127: Saudi-Arabien | T127: Marokko | U127: 2 | V127: 1 | X127: 3 | Y127: 2
C128: 1994-06-25 | D128: Belgien | E128: Niederlande | F128: 1 | G128: 0 | I128: Orlando | S128: Marokko | T128: Niederlande | U128: 1 | V128: 2 | X128: 2 | Y128: 3
F129: (0 | G129: 0) | S129: Belgien | T129: Saudi-Arabien | U129: 0 | V129: 1 | X129: 2 | Y129: 3
C130: 1994-06-25 | D130: Saudi-Arabien | E130: Marokko | F130: 2 | G130: 1 | I130: East Rutherford
F131: (2 | G131: 1)
C132: 1994-06-29 | D132: Marokko | E132: Niederlande | F132: 1 | G132: 2 | I132: Orlando
F133: (0 | G133: 1)
C134: 1994-06-29 | D134: Belgien | E134: Saudi-Arabien | F134: 0 | G134: 1 | I134: Washington, D.C.
F135: (0 | G135: 1)
B137: Nation | C137: Spiele | D137: gew | E137: unent | F137: verl | G137: Tore+ | H137: Tore- | I137: Punkte
B138: Niederlande | C138: 3 | D138: 2 | E138: 0 | F138: 1 | G138: 4 | H138: 3 | I138: 6
B139: Saudi-Arabien
B140: Belgien
B141: Marokko
C143: Niederlande durch direkten Vergleich vor Saudi-Arabien Gruppensieger
F146: Rangliste der Gruppendritten
B148: Nation | C148: Spiele | D148: gew | E148: unent | F148: verl | G148: Tore+ | H148: Tore- | I148: Punkte
B149: Argentinien | C149: 3 | D149: 2 | E149: 0 | F149: 1 | G149: 6 | H149: 3 | I149: 6
B150: Belgien | C150: 3 | D150: 2 | E150: 0 | F150: 1 | G150: 2 | H150: 1 | I150: 6
B151: USA | C151: 3 | D151: 1 | E151: 1 | F151: 1 | G151: 3 | H151: 3 | I151: 4
B152: Italien | C152: 3 | D152: 1 | E152: 1 | F152: 1 | G152: 2 | H152: 2 | I152: 4
B153: Russland | C153: 3 | D153: 1 | E153: 0 | F153: 2 | G153: 7 | H153: 6 | I153: 3
B154: Südkorea | C154: 3 | D154: 0 | E154: 2 | F154: 1 | G154: 4 | H154: 5 | I154: 2
F157: Achtelfinale
C159: 1994-07-02 | D159: BRD | E159: Belgien | F159: 3 | G159: 2 | I159: Chicago | S159: BRD | T159: Belgien | U159: 3 | V159: 2 | X159: =(IF(U159>V159,3,IF(U159=V159,1,2))) -> 3 | Y159: =(IF(V159>U159,3,IF(U159=V159,1,2))) -> 2
F160: (3 | G160: 1) | S160: Schweiz | T160: Spanien | U160: 0 | V160: 3 | X160: 2 | Y160: 3
C161: 1994-07-02 | D161: Schweiz | E161: Spanien | F161: 0 | G161: 3 | I161: Washington, D.C. | S161: Saudi-Arabien | T161: Schweden | U161: 1 | V161: 3 | X161: 2 | Y161: 3
F162: (0 | G162: 1) | S162: Rumänien | T162: Argentinien | U162: 3 | V162: 2 | X162: 3 | Y162: 2
C163: 1994-07-03 | D163: Saudi-Arabien | E163: Schweden | F163: 1 | G163: 3 | I163: Dallas | S163: Niederlande | T163: Irland | U163: 2 | V163: 0 | X163: 3 | Y163: 2
F164: (0 | G164: 1) | S164: Brasilien | T164: USA | U164: 1 | V164: 0 | X164: 3 | Y164: 2
C165: 1994-07-03 | D165: Rumänien | E165: Argentinien | F165: 3 | G165: 2 | I165: Pasadena | S165: Nigeria | T165: Italien | U165: 1 | V165: 2 | X165: 2 | Y165: 3
F166: (2 | G166: 1) | S166: Mexiko | T166: Bulgarien | U166: 2 | V166: 4 | X166: 2 | Y166: 3
C167: 1994-07-04 | D167: Niederlande | E167: Irland | F167: 2 | G167: 0 | I167: Orlando
F168: (2 | G168: 0)
C169: 1994-07-04 | D169: Brasilien | E169: USA | F169: 1 | G169: 0 | I169: Palo Alto
F170: (0 | G170: 0)
C171: 1994-07-05 | D171: Nigeria | E171: Italien | F171: 1 | G171: 2 | H171: n.V. | I171: Foxborough
F172: 1 | G172: 1
F173: (1 | G173: 0)
C174: 1994-07-05 | D174: Mexiko | E174: Bulgarien | F174: 1 | G174: 3 | H174: n.E. | I174: East Rutherford
F175: 1 | G175: 1 | H175: n.V.
F176: 1 | G176: 1
F177: (1 | G177: 1)
F180: Viertelfinale
C182: 1994-07-09 | D182: Italien | E182: Spanien | F182: 2 | G182: 1 | I182: Foxborough | S182: Italien | T182: Spanien | U182: 2 | V182: 1 | X182: =(IF(U182>V182,3,IF(U182=V182,1,2))) -> 3 | Y182: =(IF(V182>U182,3,IF(U182=V182,1,2))) -> 2
F183: (1 | G183: 0) | S183: Brasilien | T183: Niederlande | U183: 3 | V183: 2 | X183: 3 | Y183: 2
C184: 1994-07-09 | D184: Brasilien | E184: Niederlande | F184: 3 | G184: 2 | I184: Dallas | S184: BRD | T184: Bulgarien | U184: 1 | V184: 2 | X184: 2 | Y184: 3
F185: (1 | G185: 0) | S185: Rumänien | T185: Schweden | U185: 6 | V185: 7 | X185: 2 | Y185: 3
C186: 1994-07-10 | D186: BRD | E186: Bulgarien | F186: 1 | G186: 2 | I186: East Rutherford
F187: (0 | G187: 0)
C188: 1994-07-10 | D188: Rumänien | E188: Schweden | F188: 4 | G188: 5 | H188: n.E. | I188: Palo Alto
F189: 2 | G189: 2 | H189: n.V.
F190: 1 | G190: 1
F191: (0 | G191: 0)
F194: Halbfinale
C196: 1994-07-13 | D196: Bulgarien | E196: Italien | F196: 1 | G196: 2 | I196: East Rutherford | S196: Bulgarien | T196: Italien | U196: 1 | V196: 2 | X196: =(IF(U196>V196,3,IF(U196=V196,1,2))) -> 2 | Y196: =(IF(V196>U196,3,IF(U196=V196,1,2))) -> 3
F197: (1 | G197: 2) | S197: Schweden | T197: Brasilien | U197: 0 | V197: 1 | X197: 2 | Y197: 3
C198: 1994-07-13 | D198: Schweden | E198: Brasilien | F198: 0 | G198: 1 | I198: Pasadena
F199: (0 | G199: 0)
C202: Spiel um Platz 3 am 16. Juli 1994 in Pasadena
D204: Schweden | E204: Bulgarien | F204: 4 | G204: 0 | S204: Schweden | T204: Bulgarien | U204: 4 | V204: 0 | X204: =(IF(U204>V204,3,IF(U204=V204,1,2))) -> 3 | Y204: =(IF(V204>U204,3,IF(U204=V204,1,2))) -> 2
F205: (4 | G205: 0)
C211: Endspiel am 8. Juli 1990 in Rom
D213: Brasilien | E213: Italien | F213: 3 | G213: 2 | H213: n.E. | S213: Brasilien | T213: Italien | U213: 3 | V213: 2 | X213: =(IF(U213>V213,3,IF(U213=V213,1,2))) -> 3 | Y213: =(IF(V213>U213,3,IF(U213=V213,1,2))) -> 2
F214: 0 | G214: 0 | H214: n.V.
F215: 0 | G215: 0
F216: (0 | G216: 0)
A222: Auswertung | B222: Nation | C222: Spiele | D222: gew | E222: unent | F222: verl | G222: Tore+ | H222: Tore- | I222: Punkte
B223: Brasilien | C223: =COUNTIF($S$12:$T$213,"Brasilien") -> 7 | D223: =SUMPRODUCT(($S$12:$T$213=B223)*($X$12:$Y$213=3)) -> 6 | E223: =SUMPRODUCT(($S$12:$T$213=B223)*($X$12:$Y$213=1)) -> 1 | F223: =SUMPRODUCT(($S$12:$T$213=B223)*($X$12:$Y$213=2)) -> 0 | G223: =SUMPRODUCT(($S$12:$S$213=B223)*($U$12:$U$213))+SUMPRODUCT(($T$12:$T$213=B223)*($V$12:$V$213)) -> 14 | H223: =SUMPRODUCT(($S$12:$S$213=B223)*($V$12:$V$213))+SUMPRODUCT(($T$12:$T$213=B223)*($U$12:$U$213)) -> 5 | I223: =(D223*3)+E223 -> 19
B224: Schweden | C224: =COUNTIF($S$12:$T$213,"Schweden") -> 7 | D224: 4 | E224: 2 | F224: 1 | G224: 20 | H224: 12 | I224: 14
B225: Italien | C225: =COUNTIF($S$12:$T$213,"Italien") -> 7 | D225: 4 | E225: 1 | F225: 2 | G225: 10 | H225: 8 | I225: 13
B226: Bulgarien | C226: =COUNTIF($S$12:$T$213,"Bulgarien") -> 7 | D226: 4 | E226: 0 | F226: 3 | G226: 13 | H226: 12 | I226: 12
B227: BRD | C227: =COUNTIF($S$12:$T$213,"BRD") -> 5 | D227: 3 | E227: 1 | F227: 1 | G227: 9 | H227: 7 | I227: 10
B228: Rumänien | C228: =COUNTIF($S$12:$T$213,"Rumänien") -> 5 | D228: 3 | E228: 0 | F228: 2 | G228: 14 | H228: 14 | I228: 9
B229: Niederlande | C229: =COUNTIF($S$12:$T$213,"Niederlande") -> 5 | D229: 3 | E229: 0 | F229: 2 | G229: 8 | H229: 6 | I229: 9
B230: Spanien | C230: =COUNTIF($S$12:$T$213,"Spanien") -> 5 | D230: 2 | E230: 2 | F230: 1 | G230: 10 | H230: 6 | I230: 8
B231: Argentinien | C231: =COUNTIF($S$12:$T$213,"Argentinien") -> 4 | D231: 2 | E231: 0 | F231: 2 | G231: 8 | H231: 6 | I231: 6
B232: Nigeria | C232: =COUNTIF($S$12:$T$213,"Nigeria") -> 4 | D232: 2 | E232: 0 | F232: 2 | G232: 7 | H232: 4 | I232: 6
B233: Saudi-Arabien | C233: =COUNTIF($S$12:$T$213,"Saudi-Arabien") -> 4 | D233: 2 | E233: 0 | F233: 2 | G233: 5 | H233: 6 | I233: 6
B234: Belgien | C234: =COUNTIF($S$12:$T$213,"Belgien") -> 4 | D234: 2 | E234: 0 | F234: 2 | G234: 4 | H234: 4 | I234: 6
B235: Schweiz | C235: =COUNTIF($S$12:$T$213,"Schweiz") -> 4 | D235: 1 | E235: 1 | F235: 2 | G235: 5 | H235: 7 | I235: 4
B236: Mexiko | C236: =COUNTIF($S$12:$T$213,"Mexiko") -> 4 | D236: 1 | E236: 1 | F236: 2 | G236: 5 | H236: 7 | I236: 4
B237: USA | C237: =COUNTIF($S$12:$T$213,"USA") -> 4 | D237: =SUMPRODUCT(($S$12:$T$213=B237)*($X$12:$Y$213=3)) -> 1 | E237: =SUMPRODUCT(($S$12:$T$213=B237)*($X$12:$Y$213=1)) -> 1 | F237: 2 | G237: 3 | H237: 4 | I237: 4
B238: Irland | C238: =COUNTIF($S$12:$T$213,"Irland") -> 4 | D238: 1 | E238: 1 | F238: 2 | G238: 2 | H238: 4 | I238: 4
B239: Norwegen | C239: =COUNTIF($S$12:$T$213,"Norwegen") -> 3 | D239: 1 | E239: 1 | F239: 1 | G239: 1 | H239: 1 | I239: 4
B240: Russland | C240: =COUNTIF($S$12:$T$213,"Russland") -> 3 | D240: 1 | E240: 0 | F240: 2 | G240: 7 | H240: 6 | I240: 3
B241: Kolumbien | C241: =COUNTIF($S$12:$T$213,"Kolumbien") -> 3 | D241: =SUMPRODUCT(($S$12:$T$213=B241)*($X$12:$Y$213=3)) -> 1 | E241: =SUMPRODUCT(($S$12:$T$213=B241)*($X$12:$Y$213=1)) -> 0 | F241: =SUMPRODUCT(($S$12:$T$213=B241)*($X$12:$Y$213=2)) -> 2 | G241: 4 | H241: 5 | I241: 3
B242: Südkorea | C242: =COUNTIF($S$12:$T$213,"Südkorea") -> 3 | D242: 0 | E242: 2 | F242: 1 | G242: 4 | H242: 5 | I242: 2
B243: Kamerun | C243: =COUNTIF($S$12:$T$213,"Kamerun") -> 3 | D243: 0 | E243: 1 | F243: 2 | G243: 3 | H243: 11 | I243: 1
B244: Bolivien | C244: =COUNTIF($S$12:$T$213,"Bolivien") -> 3 | D244: 0 | E244: 1 | F244: 2 | G244: 1 | H244: 4 | I244: 1
B245: Marokko | C245: =COUNTIF($S$12:$T$213,"Marokko") -> 3 | D245: 0 | E245: 0 | F245: 3 | G245: 2 | H245: 5 | I245: 0
B246: Griechenland | C246: =COUNTIF($S$12:$T$213,"Griechenland") -> 3 | D246: 0 | E246: 0 | F246: 3 | G246: 0 | H246: 10 | I246: 0

Sheet 1998
A2: 16. WM 1998 in Frankreich
A4: 10. Juni-12. Juli 1998
A5: Teilnehmende Nationen: 32 --- Bewerbungen: 166
F10: Gruppe A
C12: 1998-06-10 | D12: Brasilien | E12: Schottland | F12: 2 | G12: 1 | S12: Brasilien | T12: Schottland | U12: 2 | V12: 1 | X12: =(IF(U12>V12,3,IF(U12=V12,1,2))) -> 3 | Y12: =(IF(V12>U12,3,IF(U12=V12,1,2))) -> 2 | AA12: Frankreich
F13: (1 | G13: 1) | S13: Marokko | T13: Norwegen | U13: 2 | V13: 2 | X13: 1 | Y13: 1 | AA13: Brasilien
C14: 1998-06-10 | D14: Marokko | E14: Norwegen | F14: 2 | G14: 2 | S14: Schottland | T14: Norwegen | U14: 1 | V14: 1 | X14: =(IF(U14>V14,3,IF(U14=V14,1,2))) -> 1 | Y14: =(IF(V14>U14,3,IF(U14=V14,1,2))) -> 1 | AA14: Kroatien
F15: (1 | G15: 1) | S15: Brasilien | T15: Marokko | U15: 3 | V15: 0 | X15: 3 | Y15: 2 | AA15: Argentinien
C16: 1998-06-16 | D16: Schottland | E16: Norwegen | F16: 1 | G16: 1 | S16: Brasilien | T16: Norwegen | U16: 1 | V16: 2 | X16: 2 | Y16: 3 | AA16: Niederlande
F17: (0 | G17: 0) | S17: Schottland | T17: Marokko | U17: 0 | V17: 3 | X17: 2 | Y17: 3 | AA17: Italien
C18: 1998-06-16 | D18: Brasilien | E18: Marokko | F18: 3 | G18: 0 | AA18: BRD
F19: (2 | G19: 0) | AA19: Dänemark
C20: 1998-06-23 | D20: Brasilien | E20: Norwegen | F20: 1 | G20: 2 | AA20: Jugoslawien
F21: (0 | G21: 0) | AA21: Rumänien
C22: 1998-06-23 | D22: Schottland | E22: Marokko | F22: 0 | G22: 3 | AA22: England
F23: (0 | G23: 1) | AA23: Nigeria
AA24: Mexiko
B25: Nation | C25: Spiele | D25: gew | E25: unent | F25: verl | G25: Tore+ | H25: Tore- | I25: Punkte | AA25: Norwegen
B26: Brasilien | C26: =COUNTIF($S$12:$T$17,"Brasilien") -> 3 | D26: =SUMPRODUCT(($S$12:$T$17=B26)*($X$12:$Y$17=3)) -> 2 | E26: =SUMPRODUCT(($S$12:$T$17=B26)*($X$12:$Y$17=1)) -> 0 | F26: =SUMPRODUCT(($S$12:$T$17=B26)*($X$12:$Y$17=2)) -> 1 | G26: =SUMPRODUCT(($S$12:$S$17=B26)*($U$12:$U$17))+SUMPRODUCT(($T$12:$T$17=B26)*($V$12:$V$17)) -> 6 | H26: =SUMPRODUCT(($S$12:$S$17=B26)*($V$12:$V$17))+SUMPRODUCT(($T$12:$T$17=B26)*($U$12:$U$17)) -> 3 | I26: =(D26*3)+E26 -> 6 | AA26: Paraguay
B27: Norwegen | C27: =COUNTIF($S$12:$T$17,"Norwegen") -> 3 | D27: =SUMPRODUCT(($S$12:$T$17=B27)*($X$12:$Y$17=3)) -> 1 | E27: =SUMPRODUCT(($S$12:$T$17=B27)*($X$12:$Y$17=1)) -> 2 | F27: =SUMPRODUCT(($S$12:$T$17=B27)*($X$12:$Y$17=2)) -> 0 | G27: =SUMPRODUCT(($S$12:$S$17=B27)*($U$12:$U$17))+SUMPRODUCT(($T$12:$T$17=B27)*($V$12:$V$17)) -> 5 | H27: =SUMPRODUCT(($S$12:$S$17=B27)*($V$12:$V$17))+SUMPRODUCT(($T$12:$T$17=B27)*($U$12:$U$17)) -> 4 | I27: =(D27*3)+E27 -> 5 | AA27: Spanien
B28: Marokko | C28: =COUNTIF($S$12:$T$17,"Marokko") -> 3 | D28: =SUMPRODUCT(($S$12:$T$17=B28)*($X$12:$Y$17=3)) -> 1 | E28: =SUMPRODUCT(($S$12:$T$17=B28)*($X$12:$Y$17=1)) -> 1 | F28: =SUMPRODUCT(($S$12:$T$17=B28)*($X$12:$Y$17=2)) -> 1 | G28: =SUMPRODUCT(($S$12:$S$17=B28)*($U$12:$U$17))+SUMPRODUCT(($T$12:$T$17=B28)*($V$12:$V$17)) -> 5 | H28: =SUMPRODUCT(($S$12:$S$17=B28)*($V$12:$V$17))+SUMPRODUCT(($T$12:$T$17=B28)*($U$12:$U$17)) -> 5 | I28: =(D28*3)+E28 -> 4 | AA28: Marokko
B29: Schottland | C29: =COUNTIF($S$12:$T$17,"Schottland") -> 3 | D29: =SUMPRODUCT(($S$12:$T$17=B29)*($X$12:$Y$17=3)) -> 0 | E29: =SUMPRODUCT(($S$12:$T$17=B29)*($X$12:$Y$17=1)) -> 1 | F29: =SUMPRODUCT(($S$12:$T$17=B29)*($X$12:$Y$17=2)) -> 2 | G29: =SUMPRODUCT(($S$12:$S$17=B29)*($U$12:$U$17))+SUMPRODUCT(($T$12:$T$17=B29)*($V$12:$V$17)) -> 2 | H29: =SUMPRODUCT(($S$12:$S$17=B29)*($V$12:$V$17))+SUMPRODUCT(($T$12:$T$17=B29)*($U$12:$U$17)) -> 6 | I29: =(D29*3)+E29 -> 1 | AA29: Chile
AA30: Belgien
AA31: Jamaika
F32: Gruppe B | AA32: Iran
AA33: Kolumbien
C34: 1998-06-11 | D34: Italien | E34: Chile | F34: 2 | G34: 2 | S34: Italien | T34: Chile | U34: 2 | V34: 2 | X34: =(IF(U34>V34,3,IF(U34=V34,1,2))) -> 1 | Y34: =(IF(V34>U34,3,IF(U34=V34,1,2))) -> 1 | AA34: Österreich
F35: (1 | G35: 1) | S35: Kamerun | T35: Österreich | U35: 1 | V35: 1 | X35: 1 | Y35: 1 | AA35: Südafrika
C36: 1998-06-11 | D36: Kamerun | E36: Österreich | F36: 1 | G36: 1 | S36: Chile | T36: Österreich | U36: 1 | V36: 1 | X36: =(IF(U36>V36,3,IF(U36=V36,1,2))) -> 1 | Y36: =(IF(V36>U36,3,IF(U36=V36,1,2))) -> 1 | AA36: Kamerun
F37: (0 | G37: 0) | S37: Italien | T37: Kamerun | U37: 3 | V37: 0 | X37: 3 | Y37: 2 | AA37: Saudi-Arabien
C38: 1998-06-17 | D38: Chile | E38: Österreich | F38: 1 | G38: 1 | S38: Italien | T38: Österreich | U38: 2 | V38: 1 | X38: 3 | Y38: 2 | AA38: Südkorea
F39: (0 | G39: 0) | S39: Chile | T39: Kamerun | U39: 1 | V39: 1 | X39: 1 | Y39: 1 | AA39: Schottland
C40: 1998-06-17 | D40: Italien | E40: Kamerun | F40: 3 | G40: 0 | AA40: Tunesien
F41: (1 | G41: 0) | AA41: Bulgarien
C42: 1998-06-23 | D42: Italien | E42: Österreich | F42: 2 | G42: 1 | AA42: Japan
F43: (1 | G43: 0) | AA43: USA
C44: 1998-06-23 | D44: Chile | E44: Kamerun | F44: 1 | G44: 1
F45: (1 | G45: 0)
B47: Nation | C47: Spiele | D47: gew | E47: unent | F47: verl | G47: Tore+ | H47: Tore- | I47: Punkte
B48: Italien | C48: 3 | D48: 2 | E48: 1 | F48: 0 | G48: 6 | H48: 1 | I48: 7
B49: Chile
B50: Kamerun
B51: Österreich
F54: Gruppe C
C56: 1998-06-12 | D56: Saudi-Arabien | E56: Dänemark | F56: 0 | G56: 1 | S56: Saudi-Arabien | T56: Dänemark | U56: 0 | V56: 1 | X56: =(IF(U56>V56,3,IF(U56=V56,1,2))) -> 2 | Y56: =(IF(V56>U56,3,IF(U56=V56,1,2))) -> 3
F57: (0 | G57: 0) | S57: Frankreich | T57: Südafrika | U57: 3 | V57: 0 | X57: 3 | Y57: 2
C58: 1998-06-12 | D58: Frankreich | E58: Südafrika | F58: 3 | G58: 0 | S58: Südafrika | T58: Dänemark | U58: 1 | V58: 1 | X58: =(IF(U58>V58,3,IF(U58=V58,1,2))) -> 1 | Y58: =(IF(V58>U58,3,IF(U58=V58,1,2))) -> 1
F59: (1 | G59: 0) | S59: Frankreich | T59: Saudi-Arabien | U59: 4 | V59: 0 | X59: 3 | Y59: 2
C60: 1998-06-18 | D60: Südafrika | E60: Dänemark | F60: 1 | G60: 1 | S60: Frankreich | T60: Dänemark | U60: 2 | V60: 1 | X60: 3 | Y60: 2
F61: (0 | G61: 1) | S61: Südafrika | T61: Saudi-Arabien | U61: 2 | V61: 2 | X61: 1 | Y61: 1
C62: 1998-06-18 | D62: Frankreich | E62: Saudi-Arabien | F62: 4 | G62: 0
F63: (1 | G63: 0)
C64: 1998-06-24 | D64: Frankreich | E64: Dänemark | F64: 2 | G64: 1
F65: (1 | G65: 1)
C66: 1998-06-24 | D66: Südafrika | E66: Saudi-Arabien | F66: 2 | G66: 2
F67: (1 | G67: 1)
B69: Nation | C69: Spiele | D69: gew | E69: unent | F69: verl | G69: Tore+ | H69: Tore- | I69: Punkte
B70: Saudi-Arabien | C70: 3 | D70: 2 | E70: 1 | F70: 0 | G70: 5 | H70: 3 | I70: 7
B71: Dänemark
B72: Frankreich
B73: Südafrika
F76: Gruppe D
C78: 1998-06-12 | D78: Paraguay | E78: Bulgarien | F78: 0 | G78: 0 | S78: Paraguay | T78: Bulgarien | U78: 0 | V78: 0 | X78: =(IF(U78>V78,3,IF(U78=V78,1,2))) -> 1 | Y78: =(IF(V78>U78,3,IF(U78=V78,1,2))) -> 1
C79: 1998-06-13 | D79: Spanien | E79: Nigeria | F79: 2 | G79: 3 | S79: Spanien | T79: Nigeria | U79: 2 | V79: 3 | X79: =(IF(U79>V79,3,IF(U79=V79,1,2))) -> 2 | Y79: =(IF(V79>U79,3,IF(U79=V79,1,2))) -> 3
F80: (1 | G80: 1) | S80: Nigeria | T80: Bulgarien | U80: 1 | V80: 0 | X80: 3 | Y80: 2
C81: 1998-06-19 | D81: Nigeria | E81: Bulgarien | F81: 1 | G81: 0 | S81: Spanien | T81: Paraguay | U81: 0 | V81: 0 | X81: 1 | Y81: 1
F82: (1 | G82: 0) | S82: Spanien | T82: Bulgarien | U82: 6 | V82: 1 | X82: 3 | Y82: 2
C83: 1998-06-19 | D83: Spanien | E83: Paraguay | F83: 0 | G83: 0 | S83: Nigeria | T83: Paraguay | U83: 1 | V83: 3 | X83: 2 | Y83: 3
C84: 1998-06-24 | D84: Spanien | E84: Bulgarien | F84: 6 | G84: 1
F85: (2 | G85: 0)
C86: 1998-06-24 | D86: Nigeria | E86: Paraguay | F86: 1 | G86: 3
F87: (1 | G87: 1)
B89: Nation | C89: Spiele | D89: gew | E89: unent | F89: verl | G89: Tore+ | H89: Tore- | I89: Punkte
B90: Paraguay | C90: 3 | D90: 2 | E90: 0 | F90: 1 | G90: 6 | H90: 2 | I90: 6
B91: Bulgarien
B92: Spanien
B93: Nigeria
F96: Gruppe E
C98: 1998-06-13 | D98: Südkorea | E98: Mexiko | F98: 1 | G98: 3 | S98: Südkorea | T98: Mexiko | U98: 1 | V98: 3 | X98: =(IF(U98>V98,3,IF(U98=V98,1,2))) -> 2 | Y98: =(IF(V98>U98,3,IF(U98=V98,1,2))) -> 3
F99: (1 | G99: 0) | S99: Niederlande | T99: Belgien | U99: 0 | V99: 0 | X99: 1 | Y99: 1
C100: 1998-06-13 | D100: Niederlande | E100: Belgien | F100: 0 | G100: 0 | S100: Belgien | T100: Mexiko | U100: 2 | V100: 2 | X100: =(IF(U100>V100,3,IF(U100=V100,1,2))) -> 1 | Y100: =(IF(V100>U100,3,IF(U100=V100,1,2))) -> 1
C101: 1998-06-20 | D101: Belgien | E101: Mexiko | F101: 2 | G101: 2 | S101: Niederlande | T101: Südkorea | U101: 5 | V101: 0 | X101: 3 | Y101: 2
F102: (1 | G102: 0) | S102: Belgien | T102: Südkorea | U102: 1 | V102: 1 | X102: 1 | Y102: 1
C103: 1998-06-20 | D103: Niederlande | E103: Südkorea | F103: 5 | G103: 0 | S103: Niederlande | T103: Mexiko | U103: 2 | V103: 2 | X103: 1 | Y103: 1
F104: (2 | G104: 0)
C105: 1998-06-25 | D105: Belgien | E105: Südkorea | F105: 1 | G105: 1
F106: (1 | G106: 0)
C107: 1998-06-25 | D107: Niederlande | E107: Mexiko | F107: 2 | G107: 2
F108: (2 | G108: 0)
B110: Nation | C110: Spiele | D110: gew | E110: unent | F110: verl | G110: Tore+ | H110: Tore- | I110: Punkte
B111: Südkorea | C111: 3 | D111: 1 | E111: 1 | F111: 1 | G111: 3 | H111: 3 | I111: 4
B112: Mexiko
B113: Niederlande
B114: Belgien
F117: Gruppe F
C119: 1998-06-14 | D119: Jugoslawien | E119: Iran | F119: 1 | G119: 0 | S119: Jugoslawien | T119: Iran | U119: 1 | V119: 0 | X119: =(IF(U119>V119,3,IF(U119=V119,1,2))) -> 3 | Y119: =(IF(V119>U119,3,IF(U119=V119,1,2))) -> 2
F120: (0 | G120: 0) | S120: BRD | T120: USA | U120: 2 | V120: 0 | X120: 3 | Y120: 2
C121: 1998-06-15 | D121: BRD | E121: USA | F121: 2 | G121: 0 | S121: BRD | T121: Jugoslawien | U121: 2 | V121: 2 | X121: =(IF(U121>V121,3,IF(U121=V121,1,2))) -> 1 | Y121: =(IF(V121>U121,3,IF(U121=V121,1,2))) -> 1
F122: (1 | G122: 0) | S122: USA | T122: Iran | U122: 1 | V122: 2 | X122: 2 | Y122: 3
C123: 1998-06-21 | D123: BRD | E123: Jugoslawien | F123: 2 | G123: 2 | S123: BRD | T123: Iran | U123: 2 | V123: 0 | X123: 3 | Y123: 2
F124: (0 | G124: 1) | S124: USA | T124: Jugoslawien | U124: 0 | V124: 1 | X124: 2 | Y124: 3
C125: 1998-06-21 | D125: USA | E125: Iran | F125: 1 | G125: 2
F126: (0 | G126: 1)
C127: 1998-06-25 | D127: BRD | E127: Iran | F127: 2 | G127: 0
F128: (0 | G128: 0)
C129: 1998-06-25 | D129: USA | E129: Jugoslawien | F129: 0 | G129: 1
F130: (0 | G130: 1)
B132: Nation | C132: Spiele | D132: gew | E132: unent | F132: verl | G132: Tore+ | H132: Tore- | I132: Punkte
B133: Jugoslawien | C133: 3 | D133: 2 | E133: 0 | F133: 1 | G133: 4 | H133: 3 | I133: 6
B134: Iran
B135: BRD
B136: USA
F139: Gruppe G
C141: 1998-06-15 | D141: England | E141: Tunesien | F141: 2 | G141: 0 | S141: England | T141: Tunesien | U141: 2 | V141: 0 | X141: =(IF(U141>V141,3,IF(U141=V141,1,2))) -> 3 | Y141: =(IF(V141>U141,3,IF(U141=V141,1,2))) -> 2
F142: (1 | G142: 0) | S142: Rumänien | T142: Kolumbien | U142: 1 | V142: 0 | X142: 3 | Y142: 2
C143: 1998-06-15 | D143: Rumänien | E143: Kolumbien | F143: 1 | G143: 0 | S143: Kolumbien | T143: Tunesien | U143: 1 | V143: 0 | X143: 3 | Y143: 2
F144: (1 | G144: 0) | S144: Rumänien | T144: England | U144: 2 | V144: 1 | X144: 3 | Y144: 2
C145: 1998-06-22 | D145: Kolumbien | E145: Tunesien | F145: 1 | G145: 0 | S145: Rumänien | T145: Tunesien | U145: 1 | V145: 1 | X145: =(IF(U145>V145,3,IF(U145=V145,1,2))) -> 1 | Y145: =(IF(V145>U145,3,IF(U145=V145,1,2))) -> 1
F146: (0 | G146: 0) | S146: Kolumbien | T146: England | U146: 0 | V146: 2 | X146: 2 | Y146: 3
C147: 1998-06-22 | D147: Rumänien | E147: England | F147: 2 | G147: 1
F148: (0 | G148: 0)
C149: 1998-06-26 | D149: Rumänien | E149: Tunesien | F149: 1 | G149: 1
F150: (0 | G150: 1)
C151: 1998-06-26 | D151: Kolumbien | E151: England | F151: 0 | G151: 2
F152: (0 | G152: 2)
B154: Nation | C154: Spiele | D154: gew | E154: unent | F154: verl | G154: Tore+ | H154: Tore- | I154: Punkte
B155: England | C155: 3 | D155: 1 | E155: 1 | F155: 1 | G155: 3 | H155: 3 | I155: 4
B156: Tunesien
B157: Rumänien
B158: Kolumbien
F161: Gruppe H
C163: 1998-06-14 | D163: Argentinien | E163: Japan | F163: 1 | G163: 0 | S163: Argentinien | T163: Japan | U163: 1 | V163: 0 | X163: =(IF(U163>V163,3,IF(U163=V163,1,2))) -> 3 | Y163: =(IF(V163>U163,3,IF(U163=V163,1,2))) -> 2
F164: (1 | G164: 0) | S164: Jamaika | T164: Kroatien | U164: 1 | V164: 3 | X164: 2 | Y164: 3
C165: 1998-06-14 | D165: Jamaika | E165: Kroatien | F165: 1 | G165: 3 | S165: Japan | T165: Kroatien | U165: 0 | V165: 1 | X165: 2 | Y165: 3
F166: (1 | G166: 1) | S166: Argentinien | T166: Jamaika | U166: 5 | V166: 0 | X166: 3 | Y166: 2
C167: 1998-06-20 | D167: Japan | E167: Kroatien | F167: 0 | G167: 1 | S167: Argentinien | T167: Kroatien | U167: 1 | V167: 0 | X167: =(IF(U167>V167,3,IF(U167=V167,1,2))) -> 3 | Y167: =(IF(V167>U167,3,IF(U167=V167,1,2))) -> 2
F168: (0 | G168: 0) | S168: Japan | T168: Jamaika | U168: 1 | V168: 2 | X168: 2 | Y168: 3
C169: 1998-06-21 | D169: Argentinien | E169: Jamaika | F169: 5 | G169: 0
F170: (1 | G170: 0)
C171: 1998-06-26 | D171: Argentinien | E171: Kroatien | F171: 1 | G171: 0
F172: (1 | G172: 0)
C173: 1998-06-26 | D173: Japan | E173: Jamaika | F173: 1 | G173: 2
F174: (0 | G174: 1)
B176: Nation | C176: Spiele | D176: gew | E176: unent | F176: verl | G176: Tore+ | H176: Tore- | I176: Punkte
B177: Argentinien | C177: 3 | D177: 1 | E177: 1 | F177: 1 | G177: 3 | H177: 3 | I177: 4
B178: Japan
B179: Jamaika
B180: Kroatien
F183: Achtelfinale
C185: 1998-06-27 | D185: Italien | E185: Norwegen | F185: 1 | G185: 0 | S185: Italien | T185: Norwegen | U185: 1 | V185: 0 | X185: =(IF(U185>V185,3,IF(U185=V185,1,2))) -> 3 | Y185: =(IF(V185>U185,3,IF(U185=V185,1,2))) -> 2
F186: (1 | G186: 0) | S186: Brasilien | T186: Chile | U186: 4 | V186: 1 | X186: 3 | Y186: 2
C187: 1998-06-27 | D187: Brasilien | E187: Chile | F187: 4 | G187: 1 | S187: Frankreich | T187: Paraguay | U187: 1 | V187: 0 | W187: n.GG. | X187: =(IF(U187>V187,3,IF(U187=V187,1,2))) -> 3 | Y187: =(IF(V187>U187,3,IF(U187=V187,1,2))) -> 2
F188: (3 | G188: 0) | S188: Nigeria | T188: Dänemark | U188: 1 | V188: 4 | X188: 2 | Y188: 3
C189: 1998-06-28 | D189: Frankreich | E189: Paraguay | F189: 1 | G189: 0 | H189: n.GG. | S189: BRD | T189: Mexiko | U189: 2 | V189: 1 | X189: 3 | Y189: 2
F190: 0 | G190: 0 | S190: Niederlande | T190: Jugoslawien | U190: 2 | V190: 1 | X190: =(IF(U190>V190,3,IF(U190=V190,1,2))) -> 3 | Y190: =(IF(V190>U190,3,IF(U190=V190,1,2))) -> 2
F191: (0 | G191: 0) | S191: Rumänien | T191: Kroatien | U191: 0 | V191: 1 | X191: 2 | Y191: 3
C192: 1998-06-28 | D192: Nigeria | E192: Dänemark | F192: 1 | G192: 4 | S192: Argentinien | T192: England | U192: 6 | V192: 5 | W192: n.E. | X192: 3 | Y192: 2
F193: (0 | G193: 3)
C194: 1998-06-29 | D194: BRD | E194: Mexiko | F194: 2 | G194: 1
F195: (0 | G195: 0)
C196: 1998-06-29 | D196: Niederlande | E196: Jugoslawien | F196: 2 | G196: 1
F197: (1 | G197: 0)
C198: 1998-06-30 | D198: Rumänien | E198: Kroatien | F198: 0 | G198: 1
F199: (0 | G199: 1)
C200: 1998-06-30 | D200: Argentinien | E200: England | F200: 4 | G200: 3 | H200: n.E.
F201: 2 | G201: 2 | H201: n.V.
F202: 2 | G202: 2
F203: (2 | G203: 2)
F206: Viertelfinale
C208: 1998-07-03 | D208: Italien | E208: Frankreich | F208: 3 | G208: 4 | H208: n.E. | S208: Italien | T208: Frankreich | U208: 3 | V208: 4 | W208: n.E. | X208: =(IF(U208>V208,3,IF(U208=V208,1,2))) -> 2 | Y208: =(IF(V208>U208,3,IF(U208=V208,1,2))) -> 3
F209: 0 | G209: 0 | H209: n.V. | S209: Brasilien | T209: Dänemark | U209: 3 | V209: 2 | X209: 3 | Y209: 2
F210: 0 | G210: 0 | S210: Niederlande | T210: Argentinien | U210: 2 | V210: 1 | X210: 3 | Y210: 2
F211: (0 | G211: 0) | S211: BRD | T211: Kroatien | U211: 0 | V211: 3 | X211: 2 | Y211: 3
C212: 1998-07-03 | D212: Brasilien | E212: Dänemark | F212: 3 | G212: 2
F213: (2 | G213: 1)
C214: 1998-07-04 | D214: Niederlande | E214: Argentinien | F214: 2 | G214: 1
F215: (1 | G215: 1)
C216: 1998-07-04 | D216: BRD | E216: Kroatien | F216: 0 | G216: 3
F217: (0 | G217: 1)
F220: Halbfinale
C222: 1998-07-07 | D222: Brasilien | E222: Niederlande | F222: 4 | G222: 2 | H222: n.E. | S222: Brasilien | T222: Niederlande | U222: 5 | V222: 3 | W222: n.E. | X222: =(IF(U222>V222,3,IF(U222=V222,1,2))) -> 3 | Y222: =(IF(V222>U222,3,IF(U222=V222,1,2))) -> 2
F223: 1 | G223: 1 | H223: n.V. | S223: Frankreich | T223: Kroatien | U223: 2 | V223: 1 | X223: 3 | Y223: 2
F224: 1 | G224: 1
F225: (0 | G225: 0)
C226: 1998-07-08 | D226: Frankreich | E226: Kroatien | F226: 2 | G226: 1
F227: (0 | G227: 0)
C230: Spiel um Platz 3 am 11. Juli 1998 in Paris
D232: Niederlande | E232: Kroatien | F232: 1 | G232: 2 | S232: Niederlande | T232: Kroatien | U232: 1 | V232: 2 | X232: =(IF(U232>V232,3,IF(U232=V232,1,2))) -> 2 | Y232: =(IF(V232>U232,3,IF(U232=V232,1,2))) -> 3
F233: (1 | G233: 2)
C239: Endspiel am 12. Juli 1998 in Paris
D241: Brasilien | E241: Frankreich | F241: 0 | G241: 3 | S241: Brasilien | T241: Frankreich | U241: 0 | V241: 3 | X241: =(IF(U241>V241,3,IF(U241=V241,1,2))) -> 2 | Y241: =(IF(V241>U241,3,IF(U241=V241,1,2))) -> 3
F242: (0 | G242: 2)
A248: Auswertung | B248: Nation | C248: Spiele | D248: gew | E248: unent | F248: verl | G248: Tore+ | H248: Tore- | I248: Punkte
B249: Frankreich | C249: =COUNTIF($S$12:$T$241,"Frankreich") -> 7 | D249: =SUMPRODUCT(($S$12:$T$241=B249)*($X$12:$Y$241=3)) -> 7 | E249: =SUMPRODUCT(($S$12:$T$241=B249)*($X$12:$Y$241=1)) -> 0 | F249: =SUMPRODUCT(($S$12:$T$241=B249)*($X$12:$Y$241=2)) -> 0 | G249: =SUMPRODUCT(($S$12:$S$241=B249)*($U$12:$U$241))+SUMPRODUCT(($T$12:$T$241=B249)*($V$12:$V$241)) -> 19 | H249: =SUMPRODUCT(($S$12:$S$241=B249)*($V$12:$V$241))+SUMPRODUCT(($T$12:$T$241=B249)*($U$12:$U$241)) -> 5 | I249: =(D249*3)+E249 -> 21
B250: Brasilien | C250: =COUNTIF($S$12:$T$241,"Brasilien") -> 7 | D250: 5 | E250: 0 | F250: 2 | G250: 18 | H250: 12 | I250: 15
B251: Kroatien | C251: =COUNTIF($S$12:$T$241,"Kroatien") -> 7 | D251: 5 | E251: 0 | F251: 2 | G251: 11 | H251: 5 | I251: 15
B252: Argentinien | C252: =COUNTIF($S$12:$T$241,"Argentinien") -> 5 | D252: 4 | E252: 0 | F252: 1 | G252: 14 | H252: 7 | I252: 12
B253: Niederlande | C253: =COUNTIF($S$12:$T$241,"Niederlande") -> 7 | D253: 3 | E253: 2 | F253: 2 | G253: 15 | H253: 11 | I253: 11
B254: Italien | C254: =COUNTIF($S$12:$T$241,"Italien") -> 5 | D254: 3 | E254: 1 | F254: 1 | G254: 11 | H254: 7 | I254: 10
B255: BRD | C255: =COUNTIF($S$12:$T$241,"BRD") -> 5 | D255: 3 | E255: 1 | F255: 1 | G255: 8 | H255: 6 | I255: 10
... 25 more rows

Sheet 2002
A2: 17. WM 2002 in Südkorea und Japan
A4: 31. Mai-30. Juni 2002
A5: Teilnehmende Nationen: 32 --- Bewerbungen: 198
F10: Gruppe A
C12: 2002-05-31 | D12: Frankreich | E12: Senegal | F12: 0 | G12: 1 | I12: Seoul | S12: Frankreich | T12: Senegal | U12: 0 | V12: 1 | X12: =(IF(U12>V12,3,IF(U12=V12,1,2))) -> 2 | Y12: =(IF(V12>U12,3,IF(U12=V12,1,2))) -> 3 | AA12: Frankreich
F13: (0 | G13: 1) | S13: Uruguay | T13: Dänemark | U13: 1 | V13: 2 | X13: 2 | Y13: 3 | AA13: Senegal
C14: 2002-06-01 | D14: Uruguay | E14: Dänemark | F14: 1 | G14: 2 | I14: Ulsan | S14: Dänemark | T14: Senegal | U14: 1 | V14: 1 | X14: 1 | Y14: 1 | AA14: Uruguay
F15: (0 | G15: 1) | S15: Frankreich | T15: Uruguay | U15: 0 | V15: 0 | X15: 1 | Y15: 1 | AA15: Dänemark
C16: 2002-06-06 | D16: Dänemark | E16: Senegal | F16: 1 | G16: 1 | I16: Daegu | S16: Dänemark | T16: Frankreich | U16: 2 | V16: 0 | X16: 3 | Y16: 2 | AA16: Paraguay
F17: (1 | G17: 0) | S17: Senegal | T17: Uruguay | U17: 3 | V17: 3 | X17: 1 | Y17: 1 | AA17: Südafrika
C18: 2002-06-06 | D18: Frankreich | E18: Uruguay | F18: 0 | G18: 0 | I18: Busan | AA18: Spanien
C19: 2002-06-11 | D19: Dänemark | E19: Frankreich | F19: 2 | G19: 0 | I19: Incheon | AA19: Slowenien
F20: (1 | G20: 0) | AA20: Brasilien
C21: 2002-06-11 | D21: Senegal | E21: Uruguay | F21: 3 | G21: 3 | I21: Suwon | AA21: Türkei
F22: (3 | G22: 0) | AA22: China
AA23: Costa Rica
B24: Nation | C24: Spiele | D24: gew | E24: unent | F24: verl | G24: Tore+ | H24: Tore- | I24: Punkte | AA24: Südkorea
